Workbook

Sheet Inhalt
U1: 0
E2: AFP-Investitionskonzept Nordrhein-Westfalen | K2: 1
E3: - Version 2025_01 -
B5: Unternehmen | F5: Unt.nummer | H5: IST-Jahr | I5: 2025
B6: Str. Nr. / Hof | E6: Teilort | H6: Mobil-Nr.
B7: PLZ | D7: Ort | H7: Telefon
B9: IK zum Antrag vom | E9: Aktenzeichen | H9: Erstellt am: | Q9: =IF('9 G-N-P Gart'!K5<>"",'9 G-N-P Gart'!K5,IF('9 G-N-P Gart'!I5<>0,'9 G-N-P Gart'!I5,'9 G-N-P Gart'!G5)) -> 2023 | R9: ="20"&RIGHT(S9,2) -> 2024 | S9: =IF('9 G-N-P'!L3<>"",'9 G-N-P'!L3,IF('9 G-N-P'!J3<>"",'9 G-N-P'!J3,'9 G-N-P'!H3)) -> 2023/24 | T9: Bilanzjahr Gart - Ldw -WJ Ldw
B10: Ergänzt am: | E10: Ergänzt am: | H10: Ergänzt am: | Q10: =IF('9 G-N-P'!L4<>"",'9 G-N-P'!L4,IF('9 G-N-P'!J4<>"",'9 G-N-P'!J4,'9 G-N-P'!H4)) -> 0 | R10: =IF('9 G-N-P'!M4<>"",'9 G-N-P'!M4,IF('9 G-N-P'!K4<>"",'9 G-N-P'!K4,'9 G-N-P'!I4)) -> 0 | S10: Buchst.Nr und Nr. bei Buchst (f. Ldw.)
B12: Buchstellen-Nummer | C12: =IF(Q10>0,Q10,'9 G-N-P Gart'!I3) -> 0 | E12: Nummer bei der Buchstelle | F12: =IF(R10>0,R10,'9 G-N-P Gart'!L3) -> 0 | H12: Umsatzsteuersystem | Q12: ja
B13: Abschluss-Stichtag | E13: Verbuchungsart | F13: brutto | H13: Pauschalierung | L13: (bitte stehen lassen !) | Q13: nein
B15: Betriebszusammenschluss | D15: nein | F15: Zahl der Ausgangsbetriebe | Q15: Verbuchung | S15: Betriebszus.-schluss
B16: Jahr des Zusammenschlusses | Q16: brutto | R16: LW: Fachschule | S16: nein | T16: nein
B17: Existenzgründung | D17: nein | F17: Aussiedlung | G17: nein | P17: =IF(F13=Q17,0,0) -> 0 | Q17: netto | R17: LW: Meister | S17: teilweise | T17: Vollaussiedlung | U17: Letztes WJ: | V17: =IF('9 G-N-P'!$L$3<>"",'9 G-N-P'!$L$3,IF('9 G-N-P'!$J$3<>"",'9 G-N-P'!$J$3,'9 G-N-P'!$H$3)) -> 2023/24 | W17: =RIGHT(V17,2) -> 24 | X17: =19 -> 19 | Y17: =X17 & W17 -> 1924 | Z17: =IF(VALUE(Y17)<1980,VALUE(Y17)+100,VALUE(Y17)) -> 2024 | AA17: =IF(Z17>1900,Z17,IF(K13=2,'1 KaP'!G5-2,'1 KaP'!G5-1)) -> 2024
B18: Anzahl Junglandwirte | F18: Gewinnbeteiligung | Q18: Umsatzsteuer | R18: LW: FH/Uni | S18: vollständig | T18: Teilaussiedlung | W18: Letze Ziffern | X18: Konstante | Y18: Zwischen- | Z18: Zwischen- | AA18: Vorgeschl. WJ
R19: NLW: Fachschule | T19: B-Zweigaussiedlung | W19: des WJ | Y19: summe 1 | Z19: summe 2
B20: Schutzgebietskategorie am Standort der Investition | P20: =IF(H13=Q20,1,0) -> 1 | Q20: Pauschalierung | R20: NLW: Meister
B21: Landschafts-schutzgebiet | C21: nein | E21: Natura 2000 | F21: nein | Q21: Regelbesteuerung | R21: NLW: FH/Uni
B22: Naturschutzgebiet | C22: nein | E22: Wasserschutzgebiet | F22: nein | Q22: Kleinunternehmer
B24: Berater*in | D24: Dienstsitz | F24: Telefon | H24: E-Mail-Adresse | Q24: ledig
B25: Betreuer*in | E25: Bearbeiter*in | H25: Telefon
B26: Dienstsitz | E26: E-Mail-Adresse | Q26: verheiratet
B28: Angaben zu den Gesellschafter*innen/n (auszufüllen wenn Antrag von Gesellschaft gestellt wird) | P28: =IF(B29="1. Gesellschafter",1,(IF(B29="Investor",2,0))) -> 0 | Q28: Bitte auswählen
B29: Bitte auswählen | E29: Vorname | Q29: 1. Gesellschafter
B30: Str. Nr. / Hof | E30: Teilort | H30: Geb.datum | Q30: Investor
B31: PLZ | D31: Ort | H31: Telefon | P31: =IF(B35="2. Gesellschafter",1,(IF(B35="Investor",2,0))) -> 0 | Q31: Bitte auswählen
B32: Fax | D32: Mobil-Nr. | G32: Ausbildung | Q32: 2. Gesellschafter
B33: Positive Einkünfte der letzten 3 Jahre | C33: 0 | E33: Hauptberuflich im Untern. tätig | G33: Kapitalanteil in der Gesellschaft | L33: =IF(H33=0,0,IF(AND(H29="verheiratet",C33>180000),H33/100,IF(AND(H29="ledig",C33>150000),H33/100,0))) -> 0 | Q33: Investor
B35: Bitte auswählen | E35: Vorname
B36: Str. Nr. / Hof | E36: Teilort | H36: Geb.datum
B37: PLZ | D37: Ort | H37: Telefon
B38: Fax | D38: Mobil-Nr. | G38: Ausbildung
B39: Positive Einkünfte der letzten 3 Jahre | C39: 0 | E39: Hauptberuflich im Untern. tätig | G39: Kapitalanteil in der Gesellschaft | L39: =IF(H39=0,0,IF(AND(H35="verheiratet",C39>180000),H39/100,IF(AND(H35="ledig",C39>150000),H39/100,0))) -> 0
B41: 3. Gesellschafter | E41: Vorname
B42: Str. Nr. / Hof | E42: Teilort | H42: Geb.datum
B43: PLZ | D43: Ort | H43: Telefon
B44: Fax | D44: Mobil-Nr. | G44: Ausbildung
B45: Positive Einkünfte der letzten 3 Jahre | E45: Hauptberuflich im Untern. tätig | G45: Kapitalanteil in der Gesellschaft | L45: =IF(H45=0,0,IF(AND(H41="verheiratet",C45>180000),H45/100,IF(AND(H41="ledig",C45>150000),H45/100,0))) -> 0
B47: 4. Gesellschafter | E47: Vorname
B48: Str. Nr. / Hof | E48: Teilort | H48: Geb.datum
B49: PLZ | D49: Ort | H49: Telefon
B50: Fax | D50: Mobil-Nr. | G50: Ausbildung
B51: Positive Einkünfte der letzten 3 Jahre | E51: Hauptberuflich im Untern. tätig | G51: Kapitalanteil in der Gesellschaft | L51: =IF(H51=0,0,IF(AND(H47="verheiratet",C51>180000),H51/100,IF(AND(H47="ledig",C51>150000),H51/100,0))) -> 0
I52: =SUM(L33,L39,L45,L51) -> 0
B55: Inhalt | F55: Blatt
B57: 1. | C57: Betriebsentwicklungsplanung: | G57: 1 | H57: 0 | I57: 0
C59: Kapazitäten - Produktionsgrundlagen | F59: 1 KaP | G59: x | H59: x | I59: x
C60: (Teil Gartenbau eingeblendet) | H60: x
C61: Investitionsbedarf | F61: 2 InvBed | G61: x | H61: x | I61: x
C62: Finanzierungsplan | F62: 3 FinPlan | G62: x | H62: x | I62: x
C63: Kredite und Kapitaldienst | F63: 4 Kredite | G63: x | H63: x | I63: x
C64: Regelmäßige Zulagen | F64: 5 Präm | G64: x | H64: x
C65: Leist., var. Kosten, Deckungsb. | E65: Ist | F65: 6 Db_I | G65: x
E66: Ziel | F66: 6 Db_Z | G66: x
C67: Produktionsprogramm | F67: 7 Prod | G67: x | I67: x (ohne Db)
C68: Gewinn, Eigenkap'ver., Kapitaldienstgrenze | F68: 8 GeKDGr | G68: x | H68: x | I68: x
C69: GuV, Nebeneink., Privataufw. | E69: Landwirte | F69: 9 G-N-P | G69: x | I69: x
A70: 1 | E70: Gartenbau | F70: 9 G-N-P Gart | H70: x
C71: Umsatzsteuer | F71: 9a USt | G71: x | I71: x
C72: Kommentare | F72: Kommentar | G72: x | H72: x | I72: x
C73: Diagramme | F73: Diagramme | G73: x | H73: x | I73: x
B78: 2. | C78: Investitionskonzept BMELV | E78: Allgem. Ang. | F78: I_ 0
E79: Tier/Umwelt | F79: I_5
B81: 3. | C81: BMELV-Codes | F81: BMELV-Codes

Sheet 1 KaP
B1: Investitionskonzept NRW 2025_01 | M1: Unternehmernummer | O1: =F5 -> Ist | P1: =J5 -> Ziel
L2: =Inhalt!G5 -> 0 | N2: ha-Diff. zu Anbauverz. !! | AG2: Für Makro
B3: Kapazitäten - Produktionsgrundlagen | N3: Ac | O3: =I29-(F153+F191) -> 0 | P3: =M29-(J153+J191) -> 0 | AG3: "PV des Betriebes > 0"
K4: Erstellt am | L4: =MAX(Inhalt!$I$9,Inhalt!$C$10,Inhalt!$F$10,Inhalt!$I$10) -> 00:00:00 | N4: Gr | O4: =SUM(I31)-F144 -> 0 | P4: =SUM(M31)-J144 -> 0 | AG4: =IF(F272+J272>0,1,0) -> 0 | AH4: Prüfziffer, ob schon Einträge
A5: Unt.: | C5: =Inhalt!C5 -> 0 | F5: Ist | G5: =Inhalt!I5 -> 2025 | J5: Ziel | K5: 2026 | N5: So | O5: =SUM(I32:I33,I35:I36)-SUM(F203,F211,F213:F214) -> 0 | P5: =SUM(M32:M33,M35:M36)-SUM(J203,J211,J213:J214) -> 0
N6: LF
F7: MwSt | G7: Zuk.Ldw. | H7: Verk.Ldw. | I7: Forst | J7: MwSt | K7: Zuk. Ldw. | L7: Verk. Ldw. | M7: Forst | O7: =I37-SUM(F144,F153,F191,F203,F211,F213:F214) -> 0 | P7: =M37-SUM(J144,J153,J191,J203,J211,J213:J214) -> 0
A8: 1 | B8: Regelbesteuerung (Option) | E8: = 1 | F8: =IF(G5<2007,16 %,19 %) -> 0.19 | G8: 0.07 | H8: =IF(F9=2,(IF(G5<2023,9.5 %,9 %)),G8) -> 0.09 | I8: =IF(G5<2007,5 %,5.5 %) -> 0.055 | J8: =IF(K5<2007,16 %,19 %) -> 0.19 | K8: 0.07 | L8: =IF(J9=2,(IF(K5<2023,9.5 %,9 %)),K8) -> 0.09 | M8: =IF(K5<2007,5 %,5.5 %) -> 0.055
A9: =A8+1 -> 2 | B9: Pauschalierung | E9: = 2 | F9: 2 | J9: =F9 -> 2
B11: Hauptproduktionsrichtung | G11: Arbeitskräfte | I11: Geburts- | J11: Alter | K11: Erstmalige | L11: AK | O11: Bei betriebsnotw.
A12: =A9+1 -> 3 | B12: Bitte auswählen | I12: Datum | J12: Jahre | K12: NL(Datum) | L12: =G5 -> 2025 | M12: =K5 -> 2026 | O12: AK od. AKh auch | S12: Weibliche AK
A13: =A12+1 -> 4 | F13: Betriebsleiter / in | J13: =IF(I13=0,0,ROUNDDOWN((Inhalt!I9-$I13)/365.25,0)) -> 0 | M13: =L13 -> 0 | O13: diejenigen | S13: =IF(H13="weiblich",L13,0) -> 0 | T13: =IF(H13="weiblich",M13,0) -> 0 | X13: Prod.-richtung | Y13: Benacht. Gebiet | Z13: Rechtsform | AA13: Betriebszus.-schluss | AB13: Sozialökonom. Typ | AC13: Bewirtschaftungsform | AD13: Verbuchung | AE13: Aussiedlung | AF13: Schutzgebiet | AG13: Geschlecht | AH13: Ausbildung | AI13: Investition
A14: =A13+1 -> 5 | B14: Haupterwerb | F14: 2. Betr.-leiter / in | J14: =IF(I14=0,0,ROUNDDOWN((Inhalt!I9-$I14)/365.25,0)) -> 0 | M14: =L14 -> 0 | O14: berücksichtigen, | S14: 0 | T14: 0
F15: 3. Betriebsleiter | J15: =IF(I15=0,0,ROUNDDOWN((Inhalt!I9-$I15)/365.25,0)) -> 0 | M15: 0 | S15: 0 | T15: 0
F16: 4. Betriebsleiter | J16: =IF(I16=0,0,ROUNDDOWN((Inhalt!I9-$I16)/365.25,0)) -> 0 | M16: 0 | S16: 0 | T16: 0
A17: =A14+1 -> 6 | B17: Konventionell | F17: Ehepartner / in | J17: =IF(I17=0,0,ROUNDDOWN((Inhalt!I9-$I17)/365.25,0)) -> 0 | M17: 0 | O17: für die eigentlich | S17: 0 | T17: 0 | X17: Bitte auswählen | Y17: Normalgebiet | AA17: Nein | AB17: Haupterwerb | AC17: Konventionell | AD17: Brutto | AE17: Nein | AF17: Ja | AG17: männlich | AH17: LW: Fachschule | AI17: Gr. Invest.
A18: 7 | B18: Jahr d. Umstellung: | F18: Betr.-nachfolger / in | J18: =IF(I18=0,0,ROUNDDOWN((Inhalt!I9-$I18)/365.25,0)) -> 0 | M18: 0 | O18: variable Löhne | S18: 0 | T18: 0 | X18: Ackerbau | Y18: Berggebiet | Z18: Einzelunternehmen | AA18: Teilweise | AB18: Nebenerwerb | AC18: Ökologisch | AD18: Netto | AE18: Vollaussiedlung | AF18: Nein | AG18: weiblich | AH18: LW: Meister | AI18: Kl. Invest.
A19: 8 | B19: Vorhaben | F19: Vater / Mutter | M19: 0 | O19: einzurechnen wären! | S19: 0 | T19: 0 | X19: Milchviehhaltung | Y19: Sonst. ben. Gebiet | Z19: Familien-GbR | AA19: Vollständig | AC19: Ökolog. in Umstellung | AD19: Umsatzsteuer | AE19: Teilaussiedlung | AH19: LW: FH/Uni
A20: 9 | F20: Sonst.nichtentl. Fam-AK ml. | M20: 0 | X20: Fleischviehhaltung | Y20: Gebiet mit spez. Nachteilen | Z20: Fremd-GbR | AD20: Pauschalierung | AE20: B-Zweigaussiedlung | AH20: NLW: Fachschule
A21: 10 | F21: Sonst.nichtentl. Fam-AK wbl. | M21: 0 | O21: Betriebsnotw. AK | S21: =L21 -> 0 | T21: =M21 -> 0 | X21: Schweinehaltung | Z21: KG | AD21: Regelbesteuerg. | AH21: NLW: Meister
A22: 11 | F22: Lohnarbeitskräfte ständig | M22: 0 | O22: bei Gartenbaubetrieben: | X22: Geflügelhaltung | Z22: GmbH&Co KG | AD22: Kleinunternehmer | AH22: NLW: FH/Uni
A23: 12 | F23: Lohnarbeitskr. nicht-ständig | L23: =L24-SUM(L13:L22) -> 0 | M23: =M24-SUM(M13:M22) -> 0 | O23: Ist | P23: Ziel | X23: Sonst. Tierhaltung | Z23: GmbH
A24: 13 | B24: Rechtsform | G24: AK insgesamt | L24: ='7 Prod'!J142+O24 -> 0 | M24: ='7 Prod'!S142+P24 -> 0 | X24: Gartenbau | Z24: Genossenschaft (eG)
A25: 14 | G25: davon entlohnte Familien-AK | M25: =L25 -> 0 | O25: Diff. geplante / berechnete AK: | X25: Weinbau | Z25: Aktiengesellschaft
A26: 15 | G26: Frauen-AK insg. | L26: =SUM(S13:S23) -> 0 | M26: =SUM(T13:T23) -> 0 | P26: =P24-P27 -> 0 | X26: Obstbau | Z26: Sonstiges
F27: =F5 -> Ist | J27: =J5 -> Ziel | P27: =P118 -> 0 | X27: Forstwirtschaft
C28: Betriebsflächen | E28: ha | F28: Eigentum | G28: Verpacht | H28: Zupacht | I28: Bewirtsch. | J28: Eigentum | K28: Verpacht | L28: Zupacht | M28: Bewirtsch. | O28: Berechnete AK Ziel in Z.49 ! *) | X28: Sonstiges
A29: =A26+1 -> 16 | B29: Acker | G29: 0 | H29: =SUM(I29,G29)-SUM(F29) -> 0 | I29: 0 | J29: =F29 -> 0 | K29: 0 | L29: =SUM(M29,K29)-SUM(J29) -> 0 | M29: =I29 -> 0 | O29: *) Dazu Betriebsertrag (BE) auf Blatt 9 G-N-P Gart bearbeiten!
H30: =SUM(I30,G30)-SUM(F30) -> 0 | L30: =SUM(M30,K30)-SUM(J30) -> 0
A31: =A29+1 -> 17 | B31: Dauergrünland | G31: 0 | H31: 0 | J31: 0 | K31: 0 | L31: 0 | M31: 0
A32: =A31+1 -> 18 | B32: Obstbau-, Hopfenflächen | F32: 0 | G32: 0 | H32: 0 | I32: 0 | J32: 0 | K32: 0 | L32: 0 | M32: 0 | O32: Das Anbauverz.
A33: 19 | B33: Gartenbau | F33: 0 | G33: 0 | H33: 0 | I33: 0 | J33: 0 | K33: 0 | L33: 0 | M33: 0 | O33: ldw. Kulturen (ha)
A34: 20 | B34: dav. Gewächshausfläche qm | F34: 0 | G34: 0 | H34: 0 | I34: 0 | J34: 0 | K34: 0 | L34: 0 | M34: 0 | O34: auf diesem
A35: 21 | B35: Weinbau | G35: 0 | H35: 0 | J35: 0 | K35: 0 | L35: 0 | M35: 0 | O35: Blatt 1 KaP ganz
A36: 22 | B36: Sonstige LF | F36: 0 | G36: 0 | H36: 0 | I36: 0 | J36: 0 | K36: 0 | L36: 0 | M36: 0 | O36: unten eintragen!
A37: 23 | B37: LF ingesamt | F37: =SUM(F29,F31:F33,F35:F36) -> 0 | G37: 0 | H37: 0 | I37: 0 | J37: 0 | K37: 0 | L37: 0 | M37: 0
A39: =A37+1 -> 24 | B39: Forst | G39: 0 | I39: =SUM(F39-G39+H39) -> 0 | J39: =F39 -> 0 | K39: 0 | L39: 0 | M39: =SUM(J39-K39+L39) -> 0
A40: =A39+1 -> 25 | B40: Sonstige Betriebsflächen | F40: 0 | G40: 0 | I40: =SUM(F40-G40+H40) -> 0 | J40: 0 | K40: 0 | L40: 0 | M40: =SUM(J40-K40+L40) -> 0
A41: =A40+1 -> 26 | B41: Betriebsfläche | F41: =SUM(F37:F40) -> 0 | G41: 0 | H41: =SUM(H37:H40) -> 0 | I41: 0 | J41: 0 | K41: 0 | L41: 0 | M41: 0
A43: =A41+1 -> 27 | B43: LF im benachteiligten Gebiet AZL | F43: Normalgebiet | M43: =I43 -> 0
A44: =A43+1 -> 28 | B44: LF im Wasserschutzgebiet WSG | M44: =I44 -> 0
A45: =A44+1 -> 29 | B45: dav.Problem-/Sanierungsgebiet | M45: =I45 -> 0
A46: 26 | B46: davon | M46: =I46 -> 0 | AG46: =SUM(R46:V46) -> 0
C47: Liefermengen und -rechte | H47: je Kuh | L47: je Kuh | AG47: =IF($AG$4=0,1,IF(SUM(AG48:AG56)<>0,1,0)) -> 1
A48: =A45+1 -> 30 | B48: Kuhmilchverkauf, incl. Nat'entn. | E48: kg | H48: =IF(F60=0,0,F48/F60) -> 0 | J48: =F48 -> 0 | L48: =IF(J60=0,0,J48/J60) -> 0 | AG48: =IF($AG$4=0,1,IF(SUM($F$48:$F$50,$F$60,$J$48:$J$50,$J$60,'9 G-N-P'!O10)<>0,1,0)) -> 1
A49: =A48+1 -> 31 | B49: Milchreferenzmenge ges. | E49: kg | H49: =IF(F60=0,0,F49/F60) -> 0 | J49: =F49 -> 0 | L49: =IF(J60=0,0,J49/J60) -> 0 | AG49: =IF($AG$4=0,1,IF(SUM($F$48:$F$50,$F$60,$J$48:$J$50,$J$60,'9 G-N-P'!O10)<>0,1,0)) -> 1
A50: =A49+1 -> 32 | B50: davon gepachtet | E50: kg | H50: 0 | J50: =F50 -> 0 | L50: 0 | AG50: =IF($AG$4=0,1,IF(SUM($F$48:$F$50,$F$60,$J$48:$J$50,$J$60,'9 G-N-P'!O10)<>0,1,0)) -> 1
A51: =A50+1 -> 33 | E51: St | H51: 0 | J51: 0 | L51: 0 | AG51: =IF($AG$4=0,0,IF(F51+J51<>0,1,0)) -> 0
A52: 34 | E52: St | H52: 0 | J52: 0 | L52: 0 | AG52: =IF($AG$4=0,0,IF(F52+J52<>0,1,0)) -> 0
A53: 35 | B53: Weinquote (Tafelwein) | E53: hl | J53: 0 | AG53: =IF($AG$4=0,0,IF(F53+J53<>0,1,0)) -> 0
A54: 36 | B54: Zuckerrübenkontrakt | E54: t | F54: 0 | H54: 0 | J54: 0 | L54: 0 | AG54: =IF($AG$4=0,1,IF(SUM(F54,J54,F177,J177)<>0,1,0)) -> 1
A55: 37 | E55: t | F55: 0 | H55: 0 | J55: 0 | L55: 0 | AG55: =IF($AG$4=0,0,IF(F55+J55<>0,1,0)) -> 0
A56: 38 | B56: Stärkekartoffel | E56: t | F56: 0 | J56: =F56 -> 0 | AG56: =IF($AG$4=0,0,IF(SUM(F56,J56,F176,J176)<>0,1,0)) -> 0
A57: =IF(AND(F60<>0,F49=0),"Im Ist Milchkühe, aber keine Quote!","") ->  | F57: =IF(AND(F60=0,F49<>0),"Im Ist keine Milchkühe, aber Quote !","") ->  | J57: =IF(AND(J60>0,J49=0),"Im Ziel Milchkühe, aber keine Quote!","") ->  | N57: =IF(AND(J60=0,J49>0),"Im Ziel keine Milchkühe, aber Quote !","") ->  | AG57: =IF($AG$4=0,1,IF($F$271+$F$270+$J$271+$J$270<>0,1,0)) -> 1
F58: Bestand | G58: jährl. erz. | H58: erz.Tiere | I58: Nutzungsd. | J58: Bestand | K58: jährl. erz. | L58: erz.Tiere | M58: Nutzungsd. | O58: GVE- | P58: BIMSCH | Q58: erreicht | R58: Aufzuchtdauer in Jahren | S58: Anzahl der Tiere in der Gruppe | T58: > 2,0 Jahre | U58: Anzahl der Tiere in der Gruppe | V58: 0,5 - 2 J. | W58: Anzahl der Tiere in der Gruppe | X58: 75 kg bis 0,5 J. | Y58: ges. GVE in den Prod-Verfahren | Z58: berechnete Tiezahlen | AG58: =IF($AG$4=0,1,IF($F$271+$J$271<>0,1,0)) -> 1
A59: =A56+1 -> 39 | B59: PV-Nr.: | D59: Tierhaltung | F59: Stück | G59: Ti. je Platz | H59: St./Jahr | I59: Jahre | J59: Stück | K59: Ti. je Platz | L59: St./Jahr | M59: Jahre | O59: je Best.-St. | P59: Grenze | Q59: in % | T59: 1 | V59: 0.6 | X59: 0.4 | AG59: =IF($AG$4=0,1,IF($F$271+$J$271<>0,1,0)) -> 1
B60: 1 | C60: Milchkühe | I60: 3 | J60: =F60 -> 0 | M60: =I60 -> 3 | O60: =1 -> 1 | P60: 600 | Q60: =SUM(J60:J64)/P60 -> 0 | AG60: =IF($AG$4=0,1,IF(SUM($F$48:$F$50,$F$60,$J$48:$J$50,$J$60,'9 G-N-P'!O10)<>0,1,0)) -> 1 | AH60: Milchkühe
B61: 2 | C61: Zuchtfärsen | G61: 0.45 | H61: =F61*G61 -> 0 | J61: =F61 -> 0 | K61: =G61 -> 0.45 | L61: =J61*K61 -> 0 | O61: =IF(Z61=0,"",IF(J61=0,Y61/F61,Y61/J61)) ->  | R61: =IF(K61>0,1/K61,1/G61) -> 2.22 | S61: =IF(R61-2>0,(R61-2)*Z61/R61,0) -> 0 | T61: =S61*T59 -> 0 | U61: =IF(W61=0,IF(R61>2,2*Z61/R61,R61*Z61/R61),IF(R61-0.5>1.5,1.5*Z61/R61,(R61-0.5)*Z61/R61)) -> 0 | V61: =U61*V59 -> 0 | W61: =IF(E61="x",0,Z61*0.5/R61) -> 0 | X61: =W61*X59 -> 0 | Y61: =T61+V61+X61 -> 0 | Z61: =IF(J61=0,F61,J61) -> 0 | AG61: =IF($AG$4=0,1,IF(F61+J61<>0,1,0)) -> 1
B62: 3 | C62: Mastfärsen | G62: 1 | H62: =F62*G62 -> 0 | J62: =F62 -> 0 | K62: =G62 -> 1 | L62: =J62*K62 -> 0 | O62: =IF(Z62=0,"",IF(J62=0,Y62/F62,Y62/J62)) ->  | R62: =IF(K62>0,1/K62,1/G62) -> 1 | S62: =IF(R62-2>0,(R62-2)*Z62/R62,0) -> 0 | T62: =S62*T59 -> 0 | U62: =IF(W62=0,IF(R62>2,2*Z62/R62,R62*Z62/R62),IF(R62-0.5>1.5,1.5*Z62/R62,(R62-0.5)*Z62/R62)) -> 0 | V62: =U62*V59 -> 0 | W62: =IF(E62="x",0,Z62*0.5/R62) -> 0 | X62: =W62*X59 -> 0 | Y62: =T62+V62+X62 -> 0 | Z62: =IF(J62=0,F62,J62) -> 0 | AG62: =IF($AG$4=0,0,IF(F62+J62<>0,1,0)) -> 0
B63: 4 | C63: Mastbullen | D63: 1200 kg | G63: 0.8 | H63: =F63*G63 -> 0 | J63: 0 | K63: =G63 -> 0.8 | L63: =J63*K63 -> 0 | O63: =IF(Z63=0,"",IF(J63=0,Y63/F63,Y63/J63)) ->  | R63: =IF(K63>0,1/K63,1/G63) -> 1.25 | S63: =IF(R63-2>0,(R63-2)*Z63/R63,0) -> 0 | T63: =S63*T59 -> 0 | U63: =IF(W63=0,IF(R63>2,2*Z63/R63,R63*Z63/R63),IF(R63-0.5>1.5,1.5*Z63/R63,(R63-0.5)*Z63/R63)) -> 0 | V63: =U63*V59 -> 0 | W63: =IF(E63="x",0,Z63*0.5/R63) -> 0 | X63: =W63*X59 -> 0 | Y63: =T63+V63+X63 -> 0 | Z63: =IF(J63=0,F63,J63) -> 0 | AG63: 0
B64: 5 | C64: Mutterkühe | D64: mit Kalb | I64: 5 | J64: 0 | M64: =I64 -> 5 | O64: =1+0.5*0.4 -> 1.2 | AG64: 0
B65: 6 | C65: Kälber | D65: u. Mastkälber | G65: 3 | H65: =F65*G65 -> 0 | J65: =F65 -> 0 | K65: =G65 -> 3 | L65: =J65*K65 -> 0 | O65: 0.4 | P65: 500 | Q65: =J65/P65 -> 0 | AG65: 0
B66: 7 | C66: Pen'pferde | D66: oh.Halle | J66: 0 | O66: 1 | AG66: 0
B67: 8 | C67: Zuchtpferde | D67: eigen | J67: 0 | M67: =I67 -> 0 | O67: 1 | AG67: 0
B68: 9 | C68: Pferde | D68: < 6 Monaten | G68: 0.3 | H68: =F68*G68 -> 0 | J68: 0 | K68: =G68 -> 0.3 | L68: =J68*K68 -> 0 | O68: 0.5 | AG68: 0
B69: 10 | C69: Mutterschafe | D69: m.Nachzucht | J69: 0 | M69: =I69 -> 0 | O69: 0.15 | AG69: =IF($AG$4=0,1,IF(F69+J69<>0,1,0)) -> 1
B70: 11 | C70: Schafe o. Lamm | D70: 10-18 Monate | G70: 1.6 | H70: =F70*G70 -> 0 | J70: 0 | K70: =G70 -> 1.6 | L70: =J70*K70 -> 0 | O70: 0.15 | AG70: =IF($AG$4=0,0,IF(F70+J70<>0,1,0)) -> 0
B71: 12 | C71: So. Schafe | F71: 0 | G71: 0.5 | H71: =F71*G71 -> 0 | J71: 0 | K71: =G71 -> 0.5 | L71: =J71*K71 -> 0 | O71: 0.15 | AG71: 0
B72: 13 | C72: Damtiere | G72: 1 | H72: =F72*G72 -> 0 | J72: 0 | K72: =G72 -> 1 | L72: =J72*K72 -> 0 | AG72: 0
B73: 14 | C73: Milchziegen / Muttertiere | D73: Molkerei | J73: 0 | M73: =I73 -> 0 | O73: 0.15 | AG73: 0
B74: 15 | C74: So. Ziegen | G74: 1 | H74: =F74*G74 -> 0 | J74: 0 | K74: =G74 -> 1 | L74: =J74*K74 -> 0 | O74: 0.15 | AG74: 0
B75: 16 | G75: 1 | H75: =F75*G75 -> 0 | J75: 0 | K75: =G75 -> 1 | L75: =J75*K75 -> 0 | AG75: 0
B76: 17 | G76: 1 | H76: =F76*G76 -> 0 | J76: 0 | K76: =G76 -> 1 | L76: =J76*K76 -> 0 | AG76: 0
B77: 18 | C77: Zuchteber | G77: 1 | H77: =F77*G77 -> 0 | J77: 0 | K77: =G77 -> 1 | L77: =J77*K77 -> 0 | O77: 0.5 | AG77: 0
B78: 19 | C78: Pensionstiere | D78: Rinder | J78: 0 | AG78: 0
B79: 20 | C79: So. RauFuFresser | G79: 3.3 | H79: =F79*G79 -> 0 | J79: 0 | K79: =G79 -> 3.3 | L79: =J79*K79 -> 0 | AG79: 0
B80: 21 | C80: ZSauen | D80: mit Ferkel | G80: 30 | I80: 2.3 | J80: =F80 -> 0 | K80: 30 | M80: =I80 -> 2.3 | O80: =IF(E80="x",0.5,0.5+Y80) -> 0.64 | P80: 560 | Q80: =J80/P80 -> 0 | R80: Zahl der Ferkelpl. | S80: 5 | T80: GV Ferk. bis 20kg | U80: 0.027 | X80: = Zuschlag für anteilige Ferkel | Y80: =S80*U80 -> 0.135 | AG80: =IF($AG$4=0,1,IF(F80+J80+'9 G-N-P'!O13<>0,1,0)) -> 1
B81: 22 | C81: Aufzuchtferkel | G81: 6 | H81: =F81*G81 -> 0 | K81: 6 | L81: =J81*K81 -> 0 | O81: 0.027 | P81: 4500 | Q81: =J81/P81 -> 0 | AG81: =IF($AG$4=0,0,IF(F81+J81<>0,1,0)) -> 0
B82: 23 | C82: MSchweine | G82: 2.8 | H82: =F82*G82 -> 0 | J82: 0 | K82: 2.8 | L82: =J82*K82 -> 0 | O82: =S82*U82+W82*Y82 -> 0.13 | P82: 1500 | Q82: =(J82+J83+J84)/P82 -> 0 | R82: Läufer 20 - 50 kg | S82: 0.333 | T82: GV Läufer | U82: 0.06 | V82: Mastschw. >50 kg | W82: =1-S82 -> 0.667 | X82: GV MS | Y82: 0.16 | AG82: =IF($AG$4=0,1,IF(F82+J82<>0,1,0)) -> 1
B83: 24 | C83: Jungsauen | G83: 2.5 | H83: =F83*G83 -> 0 | J83: 0 | K83: 2.5 | L83: =J83*K83 -> 0 | O83: 0.3 | AG83: =IF($AG$4=0,0,IF(F83+J83<>0,1,0)) -> 0
B84: 25 | C84: Jungeber | G84: 2.5 | H84: =F84*G84 -> 0 | J84: 0 | K84: 2.5 | L84: =J84*K84 -> 0 | O84: 0.3 | AG84: =IF($AG$4=0,0,IF(F84+J84<>0,1,0)) -> 0
B85: 26 | C85: So. Schweine | G85: 1 | H85: =F85*G85 -> 0 | J85: 0 | K85: 1 | L85: =J85*K85 -> 0 | O85: 0.3 | AG85: =IF($AG$4=0,0,IF(F85+J85<>0,1,0)) -> 0
B86: 27 | C86: 100 Legeh. | I86: 1.1 | J86: 0 | M86: =I86 -> 1.1 | O86: 0.3 | P86: 150 | Q86: =J86/P86 -> 0 | AG86: =IF($AG$4=0,1,IF(F86+J86<>0,1,0)) -> 1
B87: 28 | C87: 100 Ma'hähn. | D87: a 2,1 kg | G87: 7.7 | H87: =F87*G87 -> 0 | J87: 0 | K87: =G87 -> 7.7 | L87: =J87*K87 -> 0 | O87: 0.2 | P87: 300 | Q87: 0 | AG87: =IF($AG$4=0,0,IF(F87+J87<>0,1,0)) -> 0
B88: 29 | C88: 100 Jungh. | G88: 2.3 | H88: 0 | J88: =F88 -> 0 | K88: 2.3 | L88: 0 | O88: 0.13 | P88: 300 | Q88: 0 | AG88: 0
B89: 30 | C89: 100 Ma'enten | D89: 11Wo.5%Verl. | F89: 0 | G89: 4 | H89: 0 | J89: 0 | K89: 4 | L89: 0 | O89: 1.4 | P89: 300 | Q89: 0 | AG89: 0
B90: 31 | C90: 100 Ma'gänse | D90: Weid.eig.Schl. | F90: 0 | G90: 1 | H90: 0 | J90: 0 | K90: 1 | L90: 0 | O90: 1.4 | P90: 300 | Q90: 0 | AG90: 0
B91: 32 | C91: 100 Ma'puten | G91: 2.7 | H91: 0 | J91: 0 | K91: 2.7 | L91: 0 | O91: 2 | P91: 150 | Q91: 0 | AG91: 0
B92: 33 | C92: 100 so.Geflügel | F92: 0 | G92: 1 | H92: 0 | J92: 0 | K92: 1 | L92: 0 | O92: 1.4 | AG92: 0
B93: 34 | C93: Ma'kaninchen | G93: 1 | H93: 0 | J93: 0 | K93: 1 | L93: 0 | AG93: 0
B94: 35 | C94: Zu'kaninchen | J94: 0 | M94: =I94 -> 0 | AG94: 0
B95: 36 | C95: Pelztiere | G95: 1 | H95: =F95*G95 -> 0 | J95: 0 | K95: =G95 -> 1 | L95: =J95*K95 -> 0 | P95: 750 | Q95: =J95/P95 -> 0 | AG95: 0
B96: 37 | C96: Bienen | J96: 0 | M96: =I96 -> 0 | AG96: 0
B97: 38 | C97: Fische | G97: 1 | H97: =F97*G97 -> 0 | J97: 0 | K97: =G97 -> 1 | L97: =J97*K97 -> 0 | AG97: 0
B98: 39 | C98: Sonst. Tiere | G98: 1 | H98: =F98*G98 -> 0 | J98: 0 | K98: =G98 -> 1 | L98: =J98*K98 -> 0 | AG98: 0
G99: Viehbesatz nach Nährstoffabgabe (vergl. Anlage 29) | L99: 0 | M99: je ha | AG99: =IF($AG$4=0,1,IF(F100+J100<>0,1,0)) -> 1
B100: Berechnung der GVE und GVE / ha | F100: =SUMPRODUCT(O60:O98,F60:F98) -> 0 | G100: =F5 -> Ist | H100: =IF(I37=0,0,F100/I37) -> 0 | I100: je ha | J100: =SUMPRODUCT(O60:O98,J60:J98) -> 0 | K100: =J5 -> Ziel | L100: =IF(M37=0,0,J100/M37) -> 0 | M100: je ha | Q100: =SUM(Q60:Q98) -> 0 | AG100: =IF($AG$4=0,1,IF(F100+J100<>0,1,0)) -> 1
F102: Gemüse- | G102: Zier- | H102: Obst | I102: So.Garten- | J102: Gemüse- | K102: Zier- | L102: =H102 -> Obst | M102: So.Garten-
B103: Gartenbauflächen | F103: bau | G103: pflanzen | I103: gewächse | J103: bau | K103: pflanzen | L103: =H103 -> 0 | M103: gewächse
F104: m2 | G104: m2 | H104: m2 | I104: m2 | J104: m2 | K104: m2 | L104: m2 | M104: m2
A105: 38 | B105: Hochglas heizbar | J105: =F105 -> 0 | K105: 0 | L105: =H105 -> 0 | M105: 0 | O105: Bewirtsch. Flächen:
A106: =A105+1 -> 39 | C106: nicht heizbar | J106: 0 | K106: 0 | L106: 0 | M106: 0 | O106: Gewächshausfläche lt. Zeile 20
A107: =A106+1 -> 40 | B107: Foliengewächshaus heizbar | J107: 0 | K107: 0 | L107: 0 | M107: 0 | O107: =I34 -> 0 | P107: =M34 -> 0 | Q107: m2
A108: =A107+1 -> 41 | C108: nicht heizbar | J108: 0 | K108: 0 | L108: 0 | M108: 0 | O108: Diff. zu Gewächshausfl. links:
A109: =A108+1 -> 42 | B109: Gewächshausfläche insges. | F109: =SUM(F105:F108) -> 0 | G109: =SUM(G105:G108) -> 0 | H109: 0 | I109: 0 | J109: 0 | K109: 0 | L109: 0 | M109: 0 | O109: =O107-SUM(F109:I109) -> 0 | P109: =P107-SUM(J109:M109) -> 0 | Q109: m2
A110: =A109+1 -> 43 | B110: Freiland | J110: =F110 -> 0 | K110: =G110 -> 0 | L110: =H110 -> 0 | M110: =I110 -> 0 | O110: Diff. Gartenbau Z. 19 zu links (incl. Freilandfläche):
O111: =I33*10000-SUM(F109:I110) -> 0 | P111: =M33*10000-SUM(J109:M110) -> 0 | Q111: m2
B112: Nutzung | F112: eqm | G112: Hauptkulturen | J112: eqm | K112: Hauptkulturen | O112: Betriebsnotw. AK:
A113: =A110+1 -> 44 | B113: Hochglas heizbar | F113: =F105*9+G105*20+I105*9 -> 0 | J113: =J105*9+K105*20+M105*9 -> 0 | K113: =G113 -> 0 | M113: =I113 -> 0 | O113: =F5 -> Ist | P113: Ist-AK oben in Zeile 13 bearbeiten ("im
A114: =A113+1 -> 45 | C114: nicht heizbar | F114: =F106*7+G106*10+I106*7 -> 0 | J114: =J106*7+K106*10+M106*7 -> 0 | K114: =G114 -> 0 | M114: =I114 -> 0 | O114: =O24 -> 0 | P114: Angesicht der AK Ist dieses Betriebes")
A115: =A114+1 -> 46 | B115: Foliengewächshaus heizbar | F115: =F107*9+G107*20+I107*9 -> 0 | J115: =J107*9+K107*20+M107*9 -> 0 | K115: =G115 -> 0 | M115: =I115 -> 0 | O115: =IF(O114=0,0,'9 G-N-P Gart'!N28/O114) -> 0 | P115: Ist - Betriebsertrag in € / AK *)
A116: =A115+1 -> 47 | C116: nicht heizbar | F116: =F108*7+G108*10+I108*7 -> 0 | J116: =J108*7+K108*10+M108*7 -> 0 | K116: =G116 -> 0 | M116: =I116 -> 0 | O116: =IF(O114=0,0,F118/O114) -> 0 | P116: Ist - eqm / AK (= zu bearbeitende Fläche je AK)
A117: =A116+1 -> 48 | B117: Freiland | F117: =F110+G110*2+H110+I110 -> 0 | J117: =J110+K110*2+L110+M110 -> 0 | K117: =G117 -> 0 | M117: =I117 -> 0 | P117: =J5 -> Ziel
A118: =A117+1 -> 49 | C118: Summe | D118: eqm | F118: =SUM(F113:F117) -> 0 | J118: =SUM(J113:J117) -> 0 | P118: =(IF(O115=0,0,'9 G-N-P Gart'!O28/O115)+IF(O116=0,0,J118/O116))/2 -> 0 | Q118: AK (Ergebnis der Kalkulation)
B119: Absatzverhältnisse in % des Umsatzes (Betriebsertrag) | I119: =F5 -> Ist | M119: =J5 -> Ziel | O119: (Ziel-AK gegenüber Ist-AK ggf. erhöht / gesenkt
C120: Direktabsatz | I120: =SUM(I121:I125) -> 0 | M120: =SUM(M121:M125) -> 0 | O120: in Abhängigkeit von eqm/AK Ist u. BE/AK Ist)
A121: =A118+1 -> 50 | B121: Endverbraucher ab Betrieb | J121: =F121 -> 0 | K121: =G121 -> 0 | M121: =I121 -> 0 | O121: *) Betriebsertrag (BE) auf
A122: =A121+1 -> 51 | B122: Eigenes Ladengeschäft | J122: =F122 -> 0 | K122: =G122 -> 0 | M122: =I122 -> 0 | O122: Blatt 9 G-N-P Gart bearbeiten!
A123: 52 | B123: Wochenmarkt | J123: 0 | K123: =G123 -> 0 | M123: =I123 -> 0
A124: 53 | B124: Großmarkt/Selbstvermarktung | I124: 0 | J124: 0 | K124: =G124 -> 0 | M124: =I124 -> 0 | O124: 0.1 | P124: Anteil der AKh
A125: 54 | B125: Sonstige Direktvermarktung | I125: 0 | J125: 0 | K125: =G125 -> 0 | M125: =I125 -> 0 | O125: für Betriebsleitung u.ä.
A126: 55 | C126: Indirekter Absatz | I126: =SUM(I127:I129) -> 0 | J126: 0 | M126: =SUM(M127:M129) -> 0 | O126: an den Gesamt-AKh
A127: 56 | B127: Groß- u.Komm'handel, Versteigerung | I127: 0 | J127: 0 | K127: =G127 -> 0 | M127: =I127 -> 0 | O127: (für Blatt I_1)
A128: 57 | B128: Absatzgenossenschaft | I128: 0 | J128: 0 | K128: =G128 -> 0 | M128: =I128 -> 0
A129: 58 | B129: Sonst. indirekter Absatz | I129: =IF(SUM(I33:I34)=0,0,100-SUM(I121:I125)-SUM(I127:I128)) -> 0 | J129: 0 | K129: =G129 -> 0 | M129: =IF(SUM(M33:M34)=0,0,100-SUM(M121:M125)-SUM(M127:M128)) -> 0
L130: 0 | AG130: 1
C131: Anbauverzeichnis | E131: (darum ist kein Ausdruck dieses Anbauverzeichnisses vorgesehen) | K131: Vorgeschlagen für das Ziel wird | AG131: 1
C132: Landwirtschaft | F132: =F5 -> Ist | J132: =J5 -> Ziel | K132: der Ist-Umfang; diese Vorschläge sind | AG132: 1
A133: =A59+1 -> 40 | B133: PV-Nr.: | F133: ha | J133: ha | K133: überschreibbar - Formel dann weg ! | AG133: 1
B134: 41 | C134: Grünfütterung | J134: =F134 -> 0 | AG134: =IF($AG$4=0,1,IF(F134+J134<>0,1,0)) -> 1
B135: 42 | C135: Int.-Weide | J135: 0 | AG135: =IF($AG$4=0,0,IF(F135+J135<>0,1,0)) -> 0
B136: 43 | C136: Grünland | D136: Grassilage | J136: =F136 -> 0 | AG136: =IF($AG$4=0,1,IF(F136+J136<>0,1,0)) -> 1
B137: 44 | C137: GrSil Biomasse | J137: 0 | AG137: =IF($AG$4=0,0,IF(F137+J137<>0,1,0)) -> 0
B138: 45 | J138: 0 | AG138: =IF($AG$4=0,0,IF(F138+J138<>0,1,0)) -> 0
B139: 46 | C139: Heu | J139: 0 | AG139: =IF($AG$4=0,1,IF(F139+J139<>0,1,0)) -> 1
B140: 47 | C140: Verkaufsheu | J140: 0 | AG140: =IF($AG$4=0,0,IF(F140+J140<>0,1,0)) -> 0
B141: 48 | C141: Tro'grün | J141: 0 | AG141: =IF($AG$4=0,0,IF(F141+J141<>0,1,0)) -> 0
B142: 49 | C142: Grünland | D142: extensiv | J142: 0 | AG142: =IF($AG$4=0,0,IF(F142+J142<>0,1,0)) -> 0
B143: 50 | C143: Langj.Still-leg. | J143: =F143 -> 0 | AG143: =IF($AG$4=0,0,IF(F143+J143<>0,1,0)) -> 0
C144: Grünland | F144: =SUM(F134:F143) -> 0 | J144: =SUM(J134:J143) -> 0 | AG144: =IF($AG$4=0,1,IF(F144+J144<>0,1,0)) -> 1
AG145: =IF($AG$4=0,1,IF(F144+J144<>0,1,0)) -> 1
B146: 51 | C146: Silomais | J146: =F146 -> 0 | AG146: =IF($AG$4=0,1,IF(F146+J146<>0,1,0)) -> 1
B147: 52 | C147: SM Biomasse | J147: =F147 -> 0 | AG147: =IF($AG$4=0,0,IF(F147+J147<>0,1,0)) -> 0
B148: 53 | C148: Futterhackf. | D148: Rüben | J148: 0 | AG148: =IF($AG$4=0,0,IF(F148+J148<>0,1,0)) -> 0
B149: 54 | C149: Kleegras | J149: 0 | AG149: =IF($AG$4=0,1,IF(F149+J149<>0,1,0)) -> 1
B150: 55 | C150: GPS | D150: W.Weizen | J150: 0 | AG150: =IF($AG$4=0,0,IF(F150+J150<>0,1,0)) -> 0
B151: 56 | C151: So. Ack'futt. | J151: 0 | AG151: =IF($AG$4=0,0,IF(F151+J151<>0,1,0)) -> 0
B152: 57 | J152: 0 | AG152: =IF($AG$4=0,0,IF(F152+J152<>0,1,0)) -> 0
C153: Ackerfutterbau | F153: =SUM($F$146:$F$152) -> 0 | J153: =SUM($J$146:$J$152) -> 0 | AG153: =IF($AG$4=0,1,IF(F153+J153<>0,1,0)) -> 1
B154: 58 | C154: ZwiFru Futt. | D154: Feldgras | G154: wird bei ha nicht mit addiert! | J154: =F154 -> 0 | K154: wird bei ha nicht mit addiert! | AG154: =IF($AG$4=0,0,IF(F154+J154<>0,1,0)) -> 0
B155: 59 | C155: GruFu-Verk. | G155: =IF('7 Prod'!H50>30000,'7 Prod'!H50,0) -> 0 | I155: MJ übrig | J155: =F155 -> 0 | K155: =IF('7 Prod'!Q50>30000,'7 Prod'!Q50,0) -> 0 | M155: MJ übrig | N155: Grundfutterbilanz | AG155: =IF($AG$4=0,1,IF(F155+J155<>0,1,0)) -> 1
B156: 60 | C156: GruFu-Zuk. | D156: Silomais | G156: =IF('7 Prod'!H50<0,'7 Prod'!H50,0) -> 0 | I156: MJ Mangel | J156: =F156 -> 0 | K156: =IF('7 Prod'!Q50<0,'7 Prod'!Q50,0) -> 0 | M156: MJ Mangel | N156: siehe Blatt 7 Prod ! | AG156: =IF($AG$4=0,1,IF(F156+J156<>0,1,0)) -> 1
D157: Falls PV "Grundfutterverkauf" bzw. "Grundfutterzukauf" vorhanden: den Umfang eingeben, mind. eine 1 ! | AG157: =IF($AG$4=0,1,IF(F155+F156+J155+J156<>0,1,0)) -> 1
B158: 61 | C158: WWeizen | J158: =F158 -> 0 | AG158: =IF($AG$4=0,0,IF(F158+J158<>0,1,0)) -> 0
B159: 62 | C159: SWeizen | J159: 0 | AG159: =IF($AG$4=0,0,IF(F159+J159<>0,1,0)) -> 0
B160: 63 | C160: Durum | F160: 0 | J160: 0 | AG160: =IF($AG$4=0,0,IF(F160+J160<>0,1,0)) -> 0
B161: 64 | C161: Roggen | J161: 0 | AG161: =IF($AG$4=0,0,IF(F161+J161<>0,1,0)) -> 0
B162: 65 | C162: WGerste | J162: 0 | AG162: =IF($AG$4=0,1,IF(F162+J162<>0,1,0)) -> 1
B163: 66 | C163: SGerste | J163: 0 | AG163: =IF($AG$4=0,0,IF(F163+J163<>0,1,0)) -> 0
B164: 67 | C164: Hafer | J164: 0 | T164: Getreide | AG164: 0
B165: 68 | C165: Triticale | J165: 0 | T165: Triticale | AG165: 0
B166: 69 | C166: Menggetr. | F166: 0 | J166: 0 | AG166: 0
B167: 70 | C167: Körnermais | J167: 0 | AG167: 0
B168: 71 | C168: CCM | J168: 0 | AG168: 0
B169: 72 | C169: Ackerbohnen | J169: 0 | AG169: 0
B170: 73 | C170: Erbsen | J170: 0 | AG170: 0
B171: 74 | C171: WRaps | J171: 0 | AG171: =IF($AG$4=0,1,IF(F171+J171<>0,1,0)) -> 1
B172: 75 | C172: SoRaps | J172: 0 | AG172: =IF($AG$4=0,0,IF(F172+J172<>0,1,0)) -> 0
B173: 76 | C173: Sonnenblumen | J173: 0 | AG173: =IF($AG$4=0,0,IF(F173+J173<>0,1,0)) -> 0
B174: 77 | C174: Flachs | J174: 0 | AG174: =IF($AG$4=0,0,IF(F174+J174<>0,1,0)) -> 0
B175: 78 | C175: Stärkekartoff. | J175: 0 | AG175: =IF($AG$4=0,0,IF(F175+J175<>0,1,0)) -> 0
B176: 79 | C176: Sp'kartoffeln | J176: 0 | AG176: =IF($AG$4=0,0,IF(SUM(F56,J56,F176,J176)<>0,1,0)) -> 0
B177: 80 | C177: Zuckerrüben | J177: 0 | AG177: =IF($AG$4=0,1,IF(SUM(F54,J54,F177,J177)<>0,1,0)) -> 1
B178: 81 | C178: Grassamen | J178: 0 | AG178: =IF($AG$4=0,0,IF(F178+J178<>0,1,0)) -> 0
B179: 82 | C179: Soja,and.Ölsaat | F179: 0 | J179: 0 | AG179: 0
B180: 83 | C180: Eiweißpfla. | D180: Lupinen | J180: 0 | AG180: 0
B181: 84 | C181: Ener'getreide | J181: 0 | AG181: 0
B182: 85 | C182: Energiemais | J182: 0 | AG182: 0
B183: 86 | C183: Ener'ölsaat | J183: 0 | AG183: 0
B184: 87 | C184: So.Ener'pfl. | J184: 0 | AG184: =IF($AG$4=0,1,IF(F184+J184<>0,1,0)) -> 1
B185: 88 | C185: So.Marktfrucht | F185: 0 | J185: 0 | AG185: =IF($AG$4=0,0,IF(F185+J185<>0,1,0)) -> 0
B186: 89 | C186: Zwi'fru Markt | G186: wird bei ha nicht mit addiert! | J186: 0 | AG186: =IF($AG$4=0,0,IF(F186+J186<>0,1,0)) -> 0
B187: 90 | C187: Stilllegung / Acker aus erz. gen. | J187: =F187 -> 0 | AG187: =IF($AG$4=0,1,IF(F187+J187<>0,1,0)) -> 1
B188: 91 | C188: Buschbohnen | J188: 0 | AG188: =IF($AG$4=0,0,IF(F188+J188<>0,1,0)) -> 0
B189: 96 | C189: Tabak | J189: =F189 -> 0 | AG189: =IF($AG$4=0,0,IF(F189+J189<>0,1,0)) -> 0
B190: 98 | C190: Spargel | J190: =F190 -> 0 | AG190: =IF($AG$4=0,0,IF(F190+J190<>0,1,0)) -> 0
C191: Marktfüchte | F191: =SUM(F158:F185)+SUM(F187:F190) -> 0 | J191: =SUM(J158:J185)+SUM(J187:J190) -> 0 | AG191: =IF($AG$4=0,1,IF(F191+J191<>0,1,0)) -> 1
AG192: =IF($AG$4=0,1,IF(F191+J191<>0,1,0)) -> 1
B193: 99 | C193: Hopfen | J193: =F193 -> 0 | AG193: =IF($AG$4=0,0,IF(F193+J193<>0,1,0)) -> 0
B194: 100 | C194: Erdbeeren | J194: =F194 -> 0 | AG194: =IF($AG$4=0,0,IF(F194+J194<>0,1,0)) -> 0
B195: 101 | C195: Äpfel | J195: =F195 -> 0 | AG195: =IF($AG$4=0,1,IF(F195+J195<>0,1,0)) -> 1
B196: 102 | C196: Birnen,Quitt. | J196: 0 | AG196: =IF($AG$4=0,0,IF(F196+J196<>0,1,0)) -> 0
B197: 103 | C197: Süßkirschen | J197: 0 | AG197: 0
B198: 104 | C198: Sauerkirsch. | J198: 0 | AG198: 0
B199: 106 | C199: Pflau.,Zwet. | J199: 0 | AG199: 0
B200: 107 | C200: Mirabellen | J200: 0 | AG200: 0
B201: 108 | C201: Nüsse | J201: 0 | AG201: 0
B202: 110 | C202: So. Beeren | D202: Schw.Joha | J202: =F202 -> 0 | AG202: 0
C203: Obstbau- u. Hopfenfläche | F203: =SUM(F193:F202) -> 0 | J203: =SUM(J193:J202) -> 0 | AG203: =IF($AG$4=0,1,IF(F203+J203<>0,1,0)) -> 1
AG204: =IF($AG$4=0,1,IF(F203+J203<>0,1,0)) -> 1
... 31 more rows

Sheet 2 InvBed
B1: ='1 KaP'!B1 -> Investitionskonzept NRW 2025_01 | L1: Unternehmernummer
K2: =Inhalt!G5 -> 0
F4: Unternehmen: | G4: =Inhalt!C5 -> 0 | J4: Datum | K4: =MAX(Inhalt!$I$9,Inhalt!$C$10,Inhalt!$F$10,Inhalt!$I$10) -> 00:00:00
B7: Investitionsbedarf | I7: Berechnung der förderb. Investitionen | O7: Vorsteuer % | R7: Berechnung der förderbaren Investitionen lt. 9.4.1e (mit Aufschlag f. Kälbermatten), h | W7: Berechnung der förderbaren Investitionen Zuchtsauen | AB7: Berechnung der förderbaren Investitionen Geflügel, Schweine u. Erstumstellung Milchkühe auf Laufstallhaltung lt. 9.4.1a | AH7: Hilfspalte | AJ7: Berechnung der förderbaren Investitionen übrige Tierarten l.t 9.4.1 a | AO7: Berechnung der förderbaren Investitionen lt. 9.4.1d, j | AT7: Berechnung der förderbaren Investitionen lt. 9.4.1b, c, g | AY7: Berechnung der förderbaren Investitionen lt. 9.4.1f, i
K8: nicht zu- | L8: zuwend'f. | O8: ='1 KaP'!F8 -> 0.19 | P8: Geb/Maschinen | T8: nicht zu-wend'fäh. Ausgaben Netto | U8: zuwend'f. | Y8: nicht zu-wend'fäh. Ausgaben Netto | Z8: zuwend'f. | AD8: nicht zu-wend'fäh. Ausgaben Netto | AE8: zuwend'f. | AH8: für Makro | AL8: nicht zu-wend'fäh. Ausgaben Netto | AM8: zuwend'f. | AQ8: nicht zu-wend'fäh. Ausgaben Netto | AR8: zuwend'f. | AV8: nicht zu-wend'fäh. Ausgaben Netto | AW8: zuwend'f. | BA8: nicht zu-wend'fäh. Ausgaben Netto | BB8: zuwend'f.
G9: Sanie- | I9: Ausgaben | J9: Vorsteuer | K9: wend'fäh. | L9: Invest.- | O9: ='1 KaP'!K8 -> 0.07 | P9: Tierkauf/Dauerkulturen | R9: Ausgaben | S9: Vorsteuer | U9: Invest.- | W9: Ausgaben | X9: Vorsteuer | Z9: Invest.- | AB9: Ausgaben | AC9: Vorsteuer | AE9: Invest.- | AH9: Zeilen | AJ9: Ausgaben | AK9: Vorsteuer | AM9: Invest.- | AO9: Ausgaben | AP9: Vorsteuer | AR9: Invest.- | AT9: Ausgaben | AU9: Vorsteuer | AW9: Invest.- | AY9: Ausgaben | AZ9: Vorsteuer | BB9: Invest.-
B10: Maßnahme | E10: Ist | F10: Ziel | G10: rung / | K10: Ausg.netto | L10: volumen | U10: volumen | Z10: volumen | AE10: volumen | AH10: ausblenden | AM10: volumen | AR10: volumen | AW10: volumen | BB10: volumen
G11: Umbau | H11: Neubau | I11: Euro | J11: Euro | K11: Euro | L11: Euro | R11: € | S11: € | T11: € | U11: € | W11: € | X11: € | Y11: € | Z11: € | AB11: € | AC11: € | AD11: € | AE11: € | AJ11: € | AK11: € | AL11: € | AM11: € | AO11: € | AP11: € | AQ11: € | AR11: € | AT11: € | AU11: € | AV11: € | AW11: € | AY11: € | AZ11: € | BA11: € | BB11: €
A13: 1 | B13: Futtersilos | D13: m3 | F13: =SUM(E13,G13:H13) -> 0 | J13: =I13/(1+$O$8)*$O$8 -> 0 | L13: =IF(I13=0,0,I13-SUM(J13:K13)) -> 0 | O13: g = Geflügel, Schweine u. Erstumstellung Milchkühe | R13: =IF(M13="eh",I13,0) -> 0 | S13: =IF(M13="eh",J13,0) -> 0 | T13: =IF(M13="eh",K13,0) -> 0 | U13: =IF(R13=0,0,R13-S13-T13) -> 0 | W13: =IF(M13="z",I13,0) -> 0 | X13: =IF(M13="z",J13,0) -> 0 | Y13: =IF(M13="z",K13,0) -> 0 | Z13: =IF(W13=0,0,W13-X13-Y13) -> 0 | AB13: =IF(M13="g",I13,0) -> 0 | AC13: =IF(M13="g",J13,0) -> 0 | AD13: =IF(M13="g",K13,0) -> 0 | AE13: =IF(AB13=0,0,AB13-AC13-AD13) -> 0 | AH13: 1 | AJ13: =IF(M13="ü",I13,0) -> 0 | AK13: =IF(M13="ü",J13,0) -> 0 | AL13: =IF(M13="ü",K13,0) -> 0 | AM13: =IF(AJ13=0,0,AJ13-AK13-AL13) -> 0 | AO13: =IF(M13="dj",I13,0) -> 0 | AP13: =IF(M13="dj",J13,0) -> 0 | AQ13: =IF(M13="dj",K13,0) -> 0 | AR13: =IF(AO13=0,0,AO13-AP13-AQ13) -> 0 | AT13: =IF(M13="bcg",I13,0) -> 0 | AU13: =IF(M13="bcg",J13,0) -> 0 | AV13: =IF(M13="bcg",K13,0) -> 0 | AW13: =IF(AT13=0,0,AT13-AU13-AV13) -> 0 | AY13: =IF(M13="fi",I13,0) -> 0 | AZ13: =IF(M13="fi",J13,0) -> 0 | BA13: =IF(M13="fi",K13,0) -> 0 | BB13: =IF(AY13=0,0,AY13-AZ13-BA13) -> 0
A14: =A13+1 -> 2 | B14: Heu- / Einstreulager | D14: m3 | F14: =SUM(E14,G14:H14) -> 0 | J14: 0 | L14: =IF(I14=0,0,I14-SUM(J14:K14)) -> 0 | O14: auf Laufstallhaltung lt. 9.4.1a | R14: =IF(M14="eh",I14,0) -> 0 | S14: =IF(M14="eh",J14,0) -> 0 | T14: =IF(M14="eh",K14,0) -> 0 | U14: =IF(R14=0,0,R14-S14-T14) -> 0 | W14: 0 | X14: 0 | Y14: 0 | Z14: =IF(W14=0,0,W14-X14-Y14) -> 0 | AB14: =IF(M14="g",I14,0) -> 0 | AC14: =IF(M14="g",J14,0) -> 0 | AD14: =IF(M14="g",K14,0) -> 0 | AE14: =IF(AB14=0,0,AB14-AC14-AD14) -> 0 | AH14: =IF(SUM(E14:L14)=0,0,1) -> 0 | AJ14: 0 | AK14: 0 | AL14: 0 | AM14: =IF(AJ14=0,0,AJ14-AK14-AL14) -> 0 | AO14: 0 | AP14: =IF(M14="dj",J14,0) -> 0 | AQ14: =IF(M14="dj",K14,0) -> 0 | AR14: =IF(AO14=0,0,AO14-AP14-AQ14) -> 0 | AT14: =IF(M14="bcg",I14,0) -> 0 | AU14: =IF(M14="bcg",J14,0) -> 0 | AV14: =IF(M14="bcg",K14,0) -> 0 | AW14: =IF(AT14=0,0,AT14-AU14-AV14) -> 0 | AY14: =IF(M14="fi",I14,0) -> 0 | AZ14: =IF(M14="fi",J14,0) -> 0 | BA14: =IF(M14="fi",K14,0) -> 0 | BB14: =IF(AY14=0,0,AY14-AZ14-BA14) -> 0
A15: =A14+1 -> 3 | B15: Wi-Dunglager | C15: flüss. | D15: m3 | F15: =SUM(E15,G15:H15) -> 0 | J15: 0 | L15: 0 | O15: ü = Investitionen in übrige Tierarten lt. 9.4.1a | R15: =IF(M15="eh",I15,0) -> 0 | S15: =IF(M15="eh",J15,0) -> 0 | T15: =IF(M15="eh",K15,0) -> 0 | U15: 0 | W15: 0 | X15: 0 | Y15: 0 | Z15: 0 | AB15: 0 | AC15: =IF(M15="g",J15,0) -> 0 | AD15: =IF(M15="g",K15,0) -> 0 | AE15: 0 | AH15: 1 | AJ15: =IF(M15="ü",I15,0) -> 0 | AK15: 0 | AL15: 0 | AM15: =IF(AJ15=0,0,AJ15-AK15-AL15) -> 0 | AO15: 0 | AP15: =IF(M15="dj",J15,0) -> 0 | AQ15: =IF(M15="dj",K15,0) -> 0 | AR15: =IF(AO15=0,0,AO15-AP15-AQ15) -> 0 | AT15: =IF(M15="bcg",I15,0) -> 0 | AU15: =IF(M15="bcg",J15,0) -> 0 | AV15: =IF(M15="bcg",K15,0) -> 0 | AW15: =IF(AT15=0,0,AT15-AU15-AV15) -> 0 | AY15: =IF(M15="fi",I15,0) -> 0 | AZ15: =IF(M15="fi",J15,0) -> 0 | BA15: =IF(M15="fi",K15,0) -> 0 | BB15: =IF(AY15=0,0,AY15-AZ15-BA15) -> 0
A16: 4 | C16: fest | D16: m² | F16: =SUM(E16,G16:H16) -> 0 | J16: 0 | L16: 0 | O16: bcg = Investitionen lt. 9.4.1b, c, g | R16: =IF(M16="eh",I16,0) -> 0 | S16: =IF(M16="eh",J16,0) -> 0 | T16: =IF(M16="eh",K16,0) -> 0 | U16: 0 | W16: 0 | X16: 0 | Y16: 0 | Z16: 0 | AB16: 0 | AC16: 0 | AD16: =IF(M16="g",K16,0) -> 0 | AE16: =IF(AB16=0,0,AB16-AC16-AD16) -> 0 | AH16: =IF(SUM(E16:L16)=0,0,1) -> 0 | AJ16: 0 | AK16: 0 | AL16: 0 | AM16: 0 | AO16: 0 | AP16: 0 | AQ16: 0 | AR16: =IF(AO16=0,0,AO16-AP16-AQ16) -> 0 | AT16: =IF(M16="bcg",I16,0) -> 0 | AU16: =IF(M16="bcg",J16,0) -> 0 | AV16: =IF(M16="bcg",K16,0) -> 0 | AW16: =IF(AT16=0,0,AT16-AU16-AV16) -> 0 | AY16: =IF(M16="fi",I16,0) -> 0 | AZ16: =IF(M16="fi",J16,0) -> 0 | BA16: =IF(M16="fi",K16,0) -> 0 | BB16: =IF(AY16=0,0,AY16-AZ16-BA16) -> 0
A17: 5 | B17: Milchkuhstall | D17: Plätze | E17: ='1 KaP'!F60 -> 0 | F17: ='1 KaP'!J60 -> 0 | H17: =IF(F17-E17-G17<0,0,F17-E17-G17) -> 0 | J17: 0 | L17: 0 | O17: dj = Invest. lt. 9.4.1d, j | R17: 0 | S17: 0 | T17: 0 | U17: 0 | W17: 0 | X17: 0 | Y17: 0 | Z17: 0 | AB17: 0 | AC17: 0 | AD17: =IF(M17="g",K17,0) -> 0 | AE17: 0 | AH17: 0 | AJ17: 0 | AK17: 0 | AL17: 0 | AM17: 0 | AO17: 0 | AP17: 0 | AQ17: 0 | AR17: 0 | AT17: 0 | AU17: 0 | AV17: 0 | AW17: 0 | AY17: 0 | AZ17: 0 | BA17: 0 | BB17: 0
A18: 6 | B18: Zuchtfärsenstall | D18: JV-Plätze | E18: ='1 KaP'!F61 -> 0 | F18: ='1 KaP'!J61 -> 0 | H18: 0 | J18: 0 | L18: 0 | O18: eh = Investitionen lt. 9.4.1e (mit Aufschlag f. Kälbermatten), h | R18: 0 | S18: 0 | T18: 0 | U18: 0 | W18: 0 | X18: 0 | Y18: 0 | Z18: 0 | AB18: 0 | AC18: 0 | AD18: =IF(M18="g",K18,0) -> 0 | AE18: 0 | AH18: 0 | AJ18: 0 | AK18: 0 | AL18: 0 | AM18: 0 | AO18: 0 | AP18: 0 | AQ18: 0 | AR18: 0 | AT18: 0 | AU18: 0 | AV18: 0 | AW18: 0 | AY18: 0 | AZ18: 0 | BA18: 0 | BB18: 0
A19: 7 | B19: Rindermaststall | D19: Mastplätze | E19: =SUM('1 KaP'!F62:F65) -> 0 | F19: =SUM('1 KaP'!J62:J65) -> 0 | H19: 0 | J19: 0 | L19: 0 | O19: fi =Investitionen lt. 9.4.1f, i | R19: 0 | S19: 0 | T19: 0 | U19: 0 | W19: 0 | X19: 0 | Y19: 0 | Z19: 0 | AB19: 0 | AC19: 0 | AD19: 0 | AE19: 0 | AH19: 0 | AJ19: 0 | AK19: 0 | AL19: 0 | AM19: 0 | AO19: 0 | AP19: 0 | AQ19: 0 | AR19: 0 | AT19: 0 | AU19: 0 | AV19: 0 | AW19: 0 | AY19: 0 | AZ19: 0 | BA19: 0 | BB19: 0
A20: 8 | B20: Pferdestall, Reithalle | D20: Plätze | E20: =SUM('1 KaP'!F66:F68) -> 0 | F20: =SUM('1 KaP'!J66:J68) -> 0 | H20: 0 | J20: 0 | L20: 0 | O20: keine Eintragung = sonstige Inv. lt. 9.4.1e, ohne Aufschlag | R20: 0 | S20: 0 | T20: 0 | U20: 0 | W20: 0 | X20: 0 | Y20: 0 | Z20: 0 | AB20: 0 | AC20: 0 | AD20: 0 | AE20: 0 | AH20: 0 | AJ20: 0 | AK20: 0 | AL20: 0 | AM20: 0 | AO20: 0 | AP20: 0 | AQ20: 0 | AR20: 0 | AT20: 0 | AU20: 0 | AV20: 0 | AW20: 0 | AY20: 0 | AZ20: 0 | BA20: 0 | BB20: 0
A21: 9 | B21: Schafstall/Ziegenstall | J21: =I21/(1+$O$8)*$O$8 -> 0 | L21: 0 | R21: 0 | S21: 0 | T21: 0 | U21: 0 | W21: 0 | X21: 0 | Y21: 0 | Z21: 0 | AB21: 0 | AC21: 0 | AD21: 0 | AE21: 0 | AH21: 0 | AJ21: 0 | AK21: 0 | AL21: 0 | AM21: 0 | AO21: 0 | AP21: 0 | AQ21: 0 | AR21: 0 | AT21: 0 | AU21: 0 | AV21: 0 | AW21: 0 | AY21: 0 | AZ21: 0 | BA21: 0 | BB21: 0
A22: 10 | B22: Zuchtsauenstall | D22: produktiv | E22: ='1 KaP'!F80 -> 0 | F22: ='1 KaP'!J80 -> 0 | H22: =IF(F22-E22-G22<0,0,F22-E22-G22) -> 0 | J22: 0 | L22: 0 | R22: 0 | S22: 0 | T22: 0 | U22: 0 | W22: 0 | X22: 0 | Y22: 0 | Z22: 0 | AB22: 0 | AC22: 0 | AD22: 0 | AE22: 0 | AH22: 0 | AJ22: 0 | AK22: 0 | AL22: 0 | AM22: 0 | AO22: 0 | AP22: 0 | AQ22: 0 | AR22: 0 | AT22: 0 | AU22: 0 | AV22: 0 | AW22: 0 | AY22: 0 | AZ22: 0 | BA22: 0 | BB22: 0
A23: 11 | B23: Aufzuchtferkelstall | D23: Plätze | E23: ='1 KaP'!F81 -> 0 | F23: ='1 KaP'!J81 -> 0 | H23: 0 | J23: 0 | L23: 0 | R23: 0 | S23: 0 | T23: 0 | U23: 0 | W23: 0 | X23: 0 | Y23: 0 | Z23: 0 | AB23: 0 | AC23: 0 | AD23: 0 | AE23: 0 | AH23: 0 | AJ23: 0 | AK23: 0 | AL23: 0 | AM23: 0 | AO23: 0 | AP23: 0 | AQ23: 0 | AR23: 0 | AT23: 0 | AU23: 0 | AV23: 0 | AW23: 0 | AY23: 0 | AZ23: 0 | BA23: 0 | BB23: 0
A24: 12 | B24: Mastschweinestall | D24: Plätze | E24: ='1 KaP'!F82 -> 0 | F24: ='1 KaP'!J82 -> 0 | H24: 0 | J24: 0 | L24: 0 | R24: 0 | S24: 0 | T24: 0 | U24: 0 | W24: 0 | X24: 0 | Y24: 0 | Z24: 0 | AB24: 0 | AC24: 0 | AD24: 0 | AE24: 0 | AH24: 0 | AJ24: 0 | AK24: 0 | AL24: 0 | AM24: 0 | AO24: 0 | AP24: 0 | AQ24: 0 | AR24: 0 | AT24: 0 | AU24: 0 | AV24: 0 | AW24: 0 | AY24: 0 | AZ24: 0 | BA24: 0 | BB24: 0
A25: 13 | B25: Legehennenst. | D25: jew. 100 Pl. | E25: ='1 KaP'!F86 -> 0 | F25: ='1 KaP'!J86 -> 0 | H25: 0 | J25: 0 | L25: 0 | R25: 0 | S25: 0 | T25: 0 | U25: 0 | W25: 0 | X25: 0 | Y25: 0 | Z25: 0 | AB25: 0 | AC25: 0 | AD25: 0 | AE25: 0 | AH25: 0 | AJ25: 0 | AK25: 0 | AL25: 0 | AM25: 0 | AO25: 0 | AP25: 0 | AQ25: 0 | AR25: 0 | AT25: 0 | AU25: 0 | AV25: 0 | AW25: 0 | AY25: 0 | AZ25: 0 | BA25: 0 | BB25: 0
A26: 14 | B26: Mastgeflügelstall | D26: jew. 100 Pl. | E26: =SUM('1 KaP'!F87,'1 KaP'!F89:F91) -> 0 | F26: =SUM('1 KaP'!J87,'1 KaP'!J89:J91) -> 0 | H26: 0 | J26: =I26/(1+$O$8)*$O$8 -> 0 | L26: 0 | R26: 0 | S26: 0 | T26: 0 | U26: 0 | W26: 0 | X26: 0 | Y26: 0 | Z26: 0 | AB26: 0 | AC26: 0 | AD26: 0 | AE26: 0 | AH26: 0 | AJ26: 0 | AK26: 0 | AL26: 0 | AM26: 0 | AO26: 0 | AP26: 0 | AQ26: 0 | AR26: 0 | AT26: 0 | AU26: 0 | AV26: 0 | AW26: 0 | AY26: 0 | AZ26: 0 | BA26: 0 | BB26: 0
A27: 15 | B27: Sonst. Ställe | J27: =I27/(1+$O$8)*$O$8 -> 0 | L27: 0 | R27: 0 | S27: 0 | T27: 0 | U27: 0 | W27: 0 | X27: 0 | Y27: 0 | Z27: 0 | AB27: 0 | AC27: 0 | AD27: 0 | AE27: 0 | AH27: =IF(SUM(I27:L27)=0,0,1) -> 0 | AJ27: 0 | AK27: 0 | AL27: 0 | AM27: 0 | AO27: 0 | AP27: 0 | AQ27: 0 | AR27: 0 | AT27: 0 | AU27: 0 | AV27: 0 | AW27: 0 | AY27: 0 | AZ27: 0 | BA27: 0 | BB27: 0
A28: 16 | B28: Abdeckung bestehender Güllebehälter | G28: m² | J28: =I28/(1+$O$8)*$O$8 -> 0 | L28: 0 | R28: 0 | S28: 0 | T28: 0 | U28: 0 | W28: 0 | X28: 0 | Y28: 0 | Z28: 0 | AB28: 0 | AC28: 0 | AD28: 0 | AE28: 0 | AH28: =IF(SUM(I28:L28)=0,0,1) -> 0 | AJ28: 0 | AK28: 0 | AL28: 0 | AM28: 0 | AO28: 0 | AP28: 0 | AQ28: 0 | AR28: 0 | AT28: 0 | AU28: 0 | AV28: 0 | AW28: 0 | AY28: 0 | AZ28: 0 | BA28: 0 | BB28: 0
A29: 17 | B29: Mehrzweckhalle | J29: =I29/(1+$O$8)*$O$8 -> 0 | L29: 0 | R29: 0 | S29: 0 | T29: 0 | U29: 0 | W29: 0 | X29: 0 | Y29: 0 | Z29: 0 | AB29: 0 | AC29: 0 | AD29: 0 | AE29: 0 | AH29: 1 | AJ29: 0 | AK29: 0 | AL29: 0 | AM29: 0 | AO29: 0 | AP29: 0 | AQ29: 0 | AR29: 0 | AT29: 0 | AU29: 0 | AV29: 0 | AW29: 0 | AY29: 0 | AZ29: 0 | BA29: 0 | BB29: 0
A30: 18 | B30: Strohlagerhalle | J30: 0 | L30: 0 | R30: 0 | S30: 0 | T30: 0 | U30: 0 | W30: 0 | X30: 0 | Y30: 0 | Z30: 0 | AB30: 0 | AC30: 0 | AD30: 0 | AE30: 0 | AH30: =IF(SUM(I30:L30)=0,0,1) -> 0 | AJ30: 0 | AK30: 0 | AL30: 0 | AM30: 0 | AO30: 0 | AP30: 0 | AQ30: 0 | AR30: 0 | AT30: 0 | AU30: 0 | AV30: 0 | AW30: 0 | AY30: 0 | AZ30: 0 | BA30: 0 | BB30: 0
A31: 19 | B31: Verarbeitungs- (ff.) und Verkaufsräume (nff.) | J31: =I31/(1+$O$8)*$O$8 -> 0 | L31: 0 | R31: 0 | S31: 0 | T31: 0 | U31: 0 | W31: 0 | X31: 0 | Y31: 0 | Z31: 0 | AB31: 0 | AC31: 0 | AD31: 0 | AE31: 0 | AH31: 0 | AJ31: 0 | AK31: 0 | AL31: 0 | AM31: 0 | AO31: 0 | AP31: 0 | AQ31: 0 | AR31: 0 | AT31: 0 | AU31: 0 | AV31: 0 | AW31: 0 | AY31: 0 | AZ31: 0 | BA31: 0 | BB31: 0
A32: 20 | B32: Gewächshaus | J32: 0 | L32: 0 | R32: 0 | S32: 0 | T32: 0 | U32: 0 | W32: 0 | X32: 0 | Y32: 0 | Z32: 0 | AB32: 0 | AC32: 0 | AD32: 0 | AE32: 0 | AH32: 0 | AJ32: 0 | AK32: 0 | AL32: 0 | AM32: 0 | AO32: 0 | AP32: 0 | AQ32: 0 | AR32: 0 | AT32: 0 | AU32: 0 | AV32: 0 | AW32: 0 | AY32: 0 | AZ32: 0 | BA32: 0 | BB32: 0
A33: 21 | B33: Baul. Maßnahmen der Direktvermarktung (nff.) | J33: =I33/(1+$O$8)*$O$8 -> 0 | L33: 0 | R33: 0 | S33: 0 | T33: 0 | U33: 0 | W33: 0 | X33: 0 | Y33: 0 | Z33: 0 | AB33: 0 | AC33: 0 | AD33: 0 | AE33: 0 | AH33: 0 | AJ33: 0 | AK33: 0 | AL33: 0 | AM33: 0 | AO33: 0 | AP33: 0 | AQ33: 0 | AR33: 0 | AT33: 0 | AU33: 0 | AV33: 0 | AW33: 0 | AY33: 0 | AZ33: 0 | BA33: 0 | BB33: 0
A34: 22 | B34: Maßnahmen zur Vorbeugung v. Naturkatastrophen lt.9.4.1b | J34: =I34/(1+$O$8)*$O$8 -> 0 | L34: 0 | R34: 0 | S34: 0 | T34: 0 | U34: 0 | W34: 0 | X34: 0 | Y34: 0 | Z34: 0 | AB34: 0 | AC34: 0 | AD34: 0 | AE34: 0 | AH34: 0 | AJ34: 0 | AK34: 0 | AL34: 0 | AM34: 0 | AO34: 0 | AP34: 0 | AQ34: 0 | AR34: 0 | AT34: 0 | AU34: 0 | AV34: 0 | AW34: 0 | AY34: 0 | AZ34: 0 | BA34: 0 | BB34: 0
A35: 23 | B35: Investition/en nach Anlage 3, Teil B, 1.2-1.4 | J35: =I35/(1+$O$8)*$O$8 -> 0 | L35: 0 | R35: 0 | S35: 0 | T35: 0 | U35: 0 | W35: 0 | X35: 0 | Y35: 0 | Z35: 0 | AB35: 0 | AC35: 0 | AD35: 0 | AE35: 0 | AH35: 0 | AJ35: 0 | AK35: 0 | AL35: 0 | AM35: 0 | AO35: 0 | AP35: 0 | AQ35: 0 | AR35: 0 | AT35: 0 | AU35: 0 | AV35: 0 | AW35: 0 | AY35: 0 | AZ35: 0 | BA35: 0 | BB35: 0
A36: 24 | B36: Investitionen nach Nr. 9.4.1h d. RL | J36: =I36/(1+$O$8)*$O$8 -> 0 | L36: 0 | R36: 0 | S36: 0 | T36: 0 | U36: 0 | W36: 0 | X36: 0 | Y36: 0 | Z36: 0 | AB36: 0 | AC36: 0 | AD36: 0 | AE36: 0 | AH36: 0 | AJ36: 0 | AK36: 0 | AL36: 0 | AM36: 0 | AO36: 0 | AP36: 0 | AQ36: 0 | AR36: 0 | AT36: 0 | AU36: 0 | AV36: 0 | AW36: 0 | AY36: 0 | AZ36: 0 | BA36: 0 | BB36: 0
A37: 25 | B37: Reinigungsplatz Pflanzenschutzgeräte lt. Anlage 3 B Nr. 4.2 | J37: =I37/(1+$O$8)*$O$8 -> 0 | L37: 0 | R37: 0 | S37: 0 | T37: 0 | U37: 0 | W37: 0 | X37: 0 | Y37: 0 | Z37: 0 | AB37: 0 | AC37: 0 | AD37: 0 | AE37: 0 | AH37: 0 | AJ37: 0 | AK37: 0 | AL37: 0 | AM37: 0 | AO37: 0 | AP37: 0 | AQ37: 0 | AR37: 0 | AT37: 0 | AU37: 0 | AV37: 0 | AW37: 0 | AY37: 0 | AZ37: 0 | BA37: 0 | BB37: 0
A38: 26 | B38: "Biobett"-System zur Vermeidung v. Pfl.schutzmitteleinträgen | J38: 0 | L38: 0 | R38: 0 | S38: 0 | T38: 0 | U38: 0 | W38: 0 | X38: 0 | Y38: 0 | Z38: 0 | AB38: 0 | AC38: 0 | AD38: 0 | AE38: 0 | AH38: 0 | AJ38: 0 | AK38: 0 | AL38: 0 | AM38: 0 | AO38: 0 | AP38: 0 | AQ38: 0 | AR38: 0 | AT38: 0 | AU38: 0 | AV38: 0 | AW38: 0 | AY38: 0 | AZ38: 0 | BA38: 0 | BB38: 0
A39: 27 | B39: Ma.Umst.auf umweltvertr.Energieträger, Wärmepumpen o.ä. | J39: 0 | L39: 0 | R39: 0 | S39: 0 | T39: 0 | U39: 0 | W39: 0 | X39: 0 | Y39: 0 | Z39: 0 | AB39: 0 | AC39: 0 | AD39: 0 | AE39: 0 | AH39: 0 | AJ39: 0 | AK39: 0 | AL39: 0 | AM39: 0 | AO39: 0 | AP39: 0 | AQ39: 0 | AR39: 0 | AT39: 0 | AU39: 0 | AV39: 0 | AW39: 0 | AY39: 0 | AZ39: 0 | BA39: 0 | BB39: 0
A40: 28 | B40: So. Baumaßnahmen zur Energieeinspar. | J40: 0 | L40: 0 | R40: 0 | S40: 0 | T40: 0 | U40: 0 | W40: 0 | X40: 0 | Y40: 0 | Z40: 0 | AB40: 0 | AC40: 0 | AD40: 0 | AE40: 0 | AH40: 0 | AJ40: 0 | AK40: 0 | AL40: 0 | AM40: 0 | AO40: 0 | AP40: 0 | AQ40: 0 | AR40: 0 | AT40: 0 | AU40: 0 | AV40: 0 | AW40: 0 | AY40: 0 | AZ40: 0 | BA40: 0 | BB40: 0
A41: 29 | B41: Energiegewinnung bzw. -produktion | J41: 0 | L41: 0 | R41: 0 | S41: 0 | T41: 0 | U41: 0 | W41: 0 | X41: 0 | Y41: 0 | Z41: 0 | AB41: 0 | AC41: 0 | AD41: 0 | AE41: 0 | AH41: 0 | AJ41: =IF(M41="ü",I41,0) -> 0 | AK41: =IF(M41="ü",J41,0) -> 0 | AL41: =IF(U41="ü",K41,0) -> 0 | AM41: 0 | AO41: 0 | AP41: 0 | AQ41: 0 | AR41: 0 | AT41: 0 | AU41: 0 | AV41: 0 | AW41: 0 | AY41: 0 | AZ41: 0 | BA41: 0 | BB41: 0
A42: 30 | B42: Mehrkost. landschaftsbezogenes Bauen | J42: 0 | L42: 0 | R42: 0 | S42: 0 | T42: 0 | U42: 0 | W42: 0 | X42: 0 | Y42: 0 | Z42: 0 | AB42: 0 | AC42: 0 | AD42: 0 | AE42: 0 | AH42: 0 | AJ42: =IF(M42="ü",I42,0) -> 0 | AK42: =IF(M42="ü",J42,0) -> 0 | AL42: =IF(U42="ü",K42,0) -> 0 | AM42: 0 | AO42: 0 | AP42: 0 | AQ42: 0 | AR42: 0 | AT42: 0 | AU42: 0 | AV42: 0 | AW42: 0 | AY42: 0 | AZ42: 0 | BA42: 0 | BB42: 0
A43: 31 | B43: Sonstige bauliche Anlagen | J43: =I43/(1+$O$8)*$O$8 -> 0 | L43: 0 | R43: 0 | S43: 0 | T43: 0 | U43: 0 | W43: 0 | X43: 0 | Y43: 0 | Z43: 0 | AB43: 0 | AC43: 0 | AD43: 0 | AE43: 0 | AH43: 1 | AJ43: =IF(M43="ü",I43,0) -> 0 | AK43: =IF(M43="ü",J43,0) -> 0 | AL43: =IF(U43="ü",K43,0) -> 0 | AM43: 0 | AO43: 0 | AP43: 0 | AQ43: 0 | AR43: =IF(AO43=0,0,AO43-AP43-AQ43) -> 0 | AT43: 0 | AU43: 0 | AV43: 0 | AW43: =IF(AT43=0,0,AT43-AU43-AV43) -> 0 | AY43: 0 | AZ43: 0 | BA43: 0 | BB43: =IF(AY43=0,0,AY43-AZ43-BA43) -> 0
A44: 32 | B44: Summe Baukosten | I44: =SUM(I13:I43) -> 0 | J44: =SUM(J13:J43) -> 0 | K44: =SUM(K13:K43) -> 0 | L44: =SUM(L13:L43) -> 0 | R44: =SUM(R13:R43) -> 0 | S44: =SUM(S13:S43) -> 0 | T44: =SUM(T13:T43) -> 0 | U44: =SUM(U13:U43) -> 0 | W44: =SUM(W13:W43) -> 0 | X44: =SUM(X13:X43) -> 0 | Y44: =SUM(Y13:Y43) -> 0 | Z44: =SUM(Z13:Z43) -> 0 | AB44: =SUM(AB13:AB43) -> 0 | AC44: =SUM(AC13:AC43) -> 0 | AD44: =SUM(AD13:AD43) -> 0 | AE44: =SUM(AE13:AE43) -> 0 | AH44: 1 | AJ44: =SUM(AJ13:AJ43) -> 0 | AK44: =SUM(AK13:AK43) -> 0 | AL44: =SUM(AL13:AL43) -> 0 | AM44: =SUM(AM13:AM43) -> 0 | AO44: =SUM(AO13:AO43) -> 0 | AP44: =SUM(AP13:AP43) -> 0 | AQ44: =SUM(AQ13:AQ43) -> 0 | AR44: =SUM(AR13:AR43) -> 0 | AT44: =SUM(AT13:AT43) -> 0 | AU44: =SUM(AU13:AU43) -> 0 | AV44: =SUM(AV13:AV43) -> 0 | AW44: =SUM(AW13:AW43) -> 0 | AY44: =SUM(AY13:AY43) -> 0 | AZ44: =SUM(AZ13:AZ43) -> 0 | BA44: =SUM(BA13:BA43) -> 0 | BB44: =SUM(BB13:BB43) -> 0
A45: 33 | B45: Erschließung | J45: =I45/(1+$O$8)*$O$8 -> 0 | L45: 0 | R45: =IF(M45="eh",I45,0) -> 0 | S45: =IF(M45="eh",J45,0) -> 0 | T45: =IF(M45="eh",K45,0) -> 0 | U45: 0 | W45: =IF(M45="z",I45,0) -> 0 | X45: =IF(M45="z",J45,0) -> 0 | Y45: =IF(M45="z",K45,0) -> 0 | Z45: =IF(M45="z",L45,0) -> 0 | AB45: =IF(M45="g",I45,0) -> 0 | AC45: =IF(M45="g",J45,0) -> 0 | AD45: =IF(M45="g",K45,0) -> 0 | AE45: =IF(M45="g",L45,0) -> 0 | AH45: 1 | AJ45: =IF(M45="ü",I45,0) -> 0 | AK45: =IF(M45="ü",J45,0) -> 0 | AL45: =IF(M45="ü",K45,0) -> 0 | AM45: =IF(M45="ü",L45,0) -> 0 | AO45: =IF(M45="dj",I45,0) -> 0 | AP45: =IF(M45="dj",J45,0) -> 0 | AQ45: =IF(M45="dj",K45,0) -> 0 | AR45: =IF(M45="dj",L45,0) -> 0 | AT45: =IF(M45="bcg",I45,0) -> 0 | AU45: =IF(M45="bcg",J45,0) -> 0 | AV45: =IF(M45="bcg",K45,0) -> 0 | AW45: =IF(M45="bcg",L45,0) -> 0 | AY45: =IF(M45="fi",I45,0) -> 0 | AZ45: =IF(M45="fi",J45,0) -> 0 | BA45: =IF(M45="fi",K45,0) -> 0 | BB45: =IF(M45="fi",L45,0) -> 0
A46: =A45+1 -> 34 | B46: Dauerkulturen | J46: =I46/(1+$O$9)*$O$9 -> 0 | K46: =I46-J46 -> 0 | L46: 0 | R46: =IF(M46="eh",I46,0) -> 0 | S46: =IF(M46="eh",J46,0) -> 0 | T46: =IF(M46="eh",K46,0) -> 0 | U46: 0 | W46: 0 | X46: =IF(M46="z",J46,0) -> 0 | Y46: =IF(M46="z",K46,0) -> 0 | Z46: =IF(M46="z",L46,0) -> 0 | AB46: =IF(M46="g",I46,0) -> 0 | AC46: =IF(M46="g",J46,0) -> 0 | AD46: =IF(M46="g",K46,0) -> 0 | AE46: =IF(M46="g",L46,0) -> 0 | AH46: =IF(SUM(I46:L46)=0,0,1) -> 0 | AJ46: =IF(M46="ü",I46,0) -> 0 | AK46: =IF(M46="ü",J46,0) -> 0 | AL46: =IF(M46="ü",K46,0) -> 0 | AM46: =IF(M46="ü",L46,0) -> 0 | AO46: =IF(M46="dj",I46,0) -> 0 | AP46: =IF(M46="dj",J46,0) -> 0 | AQ46: =IF(M46="dj",K46,0) -> 0 | AR46: =IF(M46="dj",L46,0) -> 0 | AT46: =IF(M46="bcg",I46,0) -> 0 | AU46: =IF(M46="bcg",J46,0) -> 0 | AV46: =IF(M46="bcg",K46,0) -> 0 | AW46: =IF(M46="bcg",L46,0) -> 0 | AY46: =IF(M46="fi",I46,0) -> 0 | AZ46: =IF(M46="fi",J46,0) -> 0 | BA46: =IF(M46="fi",K46,0) -> 0 | BB46: =IF(M46="fi",L46,0) -> 0
A47: =A46+1 -> 35 | B47: Landzukauf | K47: =I47 -> 0 | L47: 0 | R47: =IF(M47="eh",I47,0) -> 0 | S47: =IF(M47="eh",J47,0) -> 0 | T47: =IF(M47="eh",K47,0) -> 0 | U47: 0 | W47: 0 | X47: 0 | Y47: 0 | Z47: 0 | AB47: 0 | AC47: 0 | AD47: 0 | AE47: 0 | AH47: 1 | AJ47: =IF(M47="ü",I47,0) -> 0 | AK47: =IF(M47="ü",J47,0) -> 0 | AL47: =IF(M47="ü",K47,0) -> 0 | AM47: =IF(M47="ü",L47,0) -> 0 | AO47: =IF(M47="dj",I47,0) -> 0 | AP47: =IF(M47="dj",J47,0) -> 0 | AQ47: =IF(M47="dj",K47,0) -> 0 | AR47: =IF(M47="dj",L47,0) -> 0 | AT47: =IF(M47="bcg",I47,0) -> 0 | AU47: =IF(M47="bcg",J47,0) -> 0 | AV47: =IF(M47="bcg",K47,0) -> 0 | AW47: =IF(M47="bcg",L47,0) -> 0 | AY47: =IF(M47="fi",I47,0) -> 0 | AZ47: =IF(M47="fi",J47,0) -> 0 | BA47: =IF(M47="fi",K47,0) -> 0 | BB47: =IF(M47="fi",L47,0) -> 0
A48: 36 | B48: Anpflanz., Eingrün. | J48: =I48/(1+$O$8)*$O$8 -> 0 | K48: =I48-J48 -> 0 | L48: 0 | R48: =IF(M48="eh",I48,0) -> 0 | S48: =IF(M48="eh",J48,0) -> 0 | T48: =IF(M48="eh",K48,0) -> 0 | U48: 0 | W48: 0 | X48: 0 | Y48: 0 | Z48: 0 | AB48: 0 | AC48: 0 | AD48: 0 | AE48: 0 | AH48: 1 | AJ48: =IF(M48="ü",I48,0) -> 0 | AK48: 0 | AL48: =IF(M48="ü",K48,0) -> 0 | AM48: 0 | AO48: 0 | AP48: 0 | AQ48: 0 | AR48: 0 | AT48: =IF(M48="bcg",I48,0) -> 0 | AU48: =IF(M48="bcg",J48,0) -> 0 | AV48: =IF(M48="bcg",K48,0) -> 0 | AW48: =IF(M48="bcg",L48,0) -> 0 | AY48: =IF(M48="fi",I48,0) -> 0 | AZ48: =IF(M48="fi",J48,0) -> 0 | BA48: =IF(M48="fi",K48,0) -> 0 | BB48: =IF(M48="fi",L48,0) -> 0
A49: 37 | J49: =I49/(1+$O$8)*$O$8 -> 0 | L49: 0 | R49: 0 | S49: 0 | T49: 0 | U49: 0 | W49: 0 | X49: 0 | Y49: 0 | Z49: 0 | AB49: 0 | AC49: 0 | AD49: 0 | AE49: 0 | AH49: 1 | AJ49: =IF(M49="ü",I49,0) -> 0 | AK49: 0 | AL49: 0 | AM49: 0 | AO49: 0 | AP49: 0 | AQ49: 0 | AR49: 0 | AT49: 0 | AU49: 0 | AV49: 0 | AW49: 0 | AY49: 0 | AZ49: 0 | BA49: 0 | BB49: 0
A50: 38 | B50: Maschinen, Geräte und technische Einrichtungen: | R50: 0 | S50: 0 | T50: 0 | U50: 0 | W50: 0 | X50: 0 | Y50: 0 | Z50: 0 | AB50: 0 | AC50: 0 | AD50: 0 | AE50: 0 | AH50: 1 | AJ50: 0 | AK50: 0 | AL50: 0 | AM50: 0 | AO50: 0 | AP50: 0 | AQ50: 0 | AR50: 0 | AT50: 0 | AU50: 0 | AV50: 0 | AW50: 0 | AY50: 0 | AZ50: 0 | BA50: 0 | BB50: 0
A51: 39 | B51: Melktechnik, Milchkühltechnik | J51: =I51/(1+$O$8)*$O$8 -> 0 | L51: 0 | R51: 0 | S51: 0 | T51: 0 | U51: 0 | W51: 0 | X51: 0 | Y51: 0 | Z51: 0 | AB51: 0 | AC51: 0 | AD51: 0 | AE51: 0 | AH51: =IF(SUM(I51:L51)=0,0,1) -> 0 | AJ51: 0 | AK51: 0 | AL51: 0 | AM51: 0 | AO51: 0 | AP51: 0 | AQ51: 0 | AR51: 0 | AT51: 0 | AU51: 0 | AV51: 0 | AW51: 0 | AY51: 0 | AZ51: 0 | BA51: 0 | BB51: 0
A52: 40 | B52: Bewässerungsanlagen lt. 9.4.1d / Investition lt. Anlage 3, Teil A | J52: 0 | L52: 0 | R52: 0 | S52: 0 | T52: 0 | U52: 0 | W52: 0 | X52: 0 | Y52: 0 | Z52: 0 | AB52: 0 | AC52: 0 | AD52: 0 | AE52: 0 | AH52: =IF(SUM(I52:L52)=0,0,1) -> 0 | AJ52: 0 | AK52: 0 | AL52: 0 | AM52: 0 | AO52: 0 | AP52: 0 | AQ52: 0 | AR52: 0 | AT52: 0 | AU52: 0 | AV52: 0 | AW52: 0 | AY52: 0 | AZ52: 0 | BA52: 0 | BB52: 0
A53: 41 | B53: Maßnahmen lt. Anlage 3 Teil B Nr. 1.1; 1.5; 1.6; 4.1 | I53: 0 | J53: 0 | L53: 0 | R53: 0 | S53: 0 | T53: 0 | U53: 0 | W53: 0 | X53: 0 | Y53: 0 | Z53: 0 | AB53: 0 | AC53: 0 | AD53: 0 | AE53: 0 | AH53: =IF(SUM(I53:L53)=0,0,1) -> 0 | AJ53: 0 | AK53: 0 | AL53: 0 | AM53: 0 | AO53: 0 | AP53: 0 | AQ53: 0 | AR53: 0 | AT53: 0 | AU53: 0 | AV53: 0 | AW53: 0 | AY53: 0 | AZ53: 0 | BA53: 0 | BB53: 0
A54: 42 | B54: Heizungsanlagen, Energiegewinnung bzw. -produktion | J54: 0 | L54: 0 | R54: 0 | S54: 0 | T54: 0 | U54: 0 | W54: 0 | X54: 0 | Y54: 0 | Z54: 0 | AB54: 0 | AC54: 0 | AD54: 0 | AE54: 0 | AH54: =IF(SUM(I54:L54)=0,0,1) -> 0 | AJ54: 0 | AK54: 0 | AL54: 0 | AM54: 0 | AO54: 0 | AP54: 0 | AQ54: 0 | AR54: 0 | AT54: 0 | AU54: 0 | AV54: 0 | AW54: 0 | AY54: 0 | AZ54: 0 | BA54: 0 | BB54: 0
A55: =A54+1 -> 43 | B55: So. Maschinen, Geräte, Vorricht. | F55: (Innenwirtschaft) | J55: 0 | L55: 0 | R55: 0 | S55: 0 | T55: 0 | U55: 0 | W55: 0 | X55: 0 | Y55: 0 | Z55: 0 | AA55: Ausg. in % für | AB55: 0 | AC55: 0 | AD55: 0 | AE55: 0 | AH55: 1 | AJ55: 0 | AK55: 0 | AL55: 0 | AM55: 0 | AO55: 0 | AP55: 0 | AQ55: 0 | AR55: 0 | AT55: 0 | AU55: 0 | AV55: 0 | AW55: 0 | AY55: 0 | AZ55: 0 | BA55: 0 | BB55: 0
A56: =A55+1 -> 44 | B56: Geräte und Einrichtung der Direktvermarktung (nff.) | J56: 0 | L56: 0 | P56: Ausg. in % | Q56: Ausg. in % für | R56: 0 | S56: 0 | T56: 0 | U56: 0 | V56: Ausg. in % für | W56: 0 | X56: 0 | Y56: 0 | Z56: 0 | AA56: Geflügel,Schweine | AB56: 0 | AC56: 0 | AD56: 0 | AE56: 0 | AH56: =IF(SUM(I56:L56)=0,0,1) -> 0 | AI56: Ausg. in % für | AJ56: =IF(M56="ü",I56,0) -> 0 | AK56: =IF(M56="ü",J56,0) -> 0 | AL56: =IF(M56="ü",K56,0) -> 0 | AM56: =IF(M56="ü",L56,0) -> 0 | AN56: Ausg. in % für | AO56: 0 | AP56: 0 | AQ56: 0 | AR56: 0 | AS56: Ausg. in % für | AT56: 0 | AU56: 0 | AV56: 0 | AW56: 0 | AX56: Ausg. in % für | AY56: 0 | AZ56: 0 | BA56: 0 | BB56: 0
A57: 45 | B57: Bemessungsgrundlage für allgemeine Aufwendungen | I57: =SUM(I44:I56) -> 0 | J57: =SUM(J44,J45:J56) -> 0 | K57: =SUM(K44,K45:K56) -> 0 | L57: =SUM(L44:L56) -> 0 | P57: Regelzuschuss | Q57: Investitionen lt. 9.4.1e (mit Aufschlag f. Kälbermatten), h (ab 2024) | R57: =SUM(R44:R56) -> 0 | S57: =SUM(S44,S45:S56) -> 0 | T57: =SUM(T44,T45:T56) -> 0 | U57: =SUM(U44,U45:U56) -> 0 | V57: Zuchtsauen | W57: =SUM(W44:W56) -> 0 | X57: =SUM(X44,X45:X56) -> 0 | Y57: =SUM(Y44,Y45:Y56) -> 0 | Z57: =SUM(Z44,Z45:Z56) -> 0 | AA57: u. Erstumstellung Milchkühe | AB57: =SUM(AB44:AB56) -> 0 | AC57: =SUM(AC44,AC45:AC56) -> 0 | AD57: =SUM(AD44,AD45:AD56) -> 0 | AE57: =SUM(AE44,AE45:AE56) -> 0 | AH57: 1 | AI57: übrige Tierarten | AJ57: =SUM(AJ44:AJ56) -> 0 | AK57: =SUM(AK44,AK45:AK56) -> 0 | AL57: =SUM(AL44,AL45:AL56) -> 0 | AM57: =SUM(AM44,AM45:AM56) -> 0 | AN57: Investitionen lt. 9.4.1d, j | AO57: =SUM(AO44:AO56) -> 0 | AP57: =SUM(AP44,AP45:AP56) -> 0 | AQ57: =SUM(AQ44,AQ45:AQ56) -> 0 | AR57: =SUM(AR44,AR45:AR56) -> 0 | AS57: Inv. lt. 9.4.1b, c, g | AT57: =SUM(AT44:AT56) -> 0 | AU57: =SUM(AU44,AU45:AU56) -> 0 | AV57: =SUM(AV44,AV45:AV56) -> 0 | AW57: =SUM(AW44,AW45:AW56) -> 0 | AX57: Inv. lt. 9.4.1f, i (ab 2024) | AY57: =SUM(AY44:AY56) -> 0 | AZ57: =SUM(AZ44,AZ45:AZ56) -> 0 | BA57: =SUM(BA44,BA45:BA56) -> 0 | BB57: =SUM(BB44,BB45:BB56) -> 0
A58: 46 | B58: Baunebenkosten = allg. Aufwendungen | J58: =I58/(1+$O$8)*$O$8 -> 0 | L58: =I58-SUM(J58:K58) -> 0 | M58: =IF(L57=0,"",SUM(L58:L60)/L57) ->  | P58: =100%-Q58-V58-AA58-AI58-AN58-AS58-AX58 -> 1 | Q58: =IF(SUM(U57)=0,0,SUM(U57)/(SUM(L57)-IF(Inhalt!G17="nein",0,L45))) -> 0 | R58: =IF($I$57=0,0,I58*SUM($Q$58)) -> 0 | S58: =IF($J$57=0,0,J58*SUM($Q$58)) -> 0 | T58: =K58*SUM($Q$58) -> 0 | U58: =IF($L$57=0,0,SUM(L58)*SUM($Q$58)) -> 0 | V58: =IF(SUM(Z57)=0,0,SUM(Z57)/(SUM(L57)-IF(Inhalt!G17="nein",0,L45))) -> 0 | W58: =IF($I$57=0,0,I58*SUM($V$58)) -> 0 | X58: =IF($J$57=0,0,J58*SUM($V$58)) -> 0 | Y58: =K58*SUM($V$58) -> 0 | Z58: =IF($L$57=0,0,SUM(L58)*SUM($V$58)) -> 0 | AA58: =IF(SUM(AE57)=0,0,SUM(AE57)/(SUM(L57)-IF(Inhalt!G17="nein",0,L45))) -> 0 | AB58: =IF($I$57=0,0,I58*SUM($AA$58)) -> 0 | AC58: =IF($J$57=0,0,J58*SUM($AA$58)) -> 0 | AD58: =K58*SUM($AA$58) -> 0 | AE58: =IF($L$57=0,0,SUM(L58)*SUM($AA$58)) -> 0 | AH58: 1 | AI58: =IF(SUM(AM57)=0,0,SUM(AM57)/(SUM(L57)-IF(Inhalt!G17="nein",0,L45))) -> 0 | AJ58: =IF($I$57=0,0,I58*SUM($AI$58)) -> 0 | AK58: =IF($J$57=0,0,J58*SUM($AI$58)) -> 0 | AL58: =K58*SUM($AI$58) -> 0 | AM58: =IF($L$57=0,0,SUM(L58)*SUM($AI$58)) -> 0 | AN58: =IF(SUM(AR57)=0,0,SUM(AR57)/(SUM(L57)-IF(Inhalt!G17="nein",0,L45))) -> 0 | AO58: =IF($I$57=0,0,I58*SUM($AN$58)) -> 0 | AP58: =IF($J$57=0,0,J58*SUM($AN$58)) -> 0 | AQ58: =K58*SUM($AN$58) -> 0 | AR58: =IF($L$57=0,0,SUM(L58)*SUM($AN$58)) -> 0 | AS58: =IF(SUM(AW57)=0,0,SUM(AW57)/(SUM(L57)-IF(Inhalt!L17="nein",0,L45))) -> 0 | AT58: =IF($I$57=0,0,I58*SUM($AS$58)) -> 0 | AU58: =IF($J$57=0,0,J58*SUM($AS$58)) -> 0 | AV58: =K58*SUM($AS$58) -> 0 | AW58: =IF($L$57=0,0,SUM(L58)*SUM($AS$58)) -> 0 | AX58: =IF(SUM(BB57)=0,0,SUM(BB57)/(SUM(L57)-IF(Inhalt!Q17="nein",0,L45))) -> 0 | AY58: =IF($I$57=0,0,I58*SUM($AX$58)) -> 0 | AZ58: =IF($J$57=0,0,J58*SUM($AX$58)) -> 0 | BA58: =K58*SUM($AX$58) -> 0 | BB58: =IF($L$57=0,0,SUM(L58)*SUM($AX$58)) -> 0
A59: 47 | B59: Betreuungsgebühr = allg. Aufwendungen | J59: =I59/(1+$O$8)*$O$8 -> 0 | K59: =TRUNC(IF(N61>17500,N61-17500,N62),2) -> 0 | L59: =IF(N61<=17500,N61,17500) -> 0 | R59: =IF($I$57=0,0,I59*SUM($Q$58)) -> 0 | S59: =IF($J$57=0,0,J59*SUM($Q$58)) -> 0 | T59: =K59*SUM($Q$58) -> 0 | U59: =IF($L$57=0,0,SUM(L59)*SUM($Q$58)) -> 0 | W59: =IF($I$57=0,0,I59*SUM($V$58)) -> 0 | X59: =IF($J$57=0,0,J59*SUM($V$58)) -> 0 | Y59: =K59*SUM($V$58) -> 0 | Z59: =IF($L$57=0,0,SUM(L59)*SUM($V$58)) -> 0 | AB59: =IF($I$57=0,0,I59*SUM($AA$58)) -> 0 | AC59: =IF($J$57=0,0,J59*SUM($AA$58)) -> 0 | AD59: =K59*SUM(AA$58) -> 0 | AE59: =IF($L$57=0,0,SUM(L59)*SUM($AA$58)) -> 0 | AH59: 1 | AJ59: =IF($I$57=0,0,I59*SUM($AI$58)) -> 0 | AK59: =IF($J$57=0,0,J59*SUM($AI$58)) -> 0 | AL59: =K59*SUM(AI$58) -> 0 | AM59: =IF($L$57=0,0,SUM(L59)*SUM($AI$58)) -> 0 | AO59: =IF($I$57=0,0,I59*SUM($AN$58)) -> 0 | AP59: =IF($J$57=0,0,J59*SUM($AN$58)) -> 0 | AQ59: =K59*SUM(AN$58) -> 0 | AR59: =IF($L$57=0,0,SUM(L59)*SUM($AN$58)) -> 0 | AT59: =IF($I$57=0,0,I59*SUM($AS$58)) -> 0 | AU59: =IF($J$57=0,0,J59*SUM($AS$58)) -> 0 | AV59: =K59*SUM(AS$58) -> 0 | AW59: =IF($L$57=0,0,SUM(L59)*SUM($AS$58)) -> 0 | AY59: =IF($I$57=0,0,I59*SUM($AX$58)) -> 0 | AZ59: =IF($J$57=0,0,J59*SUM($AX$58)) -> 0 | BA59: =K59*SUM($AX$58) -> 0 | BB59: =IF($L$57=0,0,SUM(L59)*SUM($AX$58)) -> 0
A60: 48 | B60: Sonstige allgemeine Aufwendungen | J60: =I60/(1+$O$8)*$O$8 -> 0 | L60: =I60-SUM(J60:K60) -> 0 | N60: =IF(L57=0,"",SUM(L58:L60)/L57) ->  | R60: =IF($I$57=0,0,I60*SUM($Q$58)) -> 0 | S60: =IF($J$57=0,0,J60*SUM($Q$58)) -> 0 | T60: =K60*SUM($Q$58) -> 0 | U60: =IF($L$57=0,0,SUM(L60)*SUM($Q$58)) -> 0 | W60: =IF($I$57=0,0,I60*SUM($V$58)) -> 0 | X60: =IF($J$57=0,0,J60*SUM($V$58)) -> 0 | Y60: =K60*SUM($V$58) -> 0 | Z60: =IF($L$57=0,0,SUM(L60)*SUM($V$58)) -> 0 | AB60: =IF($I$57=0,0,I60*SUM($AA$58)) -> 0 | AC60: =IF($J$57=0,0,J60*SUM($AA$58)) -> 0 | AD60: =K60*SUM($AA$58) -> 0 | AE60: =IF($L$57=0,0,SUM(L60)*SUM($AA$58)) -> 0 | AH60: 1 | AJ60: =IF($I$57=0,0,I60*SUM($AI$58)) -> 0 | AK60: =IF($J$57=0,0,J60*SUM($AI$58)) -> 0 | AL60: =K60*SUM($AI$58) -> 0 | AM60: =IF($L$57=0,0,SUM(L60)*SUM($AI$58)) -> 0 | AO60: =IF($I$57=0,0,I60*SUM($AN$58)) -> 0 | AP60: =IF($J$57=0,0,J60*SUM($AN$58)) -> 0 | AQ60: =K60*SUM($AN$58) -> 0 | AR60: =IF($L$57=0,0,SUM(L60)*SUM($AN$58)) -> 0 | AT60: =IF($I$57=0,0,I60*SUM($AS$58)) -> 0 | AU60: =IF($J$57=0,0,J60*SUM($AS$58)) -> 0 | AV60: =K60*SUM($AS$58) -> 0 | AW60: =IF($L$57=0,0,SUM(L60)*SUM($AS$58)) -> 0 | AY60: =IF($I$57=0,0,I60*SUM($AX$58)) -> 0 | AZ60: =IF($J$57=0,0,J60*SUM($AX$58)) -> 0 | BA60: =K60*SUM($AX$58) -> 0 | BB60: 0
A61: 49 | B61: Wohnhaus | K61: =I61-J61 -> 0 | N61: =IF(I59=0,0,I59-J59-N62) -> 0 | AH61: =IF(SUM(I61:L61)=0,0,1) -> 0
A62: 50 | B62: Tieraufstockung | J62: =I62/(1+$O$9)*$O$9 -> 0 | K62: =I62-J62 -> 0 | N62: =TRUNC(IF(L57<100000,I59-J59, IF(AND(L57<=500000,I59-J59>L57*2.5%),I59-J59-(L57*2.5%), IF(AND(L57>500000,I59-J59>(12500+(L57-500000)*1.5%)),I59-J59-MIN(17500,12500+(L57-500000)*1.5%),0))),2) -> 0 | AH62: 1
A63: 51 | B63: Lieferrechte | C63: =('1 KaP'!J49-'1 KaP'!F49)-('1 KaP'!J50-'1 KaP'!F50) -> 0 | E63: kg x | G63: Euro | I63: =C63*F63 -> 0 | J63: 0 | K63: 0 | AH63: =IF(SUM(I63:L63)=0,0,1) -> 0
A64: 52 | B64: Umlaufvermögen | J64: =I64/(1+$O$8)*$O$8 -> 0 | K64: 0 | AH64: 1
A65: 53 | B65: Überbrückungsbedarf | K65: 0 | AH65: =IF(SUM(I65:L65)=0,0,1) -> 0
A66: 54 | B66: Ablösung von Verbindlichkeiten | K66: 0 | AH66: =IF(SUM(I66:L66)=0,0,1) -> 0
A67: 55 | B67: Finanzierungskosten | K67: 0 | AH67: 1
A68: 56 | B68: Sonstiges | J68: =I68/(1+$O$8)*$O$8 -> 0 | K68: 0 | AH68: 1
A69: 57 | B69: Su. Finanzbed. Investitionen in Geflügel, Schweine u. Erstumstellung Milchkühe auf Laufstallhaltung lt. 9.4.1a | I69: =AB69 -> 0 | J69: =AC69 -> 0 | K69: =AD69 -> 0 | L69: =AE69 -> 0 | R69: =SUM(R44:R68)-R57 -> 0 | S69: =SUM(S44:S68)-S57 -> 0 | T69: =SUM(T44:T68)-T57 -> 0 | U69: =SUM(U44:U68)-U57 -> 0 | W69: =SUM(W44:W68)-W57 -> 0 | X69: =SUM(X44:X68)-X57 -> 0 | Y69: =SUM(Y44:Y68)-Y57 -> 0 | Z69: =SUM(Z44:Z68)-Z57 -> 0 | AB69: =SUM(AB44:AB68)-AB57 -> 0 | AC69: =SUM(AC44:AC68)-AC57 -> 0 | AD69: =SUM(AD44:AD68)-AD57 -> 0 | AE69: =SUM(AE44:AE68)-AE57 -> 0 | AH69: 1 | AJ69: =SUM(AJ44:AJ68)-AJ57 -> 0 | AK69: =SUM(AK44:AK68)-AK57 -> 0 | AL69: =SUM(AL44:AL68)-AL57 -> 0 | AM69: =SUM(AM44:AM68)-AM57 -> 0 | AO69: =SUM(AO44:AO68)-AO57 -> 0 | AP69: =SUM(AP44:AP68)-AP57 -> 0 | AQ69: =SUM(AQ44:AQ68)-AQ57 -> 0 | AR69: =SUM(AR44:AR68)-AR57 -> 0 | AT69: =SUM(AT44:AT68)-AT57 -> 0 | AU69: =SUM(AU44:AU68)-AU57 -> 0 | AV69: =SUM(AV44:AV68)-AV57 -> 0 | AW69: =SUM(AW44:AW68)-AW57 -> 0 | AY69: =SUM(AY44:AY68)-AY57 -> 0 | AZ69: =SUM(AZ44:AZ68)-AZ57 -> 0 | BA69: =SUM(BA44:BA68)-BA57 -> 0 | BB69: =SUM(BB44:BB68)-BB57 -> 0
A70: 58 | B70: Su. Finanzbedarf Investitionen in übrige Tierarten lt. 9.4.1a | I70: =AJ69 -> 0 | J70: =AK69 -> 0 | K70: =AL69 -> 0 | L70: =AM69 -> 0 | AH70: 1
A71: 59 | B71: Su. Finanzbedarf Investitionen lt. 9.4.1b, c, g | I71: =AT69 -> 0 | J71: =AU69 -> 0 | K71: =AV69 -> 0 | L71: =AW69 -> 0 | AH71: 1
B72: Su. Finanzbed. Investitionen lt. 9.4.1d, j | I72: =AO69 -> 0 | J72: =AP69 -> 0 | K72: =AQ69 -> 0 | L72: =AR69 -> 0
A73: =A71+1 -> 60 | B73: Su. Finanzbedarf Investitionen lt. 9.4.1e (mit Aufschlag f. Kälbermatten), h | I73: =R69 -> 0 | J73: =S69 -> 0 | K73: =T69 -> 0 | L73: =U69 -> 0 | AH73: 1
B74: Su. Finanzbedarf Investitionen lt. 9.4.1f, i | I74: =AY69 -> 0 | J74: =AZ69 -> 0 | K74: =BA69 -> 0 | L74: =BB69 -> 0
A75: =A73+1 -> 61 | B75: Su. Finanzbedarf für sonstige Invest. lt. 9.4.1e, ohne Aufschlag | I75: =SUM(I44:I68)-I57-I70-I71-I69-I74-I73-I72 -> 0 | J75: =IF(N75<0.05,0,N75) -> 0 | K75: =SUM(K44:K68)-K57-K70-K71-K69-K74-K73-K72 -> 0 | L75: =IF(OR(I75=0), 0, SUM(L44:L68)-L57-L70-L71-L69-L74-L73-L72) -> 0 | N75: =SUM(J44:J68)-J57-J70-J71-J69-J74-J73-J72 -> 0 | AH75: 1
A76: 62 | B76: Summe aller Investitionen | I76: =SUM(I69:I75) -> 0 | J76: =SUM(J69:J75) -> 0 | K76: =SUM(K69:K75) -> 0 | L76: =SUM(L69:L75) -> 0 | AH76: 1
A77: 63 | B77: Förderfähiger Höchstbetrag je Unternehmen | L77: 1200000 | AH77: 1
A78: 64 | B78: bisher im Programmzeitraum 2023 - 2027 geförderte Ausgaben | AH78: 1
A79: 65 | B79: noch förderbares Investitionsvolumen | L79: =L77-L78 -> 1200000 | AH79: 1
A80: 66 | B80: Bemessungsgrundlage zur Zuschussberechnung ohne Erschließung | K80: =Inhalt!I52 -> 0 | L80: =IF(L76>L79,(L79-IF(Inhalt!G17="nein",0,L45))*(1-K80),(L76-IF(Inhalt!G17="nein",0,L45))*(1-K80)) -> 0 | AH80: 1
A81: 67 | B81: Bemessungsgrundlage für den Erschließungszuschuss | L81: =IF(Inhalt!G17="nein",0,L45-L45*K80) -> 0 | AH81: 1
A82: 68 | B82: erhaltener Junglandwirtezuschuss (Auslegung "AFP-Regelung Junglandwirtezuschuss, Stand 2024") | AH82: 1
AH83: 1
A84: =A82+1 -> 69 | B84: Tieraufstock. aus eig. Aufzucht | AH84: 1
A85: 70 | B85: Arbeitsleistung für Gebäude inkl. Erschließung | AH85: 1
A86: 71 | B86: Eigene Baustoffe | AH86: 1
A87: 72 | C87: Summe unbare Eigenleistungen | K87: =SUM(H84:H86) -> 0 | AH87: 1

Sheet 3 FinPlan
B1: ='1 KaP'!B1 -> Investitionskonzept NRW 2025_01 | L1: Unternehmernummer
K2: =Inhalt!G5 -> 0
H4: Unternehmen: | I4: =Inhalt!C5 -> 0 | K4: Datum | L4: =MAX(Inhalt!$I$9,Inhalt!$C$10,Inhalt!$F$10,Inhalt!$I$10) -> 00:00:00
B6: Finanzierungsplan | J6: Finanzierungs- | K6: Subventionswert
J7: mittel ges. | K7: in Euro
J8: Euro
A10: 1 | C10: Zu erwirtschaften | M10: 0 | N10: 0.4 | O10: H29 | P10: 0
A11: =A10+1 -> 2 | C11: Barmittel, Guthaben | M11: 0 | N11: 0.35 | O11: H30 | P11: 0
A12: =A11+1 -> 3 | C12: Verkauf Grundstücke | M12: 0 | N12: 0.4 | O12: H31 | P12: 0
A13: 4 | C13: Verkauf alte Hofstelle | M13: 0 | N13: 0.3 | O13: H32 | P13: 0
A14: 5 | C14: Sonstige Erlöse | M14: 0 | N14: 0.4 | O14: H34 | P14: 0
A15: 6 | C15: Verrechnung Vorsteuer (USt-Regelbesteuerung - Option) | J15: =IF('1 KaP'!J9=1,'2 InvBed'!J76,0) -> 0 | M15: 0 | N15: 0.3 | O15: H33 | P15: 0
A16: 7 | M16: 0 | N16: 0.2 | O16: H35 | P16: 0
A17: 8
A18: =A17+1 -> 9
A19: 10
A20: 11
A21: 12
A22: 13
A23: 14
A24: 15
A25: 16
A26: =A15+1 -> 7 | C26: Leistungen Dritter | E26: z.B. Zuschuss Wasserkooperation od. Versicherungsleistungen
A27: 8 | C27: Summe bare Eigenmittel | J27: =SUM(J10:J26) -> 0
H28: Zuwendungs- fähige Summe | I28: Zuschuss bis zu | M28: =20000*VALUE(Inhalt!D18)-VALUE('2 InvBed'!L82) -> 0 | N28: =20000*VALUE(Inhalt!D18)-VALUE('2 InvBed'!L82) -> 0 | P28: =20000*VALUE(Inhalt!D18)-VALUE('2 InvBed'!L82) -> 0 | Q28: =20000*Inhalt!D18-'2 InvBed'!L82 -> 0
A29: =A27+1 -> 9 | C29: Zuschuss für Geflügel, Schweine u. Erstumstellung Milchkühe auf Laufstallhaltung lt. 9.4.1a | H29: 0 | I29: 0.4 | J29: =H29*I29 -> 0 | L29: =J29 -> 0 | M29: =H36*I36 -> 0 | N29: =H36*I36 -> 0 | P29: =H36*I36 -> 0 | Q29: =H36*I36 -> 0 | X29: Zuschuss für Geflügel, Schweine u. Erstumstellung Milchkühe auf Laufstallhaltung lt. 9.4.1a | AC29: =H29 -> 0 | AD29: =I29 -> 0.4 | AE29: =J29 -> 0 | AG29: =AE29 -> 0
A30: 10 | C30: Zuschuss für Investitionen in übrige Tierarten lt. 9.4.1a | H30: 0 | I30: 0.35 | J30: 0 | L30: =J30 -> 0 | N30: =(AG37-SUM('2 InvBed'!L80:L81)*0.5) -> 0 | X30: Zuschuss für Investitionen in übrige Tierarten lt. 9.4.1a | AC30: =H30 -> 0 | AD30: =I30 -> 0.35 | AE30: =J30 -> 0 | AG30: =AE30 -> 0
A31: 11 | C31: Zuschuss für Investitionen lt. 9.4.1b, c, g | H31: 0 | I31: 0.4 | J31: 0 | L31: =J31 -> 0 | X31: Zuschuss für Investitionen lt. 9.4.1b, c, g | AC31: 0 | AD31: 0.4 | AE31: 0 | AG31: 0
A32: 12 | C32: Zuschuss für Investitionen lt. 9.4.1d, j | H32: 0 | I32: 0.3 | J32: 0 | L32: =J32 -> 0 | M32: FF KOSTEN GES | N32: =SUM(H29:H35) -> 0 | X32: Zuschuss für Investitionen lt. 9.4.1d, j | AC32: =H32 -> 0 | AD32: 0.3 | AE32: 0 | AG32: 0
A33: 13 | C33: Zuschuss für Investitionen lt. 9.4.1e (mit Aufschlag f. Kälbermatten), h | H33: 0 | I33: 0.3 | J33: 0 | L33: =J33 -> 0 | M33: Fördergrenze d. beantr. Massn | N33: =H29*I29+H30*I30+H31*I31+H32*I32+H33*I33+H34*I34+H35*I35 -> 0 | X33: Zuschuss für Investitionen lt. 9.4.1e (mit Aufschlag f. Kälbermatten), h | AC33: 0 | AD33: 0.3 | AE33: 0 | AG33: 0
A34: 14 | C34: Zuschuss für Investitionen lt. 9.4.1f, i | H34: 0 | I34: 0.4 | J34: =TRUNC(H34*I34, 2) -> 0 | L34: =J34 -> 0 | M34: RESTSUMME ZU Beihilfegrenze | N34: =N32*0.5-N33 -> 0 | O34: =N33/(N32*0.5) ->  | X34: Zuschuss für Investionen lt. 9.4.1f, i | AC34: 0 | AD34: 0.4 | AE34: 0 | AG34: 0
A35: 15 | C35: Zuschuss für sonstige Invest. lt. 9.4.1e, ohne Aufschlag | H35: 0 | I35: 0.2 | J35: 0 | L35: 0 | M35: Bedingung für JULA-Zuschuss | N35: =IF(N34>H36*0.1,H36*I36,N34) -> 0 | X35: Zuschuss für sonstige Invest. lt. 9.4.1e, ohne Aufschlag | AC35: 0 | AD35: 0.2 | AE35: 0 | AG35: 0
A36: 16 | C36: Junglandwirtezuschuss lt. 9.4.2 | H36: =IF(Inhalt!D18=0,0,IF(SUM('2 InvBed'!L80:L81)<10000,0,IF(Inhalt!G18=0,SUM('2 InvBed'!L80:L81),SUM('2 InvBed'!L80:L81)*Inhalt!G18))) -> 0 | I36: 0.1 | J36: =IF(N35=FALSE, 0, N36) -> 0 | L36: 0 | N36: =IF(N35>20000-'2 InvBed'!L82, 20000-'2 InvBed'!L82,'3 FinPlan'!N35) -> 0 | X36: Junglandwirtezuschuss lt. 9.4.2 | AC36: 0 | AD36: 0.1 | AE36: 0 | AG36: 0
A37: 17 | C37: Summe Zuschüsse | J37: =SUM(J29:J33,J34:J36) -> 0 | L37: =SUM(L29:L33,L34:L36) -> 0 | X37: Summe Zuschüsse | AE37: =SUM(AE29:AE33,AE34:AE36) -> 0 | AG37: =SUM(AG29:AG33,AG34:AG36) -> 0
I38: Laufz J
A39: =A37+1 -> 18 | C39: Kapitalmarktdarlehen | I39: 20 | J39: =IF(SUM(J48)=0,"",SUM(J48)-SUM(J37)-SUM(J27)-SUM(J40:J45)) ->  | AD39: Beihilfegrenze | AG39: =IF(J48=0,0,AG37/SUM('2 InvBed'!L80:L81)*100) -> 0
A40: 19 | C40: Freies Darlehen | I40: 10
A41: 20 | C41: Darlehen Förderbank | J41: 0 | K41: Beihilfe- wert:
A42: 21
A43: 22
A44: 23
A45: 24
A46: =A45+1 -> 25 | C46: Summe Darlehen | J46: =SUM(J39:J45) -> 0
A47: =A46+1 -> 26 | B47: Summe Finanzierungsmittel bar | I47: =SUM(I27,I46) -> 0 | J47: =SUM(J27,J37,J46) -> 0 | K47: Subv.w. € | L47: =L37 -> 0
A48: 27 | B48: Se. Finanzierungsbedarf, bar | H48: (2 InvBed , Z. 58) | J48: ='2 InvBed'!I76 -> 0 | K48: in % | L48: =IF(J48=0,0,L47/SUM('2 InvBed'!L80:L81)*100) -> 0
D50: Subventionswert incl. Beihilfewert des Förderbankdarlehens | L50: =IF(J48=0,0,SUM(L47+L41)/SUM('2 InvBed'!L80:L81)*100) -> 0
J51: =IF(L47=0,0,IF(L50<=40,"Beihilfegrenze eingehalten",0)) -> 0
H52: =IF(L50>50,"Achtung: Beihilfegrenze überschritten!",0) -> 0
H53: =IF((SUM(H29,H30,H31,H32,H33,H34,H35))>1200000,"Achtung: Zuwendungsfähige Kosten über 1,2 Mio EURO überschritten!",0) -> 0
H54: =IF(J36>20000,"Achtung: Jula-Zuschuss über 20.000 EUR, Korrektur v. J36 erforderlich!",0) -> 0
H55: =IF(H34>'2 InvBed'!L74,"Achtung: Zuwendungsfähige Summe für Investitionen lt. 9.4.1f, i höher als unter '2 InvBed'!",0) -> 0
H56: =IF(H35>'2 InvBed'!L75,"Achtung: Zuwendungsfähige Summe sonstiger Investitionen lt. 9.4.1, ohne Aufschlag, höher als unter '2 InvBed'!",0) -> 0
H57: =IF(H30>'2 InvBed'!L70,"Achtung: Zuwendungsfähige Summe Zuschuss übrige Tiere lt. 9.4.1a höher als unter '2 InvBed'!",0) -> 0
H58: =IF(H29>'2 InvBed'!L69,"Achtung: Zuwendungsfähige Summe Zuschuss Geflügel, Schweine u. Erstumstellung Milchkühe auf Laufstallhaltung höher als unter '2 InvBed'!",0) -> 0
H59: =IF(H31>'2 InvBed'!L71,"Achtung: Zuwendungsfähige Summe Zuschuss für Investitionen lt. 9.4.1b, c, g höher als unter '2 InvBed'!",0) -> 0
H60: =IF(H33>'2 InvBed'!L73,"Achtung: Zuwendungsfähige Summe für Investition lt.9.4.1e (mit Aufschag f. Kälbermatten) bzw. 9.4.1h höher als unter '2 InvBed'!",0) -> 0
H61: =IF(H32>'2 InvBed'!L72,"Achtung: Zuwendungsfähige Summe für Investitionen lt. 9.4.1d, j höher als unter '2 InvBed'!",0) -> 0

Sheet 4 Kredite
B1: ='1 KaP'!B1 -> Investitionskonzept NRW 2025_01 | K1: 01.01. | P1: Unternehmernummer
O2: =Inhalt!G5 -> 0 | U2: =L5-K5 -> 1 | V2: Zahl der Jahre zwischen Ist und Ziel
B3: Kredite und Kapitaldienst | J3: Unternehmen: | K3: =Inhalt!C5 -> 0 | N3: Datum: | O3: =MAX(Inhalt!$I$9,Inhalt!$C$10,Inhalt!$F$10,Inhalt!$I$10) -> 00:00:00 | P3: =MAX(Inhalt!$I$9,Inhalt!$C$10,Inhalt!$F$10,Inhalt!$I$10) -> 00:00:00 | V3: Entwicklung der Darlehensstände und des Kapitaldienstes
C5: Bank und Kto.- Nr. | D5: Beginn | E5: Evtl. | F5: Falls | G5: Nenn- | H5: Zins- | I5: Tilg- | J5: Falls Annuit.- | K5: ='1 KaP'!G5 -> 2025 | L5: ='1 KaP'!K5 -> 2026 | M5: ='1 KaP'!G5 -> 2025 | O5: =L5 -> 2026 | R5: Bilanz Buchf.: | W5: 0
B6: Nr. | D6: neues | E6: P | F6: Annu.- | G6: betrag | H6: satz | I6: ung | J6: Darlehen: | K6: =CONCATENATE(K1,'1 KaP'!G5) -> 01.01.2025 | L6: ='1 KaP'!K5 -> 2026 | R6: 2020-06-30
B7: d. | C7: Verwendungszweck | D7: Darl. im | E7: oder | F7: darl.: | H7: (verbill.) | J7: Annuität | K7: Valuta | L7: Valuta | M7: Zins | N7: Tilgung | O7: Zins | P7: Tilgung | R7: Valuta | U7: ='1 KaP'!G5 -> 2025 | X7: =U7+1 -> 2026 | AA7: =U7+2 -> 2027 | AD7: =U7+3 -> 2028 | AG7: =X7+3 -> 2029 | AJ7: =AA7+3 -> 2030 | AM7: =AD7+3 -> 2031
B8: Kr. | C8: Jahr der Kreditaufnahme | D8: Jahr: | E8: M | F8: => a | G8: Euro | H8: % | I8: % | J8: Euro | K8: Euro | L8: Euro | M8: Euro | N8: Euro | O8: Euro | P8: Euro | R8: Euro | U8: Valuta | V8: Zins | W8: Tilgung | X8: Valuta | Y8: Zins | Z8: Tilgung | AA8: Valuta | AB8: Zins | AC8: Tilgung | AD8: Valuta | AE8: Zins | AF8: Tilgung | AG8: Valuta | AH8: Zins | AI8: Tilgung | AJ8: Valuta | AK8: Zins | AL8: Tilgung | AM8: Valuta | AN8: Zins | AO8: Tilgung
J9: Verbindlichkeiten aus Lieferungen und Leistungen, Wechsel, sonst. Verbindlichkeiten => | L9: =K9 -> 0 | U9: € | V9: € | W9: € | X9: € | Y9: € | Z9: € | AA9: € | AB9: € | AC9: € | AD9: € | AE9: € | AF9: € | AG9: € | AH9: € | AI9: € | AJ9: € | AK9: € | AL9: € | AM9: € | AN9: € | AO9: €
B10: 1 | L10: =IF($U$2=0,U10-W10,IF($U$2=1,X10-Z10,IF($U$2=2,AA10-AC10,IF($U$2=3,AD10-AF10,IF($U$2=4,AG10-AI10,IF($U$2=5,AJ10-AL10,IF($U$2=6,AM10-AO10))))))) -> 0 | M10: =IF(U10<0,0,H10*K10/100) -> 0 | N10: =IF(G10*I10/100>K10,K10,IF(J10-M10>K10,K10,IF(J10>0,J10-M10,G10*I10/100))) -> 0 | O10: =IF($U$2=0,V10,IF($U$2=1,Y10,IF($U$2=2,AB10,IF($U$2=3,AE10,IF($U$2=4,AH10,IF($U$2=5,AK10,IF($U$2=6,AN10))))))) -> 0 | P10: =IF($U$2=0,W10,IF($U$2=1,Z10,IF($U$2=2,AC10,IF($U$2=3,AF10,IF($U$2=4,AI10,IF($U$2=5,AL10,IF($U$2=6,AO10))))))) -> 0 | U10: =K10 -> 0 | V10: =IF(U10<0,0,H10*U10/100) -> 0 | W10: =IF(U10=0,0,IF(N10>U10,U10,IF(J10-V10>U10,U10,IF(J10>0,J10-V10,N10)))) -> 0 | X10: =IF(U10-W10<=0,0,U10-W10) -> 0 | Y10: =IF(X10<0,0,H10*X10/100) -> 0 | Z10: =IF(X10=0,0,IF(N10>X10,X10,IF(J10-Y10>X10,X10,(IF(J10>0,J10-Y10,N10))))) -> 0 | AA10: =IF(X10-Z10<=0,0,X10-Z10) -> 0 | AB10: =IF(AA10<0,0,H10*AA10/100) -> 0 | AC10: =IF(AA10=0,0,IF(N10>AA10,AA10,IF(J10-AB10>AA10,AA10,(IF(J10>0,J10-AB10,N10))))) -> 0 | AD10: =IF(AA10-AC10<=0,0,AA10-AC10) -> 0 | AE10: =IF(AD10<0,0,H10*AD10/100) -> 0 | AF10: =IF(AD10=0,0,IF(N10>AD10,AD10,IF(J10-AE10>AD10,AD10,(IF(J10>0,J10-AE10,N10))))) -> 0 | AG10: =IF(AD10-AF10<=0,0,AD10-AF10) -> 0 | AH10: =IF(AG10<0,0,H10*AG10/100) -> 0 | AI10: =IF(AG10=0,0,IF(N10>AG10,AG10,IF(J10-AH10>AG10,AG10,(IF(J10>0,J10-AH10,N10))))) -> 0 | AJ10: =IF(AG10-AI10<=0,0,AG10-AI10) -> 0 | AK10: =IF(AJ10<0,0,H10*AJ10/100) -> 0 | AL10: =IF(AJ10=0,0,IF(N10>AJ10,AJ10,IF(J10-AK10>AJ10,AJ10,(IF(J10>0,J10-AK10,N10))))) -> 0 | AM10: =IF(AJ10-AL10<=0,0,AJ10-AL10) -> 0 | AN10: =IF(AM10<0,0,H10*AM10/100) -> 0 | AO10: =IF(AM10=0,0,IF(N10>AM10,AM10,IF(J10-AN10>AM10,AM10,(IF(J10>0,J10-AN10,N10))))) -> 0
B11: =B10+1 -> 2 | L11: =IF($U$2=0,U11-W11,IF($U$2=1,X11-Z11,IF($U$2=2,AA11-AC11,IF($U$2=3,AD11-AF11,IF($U$2=4,AG11-AI11,IF($U$2=5,AJ11-AL11,IF($U$2=6,AM11-AO11))))))) -> 0 | M11: =IF(U11<0,0,H11*K11/100) -> 0 | N11: =IF(G11*I11/100>K11,K11,IF(J11-M11>K11,K11,IF(J11>0,J11-M11,G11*I11/100))) -> 0 | O11: =IF($U$2=0,V11,IF($U$2=1,Y11,IF($U$2=2,AB11,IF($U$2=3,AE11,IF($U$2=4,AH11,IF($U$2=5,AK11,IF($U$2=6,AN11))))))) -> 0 | P11: =IF($U$2=0,W11,IF($U$2=1,Z11,IF($U$2=2,AC11,IF($U$2=3,AF11,IF($U$2=4,AI11,IF($U$2=5,AL11,IF($U$2=6,AO11))))))) -> 0 | U11: =K11 -> 0 | V11: =IF(U11<0,0,H11*U11/100) -> 0 | W11: 0 | X11: 0 | Y11: =IF(X11<0,0,H11*X11/100) -> 0 | Z11: =IF(X11=0,0,IF(N11>X11,X11,IF(J11-Y11>X11,X11,(IF(J11>0,J11-Y11,N11))))) -> 0 | AA11: =IF(X11-Z11<=0,0,X11-Z11) -> 0 | AB11: =IF(AA11<0,0,H11*AA11/100) -> 0 | AC11: =IF(AA11=0,0,IF(N11>AA11,AA11,IF(J11-AB11>AA11,AA11,(IF(J11>0,J11-AB11,N11))))) -> 0 | AD11: =IF(AA11-AC11<=0,0,AA11-AC11) -> 0 | AE11: =IF(AD11<0,0,H11*AD11/100) -> 0 | AF11: =IF(AD11=0,0,IF(N11>AD11,AD11,IF(J11-AE11>AD11,AD11,(IF(J11>0,J11-AE11,N11))))) -> 0 | AG11: =IF(AD11-AF11<=0,0,AD11-AF11) -> 0 | AH11: =IF(AG11<0,0,H11*AG11/100) -> 0 | AI11: =IF(AG11=0,0,IF(N11>AG11,AG11,IF(J11-AH11>AG11,AG11,(IF(J11>0,J11-AH11,N11))))) -> 0 | AJ11: =IF(AG11-AI11<=0,0,AG11-AI11) -> 0 | AK11: =IF(AJ11<0,0,H11*AJ11/100) -> 0 | AL11: =IF(AJ11=0,0,IF(N11>AJ11,AJ11,IF(J11-AK11>AJ11,AJ11,(IF(J11>0,J11-AK11,N11))))) -> 0 | AM11: =IF(AJ11-AL11<=0,0,AJ11-AL11) -> 0 | AN11: =IF(AM11<0,0,H11*AM11/100) -> 0 | AO11: =IF(AM11=0,0,IF(N11>AM11,AM11,IF(J11-AN11>AM11,AM11,(IF(J11>0,J11-AN11,N11))))) -> 0
B12: =B11+1 -> 3 | L12: =IF($U$2=0,U12-W12,IF($U$2=1,X12-Z12,IF($U$2=2,AA12-AC12,IF($U$2=3,AD12-AF12,IF($U$2=4,AG12-AI12,IF($U$2=5,AJ12-AL12,IF($U$2=6,AM12-AO12))))))) -> 0 | M12: 0 | N12: =IF(G12*I12/100>K12,K12,IF(J12-M12>K12,K12,IF(J12>0,J12-M12,G12*I12/100))) -> 0 | O12: =IF($U$2=0,V12,IF($U$2=1,Y12,IF($U$2=2,AB12,IF($U$2=3,AE12,IF($U$2=4,AH12,IF($U$2=5,AK12,IF($U$2=6,AN12))))))) -> 0 | P12: =IF($U$2=0,W12,IF($U$2=1,Z12,IF($U$2=2,AC12,IF($U$2=3,AF12,IF($U$2=4,AI12,IF($U$2=5,AL12,IF($U$2=6,AO12))))))) -> 0 | U12: 0 | V12: 0 | W12: 0 | X12: 0 | Y12: =IF(X12<0,0,H12*X12/100) -> 0 | Z12: 0 | AA12: 0 | AB12: 0 | AC12: 0 | AD12: 0 | AE12: 0 | AF12: 0 | AG12: 0 | AH12: 0 | AI12: 0 | AJ12: 0 | AK12: 0 | AL12: 0 | AM12: 0 | AN12: 0 | AO12: 0
B13: 4 | L13: 0 | M13: 0 | N13: =IF(G13*I13/100>K13,K13,IF(J13-M13>K13,K13,IF(J13>0,J13-M13,G13*I13/100))) -> 0 | O13: 0 | P13: 0 | U13: 0 | V13: 0 | W13: 0 | X13: 0 | Y13: 0 | Z13: 0 | AA13: 0 | AB13: 0 | AC13: 0 | AD13: 0 | AE13: 0 | AF13: 0 | AG13: 0 | AH13: 0 | AI13: 0 | AJ13: 0 | AK13: 0 | AL13: 0 | AM13: 0 | AN13: 0 | AO13: 0
B14: 5 | L14: 0 | M14: 0 | N14: =IF(G14*I14/100>K14,K14,IF(J14-M14>K14,K14,IF(J14>0,J14-M14,G14*I14/100))) -> 0 | O14: 0 | P14: 0 | U14: 0 | V14: 0 | W14: 0 | X14: 0 | Y14: 0 | Z14: 0 | AA14: 0 | AB14: 0 | AC14: 0 | AD14: 0 | AE14: 0 | AF14: 0 | AG14: 0 | AH14: 0 | AI14: 0 | AJ14: 0 | AK14: 0 | AL14: 0 | AM14: 0 | AN14: 0 | AO14: 0
B15: 6 | L15: 0 | M15: 0 | N15: 0 | O15: 0 | P15: 0 | U15: 0 | V15: 0 | W15: 0 | X15: 0 | Y15: 0 | Z15: 0 | AA15: 0 | AB15: 0 | AC15: 0 | AD15: 0 | AE15: 0 | AF15: 0 | AG15: 0 | AH15: 0 | AI15: 0 | AJ15: 0 | AK15: 0 | AL15: 0 | AM15: 0 | AN15: 0 | AO15: 0
B16: 7 | L16: 0 | M16: 0 | N16: 0 | O16: 0 | P16: 0 | U16: 0 | V16: 0 | W16: 0 | X16: 0 | Y16: 0 | Z16: 0 | AA16: 0 | AB16: 0 | AC16: 0 | AD16: 0 | AE16: 0 | AF16: 0 | AG16: 0 | AH16: 0 | AI16: 0 | AJ16: 0 | AK16: 0 | AL16: 0 | AM16: 0 | AN16: 0 | AO16: 0
B17: 8 | L17: 0 | M17: 0 | N17: 0 | O17: 0 | P17: 0 | U17: 0 | V17: 0 | W17: 0 | X17: 0 | Y17: 0 | Z17: 0 | AA17: 0 | AB17: 0 | AC17: 0 | AD17: 0 | AE17: 0 | AF17: 0 | AG17: 0 | AH17: 0 | AI17: 0 | AJ17: 0 | AK17: 0 | AL17: 0 | AM17: 0 | AN17: 0 | AO17: 0
B18: 9 | L18: 0 | M18: 0 | N18: 0 | O18: 0 | P18: 0 | U18: 0 | V18: 0 | W18: 0 | X18: 0 | Y18: 0 | Z18: 0 | AA18: 0 | AB18: 0 | AC18: 0 | AD18: 0 | AE18: 0 | AF18: 0 | AG18: 0 | AH18: 0 | AI18: 0 | AJ18: 0 | AK18: 0 | AL18: 0 | AM18: 0 | AN18: 0 | AO18: 0
B19: 10 | L19: 0 | M19: 0 | N19: 0 | O19: 0 | P19: 0 | U19: 0 | V19: 0 | W19: 0 | X19: 0 | Y19: 0 | Z19: 0 | AA19: 0 | AB19: 0 | AC19: 0 | AD19: 0 | AE19: 0 | AF19: 0 | AG19: 0 | AH19: 0 | AI19: 0 | AJ19: 0 | AK19: 0 | AL19: 0 | AM19: 0 | AN19: 0 | AO19: 0
B20: 11 | L20: 0 | M20: 0 | N20: 0 | O20: 0 | P20: 0 | U20: 0 | V20: 0 | W20: 0 | X20: 0 | Y20: 0 | Z20: 0 | AA20: 0 | AB20: 0 | AC20: 0 | AD20: 0 | AE20: 0 | AF20: 0 | AG20: 0 | AH20: 0 | AI20: 0 | AJ20: 0 | AK20: 0 | AL20: 0 | AM20: 0 | AN20: 0 | AO20: 0
B21: 12 | L21: 0 | M21: 0 | N21: 0 | O21: 0 | P21: 0 | U21: 0 | V21: 0 | W21: 0 | X21: 0 | Y21: 0 | Z21: 0 | AA21: 0 | AB21: 0 | AC21: 0 | AD21: 0 | AE21: 0 | AF21: 0 | AG21: 0 | AH21: 0 | AI21: 0 | AJ21: 0 | AK21: 0 | AL21: 0 | AM21: 0 | AN21: 0 | AO21: 0
B22: 13 | L22: 0 | M22: 0 | N22: 0 | O22: 0 | P22: 0 | U22: 0 | V22: 0 | W22: 0 | X22: 0 | Y22: 0 | Z22: 0 | AA22: 0 | AB22: 0 | AC22: 0 | AD22: 0 | AE22: 0 | AF22: 0 | AG22: 0 | AH22: 0 | AI22: 0 | AJ22: 0 | AK22: 0 | AL22: 0 | AM22: 0 | AN22: 0 | AO22: 0
B23: 14 | L23: 0 | M23: 0 | N23: 0 | O23: 0 | P23: 0 | U23: 0 | V23: 0 | W23: 0 | X23: 0 | Y23: 0 | Z23: 0 | AA23: 0 | AB23: 0 | AC23: 0 | AD23: 0 | AE23: 0 | AF23: 0 | AG23: 0 | AH23: 0 | AI23: 0 | AJ23: 0 | AK23: 0 | AL23: 0 | AM23: 0 | AN23: 0 | AO23: 0
B24: 15 | L24: 0 | M24: 0 | N24: 0 | O24: 0 | P24: 0 | U24: 0 | V24: 0 | W24: 0 | X24: 0 | Y24: 0 | Z24: 0 | AA24: 0 | AB24: 0 | AC24: 0 | AD24: 0 | AE24: 0 | AF24: 0 | AG24: 0 | AH24: 0 | AI24: 0 | AJ24: 0 | AK24: 0 | AL24: 0 | AM24: 0 | AN24: 0 | AO24: 0
B25: 16 | L25: 0 | M25: 0 | N25: 0 | O25: 0 | P25: 0 | U25: 0 | V25: 0 | W25: 0 | X25: 0 | Y25: 0 | Z25: 0 | AA25: 0 | AB25: 0 | AC25: 0 | AD25: 0 | AE25: 0 | AF25: 0 | AG25: 0 | AH25: 0 | AI25: 0 | AJ25: 0 | AK25: 0 | AL25: 0 | AM25: 0 | AN25: 0 | AO25: 0
B26: 17 | L26: 0 | M26: 0 | N26: 0 | O26: 0 | P26: 0 | U26: 0 | V26: 0 | W26: 0 | X26: 0 | Y26: 0 | Z26: 0 | AA26: 0 | AB26: 0 | AC26: 0 | AD26: 0 | AE26: 0 | AF26: 0 | AG26: 0 | AH26: 0 | AI26: 0 | AJ26: 0 | AK26: 0 | AL26: 0 | AM26: 0 | AN26: 0 | AO26: 0
B27: 18 | L27: 0 | M27: 0 | N27: 0 | O27: 0 | P27: 0 | U27: 0 | V27: 0 | W27: 0 | X27: 0 | Y27: 0 | Z27: 0 | AA27: 0 | AB27: 0 | AC27: 0 | AD27: 0 | AE27: 0 | AF27: 0 | AG27: 0 | AH27: 0 | AI27: 0 | AJ27: 0 | AK27: 0 | AL27: 0 | AM27: 0 | AN27: 0 | AO27: 0
B28: 19 | L28: 0 | M28: 0 | N28: 0 | O28: 0 | P28: 0 | U28: 0 | V28: 0 | W28: 0 | X28: 0 | Y28: 0 | Z28: 0 | AA28: 0 | AB28: 0 | AC28: 0 | AD28: 0 | AE28: 0 | AF28: 0 | AG28: 0 | AH28: 0 | AI28: 0 | AJ28: 0 | AK28: 0 | AL28: 0 | AM28: 0 | AN28: 0 | AO28: 0
B29: 20 | L29: 0 | M29: 0 | N29: 0 | O29: 0 | P29: 0 | U29: 0 | V29: 0 | W29: 0 | X29: 0 | Y29: 0 | Z29: 0 | AA29: 0 | AB29: 0 | AC29: 0 | AD29: 0 | AE29: 0 | AF29: 0 | AG29: 0 | AH29: 0 | AI29: 0 | AJ29: 0 | AK29: 0 | AL29: 0 | AM29: 0 | AN29: 0 | AO29: 0
B30: 21 | L30: 0 | M30: 0 | N30: 0 | O30: 0 | P30: 0 | U30: 0 | V30: 0 | W30: 0 | X30: 0 | Y30: 0 | Z30: 0 | AA30: 0 | AB30: 0 | AC30: 0 | AD30: 0 | AE30: 0 | AF30: 0 | AG30: 0 | AH30: 0 | AI30: 0 | AJ30: 0 | AK30: 0 | AL30: 0 | AM30: 0 | AN30: 0 | AO30: 0
B31: 22 | L31: 0 | M31: 0 | N31: 0 | O31: 0 | P31: 0 | U31: 0 | V31: 0 | W31: 0 | X31: 0 | Y31: 0 | Z31: 0 | AA31: 0 | AB31: 0 | AC31: 0 | AD31: 0 | AE31: 0 | AF31: 0 | AG31: 0 | AH31: 0 | AI31: 0 | AJ31: 0 | AK31: 0 | AL31: 0 | AM31: 0 | AN31: 0 | AO31: 0
B32: 23 | L32: 0 | M32: 0 | N32: 0 | O32: 0 | P32: 0 | U32: 0 | V32: 0 | W32: 0 | X32: 0 | Y32: 0 | Z32: 0 | AA32: 0 | AB32: 0 | AC32: 0 | AD32: 0 | AE32: 0 | AF32: 0 | AG32: 0 | AH32: 0 | AI32: 0 | AJ32: 0 | AK32: 0 | AL32: 0 | AM32: 0 | AN32: 0 | AO32: 0
B33: 24 | L33: 0 | M33: 0 | N33: 0 | O33: 0 | P33: 0 | U33: 0 | V33: 0 | W33: 0 | X33: 0 | Y33: 0 | Z33: 0 | AA33: 0 | AB33: 0 | AC33: 0 | AD33: 0 | AE33: 0 | AF33: 0 | AG33: 0 | AH33: 0 | AI33: 0 | AJ33: 0 | AK33: 0 | AL33: 0 | AM33: 0 | AN33: 0 | AO33: 0
B34: 25 | L34: 0 | M34: 0 | N34: 0 | O34: 0 | P34: 0 | U34: 0 | V34: 0 | W34: 0 | X34: 0 | Y34: 0 | Z34: 0 | AA34: 0 | AB34: 0 | AC34: 0 | AD34: 0 | AE34: 0 | AF34: 0 | AG34: 0 | AH34: 0 | AI34: 0 | AJ34: 0 | AK34: 0 | AL34: 0 | AM34: 0 | AN34: 0 | AO34: 0
B35: 26 | L35: 0 | M35: 0 | N35: 0 | O35: 0 | P35: 0 | U35: 0 | V35: 0 | W35: 0 | X35: 0 | Y35: 0 | Z35: 0 | AA35: 0 | AB35: 0 | AC35: 0 | AD35: 0 | AE35: 0 | AF35: 0 | AG35: 0 | AH35: 0 | AI35: 0 | AJ35: 0 | AK35: 0 | AL35: 0 | AM35: 0 | AN35: 0 | AO35: 0
B36: 27 | L36: 0 | M36: 0 | N36: 0 | O36: 0 | P36: 0 | U36: 0 | V36: 0 | W36: 0 | X36: 0 | Y36: 0 | Z36: 0 | AA36: 0 | AB36: 0 | AC36: 0 | AD36: 0 | AE36: 0 | AF36: 0 | AG36: 0 | AH36: 0 | AI36: 0 | AJ36: 0 | AK36: 0 | AL36: 0 | AM36: 0 | AN36: 0 | AO36: 0
B37: 28 | L37: 0 | M37: 0 | N37: 0 | O37: 0 | P37: 0 | U37: 0 | V37: 0 | W37: 0 | X37: 0 | Y37: 0 | Z37: 0 | AA37: 0 | AB37: 0 | AC37: 0 | AD37: 0 | AE37: 0 | AF37: 0 | AG37: 0 | AH37: 0 | AI37: 0 | AJ37: 0 | AK37: 0 | AL37: 0 | AM37: 0 | AN37: 0 | AO37: 0
B38: 29 | L38: 0 | M38: 0 | N38: 0 | O38: 0 | P38: 0 | U38: 0 | V38: 0 | W38: 0 | X38: 0 | Y38: 0 | Z38: 0 | AA38: 0 | AB38: 0 | AC38: 0 | AD38: 0 | AE38: 0 | AF38: 0 | AG38: 0 | AH38: 0 | AI38: 0 | AJ38: 0 | AK38: 0 | AL38: 0 | AM38: 0 | AN38: 0 | AO38: 0
B39: 30 | L39: 0 | M39: 0 | N39: 0 | O39: 0 | P39: 0 | U39: 0 | V39: 0 | W39: 0 | X39: 0 | Y39: 0 | Z39: 0 | AA39: 0 | AB39: 0 | AC39: 0 | AD39: 0 | AE39: 0 | AF39: 0 | AG39: 0 | AH39: 0 | AI39: 0 | AJ39: 0 | AK39: 0 | AL39: 0 | AM39: 0 | AN39: 0 | AO39: 0
B40: 31 | L40: 0 | M40: 0 | N40: 0 | O40: 0 | P40: 0 | U40: 0 | V40: 0 | W40: 0 | X40: 0 | Y40: 0 | Z40: 0 | AA40: 0 | AB40: 0 | AC40: 0 | AD40: 0 | AE40: 0 | AF40: 0 | AG40: 0 | AH40: 0 | AI40: 0 | AJ40: 0 | AK40: 0 | AL40: 0 | AM40: 0 | AN40: 0 | AO40: 0
B41: 32 | L41: 0 | M41: 0 | N41: 0 | O41: 0 | P41: 0 | U41: 0 | V41: 0 | W41: 0 | X41: 0 | Y41: 0 | Z41: 0 | AA41: 0 | AB41: 0 | AC41: 0 | AD41: 0 | AE41: 0 | AF41: 0 | AG41: 0 | AH41: 0 | AI41: 0 | AJ41: 0 | AK41: 0 | AL41: 0 | AM41: 0 | AN41: 0 | AO41: 0
B42: 33 | L42: 0 | M42: 0 | N42: 0 | O42: 0 | P42: 0 | U42: 0 | V42: 0 | W42: 0 | X42: 0 | Y42: 0 | Z42: 0 | AA42: 0 | AB42: 0 | AC42: 0 | AD42: 0 | AE42: 0 | AF42: 0 | AG42: 0 | AH42: 0 | AI42: 0 | AJ42: 0 | AK42: 0 | AL42: 0 | AM42: 0 | AN42: 0 | AO42: 0
B43: 34 | L43: 0 | M43: 0 | N43: 0 | O43: 0 | P43: 0 | U43: 0 | V43: 0 | W43: 0 | X43: 0 | Y43: 0 | Z43: 0 | AA43: 0 | AB43: 0 | AC43: 0 | AD43: 0 | AE43: 0 | AF43: 0 | AG43: 0 | AH43: 0 | AI43: 0 | AJ43: 0 | AK43: 0 | AL43: 0 | AM43: 0 | AN43: 0 | AO43: 0
B44: 35 | L44: 0 | M44: 0 | N44: 0 | O44: 0 | P44: 0 | U44: 0 | V44: 0 | W44: 0 | X44: 0 | Y44: 0 | Z44: 0 | AA44: 0 | AB44: 0 | AC44: 0 | AD44: 0 | AE44: 0 | AF44: 0 | AG44: 0 | AH44: 0 | AI44: 0 | AJ44: 0 | AK44: 0 | AL44: 0 | AM44: 0 | AN44: 0 | AO44: 0
B45: 36 | L45: 0 | M45: 0 | N45: 0 | O45: 0 | P45: 0 | U45: 0 | V45: 0 | W45: 0 | X45: 0 | Y45: 0 | Z45: 0 | AA45: 0 | AB45: 0 | AC45: 0 | AD45: 0 | AE45: 0 | AF45: 0 | AG45: 0 | AH45: 0 | AI45: 0 | AJ45: 0 | AK45: 0 | AL45: 0 | AM45: 0 | AN45: 0 | AO45: 0
B46: 37 | L46: 0 | M46: 0 | N46: 0 | O46: 0 | P46: 0 | U46: 0 | V46: 0 | W46: 0 | X46: 0 | Y46: 0 | Z46: 0 | AA46: 0 | AB46: 0 | AC46: 0 | AD46: 0 | AE46: 0 | AF46: 0 | AG46: 0 | AH46: 0 | AI46: 0 | AJ46: 0 | AK46: 0 | AL46: 0 | AM46: 0 | AN46: 0 | AO46: 0
B47: 38 | L47: 0 | M47: 0 | N47: 0 | O47: 0 | P47: 0 | U47: 0 | V47: 0 | W47: 0 | X47: 0 | Y47: 0 | Z47: 0 | AA47: 0 | AB47: 0 | AC47: 0 | AD47: 0 | AE47: 0 | AF47: 0 | AG47: 0 | AH47: 0 | AI47: 0 | AJ47: 0 | AK47: 0 | AL47: 0 | AM47: 0 | AN47: 0 | AO47: 0
B48: 39 | L48: 0 | M48: 0 | N48: 0 | O48: 0 | P48: 0 | U48: 0 | V48: 0 | W48: 0 | X48: 0 | Y48: 0 | Z48: 0 | AA48: 0 | AB48: 0 | AC48: 0 | AD48: 0 | AE48: 0 | AF48: 0 | AG48: 0 | AH48: 0 | AI48: 0 | AJ48: 0 | AK48: 0 | AL48: 0 | AM48: 0 | AN48: 0 | AO48: 0
B49: 40 | C49: Restl.Zinsen/Verbindl.geg.Kreditinstit. | L49: 0 | M49: 0 | N49: 0 | O49: 0 | P49: 0 | U49: 0 | V49: 0 | W49: 0 | X49: 0 | Y49: 0 | Z49: 0 | AA49: 0 | AB49: 0 | AC49: 0 | AD49: 0 | AE49: 0 | AF49: 0 | AG49: 0 | AH49: 0 | AI49: 0 | AJ49: 0 | AK49: 0 | AL49: 0 | AM49: 0 | AN49: 0 | AO49: 0
B50: 41 | C50: ='3 FinPlan'!C39 -> Kapitalmarktdarlehen | D50: =IF($U$2<2,'1 KaP'!G$5+$U$2,'1 KaP'!G$5+1) -> 2026 | G50: ='3 FinPlan'!J39 ->  | H50: 2 | I50: 5 | K50: =G50 ->  | L50: 0 | M50: =IF(SUM(U50)<0,0,H50*SUM(K50)/100) -> 0 | N50: =IF(SUM(K50)=0,0,IF(K50<0,-I50*G50/100,IF(G50*I50/100>K50,K50,IF(J50-M50>K50,K50,IF(J50>0,J50-M50,G50*I50/100))))) -> 0 | O50: =IF($U$2=0,V50,IF($U$2=1,Y50,IF($U$2=2,AB50,IF($U$2=3,AE50,IF($U$2=4,AH50,IF($U$2=5,AK50,IF($U$2=6,AN50))))))) -> 0 | P50: 0 | U50: =IF(D50-$U$7=0,SUM(G50),0) -> 0 | V50: 0 | W50: 0 | X50: =IF(D50-$U$7<=1,SUM(G50)-W50,0) -> 0 | Y50: 0 | Z50: 0 | AA50: =IF(D50-$U$7<=2,SUM(G50)-W50-Z50,0) -> 0 | AB50: 0 | AC50: 0 | AD50: =IF(D50-$U$7<=3,SUM(G50)-W50-Z50-AC50,0) -> 0 | AE50: 0 | AF50: 0 | AG50: =IF(D50-$U$7<=4,SUM(G50)-W50-Z50-AC50-AF50,0) -> 0 | AH50: 0 | AI50: 0 | AJ50: =IF(D50-$U$7<=5,SUM(G50)-W50-Z50-AC50-AF50-AI50,0) -> 0 | AK50: 0 | AL50: 0 | AM50: =IF(D50-$U$7<=6,SUM(G50)-W50-Z50-AC50-AF50-AI50-AL50,0) -> 0 | AN50: 0 | AO50: 0
B51: 42 | C51: ='3 FinPlan'!C40 -> Freies Darlehen | D51: =IF($U$2<2,'1 KaP'!G$5+$U$2,'1 KaP'!G$5+1) -> 2026 | G51: ='3 FinPlan'!J40 -> 0 | H51: 2 | I51: 10 | K51: =G51 -> 0 | L51: 0 | M51: =IF(SUM(U51)<0,0,H51*SUM(K51)/100) -> 0 | N51: =IF(SUM(K51)=0,0,IF(K51<0,-I51*G51/100,IF(G51*I51/100>K51,K51,IF(J51-M51>K51,K51,IF(J51>0,J51-M51,G51*I51/100))))) -> 0 | O51: 0 | P51: 0 | U51: =IF(D51-$U$7=0,SUM(G51),0) -> 0 | V51: =IF(U51<0,0,H51*U51/100) -> 0 | W51: =IF(U51=0,0,IF(N51>U51,U51,IF(J51-V51>U51,U51,IF(J51>0,J51-V51,N51)))) -> 0 | X51: =IF(D51-$U$7<=1,SUM(G51)-W51,0) -> 0 | Y51: =IF(X51<0,0,H51*X51/100) -> 0 | Z51: =IF(X51=0,0,IF(N51>X51,X51,IF(J51-Y51>X51,X51,(IF(J51>0,J51-Y51,N51))))) -> 0 | AA51: =IF(D51-$U$7<=2,SUM(G51)-W51-Z51,0) -> 0 | AB51: =IF(AA51<0,0,H51*AA51/100) -> 0 | AC51: =IF(AA51=0,0,IF(N51>AA51,AA51,IF(J51-AB51>AA51,AA51,(IF(J51>0,J51-AB51,N51))))) -> 0 | AD51: =IF(D51-$U$7<=3,SUM(G51)-W51-Z51-AC51,0) -> 0 | AE51: =IF(AD51<0,0,H51*AD51/100) -> 0 | AF51: =IF(AD51=0,0,IF(N51>AD51,AD51,IF(J51-AE51>AD51,AD51,(IF(J51>0,J51-AE51,N51))))) -> 0 | AG51: =IF(D51-$U$7<=4,SUM(G51)-W51-Z51-AC51-AF51,0) -> 0 | AH51: =IF(AG51<0,0,H51*AG51/100) -> 0 | AI51: =IF(AG51=0,0,IF(N51>AG51,AG51,IF(J51-AH51>AG51,AG51,(IF(J51>0,J51-AH51,N51))))) -> 0 | AJ51: =IF(D51-$U$7<=5,SUM(G51)-W51-Z51-AC51-AF51-AI51,0) -> 0 | AK51: =IF(AJ51<0,0,H51*AJ51/100) -> 0 | AL51: =IF(AJ51=0,0,IF(N51>AJ51,AJ51,IF(J51-AK51>AJ51,AJ51,(IF(J51>0,J51-AK51,N51))))) -> 0 | AM51: =IF(D51-$U$7<=6,SUM(G51)-W51-Z51-AC51-AF51-AI51-AL51,0) -> 0 | AN51: =IF(AM51<0,0,H51*AM51/100) -> 0 | AO51: =IF(AM51=0,0,IF(N51>AM51,AM51,IF(J51-AN51>AM51,AM51,(IF(J51>0,J51-AN51,N51))))) -> 0
B52: 43 | C52: ='3 FinPlan'!C41 -> Darlehen Förderbank | D52: =IF($U$2<2,'1 KaP'!G$5+$U$2,'1 KaP'!G$5+1) -> 2026 | G52: ='3 FinPlan'!J41 -> 0 | K52: 0 | L52: 0 | M52: 0 | N52: 0 | O52: 0 | P52: 0 | U52: 0 | V52: 0 | W52: 0 | X52: 0 | Y52: 0 | Z52: 0 | AA52: 0 | AB52: 0 | AC52: 0 | AD52: 0 | AE52: 0 | AF52: 0 | AG52: 0 | AH52: 0 | AI52: 0 | AJ52: 0 | AK52: 0 | AL52: 0 | AM52: 0 | AN52: 0 | AO52: 0
B53: 44 | C53: ='3 FinPlan'!C42 -> 0 | D53: =IF($U$2<2,'1 KaP'!G$5+$U$2,'1 KaP'!G$5+1) -> 2026 | G53: ='3 FinPlan'!J42 -> 0 | K53: 0 | L53: 0 | M53: 0 | N53: 0 | O53: 0 | P53: 0 | U53: 0 | V53: 0 | W53: 0 | X53: 0 | Y53: 0 | Z53: 0 | AA53: 0 | AB53: 0 | AC53: 0 | AD53: 0 | AE53: 0 | AF53: 0 | AG53: 0 | AH53: 0 | AI53: 0 | AJ53: 0 | AK53: 0 | AL53: 0 | AM53: 0 | AN53: 0 | AO53: 0
B54: 45 | G54: ='3 FinPlan'!J43 -> 0 | K54: 0 | L54: 0 | M54: 0 | N54: 0 | O54: 0 | P54: 0 | U54: 0 | V54: 0 | W54: 0 | X54: 0 | Y54: 0 | Z54: 0 | AA54: 0 | AB54: 0 | AC54: 0 | AD54: 0 | AE54: 0 | AF54: 0 | AG54: 0 | AH54: 0 | AI54: 0 | AJ54: 0 | AK54: 0 | AL54: 0 | AM54: 0 | AN54: 0 | AO54: 0
B55: 46 | C55: ='3 FinPlan'!C44 -> 0 | D55: =IF($U$2<2,'1 KaP'!G$5+$U$2,'1 KaP'!G$5+1) -> 2026 | G55: ='3 FinPlan'!J44 -> 0 | K55: 0 | L55: 0 | M55: 0 | N55: 0 | O55: 0 | P55: 0 | U55: 0 | V55: 0 | W55: 0 | X55: 0 | Y55: 0 | Z55: 0 | AA55: 0 | AB55: 0 | AC55: 0 | AD55: 0 | AE55: 0 | AF55: 0 | AG55: 0 | AH55: 0 | AI55: 0 | AJ55: 0 | AK55: 0 | AL55: 0 | AM55: 0 | AN55: 0 | AO55: 0
B56: 47 | C56: ='3 FinPlan'!C45 -> 0 | D56: =IF($U$2<2,'1 KaP'!G$5+$U$2,'1 KaP'!G$5+1) -> 2026 | G56: ='3 FinPlan'!J45 -> 0 | K56: 0 | L56: 0 | M56: 0 | N56: 0 | O56: 0 | P56: 0 | U56: 0 | V56: 0 | W56: 0 | X56: 0 | Y56: 0 | Z56: 0 | AA56: 0 | AB56: 0 | AC56: 0 | AD56: 0 | AE56: 0 | AF56: 0 | AG56: 0 | AH56: 0 | AI56: 0 | AJ56: 0 | AK56: 0 | AL56: 0 | AM56: 0 | AN56: 0 | AO56: 0
C58: Kredite für landw. Unternehmen | G58: - Alte Kredite | K58: =SUM(K10:K49)-K59-K61-K62 -> 0 | L58: =SUM(L10:L56)-L59-L61-L62 -> 0 | M58: =SUM(M9,M10:M49)-M59-M61-M62 -> 0 | N58: =SUM(N9,N10:N49)-N59-N61-N62 -> 0 | O58: =SUM(O9,O10:O56)-O59-O61-O62 -> 0 | P58: =SUM(P9,P10:P56)-P59-P61-P62 -> 0 | R58: =SUM(R9:R49) -> 0 | U58: Erläuterungen: | X58: Erläuterungen: | AA58: Erläuterungen: | AD58: Erläuterungen: | AG58: Erläuterungen: | AJ58: Erläuterungen: | AM58: Erläuterungen:
G59: - Neue Kredite | L59: =SUMIF($E50:E$56,"",L50:L56) -> 0 | O59: =SUMIF(E50:E56,"",O50:O56) -> 0 | P59: =SUMIF(E50:E56,"",P50:P56) -> 0
B61: P | C61: Private Kredite (z.B. für Wohnhaus) | K61: =SUMIF(E$10:E49,"P",K10:K49) -> 0 | L61: =SUMIF(E10:E56,"P",L10:L56) -> 0 | M61: =SUMIF(E10:E49,"P",M10:M49) -> 0 | N61: =SUMIF($E$10:E49,"P",N10:N49) -> 0 | O61: =SUMIF(E10:E56,"P",O10:O56) -> 0 | P61: =SUMIF(E10:E56,"P",P10:P56) -> 0 | R61: =SUMIF($E$10:E56,"P",R10:R56) -> 0
B62: M | C62: Kredite aus Vermietung/Verp. und Gewerbe | K62: =SUMIF(E10:E49,"M",K10:K49) -> 0 | L62: =SUMIF(E$10:E56,"M",L10:L56) -> 0 | M62: =SUMIF(E10:E49,"M",M10:M49) -> 0 | N62: =SUMIF($E$10:E49,"M",N10:N49) -> 0 | O62: =SUMIF(E10:E56,"M",O10:O56) -> 0 | P62: =SUMIF(E10:E56,"M",P10:P56) -> 0 | R62: =SUMIF($E$10:E56,"M",R10:R56) -> 0
B64: Se | C64: Kredite und Kapitaldienst insgesamt | K64: =SUM(K58:K62) -> 0 | L64: =SUM(L58:L62) -> 0 | M64: =SUM(M58:N62) -> 0 | O64: =SUM(O58:P62) -> 0 | U64: =SUM(U10:U63) -> 0 | V64: =SUM(W10:W63)+SUM(V10:V63) -> 0 | X64: =SUM(X10:X63) -> 0 | Y64: =SUM(Z10:Z63)+SUM(Y10:Y63) -> 0 | AA64: =SUM(AA10:AA63) -> 0 | AB64: =SUM(AC10:AC63)+SUM(AB10:AB63) -> 0 | AD64: =SUM(AD10:AD63) -> 0 | AE64: =SUM(AF10:AF63)+SUM(AE10:AE63) -> 0 | AG64: =SUM(AG10:AG63) -> 0 | AH64: =SUM(AI10:AI63)+SUM(AH10:AH63) -> 0 | AJ64: =SUM(AJ10:AJ63) -> 0 | AK64: =SUM(AL10:AL63)+SUM(AK10:AK63) -> 0 | AM64: =SUM(AM10:AM63) -> 0 | AN64: =SUM(AO10:AO63)+SUM(AN10:AN63) -> 0
P66: Zinsen lt. letztem Buchführungsabschluß abzügl. Zinsverbill. | R66: 1974

Sheet 5 Präm
B1: ='1 KaP'!B1 -> Investitionskonzept NRW 2025_01
A4: B.: | B4: =Inhalt!C5 -> 0 | D4: Datum | E4: =MAX(Inhalt!I9,Inhalt!C10,Inhalt!F10,Inhalt!I10) -> 00:00:00 | I4: Unternehmernummer | J4: =Inhalt!G5 -> 0 | L4: =MAX(Inhalt!I9,Inhalt!C10,Inhalt!F10,Inhalt!I10) -> 00:00:00
A6: Prämien und | F6: IST | G6: ='1 KaP'!G5 -> 2025 | J6: ='1 KaP'!J5 -> Ziel | K6: ='1 KaP'!K5 -> 2026 | M6: Regelmäßige
A7: Ausgleichsleistungen | E7: Umfang: | F7: je ha, Ti, | G7: Betrag | I7: Umfang: | J7: je ha, Ti, | K7: Betrag | M7: Zuschüsse
E8: ha, Tiere, | I8: ha, Tiere, | M8: lt. CSV-Datei | P8: Flächenbezogene Zielwerte | S8: 2023 | T8: 2024 | U8: 2025 | V8: 2026 | W8: 2027 | X8: 2028 | Y8: 2029
F9: Euro | G9: Euro | J9: Euro | K9: Euro | M9: =IF(SUM('9 G-N-P'!L34:M38)>0,SUM('9 G-N-P'!L34:M38),IF(SUM('9 G-N-P'!J34:K38)>0,SUM('9 G-N-P'!J34:K38),SUM('9 G-N-P'!H34:I38))) -> 0 | P9: (Schätzung BMEL) | S9: Euro / ha | T9: Euro / ha | U9: Euro / ha | V9: Euro / ha | W9: Euro / ha | X9: Euro / ha | Y9: Euro / ha
B12: 1. Ausgleichzulage für benachteiligte Gebiete | G12: AZL Wald => Z. 40
A13: 1 | B13: Landwirtschaft | F13: =IF(E13>0,G13/E13,0) -> 0 | J13: =IF(I13>0,K13/I13,0) -> 0 | M13: =IF(SUM('9 G-N-P'!L36:M36)>0,SUM('9 G-N-P'!L36:M36),IF(SUM('9 G-N-P'!J36:K36)>0,SUM('9 G-N-P'!J36:K36),SUM('9 G-N-P'!H36:I36))) -> 0
B15: 2. GAP-Prämien | D15: ha LF | E15: ='1 KaP'!I37 -> 0 | I15: ='1 KaP'!M37 -> 0
A16: =A13+1 -> 2 | B16: beantragte Fläche | C16: Nordrhein-Westfalen | E16: =IF(Inhalt!K2=2,0,E15-E18) -> 0 | F16: =VLOOKUP(C16,P16:Y29,4+G6-S8,FALSE) -> 155 | G16: =E16*F16 -> 0 | I16: =IF(Inhalt!K2=2,0,I15-I18) -> 0 | J16: =VLOOKUP(C16,P16:Y29,IF(K6>2020,10,4+K6-S8),FALSE) -> 147 | K16: =I16*J16 -> 0 | P16: Nordrhein-Westfalen | S16: 157 | T16: 155 | U16: 155 | V16: 152 | W16: 147 | X16: 147 | Y16: 147
B17: beantragte Fläche in weiterem Bundesland | P17: .
A18: =A16+1 -> 3 | C18: . | F18: =VLOOKUP(C18,P16:Y29,4+G6-S8,FALSE) -> 0 | G18: =E18*F18 -> 0 | J18: =VLOOKUP(C18,P16:Y29,IF(K6>2020,10,4+K6-S8),FALSE) -> 0 | K18: =I18*J18 -> 0 | P18: Bayern | S18: 157 | T18: 155 | U18: 155 | V18: 152 | W18: 147 | X18: 147 | Y18: 147
A19: =A18+1 -> 4 | B19: Zuschlag bis 40 ha | E19: =MIN(40,E16+E18) -> 0 | F19: 68.39 | G19: =E19*F19 -> 0 | I19: =MIN(40,I16+I18) -> 0 | J19: 68.39 | K19: =I19*J19 -> 0 | P19: Brandenburg / Berlin | S19: 157 | T19: 155 | U19: 155 | V19: 152 | W19: 147 | X19: 147 | Y19: 147
A20: =A19+1 -> 5 | B20: Zuschlag 40,01 - 60 ha | E20: =MAX(0,MIN(20,E16+E18-40)) -> 0 | F20: 41.03 | G20: =E20*F20 -> 0 | I20: =MAX(0,MIN(20,I16+I18-40)) -> 0 | J20: 41.03 | K20: =I20*J20 -> 0 | P20: Hessen | S20: 157 | T20: 155 | U20: 155 | V20: 152 | W20: 147 | X20: 147 | Y20: 147
A21: =A20+1 -> 6 | E21: =IF(G16+G18+G19+G20>2000,SUM(G16+G18+G19+G20),0) -> 0 | G21: =(E21*F21)*-1 -> 0 | M21: <= Kürzung mit neg. Vorz.! | P21: Mecklenburg-Vorpommern | S21: 157 | T21: 155 | U21: 155 | V21: 152 | W21: 147 | X21: 147 | Y21: 147
A22: =A21+1 -> 7 | B22: Summe regelmäßiger GAP-Prämien | G22: =SUM(G16:G21) -> 0 | K22: =SUM(K16:K21) -> 0 | M22: =IF(SUM('9 G-N-P'!L202:M202)>0,SUM('9 G-N-P'!L202:M202),IF(SUM('9 G-N-P'!J202:K202)>0,SUM('9 G-N-P'!J202:K202),SUM('9 G-N-P'!H202:I202))) -> 0 | P22: Niedersachsen / Bremen | S22: 157 | T22: 155 | U22: 155 | V22: 152 | W22: 147 | X22: 147 | Y22: 147
A23: =A22+1 -> 8 | B23: Junglandwirteprämie | K23: ( je Jahr ) | P23: Baden-Württemberg | S23: 157 | T23: 155 | U23: 155 | V23: 152 | W23: 147 | X23: 147 | Y23: 147
B24: Erstes (anzurechn.) Jahr | D24: Letzt. J. | F24: Jahre | G24: =IF(C24=0,0,IF(E24=0,0,E24-C24+1)) -> 0 | I24: =IF(C24>0,MIN(I15,90),0) -> 0 | J24: 134.04 | K24: =I24*J24 -> 0 | P24: Rheinland-Pfalz | S24: 157 | T24: 155 | U24: 155 | V24: 152 | W24: 147 | X24: 147 | Y24: 147
B25: Dieser JL-Zuschuss wird hier nicht in die regelmäßigen Prämien einkalkuliert, da er zeitlich begrenzt ist. | P25: Saarland | S25: 157 | T25: 155 | U25: 155 | V25: 152 | W25: 147 | X25: 147 | Y25: 147
B26: Die Anrechnung der Summe der JL-Zuschüsse ist sinnvoll in 3 FinPlan unter "Sonst. Zuwendungen". | P26: Sachsen | S26: 157 | T26: 155 | U26: 155 | V26: 152 | W26: 147 | X26: 147 | Y26: 147
P27: Sachsen-Anhalt | S27: 157 | T27: 155 | U27: 155 | V27: 152 | W27: 147 | X27: 147 | Y27: 147
A28: =A23+1 -> 9 | B28: manuelle Abzüge (mit Minus einzutragen, bitte kommentieren) | P28: Schleswig-Holstein / Hamburg | S28: 157 | T28: 155 | U28: 155 | V28: 152 | W28: 147 | X28: 147 | Y28: 147
P29: Thüringen | S29: 157 | T29: 155 | U29: 155 | V29: 152 | W29: 147 | X29: 147 | Y29: 147
P30: Deutschland (Durchschnitt) | T30: =AVERAGE(T16:T29) -> 155 | U30: 155 | V30: 152 | W30: 147 | X30: 147 | Y30: 147
B37: 3. Umweltmaßnahmen
A38: =A28+1 -> 10 | B38: Ökologischer Ackerbau | F38: 550 | G38: =E38*F38 -> 0 | J38: 280 | K38: =I38*J38 -> 0
A39: =A38+1 -> 11 | B39: Ökologische Grünlandbewirtschaftung | F39: 360 | G39: 0 | J39: 260 | K39: =I39*J39 -> 0
A40: 12 | B40: Ökologischer Gemüse- und Zierpflanzenanbau | F40: 1500 | G40: 0 | J40: 470 | K40: =I40*J40 -> 0
A41: 13 | B41: Ökologische Dauerkultur- und Baumschulfläche | F41: 2240 | G41: 0 | J41: 1060 | K41: =I41*J41 -> 0
A42: 14 | B42: Ökologische Unterglasflächen | F42: 6130 | G42: 0 | J42: 4210 | K42: =I42*J42 -> 0
A43: 15 | B43: AUM Buntbrache | F43: 1620 | G43: 0 | J43: 1620 | K43: =I43*SUM(J43) -> 0
A44: 16 | B44: AUM Uferrand-/Erosionsschutzstreifen | F44: 960 | G44: 0 | J44: 960 | K44: =I44*SUM(J44) -> 0 | M44: Nachfolgender
A45: 17 | B45: AUM kleine Ackerflächen | F45: 35 | G45: 0 | J45: 35 | K45: =I45*J45 -> 0 | M45: Betrag
A46: 18 | B46: AUM vielfältige Kulturen | F46: 55 | G46: 0 | J46: 55 | K46: 0 | M46: enthält
A47: 19 | B47: ÖR 2 - vielfältige Kulturen | F47: 60 | G47: =E47*SUM(F47) -> 0 | J47: 60 | K47: 0 | M47: neben AUM
A48: 20 | B48: ÖR 4 - Extensives Dauergrünland | F48: 100 | G48: =E48*SUM(F48) -> 0 | J48: 100 | K48: 0 | M48: womöglich
A49: 21 | B49: Vertragsnaturschutz (VNS) | G49: =E49*F49 -> 0 | K49: 0 | M49: WSG-Prämien u.ä.
A50: 22 | B50: AUM / ÖR / WSG - nicht aufgegliedert | G50: =E50*F50 -> 0 | K50: 0 | M50: =IF(SUM('9 G-N-P'!L37:M37)>0,SUM('9 G-N-P'!L37:M37),IF(SUM('9 G-N-P'!J37:K37)>0,SUM('9 G-N-P'!J37:K37),SUM('9 G-N-P'!H37:I37))) -> 0
A51: 23 | B51: Summe Umweltmaßnahmen | G51: =SUM(G38:G50) -> 0 | K51: =SUM(K38:K50) -> 0
A52: 24
B53: 4. Natura 2000 Flächen/Benachteiligte Gebiete
A54: =A51+1 -> 24 | B54: Erschwernisausgleich Pflanzenschutz Ackerland | F54: 382 | G54: =E54*F54 -> 0 | J54: 382 | K54: =I54*J54 -> 0
A55: =A54+1 -> 25 | B55: ÖR 7 - Bewirtschaftung Natura 2000 Gebiete | F55: 40 | G55: =E55*F55 -> 0 | J55: 40 | K55: =I55*J55 -> 0
A56: =A55+1 -> 26 | B56: Ausgleichszulage Benachteiligte Gebiete Acker | F56: 25 | G56: =E56*F56 -> 0 | J56: 25 | K56: =I56*J56 -> 0
A57: =A56+1 -> 27 | B57: Ausgleichszulage Benachteiligte Gebiete Grünland/001 | G57: =E57*F57 -> 0 | K57: =I57*J57 -> 0
A58: =A57+1 -> 28 | B58: Fördermaßnahme - nicht aufgegliedert | G58: =E58*F58 -> 0 | K58: =I58*J58 -> 0
A59: =A58+1 -> 29 | B59: Summe Natura 2000-Prämien/Benachteiligte Gebiete | G59: =SUM(G54:G58) -> 0 | K59: =SUM(K54:K58) -> 0
B61: 5. Ausgleichsleistungen in Wasserschutzgebieten
A62: =A59+1 -> 30 | G62: =E62*F62 -> 0 | K62: =I62*J62 -> 0
B63: 6. Sonstiges (alle Maßnahmen sind beschreibbar, ggf. Summe bilden)
A64: =A62+1 -> 31 | B64: Ausgleichszulage Wald | G64: =F64*E64 -> 0 | K64: =J64*I64 -> 0
A65: =A64+1 -> 32 | B65: ÖR 6 - Verzicht Pflanzenschutz | F65: 150 | G65: =F65*E65 -> 0 | J65: 150 | K65: =J65*I65 -> 0
A66: =A65+1 -> 33 | B66: ÖR 5 - Bewirtschaftung DGL mit Kennarten | F66: 225 | G66: =E66*F66 -> 0 | J66: 225 | K66: =I66*J66 -> 0
A67: =A66+1 -> 34 | B67: ÖR 3 - Agroforst | F67: 200 | G67: =F67*E67 -> 0 | J67: 200 | K67: =J67*I67 -> 0 | M67: =M9-SUM(M13:M65) -> 0
A68: =A67+1 -> 35 | G68: =SUM(G64:G67) -> 0 | K68: =SUM(K64:K67) -> 0
A70: =A68+1 -> 36 | B70: Su. Prämien, Ausgleichsleistungen, LPR | F70: =G13+G22+G28+G51+G59+G62+G68 -> 0 | J70: =K13+K22+K24+K28+K51+K59+K62+K68 -> 0
M74: 0

Sheet 6 Db_I
B1: ='1 KaP'!B1 -> Investitionskonzept NRW 2025_01 | E1: Unternehmernummer
D2: =Inhalt!G5 -> 0
A4: Deckungsbeiträge | E4: ='1 KaP'!F5 -> Ist | G4: Hochrechnung | L4: ='1 KaP'!C60 -> Milchkühe | M4: ='1 KaP'!C61 -> Zuchtfärsen | N4: ='1 KaP'!C62 -> Mastfärsen | O4: ='1 KaP'!C63 -> Mastbullen | P4: ='1 KaP'!C64 -> Mutterkühe | Q4: ='1 KaP'!C65 -> Kälber | R4: ='1 KaP'!C66 -> Pen'pferde | S4: ='1 KaP'!C67 -> Zuchtpferde | T4: ='1 KaP'!C68 -> Pferde | U4: ='1 KaP'!C69 -> Mutterschafe | V4: ='1 KaP'!C70 -> Schafe o. Lamm | W4: ='1 KaP'!C71 -> So. Schafe | X4: ='1 KaP'!C72 -> Damtiere | Y4: ='1 KaP'!C73 -> Milchziegen / Muttertiere | Z4: ='1 KaP'!C74 -> So. Ziegen | AA4: ='1 KaP'!C75 -> 0 | AB4: ='1 KaP'!C76 -> 0 | AC4: ='1 KaP'!C77 -> Zuchteber | AD4: ='1 KaP'!C78 -> Pensionstiere | AE4: ='1 KaP'!C79 -> So. RauFuFresser | AF4: ='1 KaP'!C134 -> Grünfütterung | AG4: ='1 KaP'!C135 -> Int.-Weide | AH4: ='1 KaP'!C136 -> Grünland | AI4: ='1 KaP'!C137 -> GrSil Biomasse | AJ4: ='1 KaP'!C138 -> 0 | AK4: ='1 KaP'!C139 -> Heu | AL4: ='1 KaP'!C140 -> Verkaufsheu | AM4: ='1 KaP'!C141 -> Tro'grün | AN4: ='1 KaP'!C142 -> Grünland | AO4: ='1 KaP'!C143 -> Langj.Still-leg. | AP4: ='1 KaP'!C146 -> Silomais | AQ4: ='1 KaP'!C147 -> SM Biomasse | AR4: ='1 KaP'!C148 -> Futterhackf. | AS4: ='1 KaP'!C149 -> Kleegras | AT4: ='1 KaP'!C150 -> GPS | AU4: ='1 KaP'!C151 -> So. Ack'futt. | AV4: ='1 KaP'!C152 -> 0 | AW4: ='1 KaP'!C154 -> ZwiFru Futt. | AX4: ='1 KaP'!C155 -> GruFu-Verk. | AY4: ='1 KaP'!C156 -> GruFu-Zuk. | BA4: ='1 KaP'!C80 -> ZSauen | BB4: ='1 KaP'!C81 -> Aufzuchtferkel | BC4: ='1 KaP'!C82 -> MSchweine | BD4: ='1 KaP'!C83 -> Jungsauen | BE4: ='1 KaP'!C84 -> Jungeber | BF4: ='1 KaP'!C85 -> So. Schweine | BG4: ='1 KaP'!C86 -> 100 Legeh. | BH4: ='1 KaP'!C87 -> 100 Ma'hähn. | BI4: ='1 KaP'!C88 -> 100 Jungh. | BJ4: ='1 KaP'!C89 -> 100 Ma'enten | BK4: ='1 KaP'!C90 -> 100 Ma'gänse | BL4: ='1 KaP'!C91 -> 100 Ma'puten | BM4: ='1 KaP'!C92 -> 100 so.Geflügel | BN4: ='1 KaP'!C93 -> Ma'kaninchen | BO4: ='1 KaP'!C94 -> Zu'kaninchen | BP4: ='1 KaP'!C95 -> Pelztiere | BQ4: ='1 KaP'!C96 -> Bienen | BR4: ='1 KaP'!C97 -> Fische | BS4: ='1 KaP'!C98 -> Sonst. Tiere | BT4: Kl.Hochseef. | BU4: ='1 KaP'!C158 -> WWeizen | BV4: ='1 KaP'!C159 -> SWeizen | BW4: ='1 KaP'!C160 -> Durum | BX4: ='1 KaP'!C161 -> Roggen | BY4: ='1 KaP'!C162 -> WGerste | BZ4: ='1 KaP'!C163 -> SGerste | CA4: ='1 KaP'!C164 -> Hafer | CB4: ='1 KaP'!C165 -> Triticale | CC4: ='1 KaP'!C166 -> Menggetr. | CD4: ='1 KaP'!C167 -> Körnermais | CE4: ='1 KaP'!C168 -> CCM | CF4: ='1 KaP'!C169 -> Ackerbohnen | CG4: ='1 KaP'!C170 -> Erbsen | CH4: ='1 KaP'!C171 -> WRaps | CI4: ='1 KaP'!C172 -> SoRaps | CJ4: ='1 KaP'!C173 -> Sonnenblumen | CK4: ='1 KaP'!C174 -> Flachs | CL4: ='1 KaP'!C175 -> Stärkekartoff. | CM4: ='1 KaP'!C176 -> Sp'kartoffeln | CN4: ='1 KaP'!C177 -> Zuckerrüben | CO4: ='1 KaP'!C178 -> Grassamen | CP4: ='1 KaP'!C179 -> Soja,and.Ölsaat | CQ4: ='1 KaP'!C180 -> Eiweißpfla. | CR4: ='1 KaP'!C181 -> Ener'getreide | CS4: ='1 KaP'!C182 -> Energiemais | CT4: ='1 KaP'!C183 -> Ener'ölsaat | CU4: ='1 KaP'!C184 -> So.Ener'pfl. | CV4: ='1 KaP'!C185 -> So.Marktfrucht | CW4: ='1 KaP'!C186 -> Zwi'fru Markt | CX4: ='1 KaP'!C187 -> Stilllegung / Acker aus erz. gen. | CY4: ='1 KaP'!C188 -> Buschbohnen | CZ4: ='1 KaP'!C189 -> Tabak | DA4: ='1 KaP'!C190 -> Spargel | DB4: ='1 KaP'!C193 -> Hopfen | DC4: ='1 KaP'!C194 -> Erdbeeren | DD4: ='1 KaP'!C195 -> Äpfel | DE4: ='1 KaP'!C196 -> Birnen,Quitt. | DF4: ='1 KaP'!C197 -> Süßkirschen | DG4: ='1 KaP'!C198 -> Sauerkirsch. | DH4: ='1 KaP'!C199 -> Pflau.,Zwet. | DI4: ='1 KaP'!C200 -> Mirabellen | DJ4: ='1 KaP'!C201 -> Nüsse | DK4: ='1 KaP'!C202 -> So. Beeren | DL4: ='1 KaP'!C205 -> Gemü Freila. | DM4: ='1 KaP'!C206 -> Gemü Gewä. | DN4: ='1 KaP'!C207 -> Pilze | DO4: ='1 KaP'!C208 -> Zierpflanzen | DP4: ='1 KaP'!C209 -> Zierpfl.Gewä. | DQ4: ='1 KaP'!C210 -> So.Gartenb. | DR4: ='1 KaP'!C213 -> Weinbau | DS4: ='1 KaP'!C214 -> And.Rebflä. | DT4: ='1 KaP'!C216 -> Forst | DU4: ='1 KaP'!C217 -> LoArb,MaMiet | DV4: ='1 KaP'!C219 -> Hofladen | DW4: ='1 KaP'!C220 -> Straußwirts. | DX4: ='1 KaP'!C221 -> Brennerei | DY4: ='1 KaP'!C222 -> Biogasanl. | DZ4: ='1 KaP'!C223 -> Warenverkauf | EA4: ='1 KaP'!C224 -> Friedhofsgä. | EB4: ='1 KaP'!C225 -> Ga'/Lands'b. | EC4: ='1 KaP'!C226 -> Fremdenverk. | ED4: ='1 KaP'!C227 -> Charter | EE4: ='1 KaP'!C228 -> La'scha'pfl. | EF4: ='1 KaP'!C229 -> So.Dienstleist.
A5: Unternehmen: | C5: =Inhalt!C5 -> 0 | G5: der Leistungen / der variablen Kosten : | L5: ='1 KaP'!D60 -> 0 | M5: ='1 KaP'!D61 -> 0 | N5: ='1 KaP'!D62 -> 0 | O5: ='1 KaP'!D63 -> 1200 kg | P5: ='1 KaP'!D64 -> mit Kalb | Q5: ='1 KaP'!D65 -> u. Mastkälber | R5: ='1 KaP'!D66 -> oh.Halle | S5: ='1 KaP'!D67 -> eigen | T5: ='1 KaP'!D68 -> < 6 Monaten | U5: ='1 KaP'!D69 -> m.Nachzucht | V5: ='1 KaP'!D70 -> 10-18 Monate | W5: ='1 KaP'!D71 -> 0 | X5: ='1 KaP'!D72 -> 0 | Y5: ='1 KaP'!D73 -> Molkerei | Z5: ='1 KaP'!D74 -> 0 | AA5: ='1 KaP'!D75 -> 0 | AB5: ='1 KaP'!D76 -> 0 | AC5: ='1 KaP'!D77 -> 0 | AD5: ='1 KaP'!D78 -> Rinder | AE5: ='1 KaP'!D79 -> 0 | AF5: ='1 KaP'!D134 -> 0 | AG5: ='1 KaP'!D135 -> 0 | AH5: ='1 KaP'!D136 -> Grassilage | AI5: ='1 KaP'!D137 -> 0 | AJ5: ='1 KaP'!D138 -> 0 | AK5: ='1 KaP'!D139 -> 0 | AL5: ='1 KaP'!D140 -> 0 | AM5: ='1 KaP'!D141 -> 0 | AN5: ='1 KaP'!D142 -> extensiv | AO5: ='1 KaP'!D143 -> 0 | AP5: ='1 KaP'!D146 -> 0 | AQ5: ='1 KaP'!D147 -> 0 | AR5: ='1 KaP'!D148 -> Rüben | AS5: ='1 KaP'!D149 -> 0 | AT5: ='1 KaP'!D150 -> W.Weizen | AU5: ='1 KaP'!D151 -> 0 | AV5: ='1 KaP'!D152 -> 0 | AW5: ='1 KaP'!D154 -> Feldgras | AX5: ='1 KaP'!D155 -> 0 | AY5: ='1 KaP'!D156 -> Silomais | BA5: ='1 KaP'!D80 -> mit Ferkel | BB5: ='1 KaP'!D81 -> 0 | BC5: ='1 KaP'!D82 -> 0 | BD5: ='1 KaP'!D83 -> 0 | BE5: ='1 KaP'!D84 -> 0 | BF5: ='1 KaP'!D85 -> 0 | BG5: ='1 KaP'!D86 -> 0 | BH5: ='1 KaP'!D87 -> a 2,1 kg | BI5: ='1 KaP'!D88 -> 0 | BJ5: ='1 KaP'!D89 -> 11Wo.5%Verl. | BK5: ='1 KaP'!D90 -> Weid.eig.Schl. | BL5: ='1 KaP'!D91 -> 0 | BM5: ='1 KaP'!D92 -> 0 | BN5: ='1 KaP'!D93 -> 0 | BO5: ='1 KaP'!D94 -> 0 | BP5: ='1 KaP'!D95 -> 0 | BQ5: ='1 KaP'!D96 -> 0 | BR5: ='1 KaP'!D97 -> 0 | BS5: ='1 KaP'!D98 -> 0 | BT5: ='1 KaP'!D99 -> 0 | BU5: ='1 KaP'!D158 -> 0 | BV5: ='1 KaP'!D159 -> 0 | BW5: ='1 KaP'!D160 -> 0 | BX5: ='1 KaP'!D161 -> 0 | BY5: ='1 KaP'!D162 -> 0 | BZ5: ='1 KaP'!D163 -> 0 | CA5: ='1 KaP'!D164 -> 0 | CB5: ='1 KaP'!D165 -> 0 | CC5: ='1 KaP'!D166 -> 0 | CD5: ='1 KaP'!D167 -> 0 | CE5: ='1 KaP'!D168 -> 0 | CF5: ='1 KaP'!D169 -> 0 | CG5: ='1 KaP'!D170 -> 0 | CH5: ='1 KaP'!D171 -> 0 | CI5: ='1 KaP'!D172 -> 0 | CJ5: ='1 KaP'!D173 -> 0 | CK5: ='1 KaP'!D174 -> 0 | CL5: ='1 KaP'!D175 -> 0 | CM5: ='1 KaP'!D176 -> 0 | CN5: ='1 KaP'!D177 -> 0 | CO5: ='1 KaP'!D178 -> 0 | CP5: ='1 KaP'!D179 -> 0 | CQ5: ='1 KaP'!D180 -> Lupinen | CR5: ='1 KaP'!D181 -> 0 | CS5: ='1 KaP'!D182 -> 0 | CT5: ='1 KaP'!D183 -> 0 | CU5: ='1 KaP'!D184 -> 0 | CV5: ='1 KaP'!D185 -> 0 | CW5: ='1 KaP'!D186 -> 0 | CX5: ='1 KaP'!D187 -> 0 | CY5: ='1 KaP'!D188 -> 0 | CZ5: ='1 KaP'!D189 -> 0 | DA5: ='1 KaP'!D190 -> 0 | DB5: ='1 KaP'!D193 -> 0 | DC5: ='1 KaP'!D194 -> 0 | DD5: ='1 KaP'!D195 -> 0 | DE5: ='1 KaP'!D196 -> 0 | DF5: ='1 KaP'!D197 -> 0 | DG5: ='1 KaP'!D198 -> 0 | DH5: ='1 KaP'!D199 -> 0 | DI5: ='1 KaP'!D200 -> 0 | DJ5: ='1 KaP'!D201 -> 0 | DK5: ='1 KaP'!D202 -> Schw.Joha | DL5: ='1 KaP'!D205 -> 0 | DM5: ='1 KaP'!D206 -> 0 | DN5: ='1 KaP'!D207 -> 0 | DO5: ='1 KaP'!D208 -> 0 | DP5: ='1 KaP'!D209 -> 0 | DQ5: ='1 KaP'!D210 -> 0 | DR5: ='1 KaP'!D213 -> 0 | DS5: ='1 KaP'!D214 -> 0 | DT5: ='1 KaP'!D216 -> 0 | DU5: ='1 KaP'!D217 -> 0 | DV5: ='1 KaP'!D219 -> 0 | DW5: ='1 KaP'!D220 -> Reiterstube | DX5: ='1 KaP'!D221 ->  | DY5: ='1 KaP'!D222 -> So.Erz.Neb'b. | DZ5: ='1 KaP'!D223 -> 0 | EA5: ='1 KaP'!D224 -> 0 | EB5: ='1 KaP'!D225 -> 0 | EC5: ='1 KaP'!D226 -> 0 | ED5: ='1 KaP'!D227 -> 0 | EE5: ='1 KaP'!D228 -> 0 | EF5: ='1 KaP'!D229 -> Provisionen
A7: Datum: | C7: =MAX(Inhalt!$I$9,Inhalt!$C$10,Inhalt!$F$10,Inhalt!$I$10) -> 00:00:00 | E7: Nr. PV => | G7: Pflanzen- | H7: Tier- | I7: Sonderkult., | J7: davon | L7: 1 | M7: 2 | N7: 3 | O7: 4 | P7: 5 | Q7: 6 | R7: 7 | S7: 8 | T7: 9 | U7: 10 | V7: 11 | W7: 12 | X7: 13 | Y7: 14 | Z7: 15 | AA7: 16 | AB7: 17 | AC7: 18 | AD7: 19 | AE7: 20 | AF7: 41 | AG7: 42 | AH7: 43 | AI7: 44 | AJ7: 45 | AK7: 46 | AL7: 47 | AM7: 48 | AN7: 49 | AO7: 50 | AP7: 51 | AQ7: 52 | AR7: 53 | AS7: 54 | AT7: 55 | AU7: 56 | AV7: 57 | AW7: 58 | AX7: 59 | AY7: 60 | BA7: 21 | BB7: 22 | BC7: 23 | BD7: 24 | BE7: 25 | BF7: 26 | BG7: 27 | BH7: 28 | BI7: 29 | BJ7: 30 | BK7: 31 | BL7: 32 | BM7: 33 | BN7: 34 | BO7: 35 | BP7: 36 | BQ7: 37 | BR7: 38 | BS7: 38 | BT7: 40 | BU7: 61 | BV7: 62 | BW7: 63 | BX7: 64 | BY7: 65 | BZ7: 66 | CA7: 67 | CB7: 68 | CC7: 69 | CD7: 70 | CE7: 71 | CF7: 72 | CG7: 73 | CH7: 74 | CI7: 75 | CJ7: 76 | CK7: 77 | CL7: 78 | CM7: 79 | CN7: 80 | CO7: 81 | CP7: 82 | CQ7: 83 | CR7: 84 | CS7: 85 | CT7: 86 | CU7: 87 | CV7: 88 | CW7: 89 | CX7: 90 | CY7: 91 | CZ7: 96 | DA7: 98 | DB7: 99 | DC7: 100 | DD7: 101 | DE7: 102 | DF7: 103 | DG7: 104 | DH7: 106 | DI7: 107 | DJ7: 108 | DK7: 110 | DL7: 111 | DM7: 113 | DN7: 115 | DO7: 116 | DP7: 118 | DQ7: 120 | DR7: 121 | DS7: 130 | DT7: 131 | DU7: 135 | DV7: 140 | DW7: 141 | DX7: 142 | DY7: 143 | DZ7: 144 | EA7: 145 | EB7: 146 | EC7: 147 | ED7: 148 | EE7: 149 | EF7: 150
G8: Produktion | H8: Produktion | I8: Nebenbetr. | J8: Diversifikat. | L8: St. | M8: erz. St. | N8: erz. St. | O8: erz. St. | P8: St. | Q8: erz. St. | R8: St. | S8: St. | T8: erz. St. | U8: St. | V8: erz. St. | W8: erz. St. | X8: erz. St. | Y8: St. | Z8: erz. St. | AA8: erz. St. | AB8: erz. St. | AC8: erz. St. | AD8: St. | AF8: ha | AG8: ha | AH8: ha | AI8: ha | AJ8: ha | AK8: ha | AL8: ha | AM8: ha | AN8: ha | AO8: ha | AP8: ha | AQ8: ha | AR8: ha | AS8: ha | AT8: ha | AU8: ha | AV8: ha | AW8: ha | AX8: ha | AY8: ha | BA8: 0 | BB8: erz. St. | BC8: erz. St. | BD8: erz. 1St. | BE8: erz. St. | BG8: 100 St. | BH8: erz. 100 St. | BI8: erz. 100 St. | BJ8: erz. 100 St. | BK8: erz. 100 St. | BL8: erz. 100 St. | BM8: erz. St. | BN8: erz. St. | BO8: St. | BP8: erz. St. | BQ8: St. | BR8: erz. St. | BS8: erz. St. | BU8: ha | BV8: ha | BW8: ha | BX8: ha | BY8: ha | BZ8: ha | CA8: ha | CB8: ha | CC8: ha | CD8: ha | CE8: ha | CF8: ha | CG8: ha | CH8: ha | CI8: ha | CJ8: ha | CK8: ha | CL8: ha | CM8: ha | CN8: ha | CO8: ha | CP8: ha | CQ8: ha | CR8: ha | CS8: ha | CT8: ha | CU8: ha | CV8: ha | CW8: ha | CX8: ha | CY8: ha | CZ8: ha | DA8: ha | DB8: ha | DC8: ha | DD8: ha | DE8: ha | DF8: ha | DG8: ha | DH8: ha | DI8: ha | DJ8: ha | DK8: ha | DL8: ha | DM8: ha | DN8: ha | DO8: ha | DP8: ha | DQ8: ha | DR8: ha | DS8: ha | DT8: ha | EJ8: Prüfsumme für Makro "PV des Betriebes > 0"
A9: 1 | B9: ='1 KaP'!G5 -> 2025 | E9: Umfang | L9: ='1 KaP'!F60 -> 0 | M9: ='1 KaP'!H61 -> 0 | N9: ='1 KaP'!H62 -> 0 | O9: ='1 KaP'!H63 -> 0 | P9: ='1 KaP'!F64 -> 0 | Q9: ='1 KaP'!H65 -> 0 | R9: ='1 KaP'!F66 -> 0 | S9: ='1 KaP'!F67 -> 0 | T9: ='1 KaP'!H68 -> 0 | U9: ='1 KaP'!F69 -> 0 | V9: ='1 KaP'!H70 -> 0 | W9: ='1 KaP'!H71 -> 0 | X9: ='1 KaP'!H72 -> 0 | Y9: ='1 KaP'!F73 -> 0 | Z9: ='1 KaP'!H74 -> 0 | AA9: ='1 KaP'!H75 -> 0 | AB9: ='1 KaP'!H76 -> 0 | AC9: ='1 KaP'!H77 -> 0 | AD9: ='1 KaP'!F78 -> 0 | AE9: ='1 KaP'!H79 -> 0 | AF9: ='1 KaP'!$F$134 -> 0 | AG9: ='1 KaP'!$F$135 -> 0 | AH9: ='1 KaP'!$F$136 -> 0 | AI9: ='1 KaP'!$F$137 -> 0 | AJ9: ='1 KaP'!$F$138 -> 0 | AK9: ='1 KaP'!$F$139 -> 0 | AL9: ='1 KaP'!$F$140 -> 0 | AM9: ='1 KaP'!$F$141 -> 0 | AN9: ='1 KaP'!$F$142 -> 0 | AO9: ='1 KaP'!$F$143 -> 0 | AP9: ='1 KaP'!$F$146 -> 0 | AQ9: ='1 KaP'!$F$147 -> 0 | AR9: ='1 KaP'!$F$148 -> 0 | AS9: ='1 KaP'!$F$149 -> 0 | AT9: ='1 KaP'!$F$150 -> 0 | AU9: ='1 KaP'!$F$151 -> 0 | AV9: ='1 KaP'!$F$152 -> 0 | AW9: ='1 KaP'!$F$154 -> 0 | AX9: ='1 KaP'!$F$155 -> 0 | AY9: ='1 KaP'!$F$156 -> 0 | BA9: ='1 KaP'!F80 -> 0 | BB9: ='1 KaP'!H81 -> 0 | BC9: ='1 KaP'!H82 -> 0 | BD9: ='1 KaP'!H83 -> 0 | BE9: ='1 KaP'!H84 -> 0 | BF9: ='1 KaP'!H85 -> 0 | BG9: ='1 KaP'!F86 -> 0 | BH9: ='1 KaP'!H87 -> 0 | BI9: ='1 KaP'!H88 -> 0 | BJ9: ='1 KaP'!H89 -> 0 | BK9: ='1 KaP'!H90 -> 0 | BL9: ='1 KaP'!H91 -> 0 | BM9: ='1 KaP'!H92 -> 0 | BN9: ='1 KaP'!H93 -> 0 | BO9: ='1 KaP'!F94 -> 0 | BP9: ='1 KaP'!H95 -> 0 | BQ9: ='1 KaP'!F96 -> 0 | BR9: ='1 KaP'!H97 -> 0 | BS9: ='1 KaP'!H98 -> 0 | BU9: ='1 KaP'!$F$158 -> 0 | BV9: ='1 KaP'!$F$159 -> 0 | BW9: ='1 KaP'!$F$160 -> 0 | BX9: ='1 KaP'!$F$161 -> 0 | BY9: ='1 KaP'!$F$162 -> 0 | BZ9: ='1 KaP'!$F$163 -> 0 | CA9: ='1 KaP'!$F$164 -> 0 | CB9: ='1 KaP'!$F$165 -> 0 | CC9: ='1 KaP'!$F$166 -> 0 | CD9: ='1 KaP'!$F$167 -> 0 | CE9: ='1 KaP'!$F$168 -> 0 | CF9: ='1 KaP'!$F$169 -> 0 | CG9: ='1 KaP'!$F$170 -> 0 | CH9: ='1 KaP'!$F$171 -> 0 | CI9: ='1 KaP'!$F$172 -> 0 | CJ9: ='1 KaP'!$F$173 -> 0 | CK9: ='1 KaP'!$F$174 -> 0 | CL9: ='1 KaP'!$F$175 -> 0 | CM9: ='1 KaP'!$F$176 -> 0 | CN9: ='1 KaP'!$F$177 -> 0 | CO9: ='1 KaP'!$F$178 -> 0 | CP9: ='1 KaP'!$F$179 -> 0 | CQ9: ='1 KaP'!$F$180 -> 0 | CR9: ='1 KaP'!$F$181 -> 0 | CS9: ='1 KaP'!$F$182 -> 0 | CT9: ='1 KaP'!$F$183 -> 0 | CU9: ='1 KaP'!$F$184 -> 0 | CV9: ='1 KaP'!$F$185 -> 0 | CW9: ='1 KaP'!$F$186 -> 0 | CX9: ='1 KaP'!$F$187 -> 0 | CY9: ='1 KaP'!$F$188 -> 0 | CZ9: ='1 KaP'!$F$189 -> 0 | DA9: ='1 KaP'!$F$190 -> 0 | DB9: ='1 KaP'!$F$193 -> 0 | DC9: ='1 KaP'!$F$194 -> 0 | DD9: ='1 KaP'!$F$195 -> 0 | DE9: ='1 KaP'!$F$196 -> 0 | DF9: ='1 KaP'!$F$197 -> 0 | DG9: ='1 KaP'!$F$198 -> 0 | DH9: ='1 KaP'!$F$199 -> 0 | DI9: ='1 KaP'!$F$200 -> 0 | DJ9: ='1 KaP'!$F$201 -> 0 | DK9: ='1 KaP'!$F$202 -> 0 | DL9: ='1 KaP'!$F$205 -> 0 | DM9: ='1 KaP'!$F$206 -> 0 | DN9: ='1 KaP'!$F$207 -> 0 | DO9: ='1 KaP'!$F$208 -> 0 | DP9: ='1 KaP'!$F$209 -> 0 | DQ9: ='1 KaP'!$F$210 -> 0 | DR9: ='1 KaP'!$F$213 -> 0 | DS9: ='1 KaP'!$F$214 -> 0 | DT9: ='1 KaP'!$F$216 -> 0 | DU9: ='1 KaP'!$F$217 -> 0 | DV9: ='1 KaP'!$F$219 -> 0 | DW9: ='1 KaP'!$F$220 -> 0 | DX9: ='1 KaP'!$F$221 -> 0 | DY9: ='1 KaP'!$F$222 -> 0 | DZ9: ='1 KaP'!$F$223 -> 0 | EA9: ='1 KaP'!$F$224 -> 0 | EB9: ='1 KaP'!$F$225 -> 0 | EC9: ='1 KaP'!$F$226 -> 0 | ED9: ='1 KaP'!$F$227 -> 0 | EE9: ='1 KaP'!$F$228 -> 0 | EF9: ='1 KaP'!$F$229 -> 0 | EJ9: =SUM(K9:EG9) -> 0
A10: 2 | B10: Hauptprodukt | E10: St, kg, t (netto) | L10: =L92 -> 8000 | M10: 1 | N10: 310 | O10: 390 | P10: 290 | Q10: 1 | R10: 12 | S10: 1 | T10: 0 | U10: 64 | V10: 0 | W10: 0 | X10: 25 | Y10: 700 | Z10: 0 | AA10: 0 | AB10: 0 | AC10: 0 | AD10: 0 | AE10: 0 | AF10: 8 | AG10: 8 | AH10: 9 | AI10: 0 | AJ10: 0 | AK10: 7 | AL10: 0 | AM10: 9 | AN10: 4 | AO10: 0 | AP10: 50 | AQ10: 0 | AR10: =AR92 -> 0 | AS10: 10 | AT10: 9 | AU10: 0 | AV10: 0 | AW10: 3 | AX10: 0 | AY10: 1 | AZ10: 0 | BA10: 30 | BB10: 1 | BC10: 96 | BD10: 1 | BE10: 0 | BF10: 0 | BG10: 31500 | BH10: 210 | BI10: 0 | BJ10: 240 | BK10: 100 | BL10: 100 | BM10: 0 | BN10: 0 | BO10: 0 | BP10: 0 | BQ10: 0 | BR10: 0 | BS10: 0 | BT10: 0 | BU10: 8 | BV10: 6 | BW10: 5 | BX10: =BX92 -> 7 | BY10: 8 | BZ10: 6 | CA10: 6 | CB10: 7.5 | CC10: 6 | CD10: 9 | CE10: 14 | CF10: 5 | CG10: 5 | CH10: 4 | CI10: 2 | CJ10: 3 | CK10: 0 | CL10: 42.5 | CM10: 45 | CN10: 60 | CO10: 0 | CP10: 3 | CQ10: 3 | CR10: 7 | CS10: 50 | CT10: 2 | CU10: 4 | CV10: 8 | CW10: 0 | CX10: 0 | CY10: 9 | CZ10: 3 | DA10: 5 | DB10: 2 | DC10: 16 | DD10: =DD92 -> 25 | DE10: 0 | DF10: 12 | DG10: 11 | DH10: 0 | DI10: 0 | DJ10: 0 | DK10: 10 | DL10: 0 | DM10: 0 | DN10: 0 | DO10: 0 | DP10: 0 | DQ10: 0 | DR10: 8 | DS10: 0 | DT10: 0 | DU10: 0 | DV10: 0 | DW10: 0 | DX10: 1 | DY10: 0 | DZ10: 0 | EA10: 0 | EB10: 0 | EC10: 0 | ED10: 0 | EE10: 0 | EF10: 0
A11: 3 | B11: Preis | E11: € je St, je kg oder je t | L11: =L93*(1+$D$75) -> 0.45 | M11: 1752 | N11: 4.91 | O11: 4.25 | P11: 3.16 | Q11: =Q93*(1+$D$75) -> 0 | R11: =R93*(1+$B$75) -> 192 | S11: =S93*(1+$D$75) -> 2000 | T11: 0 | U11: 1.65 | V11: 0 | W11: 0 | X11: 12.54 | Y11: 0.55 | Z11: 0 | AA11: 0 | AB11: 0 | AC11: 0 | AD11: 0 | AE11: 0 | AF11: 0 | AG11: 0 | AH11: 0 | AI11: 0 | AJ11: 0 | AK11: 142.79 | AL11: 0 | AM11: 0 | AN11: 0 | AO11: 0 | AP11: 0 | AQ11: 0 | AR11: 0 | AS11: 0 | AT11: 0 | AU11: 0 | AV11: 0 | AW11: 0 | AX11: 0 | AY11: 0 | BA11: =BA93*(1+$D$75) -> 70.85 | BB11: 70.85 | BC11: 1.75 | BD11: 440 | BE11: 0 | BF11: 0 | BG11: 0.185 | BH11: 0.98 | BI11: 0 | BJ11: 7.39 | BK11: 37.3 | BL11: 22.54 | BM11: 0 | BN11: 0 | BO11: 0 | BP11: 0 | BQ11: 0 | BR11: 0 | BS11: 0 | BT11: 0 | BU11: 207 | BV11: 169 | BW11: 174 | BX11: 174 | BY11: 196 | BZ11: 218 | CA11: 234 | CB11: 185 | CC11: 153 | CD11: 218 | CE11: 131 | CF11: 240 | CG11: =CG93*(1+$D$75) -> 251 | CH11: 425 | CI11: 425 | CJ11: 196 | CK11: 0 | CL11: 109 | CM11: 159 | CN11: 44 | CO11: 0 | CP11: 218 | CQ11: 150 | CR11: 0 | CS11: 0 | CT11: 179 | CU11: 218 | CV11: 97 | CW11: 0 | CX11: 0 | CY11: 730 | CZ11: 4000 | DA11: 3900 | DB11: 5100 | DC11: 1461 | DD11: 358 | DE11: 0 | DF11: 1280 | DG11: 511 | DH11: 0 | DI11: 0 | DJ11: 0 | DK11: 540 | DL11: 0 | DM11: 0 | DN11: 0 | DO11: 0 | DP11: 0 | DQ11: 0 | DR11: =DR93*(1+$B$75) -> 3275 | DS11: =DS93*(1+$D$75) -> 0 | DT11: =DT93*(1+$E$75) -> 0 | DU11: =DU93*(1+$D$75) -> 0 | DV11: =DV93*(1+$D$75) -> 0 | DW11: 0 | DX11: =DX93 -> 3615 | DY11: =DY93 -> 0 | DZ11: =DZ93 -> 0 | EA11: 0 | EB11: 0 | EC11: =EC93 -> 0 | ED11: 0 | EE11: 0 | EF11: 0
A12: 4 | B12: Hauptleistung | E12: € | G12: =SUMPRODUCT(AF$9:AY$9,AF12:AY12)+SUMPRODUCT(BU$9:DB$9,BU12:DB12) -> 0 | H12: =SUMPRODUCT(L$9:AE$9,L12:AE12)+SUMPRODUCT(BA$9:BT$9,BA12:BT12) -> 0 | I12: =SUMPRODUCT(DC$9:EF$9,DC12:EF12) -> 0 | J12: =SUMPRODUCT(DV$9:EF$9,DV12:EF12) -> 0 | L12: =L10*L11 -> 3600 | M12: 1752 | N12: 1522 | O12: 1658 | P12: 916 | Q12: 0 | R12: 2304 | S12: 2000 | T12: 0 | U12: 106 | V12: 0 | W12: 0 | X12: 314 | Y12: 385 | Z12: 0 | AA12: 0 | AB12: 0 | AC12: 0 | AD12: 0 | AE12: 0 | AF12: 0 | AG12: 0 | AH12: 0 | AI12: 0 | AJ12: 0 | AK12: 1000 | AL12: 0 | AM12: 0 | AN12: 0 | AO12: 0 | AP12: 0 | AQ12: 0 | AR12: 0 | AS12: 0 | AT12: 0 | AU12: 0 | AV12: 0 | AW12: 0 | AX12: 0 | AY12: 0 | BA12: =BA10*BA11 -> 2126 | BB12: 70.85 | BC12: 168 | BD12: 440 | BE12: 0 | BF12: 0 | BG12: 5827.5 | BH12: 205.8 | BI12: 0 | BJ12: 1773.6 | BK12: 3730 | BL12: 2254 | BM12: 0 | BN12: 0 | BO12: 0 | BP12: 0 | BQ12: 0 | BR12: 0 | BS12: 0 | BT12: 0 | BU12: 1656 | BV12: 1014 | BW12: 870 | BX12: 1218 | BY12: 1568 | BZ12: 1308 | CA12: 1404 | CB12: 1388 | CC12: 918 | CD12: 1962 | CE12: 1834 | CF12: 1200 | CG12: 1255 | CH12: 1700 | CI12: 850 | CJ12: 588 | CK12: 0 | CL12: 4633 | CM12: 7155 | CN12: 2640 | CO12: 0 | CP12: 654 | CQ12: 450 | CR12: 0 | CS12: 0 | CT12: 358 | CU12: 872 | CV12: 776 | CW12: 0 | CX12: 0 | CY12: 6570 | CZ12: 12000 | DA12: 19500 | DB12: 10200 | DC12: =DC10*DC11 -> 23376 | DD12: 8950 | DE12: 0 | DF12: 15360 | DG12: 5621 | DH12: 0 | DI12: 0 | DJ12: 0 | DK12: 5400 | DL12: 0 | DM12: =DM10*DM11 -> 0 | DN12: 0 | DO12: 0 | DP12: 0 | DQ12: 0 | DR12: 26200 | DS12: 0 | DT12: 0 | DU12: 0 | DV12: 0 | DW12: 0 | DX12: 3615 | DY12: 0 | DZ12: 0 | EA12: 0 | EB12: 0 | EC12: 0 | ED12: 0 | EE12: 0 | EF12: 0
A13: 5 | B13: Nebenleistung - ohne Prämien | E13: € | G13: =SUMPRODUCT(AF$9:AY$9,AF13:AY13)+SUMPRODUCT(BU$9:DB$9,BU13:DB13) -> 0 | H13: =SUMPRODUCT(L$9:AE$9,L13:AE13)+SUMPRODUCT(BA$9:BT$9,BA13:BT13) -> 0 | I13: =SUMPRODUCT(DC$9:EF$9,DC13:EF13) -> 0 | J13: =SUMPRODUCT(DV$9:EF$9,DV13:EF13) -> 0 | L13: =L37 -> 488 | M13: =M95*(1+$D$75) -> 142 | N13: 0 | O13: 0 | P13: 209 | Q13: 0 | R13: =R95 -> 0 | S13: 45 | T13: 0 | U13: 14 | V13: 0 | W13: 0 | X13: 16 | Y13: 55 | Z13: 0 | AA13: 0 | AB13: 0 | AC13: 0 | AD13: 0 | AE13: 0 | AF13: 0 | AG13: 0 | AH13: 0 | AI13: 0 | AJ13: 0 | AK13: 0 | AL13: 0 | AM13: 0 | AN13: 0 | AO13: 0 | AP13: 0 | AQ13: 0 | AR13: 0 | AS13: 0 | AT13: 0 | AU13: 0 | AV13: 0 | AW13: 0 | AX13: 0 | AY13: 0 | BA13: =BA37 -> 94 | BB13: =BB95*(1+$D$75) -> 0 | BC13: 0 | BD13: 46.87 | BF13: 0 | BG13: 21.8 | BH13: 0 | BI13: 0 | BJ13: 0 | BK13: 0 | BL13: 0 | BM13: 0 | BN13: 0 | BO13: 0 | BP13: 0 | BQ13: 0 | BR13: 0 | BS13: 0 | BT13: 0 | BU13: 0 | BV13: 0 | BW13: 0 | BX13: 0 | BY13: 0 | BZ13: 0 | CA13: 0 | CB13: 0 | CC13: 0 | CD13: 0 | CE13: 0 | CF13: 0 | CG13: 0 | CH13: =CH95*(1+$D$75) -> 0 | CI13: 0 | CJ13: 0 | CK13: 0 | CL13: 0 | CM13: 0 | CN13: 0 | CO13: 0 | CP13: 0 | CQ13: 0 | CR13: 0 | CS13: 0 | CT13: 0 | CU13: 0 | CV13: 164 | CW13: 0 | CX13: 0 | CY13: 0 | CZ13: 0 | DA13: 0 | DB13: 0 | DC13: 0 | DD13: 283 | DE13: 0 | DF13: 0 | DG13: 0 | DH13: 0 | DI13: 0 | DJ13: 0 | DK13: 0 | DL13: 0 | DM13: 0 | DN13: =DN95*(1+$D$75) -> 0 | DO13: 0 | DP13: 0 | DQ13: 0 | DR13: 0 | DS13: 0 | DT13: =DT95*(1+$E$75) -> 0 | DU13: =DU95*(1+$B$75) -> 0 | DV13: =DV95*(1+$D$75) -> 0 | DW13: 0 | DX13: =DX95 -> 0 | DY13: =DY95 -> 0 | DZ13: =DZ95 -> 0 | EA13: 0 | EB13: 0 | EC13: =EC95 -> 0 | ED13: 0 | EE13: 0 | EF13: 0
A14: 6 | B14: Prämien, Ausgleichszahlungen | E14: € | G14: =SUMPRODUCT(AN9:AO9,AN14:AO14) -> 0 | H14: =SUMPRODUCT(L9:AE9,L14:AE14)+SUMPRODUCT(BA9:BT9,BA14:BT14) -> 0 | I14: =SUMPRODUCT(DX9:DY9,DX14:DY14)+EE9*EE14 -> 0 | J14: =EE9*EE14 -> 0 | M14: 0 | N14: 0 | O14: 0 | P14: 0 | Q14: 0 | R14: 0 | S14: 0 | T14: 0 | U14: 0 | V14: 0 | W14: 0 | X14: 0 | Y14: 0 | Z14: 0 | AA14: 0 | AB14: 0 | AC14: 0 | AD14: 0 | AE14: 0 | AF14: 0 | AG14: 0 | AH14: 0 | AI14: 0 | AJ14: 0 | AK14: 0 | AL14: 0 | AM14: 0 | AN14: 0 | AO14: 0 | AP14: 0 | AQ14: 0 | AR14: 0 | AS14: 0 | AT14: 0 | AU14: 0 | AV14: 0 | AW14: 0 | AX14: 0 | AY14: 0 | BB14: 0 | BC14: 0 | BD14: 0 | BE14: 0 | BF14: 0 | BG14: 0 | BH14: 0 | BI14: 0 | BJ14: 0 | BK14: 0 | BL14: 0 | BM14: 0 | BN14: 0 | BO14: 0 | BP14: 0 | BQ14: 0 | BR14: 0 | BS14: 0 | BT14: 0 | BU14: 0 | BV14: 0 | BW14: 0 | BX14: 0 | BY14: 0 | BZ14: 0 | CA14: 0 | CB14: 0 | CC14: 0 | CD14: 0 | CE14: 0 | CF14: 0 | CG14: 0 | CH14: 0 | CI14: 0 | CJ14: 0 | CK14: 0 | CL14: 0 | CM14: 0 | CN14: 0 | CO14: 0 | CP14: 0 | CQ14: 0 | CR14: 0 | CS14: 0 | CT14: 0 | CU14: 0 | CV14: 0 | CW14: 0 | CX14: 0 | CY14: 0 | CZ14: 0 | DA14: 0 | DB14: 0 | DC14: 0 | DD14: 0 | DE14: 0 | DF14: 0 | DG14: 0 | DH14: 0 | DI14: 0 | DJ14: 0 | DK14: 0 | DL14: 0 | DM14: 0 | DN14: 0 | DO14: 0 | DP14: 0 | DQ14: 0 | DR14: 0 | DS14: 0 | DT14: 0 | DU14: 0 | DV14: 0 | DW14: 0 | DX14: 0 | DY14: 0 | DZ14: 0 | EA14: 0 | EB14: 0 | EC14: 0 | ED14: 0 | EE14: 0 | EF14: 0
A15: 7 | B15: Leistung ges. | E15: € | G15: 0 | H15: 0 | I15: =SUMPRODUCT(DC$9:EF$9,DC15:EF15) -> 0 | J15: =SUMPRODUCT(DV$9:EF$9,DV15:EF15) -> 0 | L15: =IF(AND(L9=0,'7 Prod'!$L$4=2),"",SUM(L12:L14)) -> 4088 | M15: =IF(AND(M9=0,'7 Prod'!$L$4=2),"",SUM(M12:M14)) -> 1894 | N15: =IF(AND(N9=0,'7 Prod'!$L$4=2),"",SUM(N12:N14)) -> 1522 | O15: =IF(AND(O9=0,'7 Prod'!$L$4=2),"",SUM(O12:O14)) -> 1658 | P15: =IF(AND(P9=0,'7 Prod'!$L$4=2),"",SUM(P12:P14)) -> 1125 | Q15: =IF(AND(Q9=0,'7 Prod'!$L$4=2),"",SUM(Q12:Q14)) -> 0 | R15: =IF(AND(R9=0,'7 Prod'!$L$4=2),"",SUM(R12:R14)) -> 2304 | S15: =IF(AND(S9=0,'7 Prod'!$L$4=2),"",SUM(S12:S14)) -> 2045 | T15: =IF(AND(T9=0,'7 Prod'!$L$4=2),"",SUM(T12:T14)) -> 0 | U15: =IF(AND(U9=0,'7 Prod'!$L$4=2),"",SUM(U12:U14)) -> 120 | V15: =IF(AND(V9=0,'7 Prod'!$L$4=2),"",SUM(V12:V14)) -> 0 | W15: =IF(AND(W9=0,'7 Prod'!$L$4=2),"",SUM(W12:W14)) -> 0 | X15: =IF(AND(X9=0,'7 Prod'!$L$4=2),"",SUM(X12:X14)) -> 330 | Y15: =IF(AND(Y9=0,'7 Prod'!$L$4=2),"",SUM(Y12:Y14)) -> 440 | Z15: =IF(AND(Z9=0,'7 Prod'!$L$4=2),"",SUM(Z12:Z14)) -> 0 | AA15: =IF(AND(AA9=0,'7 Prod'!$L$4=2),"",SUM(AA12:AA14)) -> 0 | AB15: =IF(AND(AB9=0,'7 Prod'!$L$4=2),"",SUM(AB12:AB14)) -> 0 | AC15: =IF(AND(AC9=0,'7 Prod'!$L$4=2),"",SUM(AC12:AC14)) -> 0 | AD15: =IF(AND(AD9=0,'7 Prod'!$L$4=2),"",SUM(AD12:AD14)) -> 0 | AE15: =IF(AND(AE9=0,'7 Prod'!$L$4=2),"",SUM(AE12:AE14)) -> 0 | AF15: =IF(AND(AF9=0,'7 Prod'!$L$4=2),"",SUM(AF12:AF14)) -> 0 | AG15: =IF(AND(AG9=0,'7 Prod'!$L$4=2),"",SUM(AG12:AG14)) -> 0 | AH15: =IF(AND(AH9=0,'7 Prod'!$L$4=2),"",SUM(AH12:AH14)) -> 0 | AI15: =IF(AND(AI9=0,'7 Prod'!$L$4=2),"",SUM(AI12:AI14)) -> 0 | AJ15: =IF(AND(AJ9=0,'7 Prod'!$L$4=2),"",SUM(AJ12:AJ14)) -> 0 | AK15: =IF(AND(AK9=0,'7 Prod'!$L$4=2),"",SUM(AK12:AK14)) -> 1000 | AL15: =IF(AND(AL9=0,'7 Prod'!$L$4=2),"",SUM(AL12:AL14)) -> 0 | AM15: =IF(AND(AM9=0,'7 Prod'!$L$4=2),"",SUM(AM12:AM14)) -> 0 | AN15: =IF(AND(AN9=0,'7 Prod'!$L$4=2),"",SUM(AN12:AN14)) -> 0 | AO15: =IF(AND(AO9=0,'7 Prod'!$L$4=2),"",SUM(AO12:AO14)) -> 0 | AP15: =IF(AND(AP9=0,'7 Prod'!$L$4=2),"",SUM(AP12:AP14)) -> 0 | AQ15: =IF(AND(AQ9=0,'7 Prod'!$L$4=2),"",SUM(AQ12:AQ14)) -> 0 | AR15: =IF(AND(AR9=0,'7 Prod'!$L$4=2),"",SUM(AR12:AR14)) -> 0 | AS15: =IF(AND(AS9=0,'7 Prod'!$L$4=2),"",SUM(AS12:AS14)) -> 0 | AT15: =IF(AND(AT9=0,'7 Prod'!$L$4=2),"",SUM(AT12:AT14)) -> 0 | AU15: =IF(AND(AU9=0,'7 Prod'!$L$4=2),"",SUM(AU12:AU14)) -> 0 | AV15: =IF(AND(AV9=0,'7 Prod'!$L$4=2),"",SUM(AV12:AV14)) -> 0 | AW15: =IF(AND(AW9=0,'7 Prod'!$L$4=2),"",SUM(AW12:AW14)) -> 0 | AX15: =IF(AND(AX9=0,'7 Prod'!$L$4=2),"",SUM(AX12:AX14)) -> 0 | AY15: =IF(AND(AY9=0,'7 Prod'!$L$4=2),"",SUM(AY12:AY14)) -> 0 | AZ15: =IF(AND(AZ9=0,'7 Prod'!$L$4=2),"",SUM(AZ12:AZ14)) -> 0 | BA15: =IF(AND(BA9=0,'7 Prod'!$L$4=2),"",SUM(BA12:BA14)) -> 2220 | BB15: =IF(AND(BB9=0,'7 Prod'!$L$4=2),"",SUM(BB12:BB14)) -> 70.85 | BC15: =IF(AND(BC9=0,'7 Prod'!$L$4=2),"",SUM(BC12:BC14)) -> 168 | BD15: =IF(AND(BD9=0,'7 Prod'!$L$4=2),"",SUM(BD12:BD14)) -> 486.87 | BE15: =IF(AND(BE9=0,'7 Prod'!$L$4=2),"",SUM(BE12:BE14)) -> 0 | BF15: =IF(AND(BF9=0,'7 Prod'!$L$4=2),"",SUM(BF12:BF14)) -> 0 | BG15: =IF(AND(BG9=0,'7 Prod'!$L$4=2),"",SUM(BG12:BG14)) -> 5849.3 | BH15: =IF(AND(BH9=0,'7 Prod'!$L$4=2),"",SUM(BH12:BH14)) -> 205.8 | BI15: =IF(AND(BI9=0,'7 Prod'!$L$4=2),"",SUM(BI12:BI14)) -> 0 | BJ15: =IF(AND(BJ9=0,'7 Prod'!$L$4=2),"",SUM(BJ12:BJ14)) -> 1773.6 | BK15: =IF(AND(BK9=0,'7 Prod'!$L$4=2),"",SUM(BK12:BK14)) -> 3730 | BL15: =IF(AND(BL9=0,'7 Prod'!$L$4=2),"",SUM(BL12:BL14)) -> 2254 | BM15: =IF(AND(BM9=0,'7 Prod'!$L$4=2),"",SUM(BM12:BM14)) -> 0 | BN15: =IF(AND(BN9=0,'7 Prod'!$L$4=2),"",SUM(BN12:BN14)) -> 0 | BO15: =IF(AND(BO9=0,'7 Prod'!$L$4=2),"",SUM(BO12:BO14)) -> 0 | BP15: =IF(AND(BP9=0,'7 Prod'!$L$4=2),"",SUM(BP12:BP14)) -> 0 | BQ15: =IF(AND(BQ9=0,'7 Prod'!$L$4=2),"",SUM(BQ12:BQ14)) -> 0 | BR15: =IF(AND(BR9=0,'7 Prod'!$L$4=2),"",SUM(BR12:BR14)) -> 0 | BS15: =IF(AND(BS9=0,'7 Prod'!$L$4=2),"",SUM(BS12:BS14)) -> 0 | BT15: =IF(AND(BT9=0,'7 Prod'!$L$4=2),"",SUM(BT12:BT14)) -> 0 | BU15: =IF(AND(BU9=0,'7 Prod'!$L$4=2),"",SUM(BU12:BU14)) -> 1656 | BV15: =IF(AND(BV9=0,'7 Prod'!$L$4=2),"",SUM(BV12:BV14)) -> 1014 | BW15: =IF(AND(BW9=0,'7 Prod'!$L$4=2),"",SUM(BW12:BW14)) -> 870 | BX15: =IF(AND(BX9=0,'7 Prod'!$L$4=2),"",SUM(BX12:BX14)) -> 1218 | BY15: =IF(AND(BY9=0,'7 Prod'!$L$4=2),"",SUM(BY12:BY14)) -> 1568 | BZ15: =IF(AND(BZ9=0,'7 Prod'!$L$4=2),"",SUM(BZ12:BZ14)) -> 1308 | CA15: =IF(AND(CA9=0,'7 Prod'!$L$4=2),"",SUM(CA12:CA14)) -> 1404 | CB15: =IF(AND(CB9=0,'7 Prod'!$L$4=2),"",SUM(CB12:CB14)) -> 1388 | CC15: =IF(AND(CC9=0,'7 Prod'!$L$4=2),"",SUM(CC12:CC14)) -> 918 | CD15: =IF(AND(CD9=0,'7 Prod'!$L$4=2),"",SUM(CD12:CD14)) -> 1962 | CE15: =IF(AND(CE9=0,'7 Prod'!$L$4=2),"",SUM(CE12:CE14)) -> 1834 | CF15: =IF(AND(CF9=0,'7 Prod'!$L$4=2),"",SUM(CF12:CF14)) -> 1200 | CG15: =IF(AND(CG9=0,'7 Prod'!$L$4=2),"",SUM(CG12:CG14)) -> 1255 | CH15: =IF(AND(CH9=0,'7 Prod'!$L$4=2),"",SUM(CH12:CH14)) -> 1700 | CI15: =IF(AND(CI9=0,'7 Prod'!$L$4=2),"",SUM(CI12:CI14)) -> 850 | CJ15: =IF(AND(CJ9=0,'7 Prod'!$L$4=2),"",SUM(CJ12:CJ14)) -> 588 | CK15: =IF(AND(CK9=0,'7 Prod'!$L$4=2),"",SUM(CK12:CK14)) -> 0 | CL15: =IF(AND(CL9=0,'7 Prod'!$L$4=2),"",SUM(CL12:CL14)) -> 4633 | CM15: =IF(AND(CM9=0,'7 Prod'!$L$4=2),"",SUM(CM12:CM14)) -> 7155 | CN15: =IF(AND(CN9=0,'7 Prod'!$L$4=2),"",SUM(CN12:CN14)) -> 2640 | CO15: =IF(AND(CO9=0,'7 Prod'!$L$4=2),"",SUM(CO12:CO14)) -> 0 | CP15: =IF(AND(CP9=0,'7 Prod'!$L$4=2),"",SUM(CP12:CP14)) -> 654 | CQ15: =IF(AND(CQ9=0,'7 Prod'!$L$4=2),"",SUM(CQ12:CQ14)) -> 450 | CR15: =IF(AND(CR9=0,'7 Prod'!$L$4=2),"",SUM(CR12:CR14)) -> 0 | CS15: =IF(AND(CS9=0,'7 Prod'!$L$4=2),"",SUM(CS12:CS14)) -> 0 | CT15: =IF(AND(CT9=0,'7 Prod'!$L$4=2),"",SUM(CT12:CT14)) -> 358 | CU15: =IF(AND(CU9=0,'7 Prod'!$L$4=2),"",SUM(CU12:CU14)) -> 872 | CV15: =IF(AND(CV9=0,'7 Prod'!$L$4=2),"",SUM(CV12:CV14)) -> 940 | CW15: =IF(AND(CW9=0,'7 Prod'!$L$4=2),"",SUM(CW12:CW14)) -> 0 | CX15: =IF(AND(CX9=0,'7 Prod'!$L$4=2),"",SUM(CX12:CX14)) -> 0 | CY15: =IF(AND(CY9=0,'7 Prod'!$L$4=2),"",SUM(CY12:CY14)) -> 6570 | CZ15: =IF(AND(CZ9=0,'7 Prod'!$L$4=2),"",SUM(CZ12:CZ14)) -> 12000 | DA15: =IF(AND(DA9=0,'7 Prod'!$L$4=2),"",SUM(DA12:DA14)) -> 19500 | DB15: =IF(AND(DB9=0,'7 Prod'!$L$4=2),"",SUM(DB12:DB14)) -> 10200 | DC15: =IF(AND(DC9=0,'7 Prod'!$L$4=2),"",SUM(DC12:DC14)) -> 23376 | DD15: =IF(AND(DD9=0,'7 Prod'!$L$4=2),"",SUM(DD12:DD14)) -> 9233 | DE15: =IF(AND(DE9=0,'7 Prod'!$L$4=2),"",SUM(DE12:DE14)) -> 0 | DF15: =IF(AND(DF9=0,'7 Prod'!$L$4=2),"",SUM(DF12:DF14)) -> 15360 | DG15: =IF(AND(DG9=0,'7 Prod'!$L$4=2),"",SUM(DG12:DG14)) -> 5621 | DH15: =IF(AND(DH9=0,'7 Prod'!$L$4=2),"",SUM(DH12:DH14)) -> 0 | DI15: =IF(AND(DI9=0,'7 Prod'!$L$4=2),"",SUM(DI12:DI14)) -> 0 | DJ15: =IF(AND(DJ9=0,'7 Prod'!$L$4=2),"",SUM(DJ12:DJ14)) -> 0 | DK15: =IF(AND(DK9=0,'7 Prod'!$L$4=2),"",SUM(DK12:DK14)) -> 5400 | DL15: =IF(AND(DL9=0,'7 Prod'!$L$4=2),"",SUM(DL12:DL14)) -> 0 | DM15: =IF(AND(DM9=0,'7 Prod'!$L$4=2),"",SUM(DM12:DM14)) -> 0 | DN15: =IF(AND(DN9=0,'7 Prod'!$L$4=2),"",SUM(DN12:DN14)) -> 0 | DO15: =IF(AND(DO9=0,'7 Prod'!$L$4=2),"",SUM(DO12:DO14)) -> 0 | DP15: =IF(AND(DP9=0,'7 Prod'!$L$4=2),"",SUM(DP12:DP14)) -> 0 | DQ15: =IF(AND(DQ9=0,'7 Prod'!$L$4=2),"",SUM(DQ12:DQ14)) -> 0 | DR15: =IF(AND(DR9=0,'7 Prod'!$L$4=2),"",SUM(DR12:DR14)) -> 26200 | DS15: =IF(AND(DS9=0,'7 Prod'!$L$4=2),"",SUM(DS12:DS14)) -> 0 | DT15: =IF(AND(DT9=0,'7 Prod'!$L$4=2),"",SUM(DT12:DT14)) -> 0 | DU15: =IF(AND(DU9=0,'7 Prod'!$L$4=2),"",SUM(DU12:DU14)) -> 0 | DV15: =IF(AND(DV9=0,'7 Prod'!$L$4=2),"",SUM(DV12:DV14)) -> 0 | DW15: =IF(AND(DW9=0,'7 Prod'!$L$4=2),"",SUM(DW12:DW14)) -> 0 | DX15: =IF(AND(DX9=0,'7 Prod'!$L$4=2),"",SUM(DX12:DX14)) -> 3615 | DY15: =IF(AND(DY9=0,'7 Prod'!$L$4=2),"",SUM(DY12:DY14)) -> 0 | DZ15: =IF(AND(DZ9=0,'7 Prod'!$L$4=2),"",SUM(DZ12:DZ14)) -> 0 | EA15: =IF(AND(EA9=0,'7 Prod'!$L$4=2),"",SUM(EA12:EA14)) -> 0 | EB15: =IF(AND(EB9=0,'7 Prod'!$L$4=2),"",SUM(EB12:EB14)) -> 0 | EC15: =IF(AND(EC9=0,'7 Prod'!$L$4=2),"",SUM(EC12:EC14)) -> 0 | ED15: =IF(AND(ED9=0,'7 Prod'!$L$4=2),"",SUM(ED12:ED14)) -> 0 | EE15: =IF(AND(EE9=0,'7 Prod'!$L$4=2),"",SUM(EE12:EE14)) -> 0 | EF15: =IF(AND(EF9=0,'7 Prod'!$L$4=2),"",SUM(EF12:EF14)) -> 0 | EI15: =SUMPRODUCT(L9:EF9,L15:EF15) -> 0
A16: 8 | B16: Saatgut | C16: / Bestandsergänzung | E16: € | G16: 0 | H16: 0 | I16: 0 | J16: 0 | L16: =L98*(1+$C$75) -> 613 | M16: =L113*1.2*(1+$C$75) -> 331 | N16: =L113*0.8*(1+$C$75) -> 221 | O16: =O98*(1+$C$75) -> 102 | P16: 358 | Q16: 0 | R16: =R98*(1+$C$75) -> 0 | S16: 511 | T16: 0 | U16: 20 | V16: 0 | W16: 0 | X16: 5 | Y16: 30 | Z16: 0 | AA16: 0 | AB16: 0 | AC16: 0 | AD16: 0 | AE16: 0 | AF16: 10 | AG16: 10 | AH16: 10 | AI16: 0 | AJ16: 0 | AK16: 5 | AL16: 0 | AM16: 10 | AN16: 0 | AO16: 0 | AP16: 212 | AQ16: 0 | AR16: 0 | AS16: 80 | AT16: 125 | AU16: 0 | AV16: 0 | AW16: 16 | AX16: 0 | AY16: 0 | BA16: =BA98*(1+$C$75) -> 152 | BB16: 47.08 | BC16: 69.55 | BD16: 92 | BE16: 0 | BF16: 0 | BG16: 695.5 | BH16: 39.59 | BI16: 0 | BJ16: 185.11 | BK16: 383.06 | BL16: 262.15 | BM16: 0 | BN16: 0 | BO16: 0 | BP16: 0 | BQ16: 0 | BR16: 0 | BS16: 0 | BT16: 0 | BU16: 98 | BV16: 107 | BW16: 151 | BX16: 43 | BY16: 80 | BZ16: 100 | CA16: 72 | CB16: 91 | CC16: 0 | CD16: 225 | CE16: 225 | CF16: 266 | CG16: =CG98*(1+$C$75) -> 218 | CH16: 106 | CI16: 94 | CJ16: 138 | CK16: 0 | CL16: 1070 | CM16: 1192 | CN16: 318 | CO16: 0 | CP16: 234 | CQ16: 203 | CR16: 56 | CS16: 150 | CT16: 64 | CU16: 41 | CV16: 181 | CW16: 0 | CX16: 86 | CY16: 900 | CZ16: 358 | DA16: 440 | DB16: 0 | DC16: 4140 | DD16: 2 | DE16: 0 | DF16: 5 | DG16: 14 | DH16: 0 | DI16: 0 | DJ16: 0 | DK16: 3 | DL16: 0 | DM16: =DM98*(1+$C$75) -> 0 | DN16: 0 | DO16: 0 | DP16: 0 | DQ16: 0 | DR16: 14 | DS16: 0 | DT16: =DT98*(1+$E$75) -> 0 | DU16: =DU98*(1+$C$75) -> 0 | DV16: 0 | DW16: 0 | DX16: =DX98 -> 0 | DY16: =DY98 -> 0 | DZ16: =DZ98 -> 0 | EA16: 0 | EB16: 0 | EC16: =EC98 -> 0 | ED16: 0 | EE16: 0 | EF16: 0
A17: 9 | B17: Dünger | C17: / Zukauffutter | E17: € | G17: =SUMPRODUCT(AF9:AX9,AF17:AX17)+SUMPRODUCT(BU9:DB9,BU17:DB17) -> 0 | H17: =SUMPRODUCT(L$9:AE$9,L17:AE17)+SUMPRODUCT(AY$9:BT$9,AY17:BT17) -> 0 | I17: 0 | J17: 0 | L17: =L50 -> 975 | M17: =M99*(1+$C$75) -> 377 | N17: =N99*(1+$C$75) -> 377 | O17: 500 | P17: 120 | Q17: 0 | R17: =R99*(1+$C$75) -> 360 | S17: 314 | T17: 0 | U17: 15 | V17: 0 | W17: 0 | X17: 17 | Y17: 40 | Z17: 0 | AA17: 0 | AB17: 0 | AC17: 0 | AD17: 0 | AE17: 0 | AF17: =IF(AF99=0,0,AF99*(1+$B$75)/((100-AF113)/100)*(100-AF31)/100) -> 96 | AG17: =IF(AG99=0,0,AG99*(1+$B$75)/((100-AG113)/100)*(100-AG31)/100) -> 170 | AH17: 192 | AI17: 0 | AJ17: 0 | AK17: 124 | AL17: 0 | AM17: 189 | AN17: 63 | AO17: 0 | AP17: 202 | AQ17: 0 | AR17: 0 | AS17: 183 | AT17: 107 | AU17: 0 | AV17: 0 | AW17: 68 | AX17: 0 | AY17: 0 | BA17: =BA50 -> 910 | BB17: =BB99*(1+$C$75) -> 13.75 | BC17: 75.03 | BD17: 77 | BE17: 0 | BF17: 0 | BG17: 1605 | BH17: 125.19 | BI17: 0 | BJ17: 347.75 | BK17: 419.44 | BL17: 1614.63 | BM17: 0 | BN17: 0 | BO17: 0 | BP17: 0 | BQ17: 0 | BR17: 0 | BS17: 0 | BT17: 0 | BU17: =IF(BU99=0,0,BU99*(1+$B$75)/((100-SUM(BU113))/100)*(100-BU31)/100) -> 264 | BV17: =IF(BV99=0,0,BV99*(1+$B$75)/((100-SUM(BV113))/100)*(100-BV31)/100) -> 203 | BW17: 183 | BX17: 193 | BY17: 233 | BZ17: 162 | CA17: 168 | CB17: 227 | CC17: 168 | CD17: 242 | CE17: 231 | CF17: 86 | CG17: 82 | CH17: 232 | CI17: 126 | CJ17: 167 | CK17: 20 | CL17: 514 | CM17: 394 | CN17: 261 | CO17: 20 | CP17: 111 | CQ17: 32 | CR17: 194 | CS17: 282 | CT17: 102 | CU17: 232 | CV17: 231 | CW17: 0 | CX17: 0 | CY17: 46 | CZ17: 275 | DA17: 46 | DB17: 121 | DC17: 149 | DD17: 86 | DE17: 0 | DF17: 67 | DG17: 62 | DH17: 0 | DI17: 0 | DJ17: 0 | DK17: 76 | DL17: 0 | DM17: 0 | DN17: 0 | DO17: 0 | DP17: 0 | DQ17: 0 | DR17: 62 | DS17: 0 | DT17: =DT99 -> 0 | DU17: =DU99 -> 0 | DV17: =DV99 -> 0 | DW17: =DW99 -> 0 | DX17: =DX99 -> 0 | DY17: =DY99 -> 0 | DZ17: =DZ99 -> 0 | EA17: =EA99 -> 0 | EB17: =EB99 -> 0 | EC17: =EC99 -> 0 | ED17: =ED99 -> 0 | EE17: =EE99 -> 0 | EF17: =EF99 -> 0 | EG17: =EG99*(100-#REF!) -> 
A18: 10 | B18: Pflanz'schutz | C18: / Tierarzt, Besamung | E18: € | G18: 0 | H18: 0 | I18: 0 | J18: 0 | L18: =L100*(1+$B$75) -> 161 | M18: 107 | N18: 107 | O18: 48 | P18: 48 | Q18: 0 | R18: =R100*(1+$B$75) -> 0 | S18: 754 | T18: 0 | U18: 12 | V18: 0 | W18: 0 | X18: 5 | Y18: 15 | Z18: 0 | AA18: 0 | AB18: 0 | AC18: 0 | AD18: 0 | AE18: 0 | AF18: =AF100*(1+$B$75) -> 11 | AG18: 11 | AH18: 11 | AI18: 0 | AJ18: 0 | AK18: 11 | AL18: 0 | AM18: 11 | AN18: 0 | AO18: 0 | AP18: 93 | AQ18: 0 | AR18: 0 | AS18: 0 | AT18: 93 | AU18: 0 | AV18: 0 | AW18: 0 | AX18: 0 | AY18: 0 | BA18: =BA100*(1+$B$75) -> 219 | BB18: 2.12 | BC18: 1.7 | BD18: 27.7 | BE18: =BE100*(1+$B$75) -> 0 | BF18: 0 | BG18: 59.5 | BH18: 8.33 | BI18: 0 | BJ18: 29.75 | BK18: 52.36 | BL18: 119 | BM18: 0 | BN18: 0 | BO18: 0 | BP18: 0 | BQ18: 0 | BR18: 0 | BS18: 0 | BT18: 0 | BU18: =BU100*(1+$B$75) -> 189 | BV18: 86 | BW18: 152 | BX18: 142 | BY18: 123 | BZ18: 126 | CA18: 70 | CB18: 137 | CC18: 0 | CD18: 93 | CE18: 93 | CF18: 112 | CG18: 108 | CH18: 162 | CI18: 81 | CJ18: 101 | CK18: 0 | CL18: 365 | CM18: 433 | CN18: 370 | CO18: 0 | CP18: 132 | CQ18: 0 | CR18: =CR100*(1+$B$75) -> 125 | CS18: 86 | CT18: 65 | CU18: 129 | CV18: 0 | CW18: 0 | CX18: 0 | CY18: 181 | CZ18: 315 | DA18: =DA100*(1+$B$75) -> 152 | DB18: 893 | DC18: 1836 | DD18: 866 | DE18: 0 | DF18: 157 | DG18: 157 | DH18: 0 | DI18: 0 | DJ18: 0 | DK18: 405 | DL18: 0 | DM18: 0 | DN18: 0 | DO18: 0 | DP18: 0 | DQ18: 0 | DR18: 434 | DS18: 0 | DT18: =DT100*(1+$B$75) -> 0 | DU18: 0 | DV18: 0 | DW18: 0 | DX18: 0 | DY18: =DY100 -> 0 | DZ18: 0 | EA18: 0 | EB18: 0 | EC18: =EC100 -> 0 | ED18: 0 | EE18: 0 | EF18: 0
A19: 11 | B19: Hagel- | C19: / Tierversicherung | E19: € | G19: 0 | H19: 0 | I19: 0 | J19: 0 | L19: =L101 -> 19 | M19: 22 | N19: 22 | O19: 15 | P19: 11 | Q19: 0 | R19: =R101 -> 51 | S19: 51 | T19: 0 | U19: 8 | V19: 0 | W19: 0 | X19: 0 | Y19: 5 | Z19: 0 | AA19: 0 | AB19: 0 | AC19: 0 | AD19: 0 | AE19: 0 | AF19: 0 | AG19: 0 | AH19: 0 | AI19: 0 | AJ19: 0 | AK19: 0 | AL19: 0 | AM19: 0 | AN19: 0 | AO19: 0 | AP19: 12 | AQ19: 0 | AR19: 0 | AS19: 0 | AT19: 15 | AU19: 0 | AV19: 0 | AW19: 0 | AX19: 0 | AY19: 0 | BA19: =BA101 -> 7 | BB19: 0.07 | BC19: 0.27 | BD19: 3 | BE19: 0 | BF19: 0 | BG19: 30 | BH19: 2 | BI19: 0 | BJ19: 0 | BK19: 0 | BL19: 30 | BM19: 0 | BN19: 0 | BO19: 0 | BP19: 0 | BQ19: 0 | BR19: 0 | BS19: 0 | BT19: 0 | BU19: 18 | BV19: 17 | BW19: 16 | BX19: 15 | BY19: 16 | BZ19: 12 | CA19: 14 | CB19: 14 | CC19: 0 | CD19: 21 | CE19: 14 | CF19: 9 | CG19: =CG101 -> 9 | CH19: 35 | CI19: 26 | CJ19: 23 | CK19: 0 | CL19: 42 | CM19: 42 | CN19: 24 | CO19: 0 | CP19: 36 | CQ19: 8 | CR19: 15 | CS19: 12 | CT19: 12 | CU19: 42 | CV19: 9 | CW19: 0 | CX19: 0 | CY19: 358 | CZ19: 665 | DA19: 0 | DB19: 327 | DC19: 1534 | DD19: 633 | DE19: 0 | DF19: 0 | DG19: 0 | DH19: 0 | DI19: 0 | DJ19: 0 | DK19: 0 | DL19: 0 | DM19: =DM101 -> 0 | DN19: 0 | DO19: 0 | DP19: 0 | DQ19: 0 | DR19: 540 | DS19: 0 | DT19: 0 | DU19: 0 | DV19: 0 | DW19: 0 | DX19: 0 | DY19: 0 | DZ19: 0 | EA19: 0 | EB19: 0 | EC19: 0 | ED19: 0 | EE19: 0 | EF19: 0
A20: 12 | B20: Beratung / Leistungskontrolle | E20: € | G20: 0 | H20: 0 | I20: 0 | J20: 0 | L20: =L102*(1+$B$75) -> 24 | M20: 21 | N20: 0 | O20: 0 | P20: 0 | Q20: 0 | R20: 0 | S20: 105 | T20: 0 | U20: 8 | V20: 0 | W20: 0 | X20: 4 | Y20: 11 | Z20: 0 | AA20: 0 | AB20: 0 | AC20: 0 | AD20: 0 | AE20: 0 | AF20: 0 | AG20: 0 | AH20: 0 | AI20: 0 | AJ20: 0 | AK20: 0 | AL20: 0 | AM20: 0 | AN20: 0 | AO20: 0 | AP20: 0 | AQ20: 0 | AR20: 0 | AS20: 0 | AT20: 0 | AU20: 0 | AV20: 0 | AW20: 0 | AX20: 0 | AY20: 0 | BA20: =BA102*(1+$B$75) -> 1 | BB20: 0.06 | BC20: 1.19 | BD20: 0 | BE20: 0 | BF20: 0 | BG20: 0 | BH20: 0 | BI20: 0 | BJ20: 0 | BK20: 0 | BL20: 0 | BM20: 0 | BN20: 0 | BO20: 0 | BP20: 0 | BQ20: 0 | BR20: 0 | BS20: 0 | BT20: 0 | BU20: 0 | BV20: 0 | BW20: 0 | BX20: 0 | BY20: 0 | BZ20: 0 | CA20: 0 | CB20: 0 | CC20: 0 | CD20: 0 | CE20: 0 | CF20: 0 | CG20: =CG102*(1+$B$75) -> 0 | CH20: 0 | CI20: 0 | CJ20: 0 | CK20: 0 | CL20: 0 | CM20: 0 | CN20: 0 | CO20: 0 | CP20: 0 | CQ20: 0 | CR20: 0 | CS20: 0 | CT20: 0 | CU20: 0 | CV20: 0 | CW20: 0 | CX20: 0 | CY20: 0 | CZ20: 0 | DA20: 0 | DB20: 0 | DC20: 0 | DD20: 0 | DE20: 0 | DF20: 0 | DG20: 0 | DH20: 0 | DI20: 0 | DJ20: 0 | DK20: 0 | DL20: 0 | DM20: =DM102*(1+$B$75) -> 0 | DN20: 0 | DO20: 0 | DP20: 0 | DQ20: 0 | DR20: 0 | DS20: 0 | DT20: 0 | DU20: 0 | DV20: 0 | DW20: 0 | DX20: 0 | DY20: 0 | DZ20: 0 | EA20: 0 | EB20: 0 | EC20: 0 | ED20: 0 | EE20: 0 | EF20: 0
A21: 13 | B21: Heizst.,Strom,Wasser,Abwasser | E21: € | G21: 0 | H21: 0 | I21: 0 | J21: 0 | L21: =L103*(1+$B$75) -> 121 | M21: 58 | N21: 58 | O21: 35 | P21: 26 | Q21: 0 | R21: 52 | S21: 29 | T21: 0 | U21: 7 | V21: 0 | W21: 0 | X21: 2 | Y21: 26 | Z21: 0 | AA21: 0 | AB21: 0 | AC21: 0 | AD21: 0 | AE21: 0 | AF21: 0 | AG21: 0 | AH21: 0 | AI21: 0 | AJ21: 0 | AK21: 0 | AL21: 0 | AM21: 0 | AN21: 0 | AO21: 0 | AP21: 0 | AQ21: 0 | AR21: 0 | AS21: 0 | AT21: 0 | AU21: 0 | AV21: 0 | AW21: 0 | AX21: 0 | AY21: 0 | BA21: =BA103*(1+$B$75) -> 101 | BB21: 2.73 | BC21: 1.13 | BD21: 0 | BE21: 0 | BF21: 0 | BG21: 79.73 | BH21: 8.33 | BI21: 0 | BJ21: 85.68 | BK21: 78.54 | BL21: 73.78 | BM21: 0 | BN21: 0 | BO21: 0 | BP21: 0 | BQ21: 0 | BR21: 0 | BS21: 0 | BT21: 0 | BU21: 0 | BV21: 0 | BW21: 0 | BX21: 0 | BY21: 0 | BZ21: 0 | CA21: 0 | CB21: 0 | CC21: 0 | CD21: 0 | CE21: 0 | CF21: 0 | CG21: =CG103*(1+$B$75) -> 0 | CH21: 0 | CI21: 0 | CJ21: 0 | CK21: 0 | CL21: 0 | CM21: 0 | CN21: 0 | CO21: 0 | CP21: 0 | CQ21: 0 | CR21: 0 | CS21: 0 | CT21: 0 | CU21: 0 | CV21: 0 | CW21: 0 | CX21: 0 | CY21: 131 | CZ21: 0 | DA21: 814 | DB21: 0 | DC21: 263 | DD21: 0 | DE21: 0 | DF21: 0 | DG21: 0 | DH21: 0 | DI21: 0 | DJ21: 0 | DK21: 0 | DL21: 0 | DM21: =DM103*(1+$B$75) -> 0 | DN21: 0 | DO21: 0 | DP21: 0 | DQ21: 0 | DR21: 0 | DS21: 0 | DT21: 0 | DU21: 0 | DV21: 0 | DW21: 0 | DX21: 86 | DY21: 0 | DZ21: 0 | EA21: 0 | EB21: 0 | EC21: 0 | ED21: 0 | EE21: 0 | EF21: 0
A22: 14 | B22: Trockn.,Lager.,Vermarkt.,Sonstiges | E22: € | G22: 0 | H22: 0 | I22: 0 | J22: 0 | L22: =L104*(1+$B$75) -> 57 | M22: 33 | N22: 54 | O22: 45 | P22: 33 | Q22: 0 | R22: 236 | S22: 399 | T22: 0 | U22: 20 | V22: 0 | W22: 0 | X22: 7 | Y22: 39 | Z22: 0 | AA22: 0 | AB22: 0 | AC22: 0 | AD22: 0 | AE22: 0 | AF22: 0 | AG22: 0 | AH22: 26 | AI22: 0 | AJ22: 0 | AK22: 0 | AL22: 0 | AM22: 0 | AN22: 0 | AO22: 0 | AP22: 26 | AQ22: 0 | AR22: 0 | AS22: 26 | AT22: 31 | AU22: 0 | AV22: 0 | AW22: 0 | AX22: 0 | AY22: 0 | BA22: =BA104*(1+$B$75) -> 8 | BB22: 0 | BC22: 0 | BD22: 5.13 | BE22: 0 | BF22: 0 | BG22: 59.5 | BH22: 3.57 | BI22: 0 | BJ22: 424.83 | BK22: 183.26 | BL22: 0 | BM22: 0 | BN22: 0 | BO22: 0 | BP22: 0 | BQ22: 0 | BR22: 0 | BS22: 0 | BT22: 0 | BU22: 50 | BV22: 31 | BW22: 26 | BX22: 51 | BY22: 51 | BZ22: 38 | CA22: 38 | CB22: 49 | CC22: 0 | CD22: 380 | CE22: 24 | CF22: 149 | CG22: =CG104*(1+$B$75) -> 83 | CH22: 32 | CI22: 68 | CJ22: 55 | CK22: 0 | CL22: 0 | CM22: 0 | CN22: 0 | CO22: 0 | CP22: 183 | CQ22: 32 | CR22: 36 | CS22: 26 | CT22: 62 | CU22: 33 | CV22: 11 | CW22: 0 | CX22: 0 | CY22: 494 | CZ22: 699 | DA22: 1658 | DB22: 908 | DC22: 7270 | DD22: 3816 | DE22: 0 | DF22: 688 | DG22: 1443 | DH22: 0 | DI22: 0 | DJ22: 0 | DK22: 37 | DL22: 0 | DM22: =DM104*(1+$B$75) -> 0 | DN22: 0 | DO22: 0 | DP22: 0 | DQ22: 0 | DR22: 5211 | DS22: 0 | DT22: 0 | DU22: 0 | DV22: 0 | DW22: 0 | DX22: 931 | DY22: 0 | DZ22: 0 | EA22: 0 | EB22: 0 | EC22: 0 | ED22: 0 | EE22: 0 | EF22: 0
A23: 15 | B23: Var. Masch'kosten eig. Maschinen | E23: € | G23: 0 | H23: 0 | I23: 0 | J23: 0 | L23: =L105*(1+$B$75) -> 97 | M23: 64 | N23: 33 | O23: 22 | P23: 26 | Q23: 0 | R23: =R105*(1+$B$75) -> 105 | S23: 63 | T23: 0 | U23: 8 | V23: 0 | W23: 0 | X23: 23 | Y23: 15 | Z23: 0 | AA23: 0 | AB23: 0 | AC23: 0 | AD23: 0 | AE23: 0 | AF23: 164 | AG23: 51 | AH23: 215 | AI23: 0 | AJ23: 0 | AK23: 250 | AL23: 0 | AM23: 102 | AN23: 154 | AO23: 0 | AP23: 176 | AQ23: 0 | AR23: 0 | AS23: 236 | AT23: 144 | AU23: 0 | AV23: 0 | AW23: 102 | AX23: 0 | AY23: 0 | BA23: =BA105*(1+$B$75) -> 40 | BB23: 0 | BC23: 3.08 | BD23: 6.15 | BE23: 0 | BF23: 0 | BG23: 0 | BH23: 4.76 | BI23: 0 | BJ23: 10.71 | BK23: 130.9 | BL23: 0 | BM23: 0 | BN23: 0 | BO23: 0 | BP23: 0 | BQ23: 0 | BR23: 0 | BS23: 0 | BT23: 0 | BU23: 165 | BV23: 129 | BW23: 140 | BX23: 156 | BY23: 157 | BZ23: 152 | CA23: 137 | CB23: 151 | CC23: 0 | CD23: 140 | CE23: 167 | CF23: 133 | CG23: =CG105*(1+$B$75) -> 132 | CH23: 174 | CI23: 167 | CJ23: 130 | CK23: 0 | CL23: 246 | CM23: 252 | CN23: 157 | CO23: 0 | CP23: 106 | CQ23: 115 | CR23: 108 | CS23: 138 | CT23: 132 | CU23: 112 | CV23: 115 | CW23: 0 | CX23: 81 | CY23: 643 | CZ23: 663 | DA23: 547 | DB23: 1026 | DC23: 263 | DD23: 400 | DE23: 0 | DF23: 666 | DG23: 441 | DH23: 0 | DI23: 0 | DJ23: 0 | DK23: 267 | DL23: 0 | DM23: =DM105*(1+$B$75) -> 0 | DN23: 0 | DO23: 0 | DP23: 0 | DQ23: 0 | DR23: 580 | DS23: 0 | DT23: 0 | DU23: 0 | DV23: 0 | DW23: 0 | DX23: 0 | DY23: =DY105 -> 0 | DZ23: 0 | EA23: 0 | EB23: 0 | EC23: 0 | ED23: 0 | EE23: 0 | EF23: 0
A24: 16 | B24: Lohnunternehmer, MR, Transporte | E24: € | G24: 0 | H24: 0 | I24: 0 | J24: 0 | L24: =L106*(1+$B$75) -> 83 | M24: 71 | N24: 20 | O24: 36 | P24: 0 | Q24: 0 | R24: 0 | S24: 0 | T24: 0 | U24: 0 | V24: 0 | W24: 0 | X24: 0 | Y24: 0 | Z24: 0 | AA24: 0 | AB24: 0 | AC24: 0 | AD24: 0 | AE24: 0 | AF24: 0 | AG24: 11 | AH24: 0 | AI24: 0 | AJ24: 0 | AK24: 0 | AL24: 0 | AM24: 821 | AN24: 0 | AO24: 0 | AP24: 298 | AQ24: 0 | AR24: 0 | AS24: 0 | AT24: 149 | AU24: 0 | AV24: 0 | AW24: 0 | AX24: 0 | AY24: 0 | BA24: =BA106*(1+$B$75) -> 0 | BB24: 0 | BC24: 0 | BD24: 6.15 | BE24: 0 | BF24: 0 | BG24: 0 | BH24: 0 | BI24: 0 | BJ24: 132.09 | BK24: 262.99 | BL24: 71.4 | BM24: 0 | BN24: 0 | BO24: 0 | BP24: 0 | BQ24: 0 | BR24: 0 | BS24: 0 | BT24: 0 | BU24: 188 | BV24: 139 | BW24: 133 | BX24: 188 | BY24: 188 | BZ24: 188 | CA24: 188 | CB24: 188 | CC24: 0 | CD24: 305 | CE24: 359 | CF24: 205 | CG24: =CG106*(1+$B$75) -> 206 | CH24: 215 | CI24: 205 | CJ24: 149 | CK24: 0 | CL24: 521 | CM24: 521 | CN24: 425 | CO24: 0 | CP24: 157 | CQ24: 157 | CR24: 133 | CS24: 215 | CT24: 149 | CU24: 149 | CV24: 383 | CW24: 0 | CX24: 0 | CY24: 0 | CZ24: 0 | DA24: 709 | DB24: 42 | DC24: 708 | DD24: 51 | DE24: 0 | DF24: 0 | DG24: 0 | DH24: 0 | DI24: 0 | DJ24: 0 | DK24: 633 | DL24: 0 | DM24: =DM106*(1+$B$75) -> 0 | DN24: 0 | DO24: 0 | DP24: 0 | DQ24: 0 | DR24: 80 | DS24: 0 | DT24: 0 | DU24: 0 | DV24: 0 | DW24: 0 | DX24: 0 | DY24: 0 | DZ24: 0 | EA24: 0 | EB24: 0 | EC24: 0 | ED24: 0 | EE24: 0 | EF24: 0
A25: 17 | B25: Variable Löhne | E25: € | G25: 0 | H25: 0 | I25: 0 | J25: 0 | L25: =L107 -> 0 | M25: =M107 -> 0 | N25: 0 | O25: 0 | P25: 0 | Q25: 0 | R25: =R107*(1+$B$75) -> 0 | S25: 0 | T25: 0 | U25: 0 | V25: 0 | W25: 0 | X25: 0 | Y25: 0 | Z25: 0 | AA25: 0 | AB25: 0 | AC25: 0 | AD25: 0 | AE25: 0 | AF25: 0 | AG25: 0 | AH25: 0 | AI25: 0 | AJ25: 0 | AK25: 0 | AL25: 0 | AM25: 0 | AN25: 0 | AO25: 0 | AP25: 0 | AQ25: 0 | AR25: 0 | AS25: 0 | AT25: 0 | AU25: 0 | AV25: 0 | AW25: 0 | AX25: 0 | AY25: 0 | AZ25: 0 | BA25: 0 | BB25: 0 | BC25: 0 | BD25: 0 | BE25: 0 | BF25: 0 | BG25: 0 | BH25: 0 | BI25: 0 | BJ25: 0 | BK25: 0 | BL25: 0 | BM25: 0 | BN25: 0 | BO25: 0 | BP25: 0 | BQ25: 0 | BR25: 0 | BS25: 0 | BT25: 0 | BU25: 0 | BV25: 0 | BW25: 0 | BX25: 0 | BY25: =BY107 -> 0 | BZ25: 0 | CA25: 0 | CB25: 0 | CC25: 0 | CD25: 0 | CE25: 0 | CF25: 0 | CG25: 0 | CH25: 0 | CI25: 0 | CJ25: 0 | CK25: 0 | CL25: 0 | CM25: 0 | CN25: 0 | CO25: 0 | CP25: 0 | CQ25: 0 | CR25: =CR107 -> 0 | CS25: 0 | CT25: 0 | CU25: 0 | CV25: 0 | CW25: 0 | CX25: 0 | CY25: 0 | CZ25: 0 | DA25: 0 | DB25: 0 | DC25: 0 | DD25: 0 | DE25: 0 | DF25: 0 | DG25: 0 | DH25: 0 | DI25: 0 | DJ25: 0 | DK25: 0 | DL25: 0 | DM25: 0 | DN25: 0 | DO25: 0 | DP25: 0 | DQ25: 0 | DR25: 0 | DS25: 0 | DT25: 0 | DU25: 0 | DV25: 0 | DW25: 0 | DX25: =DX105 -> 0 | DY25: 0 | DZ25: 0 | EA25: 0 | EB25: 0 | EC25: 0 | ED25: 0 | EE25: 0 | EF25: 0
A26: 18 | B26: Summe variable Kosten | E26: € | G26: 0 | H26: 0 | I26: 0 | J26: 0 | L26: =IF(AND(L9=0,'7 Prod'!$L$4=2),"",SUM(L16:L22,L23:L25)) -> 2150 | M26: =IF(AND(M9=0,'7 Prod'!$L$4=2),"",SUM(M16:M22,M23:M25)) -> 1084 | N26: =IF(AND(N9=0,'7 Prod'!$L$4=2),"",SUM(N16:N22,N23:N25)) -> 892 | O26: =IF(AND(O9=0,'7 Prod'!$L$4=2),"",SUM(O16:O22,O23:O25)) -> 803 | P26: =IF(AND(P9=0,'7 Prod'!$L$4=2),"",SUM(P16:P22,P23:P25)) -> 622 | Q26: =IF(AND(Q9=0,'7 Prod'!$L$4=2),"",SUM(Q16:Q22,Q23:Q25)) -> 0 | R26: =IF(AND(R9=0,'7 Prod'!$L$4=2),"",SUM(R16:R22,R23:R25)) -> 804 | S26: =IF(AND(S9=0,'7 Prod'!$L$4=2),"",SUM(S16:S22,S23:S25)) -> 2226 | T26: =IF(AND(T9=0,'7 Prod'!$L$4=2),"",SUM(T16:T22,T23:T25)) -> 0 | U26: =IF(AND(U9=0,'7 Prod'!$L$4=2),"",SUM(U16:U22,U23:U25)) -> 98 | V26: =IF(AND(V9=0,'7 Prod'!$L$4=2),"",SUM(V16:V22,V23:V25)) -> 0 | W26: =IF(AND(W9=0,'7 Prod'!$L$4=2),"",SUM(W16:W22,W23:W25)) -> 0 | X26: =IF(AND(X9=0,'7 Prod'!$L$4=2),"",SUM(X16:X22,X23:X25)) -> 63 | Y26: =IF(AND(Y9=0,'7 Prod'!$L$4=2),"",SUM(Y16:Y22,Y23:Y25)) -> 181 | Z26: =IF(AND(Z9=0,'7 Prod'!$L$4=2),"",SUM(Z16:Z22,Z23:Z25)) -> 0 | AA26: =IF(AND(AA9=0,'7 Prod'!$L$4=2),"",SUM(AA16:AA22,AA23:AA25)) -> 0 | AB26: =IF(AND(AB9=0,'7 Prod'!$L$4=2),"",SUM(AB16:AB22,AB23:AB25)) -> 0 | AC26: =IF(AND(AC9=0,'7 Prod'!$L$4=2),"",SUM(AC16:AC22,AC23:AC25)) -> 0 | AD26: =IF(AND(AD9=0,'7 Prod'!$L$4=2),"",SUM(AD16:AD22,AD23:AD25)) -> 0 | AE26: =IF(AND(AE9=0,'7 Prod'!$L$4=2),"",SUM(AE16:AE22,AE23:AE25)) -> 0 | AF26: =IF(AND(AF9=0,'7 Prod'!$L$4=2),"",SUM(AF16:AF22,AF23:AF25)) -> 281 | AG26: =IF(AND(AG9=0,'7 Prod'!$L$4=2),"",SUM(AG16:AG22,AG23:AG25)) -> 253 | AH26: =IF(AND(AH9=0,'7 Prod'!$L$4=2),"",SUM(AH16:AH22,AH23:AH25)) -> 454 | AI26: =IF(AND(AI9=0,'7 Prod'!$L$4=2),"",SUM(AI16:AI22,AI23:AI25)) -> 0 | AJ26: =IF(AND(AJ9=0,'7 Prod'!$L$4=2),"",SUM(AJ16:AJ22,AJ23:AJ25)) -> 0 | AK26: =IF(AND(AK9=0,'7 Prod'!$L$4=2),"",SUM(AK16:AK22,AK23:AK25)) -> 390 | AL26: =IF(AND(AL9=0,'7 Prod'!$L$4=2),"",SUM(AL16:AL22,AL23:AL25)) -> 0 | AM26: =IF(AND(AM9=0,'7 Prod'!$L$4=2),"",SUM(AM16:AM22,AM23:AM25)) -> 1133 | AN26: =IF(AND(AN9=0,'7 Prod'!$L$4=2),"",SUM(AN16:AN22,AN23:AN25)) -> 217 | AO26: =IF(AND(AO9=0,'7 Prod'!$L$4=2),"",SUM(AO16:AO22,AO23:AO25)) -> 0 | AP26: =IF(AND(AP9=0,'7 Prod'!$L$4=2),"",SUM(AP16:AP22,AP23:AP25)) -> 1019 | AQ26: =IF(AND(AQ9=0,'7 Prod'!$L$4=2),"",SUM(AQ16:AQ22,AQ23:AQ25)) -> 0 | AR26: =IF(AND(AR9=0,'7 Prod'!$L$4=2),"",SUM(AR16:AR22,AR23:AR25)) -> 0 | AS26: =IF(AND(AS9=0,'7 Prod'!$L$4=2),"",SUM(AS16:AS22,AS23:AS25)) -> 525 | AT26: =IF(AND(AT9=0,'7 Prod'!$L$4=2),"",SUM(AT16:AT22,AT23:AT25)) -> 664 | AU26: =IF(AND(AU9=0,'7 Prod'!$L$4=2),"",SUM(AU16:AU22,AU23:AU25)) -> 0 | AV26: =IF(AND(AV9=0,'7 Prod'!$L$4=2),"",SUM(AV16:AV22,AV23:AV25)) -> 0 | AW26: =IF(AND(AW9=0,'7 Prod'!$L$4=2),"",SUM(AW16:AW22,AW23:AW25)) -> 186 | AX26: =IF(AND(AX9=0,'7 Prod'!$L$4=2),"",SUM(AX16:AX22,AX23:AX25)) -> 0 | AY26: =IF(AND(AY9=0,'7 Prod'!$L$4=2),"",SUM(AY16:AY22,AY23:AY25)) -> 0 | AZ26: =IF(AND(AZ9=0,'7 Prod'!$L$4=2),"",SUM(AZ16:AZ22,AZ23:AZ25)) -> 0 | BA26: =IF(AND(BA9=0,'7 Prod'!$L$4=2),"",SUM(BA16:BA22,BA23:BA25)) -> 1438 | BB26: =IF(AND(BB9=0,'7 Prod'!$L$4=2),"",SUM(BB16:BB22,BB23:BB25)) -> 65.81 | BC26: =IF(AND(BC9=0,'7 Prod'!$L$4=2),"",SUM(BC16:BC22,BC23:BC25)) -> 151.95 | BD26: =IF(AND(BD9=0,'7 Prod'!$L$4=2),"",SUM(BD16:BD22,BD23:BD25)) -> 217.13 | BE26: =IF(AND(BE9=0,'7 Prod'!$L$4=2),"",SUM(BE16:BE22,BE23:BE25)) -> 0 | BF26: =IF(AND(BF9=0,'7 Prod'!$L$4=2),"",SUM(BF16:BF22,BF23:BF25)) -> 0 | BG26: =IF(AND(BG9=0,'7 Prod'!$L$4=2),"",SUM(BG16:BG22,BG23:BG25)) -> 2529.23 | BH26: =IF(AND(BH9=0,'7 Prod'!$L$4=2),"",SUM(BH16:BH22,BH23:BH25)) -> 191.77 | BI26: =IF(AND(BI9=0,'7 Prod'!$L$4=2),"",SUM(BI16:BI22,BI23:BI25)) -> 0 | BJ26: =IF(AND(BJ9=0,'7 Prod'!$L$4=2),"",SUM(BJ16:BJ22,BJ23:BJ25)) -> 1215.92 | BK26: =IF(AND(BK9=0,'7 Prod'!$L$4=2),"",SUM(BK16:BK22,BK23:BK25)) -> 1510.55 | BL26: =IF(AND(BL9=0,'7 Prod'!$L$4=2),"",SUM(BL16:BL22,BL23:BL25)) -> 2170.96 | BM26: =IF(AND(BM9=0,'7 Prod'!$L$4=2),"",SUM(BM16:BM22,BM23:BM25)) -> 0 | BN26: =IF(AND(BN9=0,'7 Prod'!$L$4=2),"",SUM(BN16:BN22,BN23:BN25)) -> 0 | BO26: =IF(AND(BO9=0,'7 Prod'!$L$4=2),"",SUM(BO16:BO22,BO23:BO25)) -> 0 | BP26: =IF(AND(BP9=0,'7 Prod'!$L$4=2),"",SUM(BP16:BP22,BP23:BP25)) -> 0 | BQ26: =IF(AND(BQ9=0,'7 Prod'!$L$4=2),"",SUM(BQ16:BQ22,BQ23:BQ25)) -> 0 | BR26: =IF(AND(BR9=0,'7 Prod'!$L$4=2),"",SUM(BR16:BR22,BR23:BR25)) -> 0 | BS26: =IF(AND(BS9=0,'7 Prod'!$L$4=2),"",SUM(BS16:BS22,BS23:BS25)) -> 0 | BT26: =IF(AND(BT9=0,'7 Prod'!$L$4=2),"",SUM(BT16:BT22,BT23:BT25)) -> 0 | BU26: =IF(AND(BU9=0,'7 Prod'!$L$4=2),"",SUM(BU16:BU22,BU23:BU25)) -> 972 | BV26: =IF(AND(BV9=0,'7 Prod'!$L$4=2),"",SUM(BV16:BV22,BV23:BV25)) -> 712 | BW26: =IF(AND(BW9=0,'7 Prod'!$L$4=2),"",SUM(BW16:BW22,BW23:BW25)) -> 801 | BX26: =IF(AND(BX9=0,'7 Prod'!$L$4=2),"",SUM(BX16:BX22,BX23:BX25)) -> 788 | BY26: =IF(AND(BY9=0,'7 Prod'!$L$4=2),"",SUM(BY16:BY22,BY23:BY25)) -> 848 | BZ26: =IF(AND(BZ9=0,'7 Prod'!$L$4=2),"",SUM(BZ16:BZ22,BZ23:BZ25)) -> 778 | CA26: =IF(AND(CA9=0,'7 Prod'!$L$4=2),"",SUM(CA16:CA22,CA23:CA25)) -> 687 | CB26: =IF(AND(CB9=0,'7 Prod'!$L$4=2),"",SUM(CB16:CB22,CB23:CB25)) -> 857 | CC26: =IF(AND(CC9=0,'7 Prod'!$L$4=2),"",SUM(CC16:CC22,CC23:CC25)) -> 168 | CD26: =IF(AND(CD9=0,'7 Prod'!$L$4=2),"",SUM(CD16:CD22,CD23:CD25)) -> 1406 | CE26: =IF(AND(CE9=0,'7 Prod'!$L$4=2),"",SUM(CE16:CE22,CE23:CE25)) -> 1113 | CF26: =IF(AND(CF9=0,'7 Prod'!$L$4=2),"",SUM(CF16:CF22,CF23:CF25)) -> 960 | CG26: =IF(AND(CG9=0,'7 Prod'!$L$4=2),"",SUM(CG16:CG22,CG23:CG25)) -> 838 | CH26: =IF(AND(CH9=0,'7 Prod'!$L$4=2),"",SUM(CH16:CH22,CH23:CH25)) -> 956 | CI26: =IF(AND(CI9=0,'7 Prod'!$L$4=2),"",SUM(CI16:CI22,CI23:CI25)) -> 767 | CJ26: =IF(AND(CJ9=0,'7 Prod'!$L$4=2),"",SUM(CJ16:CJ22,CJ23:CJ25)) -> 763 | CK26: =IF(AND(CK9=0,'7 Prod'!$L$4=2),"",SUM(CK16:CK22,CK23:CK25)) -> 20 | CL26: =IF(AND(CL9=0,'7 Prod'!$L$4=2),"",SUM(CL16:CL22,CL23:CL25)) -> 2758 | CM26: =IF(AND(CM9=0,'7 Prod'!$L$4=2),"",SUM(CM16:CM22,CM23:CM25)) -> 2834 | CN26: =IF(AND(CN9=0,'7 Prod'!$L$4=2),"",SUM(CN16:CN22,CN23:CN25)) -> 1555 | CO26: =IF(AND(CO9=0,'7 Prod'!$L$4=2),"",SUM(CO16:CO22,CO23:CO25)) -> 20 | CP26: =IF(AND(CP9=0,'7 Prod'!$L$4=2),"",SUM(CP16:CP22,CP23:CP25)) -> 959 | CQ26: =IF(AND(CQ9=0,'7 Prod'!$L$4=2),"",SUM(CQ16:CQ22,CQ23:CQ25)) -> 547 | CR26: =IF(AND(CR9=0,'7 Prod'!$L$4=2),"",SUM(CR16:CR22,CR23:CR25)) -> 667 | CS26: =IF(AND(CS9=0,'7 Prod'!$L$4=2),"",SUM(CS16:CS22,CS23:CS25)) -> 909 | CT26: =IF(AND(CT9=0,'7 Prod'!$L$4=2),"",SUM(CT16:CT22,CT23:CT25)) -> 586 | CU26: =IF(AND(CU9=0,'7 Prod'!$L$4=2),"",SUM(CU16:CU22,CU23:CU25)) -> 738 | CV26: =IF(AND(CV9=0,'7 Prod'!$L$4=2),"",SUM(CV16:CV22,CV23:CV25)) -> 930 | CW26: =IF(AND(CW9=0,'7 Prod'!$L$4=2),"",SUM(CW16:CW22,CW23:CW25)) -> 0 | CX26: =IF(AND(CX9=0,'7 Prod'!$L$4=2),"",SUM(CX16:CX22,CX23:CX25)) -> 167 | CY26: =IF(AND(CY9=0,'7 Prod'!$L$4=2),"",SUM(CY16:CY22,CY23:CY25)) -> 2753 | CZ26: =IF(AND(CZ9=0,'7 Prod'!$L$4=2),"",SUM(CZ16:CZ22,CZ23:CZ25)) -> 2975 | DA26: =IF(AND(DA9=0,'7 Prod'!$L$4=2),"",SUM(DA16:DA22,DA23:DA25)) -> 4366 | DB26: =IF(AND(DB9=0,'7 Prod'!$L$4=2),"",SUM(DB16:DB22,DB23:DB25)) -> 3317 | DC26: =IF(AND(DC9=0,'7 Prod'!$L$4=2),"",SUM(DC16:DC22,DC23:DC25)) -> 16163 | DD26: =IF(AND(DD9=0,'7 Prod'!$L$4=2),"",SUM(DD16:DD22,DD23:DD25)) -> 5854 | DE26: =IF(AND(DE9=0,'7 Prod'!$L$4=2),"",SUM(DE16:DE22,DE23:DE25)) -> 0 | DF26: =IF(AND(DF9=0,'7 Prod'!$L$4=2),"",SUM(DF16:DF22,DF23:DF25)) -> 1583 | DG26: =IF(AND(DG9=0,'7 Prod'!$L$4=2),"",SUM(DG16:DG22,DG23:DG25)) -> 2117 | DH26: =IF(AND(DH9=0,'7 Prod'!$L$4=2),"",SUM(DH16:DH22,DH23:DH25)) -> 0 | DI26: =IF(AND(DI9=0,'7 Prod'!$L$4=2),"",SUM(DI16:DI22,DI23:DI25)) -> 0 | DJ26: =IF(AND(DJ9=0,'7 Prod'!$L$4=2),"",SUM(DJ16:DJ22,DJ23:DJ25)) -> 0 | DK26: =IF(AND(DK9=0,'7 Prod'!$L$4=2),"",SUM(DK16:DK22,DK23:DK25)) -> 1421 | DL26: =IF(AND(DL9=0,'7 Prod'!$L$4=2),"",SUM(DL16:DL22,DL23:DL25)) -> 0 | DM26: =IF(AND(DM9=0,'7 Prod'!$L$4=2),"",SUM(DM16:DM22,DM23:DM25)) -> 0 | DN26: =IF(AND(DN9=0,'7 Prod'!$L$4=2),"",SUM(DN16:DN22,DN23:DN25)) -> 0 | DO26: =IF(AND(DO9=0,'7 Prod'!$L$4=2),"",SUM(DO16:DO22,DO23:DO25)) -> 0 | DP26: =IF(AND(DP9=0,'7 Prod'!$L$4=2),"",SUM(DP16:DP22,DP23:DP25)) -> 0 | DQ26: =IF(AND(DQ9=0,'7 Prod'!$L$4=2),"",SUM(DQ16:DQ22,DQ23:DQ25)) -> 0 | DR26: =IF(AND(DR9=0,'7 Prod'!$L$4=2),"",SUM(DR16:DR22,DR23:DR25)) -> 6921 | DS26: =IF(AND(DS9=0,'7 Prod'!$L$4=2),"",SUM(DS16:DS22,DS23:DS25)) -> 0 | DT26: =IF(AND(DT9=0,'7 Prod'!$L$4=2),"",SUM(DT16:DT22,DT23:DT25)) -> 0 | DU26: =IF(AND(DU9=0,'7 Prod'!$L$4=2),"",SUM(DU16:DU22,DU23:DU25)) -> 0 | DV26: =IF(AND(DV9=0,'7 Prod'!$L$4=2),"",SUM(DV16:DV22,DV23:DV25)) -> 0 | DW26: =IF(AND(DW9=0,'7 Prod'!$L$4=2),"",SUM(DW16:DW22,DW23:DW25)) -> 0 | DX26: =IF(AND(DX9=0,'7 Prod'!$L$4=2),"",SUM(DX16:DX22,DX23:DX25)) -> 1017 | DY26: =IF(AND(DY9=0,'7 Prod'!$L$4=2),"",SUM(DY16:DY22,DY23:DY25)) -> 0 | DZ26: =IF(AND(DZ9=0,'7 Prod'!$L$4=2),"",SUM(DZ16:DZ22,DZ23:DZ25)) -> 0 | EA26: =IF(AND(EA9=0,'7 Prod'!$L$4=2),"",SUM(EA16:EA22,EA23:EA25)) -> 0 | EB26: =IF(AND(EB9=0,'7 Prod'!$L$4=2),"",SUM(EB16:EB22,EB23:EB25)) -> 0 | EC26: =IF(AND(EC9=0,'7 Prod'!$L$4=2),"",SUM(EC16:EC22,EC23:EC25)) -> 0 | ED26: =IF(AND(ED9=0,'7 Prod'!$L$4=2),"",SUM(ED16:ED22,ED23:ED25)) -> 0 | EE26: =IF(AND(EE9=0,'7 Prod'!$L$4=2),"",SUM(EE16:EE22,EE23:EE25)) -> 0 | EF26: =IF(AND(EF9=0,'7 Prod'!$L$4=2),"",SUM(EF16:EF22,EF23:EF25)) -> 0 | EI26: =SUMPRODUCT(L9:EF9,L26:EF26) -> 0
A27: 19 | B27: Deckungsbeitrag | E27: € | G27: 0 | H27: 0 | I27: 0 | J27: 0 | L27: =SUM(L15)-SUM(L26) -> 1938 | M27: =SUM(M15)-SUM(M26) -> 810 | N27: 630 | O27: 855 | P27: 503 | Q27: 0 | R27: 1500 | S27: -181 | T27: 0 | U27: 22 | V27: 0 | W27: 0 | X27: 267 | Y27: 259 | Z27: 0 | AA27: 0 | AB27: 0 | AC27: 0 | AD27: 0 | AE27: 0 | AF27: -281 | AG27: -253 | AH27: -454 | AI27: 0 | AJ27: 0 | AK27: 610 | AL27: 0 | AM27: -1133 | AN27: -217 | AO27: 0 | AP27: -1019 | AQ27: 0 | AR27: 0 | AS27: -525 | AT27: -664 | AU27: 0 | AV27: 0 | AW27: -186 | AX27: 0 | AY27: 0 | AZ27: 0 | BA27: 782 | BB27: 5.04 | BC27: 16.05 | BD27: 269.74 | BE27: 0 | BF27: 0 | BG27: 3320.07 | BH27: 14.03 | BI27: 0 | BJ27: 557.68 | BK27: 2219.45 | BL27: 83.04 | BM27: 0 | BN27: 0 | BO27: 0 | BP27: 0 | BQ27: 0 | BR27: 0 | BS27: 0 | BT27: 0 | BU27: 684 | BV27: 302 | BW27: 69 | BX27: 430 | BY27: =SUM(BY15)-SUM(BY26) -> 720 | BZ27: 530 | CA27: 717 | CB27: 531 | CC27: 750 | CD27: 556 | CE27: 721 | CF27: 240 | CG27: 417 | CH27: 744 | CI27: 83 | CJ27: -175 | CK27: -20 | CL27: 1875 | CM27: 4321 | CN27: 1085 | CO27: -20 | CP27: -305 | CQ27: -97 | CR27: -667 | CS27: -909 | CT27: -228 | CU27: 134 | CV27: 10 | CW27: 0 | CX27: -167 | CY27: 3817 | CZ27: 9025 | DA27: 15134 | DB27: 6883 | DC27: 7213 | DD27: 3379 | DE27: 0 | DF27: 13777 | DG27: 3504 | DH27: 0 | DI27: 0 | DJ27: 0 | DK27: 3979 | DL27: 0 | DM27: 0 | DN27: 0 | DO27: 0 | DP27: 0 | DQ27: 0 | DR27: 19279 | DS27: 0 | DT27: 0 | DU27: 0 | DV27: 0 | DW27: 0 | DX27: 2598 | DY27: 0 | DZ27: 0 | EA27: 0 | EB27: 0 | EC27: 0 | ED27: 0 | EE27: 0 | EF27: 0
K29: Nebenleistungen:
K30: wb. Kälber je Kuh | L30: =L112 -> 0.5 | O30: kg je wb. Absetzerkalb, € | P30: =P112 -> 270 | AF30: Wi-Dü in % | AG30: Wi-Dü in % | AH30: Wi-Dü in % | AI30: Wi-Dü in % | AJ30: Wi-Dü in % | AK30: Wi-Dü in % | AL30: Wi-Dü in % | AM30: Wi-Dü in % | AN30: Wi-Dü in % | AP30: Wi-Dü in % | AQ30: Wi-Dü in % | AR30: Wi-Dü in % | AS30: Wi-Dü in % | AT30: Wi-Dü in % | AU30: Wi-Dü in % | AV30: Wi-Dü in % | AW30: Wi-Dü in % | AX30: Wi-Dü in % | BU30: Wi-Dü in % | BV30: Wi-Dü in % | BW30: Wi-Dü in % | BX30: Wi-Dü in % | BY30: Wi-Dü in % | BZ30: Wi-Dü in % | CA30: Wi-Dü in % | CB30: Wi-Dü in % | CC30: Wi-Dü in % | CD30: Wi-Dü in % | CE30: Wi-Dü in % | CF30: Wi-Dü in % | CG30: Wi-Dü in % | CH30: Wi-Dü in % | CI30: Wi-Dü in % | CJ30: Wi-Dü in % | CK30: Wi-Dü in % | CL30: Wi-Dü in % | CM30: Wi-Dü in % | CN30: Wi-Dü in % | CO30: Wi-Dü in % | CP30: Wi-Dü in % | CQ30: Wi-Dü in % | CR30: Wi-Dü in % | CS30: Wi-Dü in % | CT30: Wi-Dü in % | CU30: Wi-Dü in % | CV30: Wi-Dü in % | CW30: Wi-Dü in % | CX30: Wi-Dü in % | CY30: Wi-Dü in % | CZ30: Wi-Dü in % | DA30: Wi-Dü in % | DB30: Wi-Dü in % | DC30: Wi-Dü in % | DD30: Wi-Dü in % | DE30: Wi-Dü in % | DF30: Wi-Dü in % | DG30: Wi-Dü in % | DH30: Wi-Dü in % | DI30: Wi-Dü in % | DJ30: Wi-Dü in % | DK30: Wi-Dü in % | DL30: Wi-Dü in % | DM30: Wi-Dü in % | DN30: Wi-Dü in % | DO30: Wi-Dü in % | DP30: Wi-Dü in % | DQ30: Wi-Dü in % | DR30: Wi-Dü in % | DS30: Wi-Dü in %
K31: Preis / Wert je wb. Kalb, € | L31: =L113*(1+$D$75) -> 281 | O31: Preis je kg für wb. Kalb, € | P31: =P113*(1+$D$75) -> 2.73 | AF31: =AF113 -> 80 | AG31: 64 | AH31: 65 | AI31: 0 | AJ31: 0 | AK31: 70 | AL31: 0 | AM31: 70 | AN31: =AN113 -> 70 | AP31: =AP113 -> 50 | AQ31: 0 | AR31: 50 | AS31: 70 | AT31: 70 | AU31: 70 | AV31: 70 | AW31: 70 | AX31: =AX113 -> 0 | BU31: =BU113 -> 30 | BV31: 30 | BW31: 30 | BX31: 30 | BY31: 30 | BZ31: 30 | CA31: 30 | CB31: 30 | CC31: 30 | CD31: 30 | CE31: 30 | CF31: 30 | CG31: 30 | CH31: 30 | CI31: 30 | CJ31: 30 | CK31: 30 | CL31: 30 | CM31: 30 | CN31: 30 | CO31: 30 | CP31: 30 | CQ31: 30 | CR31: 30 | CS31: 30 | CT31: 30 | CU31: 30 | CV31: 30 | CW31: 90 | CX31: 90 | CY31: 30 | CZ31: 0 | DA31: 0 | DB31: 30 | DC31: 0 | DD31: 0 | DE31: 0 | DF31: 0 | DG31: 0 | DH31: 0 | DI31: 0 | DJ31: 0 | DK31: 0 | DL31: 0 | DM31: 0 | DN31: 0 | DO31: 0 | DP31: 0 | DQ31: 0 | DR31: 0 | DS31: 0
K32: ml. Kälber je Kuh | L32: =L114 -> 0.5 | O32: kg je ml. Absetzerkalb, € | P32: =P114 -> 310
K33: Preis / Wert je ml. Kalb, € | L33: =L115*(1+$D$75) -> 104 | O33: Preis je kg für ml. Kalb, € | P33: =P115*(1+$D$75) -> 3.6 | AZ33: Nebenleistungen:
K34: verk. Kuh je Kuh (Best.) | L34: =L116 -> 0.33 | AZ34: St. Altsau je ZS | BA34: =BA116 -> 0.43
K35: Preis je verk. Kuh , € | L35: =L117*(1+$D$75) -> 894 | O35: verk. Kuh je Kuh (Best.) | P35: =IF('1 KaP'!I$64=0,0.15,1/'1 KaP'!I$64) -> 0.2 | AZ35: Preis Altsau € | BA35: =BA117*(1+$D$75) -> 218
K36: So. Nebenleist. (o.Präm.) € | L36: =L118*(1+$D$75) -> 0 | O36: Preis je verk. Kuh , € | P36: =P118*(1+$D$75) -> 1047 | AZ36: So. Nebenleist. bar (ohne Präm.) € | BA36: =BA118*(1+$D$75) -> 0
K37: Summe € | L37: =SUM(L30*L31,L32*L33,L34*L35,L36) -> 488 | O37: So. Nebenleist. (o.Präm.) € | P37: =P119 -> 0 | AZ37: Summe € | BA37: =SUM(BA34*BA35,BA36) -> 94
K38: Kraftfutter: | O38: Summe € | P38: =SUM(P35*P36,P37) -> 209 | AZ38: Kraftfutter:
K39: Verkaufte Milch kg/Kuh | L39: =L121 -> 8000 | AZ39: Aufgez. Ferkel je Zuchtsau | BA39: =BA121 -> 30
K40: + Milch an Kälber kg/Kuh | L40: =L122 -> 200 | AZ40: kg Ferkelfutter je Ferkel | BA40: =BA122 -> 40
K41: dav. Milch aus Grundfutter kg/Kuh | L41: =L123 -> 3100 | AZ41: Ferkelfutter in kg je Zuchtsau | BA41: =BA123 -> 1200
K42: verbleibt Milch aus Kraftfutter kg/Kuh | L42: =L39+L40-L41 -> 5100 | AZ42: Ferkelfutterpreis € je t | BA42: =BA124*(1+$C$75) -> 417
K43: kg Milch je kg Kraftfutter | L43: =L125 -> 2.3
K44: Kraftfutter kg je Kuh | L44: =L42/L43 -> 2217 | AZ44: Sauenfutter kg je ZS | BA44: =BA126 -> 1225
K45: Kraftfutterpreis € je t | L45: =L127*(1+$C$75) -> 375 | AZ45: Sauenfutterpreis € je t | BA45: =BA127*(1+$C$75) -> 326
K46: = Kraftfutterkosten € | L46: =L44*L45/1000 -> 831 | AZ46: = Kraftfutterkosten € | BA46: =IF(BA44*BA45=0,0,SUM(BA41*BA42,BA44*BA45)/1000) -> 900
K47: + Mineralfutter € | L47: =L129*(1+$B$75) -> 54 | AZ47: + Mineralfutter € | BA47: =BA129*(1+$B$75) -> 0
K48: + and. Futterzuk. (z.B. Grundfutter) € | L48: =L130*(1+$C$75) -> 0 | AZ48: + anderer Futterzukauf (z.B. Grundfutter) € | BA48: =BA130*(1+$C$75) -> 10
K49: + Kälberkraftfutter + MAT € | L49: =L131*(1+$C$75) -> 90
K50: = Futterzukauf ges. je Kuh € | L50: =SUM(L46:L49) -> 975 | AZ50: = Futterzukauf ges. je ZS € | BA50: =SUM(BA46:BA48) -> 910
B56: Hilfsrechnungen zu Nebenleistungen
B57: und Futterzukauf werden angeboten
B58: für Milchkühe und Zuchtsauen.
B60: Der Düngeraufwand wird abhängig
B61: vom eingegebenen Ertrag (in t) und
B62: vom Entzug je 1000 kg Ertrag berechnet.
B64: Andere Aufwendungen, die ertrags-
B65: abhängig sind, kann der Bearbeiter
B66: abweichend von den
B67: Stammdaten selbst eingeben !
B69: Ist | C69: Ziel
B70: (Regelbest. = 1, Pauschalier. = 2)
B71: ='1 KaP'!F9 -> 2 | C71: ='1 KaP'!J9 -> 2
B73: MwSt-%, falls Pauschalierung im Ist:
B74: MwSt | C74: Zuk.Ldw. | D74: Verk.Ldw. | E74: Forst
B75: =IF(B71>=2,'1 KaP'!F8,0) -> 0.19 | C75: =IF(B71>=2,'1 KaP'!G8,0) -> 0.07 | D75: =IF(B71>=2,'1 KaP'!H8,0) -> 0.09 | E75: =IF(B71>=2,'1 KaP'!I8,0) -> 0.055
B77: Mineral. | C77: Preis € | D77: Preisbasis
B78: Ergänzungs- | C78: je kg | D78: ggf. | AF78: Entzug je | AP78: Entzug je | BU78: Entzug je | CD78: Entzug je | CH78: Entzug je | CM78: Entzug je | CU78: Entzug je | DB78: Entzug je | DL78: Entzug je | DR78: Entzug je
B79: dünger | C79: netto | D79: incl. MwSt | AF79: 1000 kg Ertrag | AP79: 1000 kg Ertrag | BU79: 1000 kg Ertrag | CD79: 1000 kg Ertrag | CH79: 1000 kg Ertrag | CM79: 1000 kg Ertrag | CU79: 1000 kg Ertrag | DB79: 1000 kg Ertrag | DL79: 1000 kg Ertrag | DR79: 1000 kg Ertrag
B80: N | C80: 1.19 | D80: =IF(B$75>0,C80*(1+B$75),C80) -> 1.42 | E80: Nährstoffentzug je 1000 kg Ertrag | AF80: 22 | AG80: 22 | AH80: 22 | AI80: 22 | AK80: 22 | AL80: 22 | AM80: 28 | AN80: 22 | AP80: 3.3 | AS80: 26 | AT80: 18 | AW80: 33 | BU80: 21 | BV80: 21 | BW80: 23 | BX80: 15 | BY80: 17 | BZ80: 14 | CA80: 15 | CB80: 18 | CC80: 15 | CD80: 15 | CE80: 9 | CH80: 33 | CI80: 33 | CJ80: 28 | CK80: 35 | CL80: 4 | CM80: 3 | CN80: 1.8 | CO80: 22 | CP80: 58 | CR80: 18 | CS80: 3.3 | CT80: 35 | CU80: 33 | CV80: 10 | CY80: 4 | CZ80: 30 | DA80: 3.5 | DB80: 30 | DC80: 1.7 | DD80: 1.1 | DE80: 1.1 | DF80: 1.8 | DG80: 1.8 | DH80: 1.8 | DI80: 1.8 | DK80: 3 | DR80: 2.5
B81: P2O5 | C81: 0.77 | D81: =IF(B$75>0,C81*(1+B$75),C81) -> 0.92 | AF81: 9.5 | AG81: 9.5 | AH81: 9.5 | AI81: 9.5 | AK81: 9.5 | AL81: 9.5 | AM81: 10 | AN81: 9.5 | AP81: 1.8 | AS81: 7 | AT81: 8 | AW81: 18 | BU81: 8 | BV81: 8 | BW81: 8 | BX81: 8 | BY81: 8 | BZ81: 8 | CA81: 8 | CB81: 8 | CC81: 8 | CD81: 8 | CE81: 5 | CF81: 12 | CG81: 11 | CH81: 18 | CI81: 18 | CJ81: 16 | CK81: 12 | CL81: 1.4 | CM81: 1.5 | CN81: 1 | CO81: 10 | CP81: 16 | CQ81: 5.3 | CR81: 8 | CS81: 1.8 | CT81: 12 | CU81: 18 | CV81: 6 | CY81: 1.5 | CZ81: 4 | DA81: 1.5 | DB81: 14 | DC81: 5 | DD81: 0.3 | DE81: 0.3 | DF81: 0.6 | DG81: 0.6 | DH81: 0.6 | DI81: 0.6 | DK81: 0.5 | DR81: 1
B82: K2O | C82: 0.7 | D82: =IF(B$75>0,C82*(1+B$75),C82) -> 0.83 | AF82: 29 | AG82: 29 | AH82: 29 | AI82: 29 | AK82: 29 | AL82: 229 | AM82: 30 | AN82: 29 | AP82: 1.6 | AS82: 31 | AT82: 6 | AW82: 10 | BU82: 6 | BV82: 6 | BW82: 6 | BX82: 6 | BY82: 6 | BZ82: 6 | CA82: 6 | CB82: 6 | CC82: 6 | CD82: 6 | CE82: 4 | CF82: 14 | CG82: 14 | CH82: 10 | CI82: 10 | CJ82: 24 | CK82: 10 | CL82: 6 | CM82: 6 | CN82: 2.5 | CO82: 29 | CP82: 17 | CQ82: 11.6 | CR82: 6 | CS82: 1.6 | CT82: 10 | CU82: 10 | CV82: 22 | CY82: 0.3 | CZ82: 54.5 | DA82: 3.5 | DB82: 38 | DC82: 2.8 | DD82: 1.9 | DE82: 1.9 | DF82: 3 | DG82: 3 | DH82: 3 | DI82: 3 | DK82: 3.5 | DR82: 4
B83: MgO | C83: 0.7 | D83: =IF(B$75>0,C83*(1+B$75),C83) -> 0.83 | AF83: 4.8 | AG83: 4.8 | AH83: 4.8 | AI83: 4.8 | AK83: 4.8 | AL83: 4.8 | AM83: 7 | AN83: 4.8 | AP83: 0.5 | AS83: 4 | AT83: 2 | AW83: 5 | BU83: 2 | BV83: 2 | BW83: 2 | BX83: 2 | BY83: 2 | BZ83: 2 | CA83: 2 | CB83: 2 | CC83: 2 | CD83: 2 | CE83: 1 | CF83: 2 | CG83: 2 | CH83: 5 | CI83: 5 | CJ83: 6 | CK83: 5 | CL83: 2 | CM83: 1.5 | CN83: 0.8 | CO83: 5 | CP83: 5 | CQ83: 1.2 | CR83: 2 | CS83: 0.5 | CT83: 5 | CU83: 5 | CV83: 4
AF85: N-Zuschlag je ha | AP85: N-Zuschlag je ha | BU85: N-Zuschlag je ha | CD85: N-Zuschlag je ha | CH85: N-Zuschlag je ha | CM85: N-Zuschlag je ha | CU85: N-Zuschlag je ha | DB85: N-Zuschlag je ha | DL85: N-Zuschlag je ha | DR85: N-Zuschlag je ha
C86: N-Zuschlag je ha | AF86: -45 | AG86: -50 | AH86: -45 | AK86: -45 | AM86: -60 | AN86: -45 | AS86: -80 | BU86: 20 | BV86: 20 | BW86: 20 | BX86: 20 | BY86: 20 | BZ86: 20 | CA86: 20 | CB86: 20 | CC86: 20 | CD86: 20 | CE86: 20 | CH86: 20 | CI86: 20 | CK86: 20 | CL86: 50 | CM86: 20 | CO86: 20 | CP86: -132 | CU86: 20
C87: P2O5- Zuschlag je ha | BW87: 0 | CL87: 20
C88: K2O - Zuschlag je ha | BW88: 0 | CL88: 80
B90: Ausgangsdaten, ohne MwSt
B91: (Ausnahme: Der Düngeraufwand wird aufgrund der IST-Erträge und des Entzugs berechnet)
A92: 2 | B92: Hauptprodukt | E92: St, kg, t | L92: =IF('1 KaP'!F60=0,8000,IF(SUM('1 KaP'!F48:F49)=0,8000,MAX('1 KaP'!H48,'1 KaP'!H49))) -> 8000 | M92: 1 | N92: 310 | O92: 390 | P92: =(P112+P114)/2 -> 290 | Q92: 1 | R92: 12 | S92: 1 | U92: 64 | X92: 25 | Y92: 700 | AF92: 8 | AG92: 8 | AH92: 9 | AK92: 7 | AM92: 9 | AN92: 4 | AP92: 50 | AS92: 10 | AT92: 9 | AW92: 3 | AY92: 1 | BA92: ='1 KaP'!$G$80 -> 30 | BB92: 1 | BC92: 96 | BD92: 1 | BG92: 31500 | BH92: 210 | BJ92: 240 | BK92: 100 | BL92: 100 | BU92: 8 | BV92: 6 | BW92: 5 | BX92: 7 | BY92: 8 | BZ92: 6 | CA92: 6 | CB92: 7.5 | CC92: 6 | CD92: 9 | CE92: 14 | CF92: 5 | CG92: 5 | CH92: 4 | CI92: 2 | CJ92: 3 | CL92: 42.5 | CM92: 45 | CN92: =IF($CN$9=0,60,SUM('1 KaP'!$F$54)/$CN$9) -> 60 | CP92: 3 | CQ92: 3 | CR92: 7 | CS92: 50 | CT92: 2 | CU92: 4 | CV92: 8 | CY92: 9 | CZ92: 3 | DA92: 5 | DB92: 2 | DC92: 16 | DD92: 25 | DF92: 12 | DG92: 11 | DK92: 10 | DR92: 8 | DX92: 1
A93: 3 | B93: Preis | E93: € je St, je kg oder je t | L93: 0.41 | M93: =1607 -> 1607 | N93: 4.5 | O93: 3.9 | P93: =(P113+P115)/2 -> 2.9 | Q93: 0 | R93: 161 | S93: 1835 | T93: 0 | U93: 1.51 | V93: 0 | W93: 0 | X93: 11.5 | Y93: 0.5 | Z93: 0 | AA93: 0 | AB93: 0 | AC93: 0 | AD93: 0 | AE93: 0 | AF93: 0 | AG93: 0 | AH93: 0 | AI93: 0 | AJ93: 0 | AK93: 131 | AL93: 0 | AM93: 0 | AN93: 0 | AO93: 0 | AP93: 0 | AQ93: 0 | AR93: 0 | AS93: 0 | AT93: 0 | AU93: 0 | AV93: 0 | AW93: 0 | AX93: 0 | AY93: 0 | BA93: =IF('1 KaP'!E80=0,65,44) -> 65 | BB93: =BA93 -> 65 | BC93: =(1.69-0.045)*0.98 -> 1.61 | BD93: 404 | BE93: 0 | BF93: 0 | BG93: 0.17 | BH93: =0.92*0.98 -> 0.9 | BI93: 0 | BJ93: 6.78 | BK93: 34.22 | BL93: 20.68 | BM93: 0 | BN93: 0 | BO93: 0 | BP93: 0 | BQ93: 0 | BR93: 0 | BS93: 0 | BT93: 0 | BU93: 190 | BV93: 155 | BW93: 160 | BX93: 160 | BY93: 180 | BZ93: 200 | CA93: 215 | CB93: 170 | CC93: 140 | CD93: 200 | CE93: 120 | CF93: 220 | CG93: 230 | CH93: 390 | CI93: 390 | CJ93: 180 | CK93: 0 | CL93: 100 | CM93: 146 | CN93: 40 | CO93: 0 | CP93: 200 | CQ93: 138 | CR93: 0 | CS93: 0 | CT93: 164 | CU93: 200 | CV93: 89 | CW93: 0 | CX93: 0 | CY93: 670 | CZ93: 3670 | DA93: 3578 | DB93: 4679 | DC93: 1340 | DD93: 328 | DE93: 0 | DF93: 1174 | DG93: 469 | DH93: 0 | DI93: 0 | DJ93: 0 | DK93: 495 | DL93: 0 | DM93: 0 | DN93: 0 | DO93: 0 | DP93: 0 | DQ93: 0 | DR93: 2752 | DS93: 0 | DT93: 0 | DU93: 0 | DV93: 0 | DW93: 0 | DX93: 3615 | EA93: 0 | EB93: 0 | EC93: 0 | ED93: 0 | EE93: 0 | EF93: 0
A94: 4 | B94: Hauptleistung | E94: € | G94: =SUMPRODUCT(AF$9:AY$9,AF94:AY94)+SUMPRODUCT(BU$9:DB$9,BU94:DB94) -> 0 | H94: =SUMPRODUCT(L$9:AE$9,L94:AE94)+SUMPRODUCT(BA$9:BT$9,BA94:BT94) -> 0 | I94: =SUMPRODUCT(DC$9:EF$9,DC94:EF94) -> 0 | J94: =SUMPRODUCT(DV$9:EF$9,DV94:EF94) -> 0 | L94: =L92*L93 -> 3280 | M94: =M92*M93 -> 1607 | N94: =N92*N93 -> 1395 | O94: =O92*O93 -> 1521 | P94: 841 | Q94: 0 | R94: 1932 | S94: 1835 | T94: 0 | U94: 97 | V94: 0 | W94: 0 | X94: 288 | Y94: 350 | Z94: 0 | AA94: 0 | AB94: 0 | AC94: 0 | AD94: 0 | AE94: 0 | AF94: 0 | AG94: 0 | AH94: 0 | AI94: 0 | AJ94: 0 | AK94: 917 | AL94: 0 | AM94: 0 | AN94: 0 | AO94: 0 | AP94: 0 | AQ94: 0 | AR94: 0 | AS94: 0 | AT94: 0 | AU94: 0 | AV94: 0 | AW94: 0 | AX94: 0 | AY94: 0 | BA94: =BA92*BA93 -> 1950 | BB94: =BB92*BB93 -> 65 | BC94: 154.56 | BD94: 404 | BE94: 0 | BF94: 0 | BG94: 5355 | BH94: 189 | BI94: 0 | BJ94: 1627.2 | BK94: 3422 | BL94: 2068 | BM94: 0 | BN94: 0 | BO94: 0 | BP94: 0 | BQ94: 0 | BR94: 0 | BS94: 0 | BT94: 0 | BU94: 1520 | BV94: 930 | BW94: 800 | BX94: 1120 | BY94: =BY92*BY93 -> 1440 | BZ94: 1200 | CA94: 1290 | CB94: 1275 | CC94: 840 | CD94: 1800 | CE94: 1680 | CF94: 1100 | CG94: 1150 | CH94: 1560 | CI94: 780 | CJ94: 540 | CK94: 0 | CL94: 4250 | CM94: 6570 | CN94: 2400 | CO94: 0 | CP94: 600 | CQ94: 414 | CR94: 0 | CS94: 0 | CT94: 328 | CU94: 800 | CV94: 712 | CW94: 0 | CX94: 0 | CY94: 6030 | CZ94: 11010 | DA94: 17890 | DB94: 9358 | DC94: 21440 | DD94: 8200 | DE94: 0 | DF94: 14088 | DG94: 5159 | DH94: 0 | DI94: 0 | DJ94: 0 | DK94: 4950 | DL94: 0 | DM94: =DM92*DM93 -> 0 | DN94: 0 | DO94: 0 | DP94: 0 | DQ94: 0 | DR94: 22016 | DS94: 0 | DT94: 0 | DU94: 0 | DV94: 0 | DW94: 0 | DX94: 3615 | DY94: 0 | DZ94: 0 | EA94: 0 | EB94: 0 | EC94: 0 | ED94: 0 | EE94: 0 | EF94: 0
A95: 5 | B95: Nebenleistung - ohne Prämien | E95: € | G95: =SUMPRODUCT(AF$9:AY$9,AF95:AY95)+SUMPRODUCT(BU$9:DB$9,BU95:DB95) -> 0 | H95: =SUMPRODUCT(L$9:AE$9,L95:AE95)+SUMPRODUCT(BA$9:BT$9,BA95:BT95) -> 0 | I95: =SUMPRODUCT(DC$9:EF$9,DC95:EF95) -> 0 | J95: =SUMPRODUCT(DV$9:EF$9,DV95:EF95) -> 0 | L95: =L119 -> 447 | M95: 130 | N95: 0 | O95: 0 | P95: =P120 -> 192 | Q95: 0 | R95: 0 | S95: 41 | T95: 0 | U95: 13 | V95: 0 | W95: 0 | X95: 15 | Y95: 50 | Z95: 0 | AA95: 0 | AB95: 0 | AC95: 0 | AD95: 0 | AE95: 0 | AF95: 0 | AG95: 0 | AH95: 0 | AI95: 0 | AJ95: 0 | AK95: 0 | AL95: 0 | AM95: 0 | AN95: 0 | AO95: 0 | AP95: 0 | AQ95: 0 | AR95: 0 | AS95: 0 | AT95: 0 | AU95: 0 | AV95: 0 | AW95: 0 | AX95: 0 | AY95: 0 | BA95: =BA119 -> 86 | BC95: 0 | BD95: 43 | BE95: 0 | BG95: 20 | BJ95: 0 | BK95: 0 | BL95: 0 | BM95: 0 | BN95: 0 | BO95: 0 | BP95: 0 | BQ95: 0 | BR95: 0 | BS95: 0 | BT95: 0 | BU95: 0 | BV95: 0 | BW95: 0 | BX95: 0 | BY95: 0 | CA95: 0 | CB95: 0 | CC95: 0 | CD95: 0 | CE95: 0 | CF95: 0 | CG95: 0 | CH95: 0 | CI95: 0 | CJ95: 0 | CK95: 0 | CL95: 0 | CM95: 0 | CN95: 0 | CO95: 0 | CP95: 0 | CQ95: 0 | CR95: 0 | CS95: 0 | CT95: 0 | CU95: 0 | CV95: 150 | CW95: 0 | CX95: 0 | CY95: 0 | CZ95: 0 | DA95: 0 | DB95: 0 | DC95: 0 | DD95: 260 | DE95: 0 | DF95: 0 | DG95: 0 | DH95: 0 | DI95: 0 | DJ95: 0 | DK95: 0 | DL95: 0 | DM95: 0 | DN95: 0 | DO95: 0 | DP95: 0 | DQ95: 0 | DR95: 0 | DS95: 0 | DU95: 0 | DV95: 0 | DW95: 0 | DX95: 0 | EA95: 0 | EB95: 0 | EC95: 0 | ED95: 0 | EE95: 0 | EF95: 0
A96: 6 | B96: Prämien, Ausgleichszahlungen | E96: € | G96: =SUMPRODUCT(AN91:AO91,AN96:AO96) -> 0 | H96: =SUMPRODUCT(L91:AE91,L96:AE96)+SUMPRODUCT(BA91:BT91,BA96:BT96) -> 0 | I96: =SUMPRODUCT(DX91:DY91,DX96:DY96)+EE91*EE96 -> 0 | J96: =EE91*EE96 -> 0 | M96: 0 | N96: 0 | O96: 0 | P96: 0 | Q96: 0 | R96: 0 | S96: 0 | T96: 0 | U96: 0 | V96: 0 | W96: 0 | X96: 0 | Y96: 0 | Z96: 0 | AA96: 0 | AB96: 0 | AC96: 0 | AD96: 0 | AE96: 0 | AF96: 0 | AG96: 0 | AH96: 0 | AI96: 0 | AJ96: 0 | AK96: 0 | AL96: 0 | AM96: 0 | AN96: 0 | AO96: 0 | AP96: 0 | AQ96: 0 | AR96: 0 | AS96: 0 | AT96: 0 | AU96: 0 | AV96: 0 | AW96: 0 | AX96: 0 | AY96: 0 | BB96: 0 | BC96: 0 | BD96: 0 | BE96: 0 | BF96: 0 | BG96: 0 | BH96: 0 | BI96: 0 | BJ96: 0 | BK96: 0 | BL96: 0 | BM96: 0 | BN96: 0 | BO96: 0 | BP96: 0 | BQ96: 0 | BR96: 0 | BS96: 0 | BT96: 0 | BU96: 0 | BV96: 0 | BW96: 0 | BX96: 0 | BY96: 0 | BZ96: 0 | CA96: 0 | CB96: 0 | CC96: 0 | CD96: 0 | CE96: 0 | CF96: 0 | CG96: 0 | CH96: 0 | CI96: 0 | CJ96: 0 | CK96: 0 | CL96: 0 | CM96: 0 | CN96: 0 | CO96: 0 | CP96: 0 | CQ96: 0 | CR96: 0 | CS96: 0 | CT96: 0 | CU96: 0 | CV96: 0 | CW96: 0 | CX96: 0 | CY96: 0 | CZ96: 0 | DA96: 0 | DB96: 0 | DC96: 0 | DD96: 0 | DE96: 0 | DF96: 0 | DG96: 0 | DH96: 0 | DI96: 0 | DJ96: 0 | DK96: 0 | DL96: 0 | DM96: 0 | DN96: 0 | DO96: 0 | DP96: 0 | DQ96: 0 | DR96: 0 | DS96: 0 | DT96: 0 | DU96: 0 | DV96: 0 | DW96: 0 | DX96: 0 | DY96: 0 | DZ96: 0 | EA96: 0 | EB96: 0 | EC96: 0 | ED96: 0 | EE96: 0 | EF96: 0
A97: 7 | B97: Leistung ges. | E97: € | G97: =SUMPRODUCT(AF$9:AY$9,AF97:AY97)+SUMPRODUCT(BU$9:DB$9,BU97:DB97) -> 0 | H97: =SUMPRODUCT(L$9:AE$9,L97:AE97)+SUMPRODUCT(BA$9:BT$9,BA97:BT97) -> 0 | I97: =SUMPRODUCT(DC$9:EF$9,DC97:EF97) -> 0 | J97: =SUMPRODUCT(DV$9:EF$9,DV97:EF97) -> 0 | L97: =IF(AND(L9=0,'7 Prod'!$L$4=2),"",SUM(L94:L96)) -> 3727 | M97: =IF(AND(M9=0,'7 Prod'!$L$4=2),"",SUM(M94:M96)) -> 1737 | N97: =IF(AND(N9=0,'7 Prod'!$L$4=2),"",SUM(N94:N96)) -> 1395 | O97: =IF(AND(O9=0,'7 Prod'!$L$4=2),"",SUM(O94:O96)) -> 1521 | P97: =IF(AND(P9=0,'7 Prod'!$L$4=2),"",SUM(P94:P96)) -> 1033 | Q97: =IF(AND(Q9=0,'7 Prod'!$L$4=2),"",SUM(Q94:Q96)) -> 0 | R97: =IF(AND(R9=0,'7 Prod'!$L$4=2),"",SUM(R94:R96)) -> 1932 | S97: =IF(AND(S9=0,'7 Prod'!$L$4=2),"",SUM(S94:S96)) -> 1876 | T97: =IF(AND(T9=0,'7 Prod'!$L$4=2),"",SUM(T94:T96)) -> 0 | U97: =IF(AND(U9=0,'7 Prod'!$L$4=2),"",SUM(U94:U96)) -> 110 | V97: =IF(AND(V9=0,'7 Prod'!$L$4=2),"",SUM(V94:V96)) -> 0 | W97: =IF(AND(W9=0,'7 Prod'!$L$4=2),"",SUM(W94:W96)) -> 0 | X97: =IF(AND(X9=0,'7 Prod'!$L$4=2),"",SUM(X94:X96)) -> 303 | Y97: =IF(AND(Y9=0,'7 Prod'!$L$4=2),"",SUM(Y94:Y96)) -> 400 | Z97: =IF(AND(Z9=0,'7 Prod'!$L$4=2),"",SUM(Z94:Z96)) -> 0 | AA97: =IF(AND(AA9=0,'7 Prod'!$L$4=2),"",SUM(AA94:AA96)) -> 0 | AB97: =IF(AND(AB9=0,'7 Prod'!$L$4=2),"",SUM(AB94:AB96)) -> 0 | AC97: =IF(AND(AC9=0,'7 Prod'!$L$4=2),"",SUM(AC94:AC96)) -> 0 | AD97: =IF(AND(AD9=0,'7 Prod'!$L$4=2),"",SUM(AD94:AD96)) -> 0 | AE97: =IF(AND(AE9=0,'7 Prod'!$L$4=2),"",SUM(AE94:AE96)) -> 0 | AF97: =IF(AND(AF9=0,'7 Prod'!$L$4=2),"",SUM(AF94:AF96)) -> 0 | AG97: =IF(AND(AG9=0,'7 Prod'!$L$4=2),"",SUM(AG94:AG96)) -> 0 | AH97: =IF(AND(AH9=0,'7 Prod'!$L$4=2),"",SUM(AH94:AH96)) -> 0 | AI97: =IF(AND(AI9=0,'7 Prod'!$L$4=2),"",SUM(AI94:AI96)) -> 0 | AJ97: =IF(AND(AJ9=0,'7 Prod'!$L$4=2),"",SUM(AJ94:AJ96)) -> 0 | AK97: =IF(AND(AK9=0,'7 Prod'!$L$4=2),"",SUM(AK94:AK96)) -> 917 | AL97: =IF(AND(AL9=0,'7 Prod'!$L$4=2),"",SUM(AL94:AL96)) -> 0 | AM97: =IF(AND(AM9=0,'7 Prod'!$L$4=2),"",SUM(AM94:AM96)) -> 0 | AN97: =IF(AND(AN9=0,'7 Prod'!$L$4=2),"",SUM(AN94:AN96)) -> 0 | AO97: =IF(AND(AO9=0,'7 Prod'!$L$4=2),"",SUM(AO94:AO96)) -> 0 | AP97: =IF(AND(AP9=0,'7 Prod'!$L$4=2),"",SUM(AP94:AP96)) -> 0 | AQ97: =IF(AND(AQ9=0,'7 Prod'!$L$4=2),"",SUM(AQ94:AQ96)) -> 0 | AR97: =IF(AND(AR9=0,'7 Prod'!$L$4=2),"",SUM(AR94:AR96)) -> 0 | AS97: =IF(AND(AS9=0,'7 Prod'!$L$4=2),"",SUM(AS94:AS96)) -> 0 | AT97: =IF(AND(AT9=0,'7 Prod'!$L$4=2),"",SUM(AT94:AT96)) -> 0 | AU97: =IF(AND(AU9=0,'7 Prod'!$L$4=2),"",SUM(AU94:AU96)) -> 0 | AV97: =IF(AND(AV9=0,'7 Prod'!$L$4=2),"",SUM(AV94:AV96)) -> 0 | AW97: =IF(AND(AW9=0,'7 Prod'!$L$4=2),"",SUM(AW94:AW96)) -> 0 | AX97: =IF(AND(AX9=0,'7 Prod'!$L$4=2),"",SUM(AX94:AX96)) -> 0 | AY97: =IF(AND(AY9=0,'7 Prod'!$L$4=2),"",SUM(AY94:AY96)) -> 0 | AZ97: =IF(AND(AZ9=0,'7 Prod'!$L$4=2),"",SUM(AZ94:AZ96)) -> 0 | BA97: =IF(AND(BA9=0,'7 Prod'!$L$4=2),"",SUM(BA94:BA96)) -> 2036 | BB97: =IF(AND(BB9=0,'7 Prod'!$L$4=2),"",SUM(BB94:BB96)) -> 65 | BC97: =IF(AND(BC9=0,'7 Prod'!$L$4=2),"",SUM(BC94:BC96)) -> 155 | BD97: =IF(AND(BD9=0,'7 Prod'!$L$4=2),"",SUM(BD94:BD96)) -> 447 | BE97: =IF(AND(BE9=0,'7 Prod'!$L$4=2),"",SUM(BE94:BE96)) -> 0 | BF97: =IF(AND(BF9=0,'7 Prod'!$L$4=2),"",SUM(BF94:BF96)) -> 0 | BG97: =IF(AND(BG9=0,'7 Prod'!$L$4=2),"",SUM(BG94:BG96)) -> 5375 | BH97: =IF(AND(BH9=0,'7 Prod'!$L$4=2),"",SUM(BH94:BH96)) -> 189 | BI97: =IF(AND(BI9=0,'7 Prod'!$L$4=2),"",SUM(BI94:BI96)) -> 0 | BJ97: =IF(AND(BJ9=0,'7 Prod'!$L$4=2),"",SUM(BJ94:BJ96)) -> 1627.2 | BK97: =IF(AND(BK9=0,'7 Prod'!$L$4=2),"",SUM(BK94:BK96)) -> 3422 | BL97: =IF(AND(BL9=0,'7 Prod'!$L$4=2),"",SUM(BL94:BL96)) -> 2068 | BM97: =IF(AND(BM9=0,'7 Prod'!$L$4=2),"",SUM(BM94:BM96)) -> 0 | BN97: =IF(AND(BN9=0,'7 Prod'!$L$4=2),"",SUM(BN94:BN96)) -> 0 | BO97: =IF(AND(BO9=0,'7 Prod'!$L$4=2),"",SUM(BO94:BO96)) -> 0 | BP97: =IF(AND(BP9=0,'7 Prod'!$L$4=2),"",SUM(BP94:BP96)) -> 0 | BQ97: =IF(AND(BQ9=0,'7 Prod'!$L$4=2),"",SUM(BQ94:BQ96)) -> 0 | BR97: =IF(AND(BR9=0,'7 Prod'!$L$4=2),"",SUM(BR94:BR96)) -> 0 | BS97: =IF(AND(BS9=0,'7 Prod'!$L$4=2),"",SUM(BS94:BS96)) -> 0 | BT97: =IF(AND(BT9=0,'7 Prod'!$L$4=2),"",SUM(BT94:BT96)) -> 0 | BU97: =IF(AND(BU9=0,'7 Prod'!$L$4=2),"",SUM(BU94:BU96)) -> 1520 | BV97: =IF(AND(BV9=0,'7 Prod'!$L$4=2),"",SUM(BV94:BV96)) -> 930 | BW97: =IF(AND(BW9=0,'7 Prod'!$L$4=2),"",SUM(BW94:BW96)) -> 800 | BX97: =IF(AND(BX9=0,'7 Prod'!$L$4=2),"",SUM(BX94:BX96)) -> 1120 | BY97: =IF(AND(BY9=0,'7 Prod'!$L$4=2),"",SUM(BY94:BY96)) -> 1440 | BZ97: =IF(AND(BZ9=0,'7 Prod'!$L$4=2),"",SUM(BZ94:BZ96)) -> 1200 | CA97: =IF(AND(CA9=0,'7 Prod'!$L$4=2),"",SUM(CA94:CA96)) -> 1290 | CB97: =IF(AND(CB9=0,'7 Prod'!$L$4=2),"",SUM(CB94:CB96)) -> 1275 | CC97: =IF(AND(CC9=0,'7 Prod'!$L$4=2),"",SUM(CC94:CC96)) -> 840 | CD97: =IF(AND(CD9=0,'7 Prod'!$L$4=2),"",SUM(CD94:CD96)) -> 1800 | CE97: =IF(AND(CE9=0,'7 Prod'!$L$4=2),"",SUM(CE94:CE96)) -> 1680 | CF97: =IF(AND(CF9=0,'7 Prod'!$L$4=2),"",SUM(CF94:CF96)) -> 1100 | CG97: =IF(AND(CG9=0,'7 Prod'!$L$4=2),"",SUM(CG94:CG96)) -> 1150 | CH97: =IF(AND(CH9=0,'7 Prod'!$L$4=2),"",SUM(CH94:CH96)) -> 1560 | CI97: =IF(AND(CI9=0,'7 Prod'!$L$4=2),"",SUM(CI94:CI96)) -> 780 | CJ97: =IF(AND(CJ9=0,'7 Prod'!$L$4=2),"",SUM(CJ94:CJ96)) -> 540 | CK97: =IF(AND(CK9=0,'7 Prod'!$L$4=2),"",SUM(CK94:CK96)) -> 0 | CL97: =IF(AND(CL9=0,'7 Prod'!$L$4=2),"",SUM(CL94:CL96)) -> 4250 | CM97: =IF(AND(CM9=0,'7 Prod'!$L$4=2),"",SUM(CM94:CM96)) -> 6570 | CN97: =IF(AND(CN9=0,'7 Prod'!$L$4=2),"",SUM(CN94:CN96)) -> 2400 | CO97: =IF(AND(CO9=0,'7 Prod'!$L$4=2),"",SUM(CO94:CO96)) -> 0 | CP97: =IF(AND(CP9=0,'7 Prod'!$L$4=2),"",SUM(CP94:CP96)) -> 600 | CQ97: =IF(AND(CQ9=0,'7 Prod'!$L$4=2),"",SUM(CQ94:CQ96)) -> 414 | CR97: =IF(AND(CR9=0,'7 Prod'!$L$4=2),"",SUM(CR94:CR96)) -> 0 | CS97: =IF(AND(CS9=0,'7 Prod'!$L$4=2),"",SUM(CS94:CS96)) -> 0 | CT97: =IF(AND(CT9=0,'7 Prod'!$L$4=2),"",SUM(CT94:CT96)) -> 328 | CU97: =IF(AND(CU9=0,'7 Prod'!$L$4=2),"",SUM(CU94:CU96)) -> 800 | CV97: =IF(AND(CV9=0,'7 Prod'!$L$4=2),"",SUM(CV94:CV96)) -> 862 | CW97: =IF(AND(CW9=0,'7 Prod'!$L$4=2),"",SUM(CW94:CW96)) -> 0 | CX97: =IF(AND(CX9=0,'7 Prod'!$L$4=2),"",SUM(CX94:CX96)) -> 0 | CY97: =IF(AND(CY9=0,'7 Prod'!$L$4=2),"",SUM(CY94:CY96)) -> 6030 | CZ97: =IF(AND(CZ9=0,'7 Prod'!$L$4=2),"",SUM(CZ94:CZ96)) -> 11010 | DA97: =IF(AND(DA9=0,'7 Prod'!$L$4=2),"",SUM(DA94:DA96)) -> 17890 | DB97: =IF(AND(DB9=0,'7 Prod'!$L$4=2),"",SUM(DB94:DB96)) -> 9358 | DC97: =IF(AND(DC9=0,'7 Prod'!$L$4=2),"",SUM(DC94:DC96)) -> 21440 | DD97: =IF(AND(DD9=0,'7 Prod'!$L$4=2),"",SUM(DD94:DD96)) -> 8460 | DE97: =IF(AND(DE9=0,'7 Prod'!$L$4=2),"",SUM(DE94:DE96)) -> 0 | DF97: =IF(AND(DF9=0,'7 Prod'!$L$4=2),"",SUM(DF94:DF96)) -> 14088 | DG97: =IF(AND(DG9=0,'7 Prod'!$L$4=2),"",SUM(DG94:DG96)) -> 5159 | DH97: =IF(AND(DH9=0,'7 Prod'!$L$4=2),"",SUM(DH94:DH96)) -> 0 | DI97: =IF(AND(DI9=0,'7 Prod'!$L$4=2),"",SUM(DI94:DI96)) -> 0 | DJ97: =IF(AND(DJ9=0,'7 Prod'!$L$4=2),"",SUM(DJ94:DJ96)) -> 0 | DK97: =IF(AND(DK9=0,'7 Prod'!$L$4=2),"",SUM(DK94:DK96)) -> 4950 | DL97: =IF(AND(DL9=0,'7 Prod'!$L$4=2),"",SUM(DL94:DL96)) -> 0 | DM97: =IF(AND(DM9=0,'7 Prod'!$L$4=2),"",SUM(DM94:DM96)) -> 0 | DN97: =IF(AND(DN9=0,'7 Prod'!$L$4=2),"",SUM(DN94:DN96)) -> 0 | DO97: =IF(AND(DO9=0,'7 Prod'!$L$4=2),"",SUM(DO94:DO96)) -> 0 | DP97: =IF(AND(DP9=0,'7 Prod'!$L$4=2),"",SUM(DP94:DP96)) -> 0 | DQ97: =IF(AND(DQ9=0,'7 Prod'!$L$4=2),"",SUM(DQ94:DQ96)) -> 0 | DR97: =IF(AND(DR9=0,'7 Prod'!$L$4=2),"",SUM(DR94:DR96)) -> 22016 | DS97: =IF(AND(DS9=0,'7 Prod'!$L$4=2),"",SUM(DS94:DS96)) -> 0 | DT97: =IF(AND(DT9=0,'7 Prod'!$L$4=2),"",SUM(DT94:DT96)) -> 0 | DU97: =IF(AND(DU9=0,'7 Prod'!$L$4=2),"",SUM(DU94:DU96)) -> 0 | DV97: =IF(AND(DV9=0,'7 Prod'!$L$4=2),"",SUM(DV94:DV96)) -> 0 | DW97: =IF(AND(DW9=0,'7 Prod'!$L$4=2),"",SUM(DW94:DW96)) -> 0 | DX97: =IF(AND(DX9=0,'7 Prod'!$L$4=2),"",SUM(DX94:DX96)) -> 3615 | DY97: =IF(AND(DY9=0,'7 Prod'!$L$4=2),"",SUM(DY94:DY96)) -> 0 | DZ97: =IF(AND(DZ9=0,'7 Prod'!$L$4=2),"",SUM(DZ94:DZ96)) -> 0 | EA97: =IF(AND(EA9=0,'7 Prod'!$L$4=2),"",SUM(EA94:EA96)) -> 0 | EB97: =IF(AND(EB9=0,'7 Prod'!$L$4=2),"",SUM(EB94:EB96)) -> 0 | EC97: =IF(AND(EC9=0,'7 Prod'!$L$4=2),"",SUM(EC94:EC96)) -> 0 | ED97: =IF(AND(ED9=0,'7 Prod'!$L$4=2),"",SUM(ED94:ED96)) -> 0 | EE97: =IF(AND(EE9=0,'7 Prod'!$L$4=2),"",SUM(EE94:EE96)) -> 0 | EF97: =IF(AND(EF9=0,'7 Prod'!$L$4=2),"",SUM(EF94:EF96)) -> 0 | EI97: =SUMPRODUCT(L9:EF9,L97:EF97) -> 0
A98: 8 | B98: Saatgut | C98: / Bestandsergänzung | E98: € | G98: =SUMPRODUCT(AF$9:AY$9,AF98:AY98)+SUMPRODUCT(BU$9:DB$9,BU98:DB98) -> 0 | H98: =SUMPRODUCT(L$9:AE$9,L98:AE98)+SUMPRODUCT(BA$9:BT$9,BA98:BT98) -> 0 | I98: 0 | J98: 0 | L98: =IF(SUM(M97)=0,375,SUM(M97)*SUM(L116)) -> 573.21 | M98: =L113*1.2 -> 309.6 | N98: =IF(P9>0,P112*P113,L113*0.8) -> 206.4 | O98: =IF(P9>0,P114*P115,L115) -> 95 | P98: =N94*1.2*(1/'1 KaP'!I64) -> 334.8 | Q98: 0 | R98: 0 | S98: 478 | T98: 0 | U98: 19 | V98: 0 | W98: 0 | X98: 5 | Y98: 28 | Z98: 0 | AA98: 0 | AB98: 0 | AC98: 0 | AD98: 0 | AE98: 0 | AF98: 9 | AG98: 9 | AH98: 9 | AI98: 0 | AJ98: 0 | AK98: 5 | AL98: 0 | AM98: 9 | AN98: 0 | AO98: 0 | AP98: 198 | AQ98: 0 | AR98: 0 | AS98: 75 | AT98: 117 | AU98: 0 | AW98: 15 | AY98: 0 | BA98: =326/'1 KaP'!I80 -> 142 | BB98: =44 -> 44 | BC98: 65 | BD98: 85.98 | BE98: 0 | BG98: 650 | BH98: 37 | BI98: 0 | BJ98: 173 | BK98: 358 | BL98: 245 | BM98: 0 | BN98: 0 | BO98: 0 | BP98: 0 | BQ98: 0 | BR98: 0 | BS98: 0 | BT98: 0 | BU98: 92 | BV98: 100 | BW98: 141 | BX98: 40 | BY98: 75 | BZ98: 93 | CA98: 67 | CB98: 85 | CC98: 0 | CD98: 210 | CE98: 210 | CF98: 249 | CG98: 204 | CH98: 99 | CI98: 88 | CJ98: 129 | CK98: 0 | CL98: 1000 | CM98: 1114 | CN98: 297 | CO98: 0 | CP98: 219 | CQ98: 190 | CR98: 52 | CS98: 140 | CT98: 60 | CU98: 38 | CV98: 169 | CW98: 0 | CX98: 80 | CY98: 841 | CZ98: 335 | DA98: 411 | DB98: 0 | DC98: 3869 | DD98: 2 | DE98: 0 | DF98: 5 | DG98: 13 | DH98: 0 | DI98: 0 | DJ98: 0 | DK98: 3 | DL98: 0 | DM98: 0 | DN98: 0 | DO98: 0 | DP98: 0 | DQ98: 0 | DR98: 13 | DS98: 0 | DT98: 0 | DU98: 0 | DV98: 0 | DW98: 0 | DX98: 0 | DY98: 0 | DZ98: 0 | EA98: 0 | EB98: 0 | EC98: 0 | ED98: 0 | EE98: 0 | EF98: 0
A99: 9 | B99: Dünger- | C99: / Futterzukauf | E99: € | G99: =SUMPRODUCT(AF$9:AY$9,AF99:AY99)+SUMPRODUCT(BU$9:DB$9,BU99:DB99) -> 0 | H99: =SUMPRODUCT(L$9:AE$9,L99:AE99)+SUMPRODUCT(AY$9:BT$9,AY99:BT99) -> 0 | I99: 0 | J99: 0 | L99: =L132 -> 905 | M99: 352 | N99: 352 | O99: 467.5 | P99: 112 | Q99: 0 | R99: 336 | S99: 293 | T99: 0 | U99: 14 | V99: 0 | W99: 0 | X99: 16 | Y99: 37 | Z99: 0 | AA99: 0 | AB99: 0 | AC99: 0 | AD99: 0 | AE99: 0 | AF99: =(AF92*(AF80*$C$80+AF81*$C$81+AF82*$C$82+AF83*$C$83)+AF86*$C$80+AF87*$C$81+AF88*$C$82)*(100-AF113)/100 -> 81 | AG99: =(AG92*(AG80*$C$80+AG81*$C$81+AG82*$C$82+AG83*$C$83)+AG86*$C$80+AG87*$C$81+AG88*$C$82)*(100-AG113)/100 -> 143 | AH99: =(AH92*(AH80*$C$80+AH81*$C$81+AH82*$C$82+AH83*$C$83)+AH86*$C$80+AH87*$C$81+AH88*$C$82)*(100-AH113)/100 -> 161 | AI99: 0 | AJ99: 0 | AK99: 104 | AL99: 0 | AM99: 159 | AN99: 53 | AO99: 0 | AP99: =(AP92*(AP80*$C$80+AP81*$C$81+AP82*$C$82+AP83*$C$83)+AP86*$C$80+AP87*$C$81+AP88*$C$82)*(100-AP113)/100 -> 170 | AQ99: 0 | AR99: 0 | AS99: 154 | AT99: 90 | AU99: 0 | AV99: 0 | AW99: 57 | AX99: 0 | AY99: 0 | BA99: =BA132 -> 851 | BB99: 12.85 | BC99: 70.12 | BD99: 71.96 | BE99: 0 | BF99: 0 | BG99: 1500 | BH99: 117 | BI99: 0 | BJ99: 325 | BK99: 392 | BL99: 1509 | BM99: 0 | BN99: 0 | BO99: 0 | BP99: 0 | BQ99: 0 | BR99: 0 | BS99: 0 | BT99: 0 | BU99: =(BU92*(BU80*$C$80+BU81*$C$81+BU82*$C$82+BU83*$C$83)+BU86*$C$80+BU87*$C$81+BU88*$C$82)*(100-BU113)/100 -> 222 | BV99: 171 | BW99: 154 | BX99: 162 | BY99: 196 | BZ99: 136 | CA99: 141 | CB99: 191 | CC99: 141 | CD99: 203 | CE99: 194 | CF99: 72 | CG99: 69 | CH99: 195 | CI99: 106 | CJ99: 140 | CK99: 17 | CL99: 432 | CM99: 331 | CN99: 219 | CO99: 17 | CP99: 93 | CQ99: 27 | CR99: 163 | CS99: 237 | CT99: 86 | CU99: 195 | CV99: 194 | CW99: 0 | CX99: 0 | CY99: 39 | CZ99: 231 | DA99: =(DA92*(DA80*$C$80+DA81*$C$81+DA82*$C$82+DA83*$C$83)+DA86*$C$80+DA87*$C$81+DA88*$C$82)*(100-DA113)/100 -> 39 | DB99: 102 | DC99: 125 | DD99: 72 | DE99: 0 | DF99: 56 | DG99: 52 | DH99: 0 | DI99: 0 | DJ99: 0 | DK99: 64 | DL99: 0 | DM99: 0 | DN99: 0 | DO99: 0 | DP99: 0 | DQ99: 0 | DR99: 52 | DS99: 0 | DT99: 0 | DU99: 0 | DV99: 0 | DW99: 0 | DX99: 0 | DY99: 0 | DZ99: 0 | EA99: 0 | EB99: 0 | EC99: 0 | ED99: 0 | EE99: 0 | EF99: 0 | EI99: =IF('7 Prod'!L4=2,EI15-EI97,0) -> 0 | EJ99: MwSt Einn.
A100: 10 | B100: Pfl'schutz | C100: / Tierarzt, Besam. | E100: € | G100: 0 | H100: =SUMPRODUCT(L$9:AE$9,L100:AE100)+SUMPRODUCT(BA$9:BT$9,BA100:BT100) -> 0 | I100: 0 | J100: 0 | L100: =90+45 -> 135 | M100: =50+40 -> 90 | N100: 90 | O100: 40 | P100: 40 | Q100: 0 | R100: 0 | S100: 634 | T100: 0 | U100: 10 | V100: 0 | W100: 0 | X100: 4 | Y100: 13 | Z100: 0 | AA100: 0 | AB100: 0 | AC100: 0 | AD100: 0 | AE100: 0 | AF100: 9 | AG100: 9 | AH100: 9 | AI100: 0 | AJ100: 0 | AK100: 9 | AL100: 0 | AM100: 9 | AN100: 0 | AO100: 0 | AP100: 78 | AQ100: 0 | AR100: 0 | AS100: 0 | AT100: 78 | AU100: 0 | AW100: 0 | AX100: 0 | AY100: 0 | BA100: =IF('1 KaP'!E80=0,184.03,90) -> 184.03 | BB100: 1.78 | BC100: 1.43 | BD100: 23.28 | BE100: 0 | BF100: 0 | BG100: 50 | BH100: 7 | BI100: 0 | BJ100: 25 | BK100: 44 | BL100: 100 | BM100: 0 | BN100: 0 | BO100: 0 | BP100: 0 | BQ100: 0 | BR100: 0 | BS100: 0 | BT100: 0 | BU100: 159 | BV100: 72 | BW100: 128 | BX100: 119 | BY100: 103 | BZ100: 106 | CA100: 59 | CB100: 115 | CC100: 0 | CD100: 78 | CE100: 78 | CF100: 94 | CG100: 91 | CH100: 136 | CI100: 68 | CJ100: 85 | CK100: 0 | CL100: 307 | CM100: 364 | CN100: 311 | CO100: 0 | CP100: 111 | CQ100: 0 | CR100: 105 | CS100: 72 | CT100: 55 | CU100: 108 | CV100: 0 | CW100: 0 | CX100: 0 | CY100: 152 | CZ100: 265 | DA100: 128 | DB100: 750 | DC100: 1543 | DD100: 728 | DE100: 0 | DF100: 132 | DG100: 132 | DH100: 0 | DI100: 0 | DJ100: 0 | DK100: 340 | DL100: 0 | DM100: 0 | DN100: 0 | DO100: 0 | DP100: 0 | DQ100: 0 | DR100: 365 | DS100: 0 | DT100: 0 | DU100: 0 | DV100: 0 | DW100: 0 | DX100: 0 | DY100: 0 | DZ100: 0 | EA100: 0 | EB100: 0 | EC100: 0 | ED100: 0 | EE100: 0 | EF100: 0
A101: 11 | B101: Hagel- | C101: / Tierversicherung | E101: € | G101: 0 | H101: 0 | I101: 0 | J101: 0 | L101: 19.43 | M101: 22.08 | N101: 22.06 | O101: 15.46 | P101: 11.15 | Q101: 0 | R101: 51 | S101: 51 | T101: 0 | U101: 8 | V101: 0 | W101: 0 | X101: 0 | Y101: 5 | Z101: 0 | AA101: 0 | AB101: 0 | AC101: 0 | AD101: 0 | AE101: 0 | AF101: 0 | AG101: 0 | AH101: 0 | AI101: 0 | AJ101: 0 | AK101: 0 | AL101: 0 | AM101: 0 | AN101: 0 | AO101: 0 | AP101: 12 | AQ101: 0 | AR101: 0 | AT101: 15 | AU101: 0 | AW101: 0 | AX101: 0 | BA101: 6.69 | BB101: 0.07 | BC101: 0.27 | BD101: 3 | BE101: 0 | BF101: 0 | BG101: 30 | BH101: 2 | BI101: 0 | BJ101: 0 | BK101: 0 | BL101: 30 | BM101: 0 | BN101: 0 | BO101: 0 | BP101: 0 | BQ101: 0 | BR101: 0 | BS101: 0 | BT101: 0 | BU101: 18 | BV101: 17 | BW101: 16 | BX101: 15 | BY101: 16 | BZ101: 12 | CA101: 14 | CB101: 14 | CC101: 0 | CD101: 21 | CE101: 14 | CF101: 9 | CG101: 9 | CH101: 35 | CI101: 26 | CJ101: 23 | CK101: 0 | CL101: 42 | CM101: 42 | CN101: 24 | CO101: 0 | CP101: 36 | CQ101: 8 | CR101: 15 | CS101: 12 | CT101: 12 | CU101: 42 | CV101: 9 | CW101: 0 | CX101: 0 | CY101: 358 | CZ101: 665 | DA101: 0 | DB101: 327 | DC101: 1534 | DD101: 633 | DE101: 0 | DF101: 0 | DG101: 0 | DH101: 0 | DI101: 0 | DJ101: 0 | DK101: 0 | DL101: 0 | DM101: 0 | DN101: 0 | DO101: 0 | DP101: 0 | DQ101: 0 | DR101: 540 | DS101: 0 | DT101: 0 | DU101: 0 | DV101: 0 | DW101: 0 | DX101: 0 | DY101: 0 | DZ101: 0 | EA101: 0 | EB101: 0 | EC101: 0 | ED101: 0 | EE101: 0 | EF101: 0
A102: 12 | B102: Beratung / Leistungskontrolle | E102: € | G102: 0 | H102: 0 | I102: 0 | J102: 0 | L102: 20 | M102: 17.5 | N102: 0 | O102: 0 | P102: 0 | Q102: 0 | R102: 0 | S102: 88 | T102: 0 | U102: 7 | V102: 0 | W102: 0 | X102: 3 | Y102: 9 | Z102: 0 | AA102: 0 | AB102: 0 | AC102: 0 | AD102: 0 | AE102: 0 | AF102: 0 | AG102: 0 | AH102: 0 | AI102: 0 | AJ102: 0 | AK102: 0 | AL102: 0 | AM102: 0 | AN102: 0 | AO102: 0 | AP102: 0 | AQ102: 0 | AR102: 0 | AS102: 0 | AT102: 0 | AU102: 0 | AV102: 0 | AW102: 0 | AX102: 0 | AY102: 0 | BA102: 1 | BB102: 0.05 | BC102: 1 | BD102: 0 | BE102: 0 | BF102: 0 | BH102: 0 | BI102: 0 | BJ102: 0 | BK102: 0 | BM102: 0 | BN102: 0 | BO102: 0 | BP102: 0 | BQ102: 0 | BR102: 0 | BS102: 0 | BT102: 0 | BU102: 0 | BV102: 0 | BW102: 0 | BX102: 0 | BY102: 0 | BZ102: 0 | CA102: 0 | CB102: 0 | CC102: 0 | CD102: 0 | CE102: 0 | CF102: 0 | CG102: 0 | CH102: 0 | CI102: 0 | CJ102: 0 | CK102: 0 | CL102: 0 | CM102: 0 | CN102: 0 | CO102: 0 | CP102: 0 | CQ102: 0 | CR102: 0 | CS102: 0 | CT102: 0 | CU102: 0 | CV102: 0 | CW102: 0 | CX102: 0 | CY102: 0 | CZ102: 0 | DA102: 0 | DB102: 0 | DC102: 0 | DD102: 0 | DE102: 0 | DF102: 0 | DG102: 0 | DH102: 0 | DI102: 0 | DJ102: 0 | DK102: 0 | DL102: 0 | DM102: 0 | DN102: 0 | DO102: 0 | DP102: 0 | DQ102: 0 | DR102: 0 | DS102: 0 | DT102: 0 | DU102: 0 | DV102: 0 | DW102: 0 | DX102: 0 | DY102: 0 | DZ102: 0 | EA102: 0 | EB102: 0 | EC102: 0 | ED102: 0 | EE102: 0 | EF102: 0
A103: 13 | B103: Heizst.,Strom,Wasser,Abwasser | E103: € | G103: 0 | H103: 0 | I103: 0 | J103: 0 | L103: =74.22+27.54 -> 101.76 | M103: =22.44+26.01 -> 48.45 | N103: 48.45 | O103: 29.5 | P103: 21.83 | Q103: 0 | R103: 44 | S103: 24 | T103: 0 | U103: 6 | V103: 0 | W103: 0 | X103: 2 | Y103: 22 | Z103: 0 | AA103: 0 | AB103: 0 | AC103: 0 | AD103: 0 | AE103: 0 | AF103: 0 | AG103: 0 | AH103: 0 | AI103: 0 | AJ103: 0 | AK103: 0 | AL103: 0 | AM103: 0 | AN103: 0 | AO103: 0 | AP103: 0 | AQ103: 0 | AR103: 0 | AS103: 0 | AT103: 0 | AU103: 0 | AV103: 0 | AW103: 0 | AX103: 0 | AY103: 0 | BA103: 84.86 | BB103: 2.29 | BC103: 0.95 | BD103: 0 | BE103: 0 | BF103: 0 | BG103: 67 | BH103: 7 | BI103: 0 | BJ103: 72 | BK103: 66 | BL103: 62 | BM103: 0 | BN103: 0 | BO103: 0 | BP103: 0 | BQ103: 0 | BR103: 0 | BS103: 0 | BT103: 0 | BU103: 0 | BV103: 0 | BW103: 0 | BX103: 0 | BY103: 0 | BZ103: 0 | CA103: 0 | CB103: 0 | CC103: 0 | CD103: 0 | CE103: 0 | CF103: 0 | CG103: 0 | CH103: 0 | CI103: 0 | CJ103: 0 | CK103: 0 | CL103: 0 | CM103: 0 | CN103: 0 | CO103: 0 | CP103: 0 | CQ103: 0 | CR103: 0 | CS103: 0 | CT103: 0 | CU103: 0 | CV103: 0 | CW103: 0 | CX103: 0 | CY103: 110 | CZ103: 0 | DA103: 684 | DB103: 0 | DC103: 221 | DD103: 0 | DE103: 0 | DF103: 0 | DG103: 0 | DH103: 0 | DI103: 0 | DJ103: 0 | DK103: 0 | DL103: 0 | DM103: 0 | DN103: 0 | DO103: 0 | DP103: 0 | DQ103: 0 | DR103: 0 | DS103: 0 | DT103: 0 | DU103: 0 | DV103: 0 | DW103: 0 | DX103: 86 | DY103: 0 | DZ103: 0 | EA103: 0 | EB103: 0 | EC103: 0 | ED103: 0 | EE103: 0 | EF103: 0
A104: 14 | B104: Trockn.,Lager.,Vermarkt.,Sonstiges | E104: € | G104: 0 | H104: 0 | I104: 0 | J104: 0 | L104: =47.5 -> 47.5 | M104: 27.5 | N104: 45 | O104: 37.5 | P104: 27.5 | Q104: 0 | R104: 198 | S104: 335 | T104: 0 | U104: 17 | V104: 0 | W104: 0 | X104: 6 | Y104: 33 | Z104: 0 | AA104: 0 | AB104: 0 | AC104: 0 | AD104: 0 | AE104: 0 | AF104: 0 | AG104: 0 | AH104: 22 | AI104: 0 | AJ104: 0 | AK104: 0 | AL104: 0 | AM104: 0 | AN104: 0 | AO104: 0 | AP104: 22 | AQ104: 0 | AR104: 0 | AS104: 22 | AT104: 26 | AU104: 0 | AW104: 0 | AX104: 0 | AY104: 0 | BA104: 6.96 | BB104: 0 | BC104: 0 | BD104: 4.31 | BE104: 0 | BF104: 0 | BG104: 50 | BH104: 3 | BI104: 0 | BJ104: 357 | BK104: 154 | BM104: 0 | BN104: 0 | BO104: 0 | BP104: 0 | BQ104: 0 | BR104: 0 | BS104: 0 | BT104: 0 | BU104: 42 | BV104: 26 | BW104: 22 | BX104: 43 | BY104: 43 | BZ104: 32 | CA104: 32 | CB104: 41 | CC104: 0 | CD104: 319 | CE104: 20 | CF104: 125 | CG104: 70 | CH104: 27 | CI104: 57 | CJ104: 46 | CK104: 0 | CL104: 0 | CM104: 0 | CN104: 0 | CO104: 0 | CP104: =(36+143)/1.16 -> 154 | CQ104: 27 | CR104: 30 | CS104: 22 | CT104: =(15+45)/1.16 -> 52 | CU104: 28 | CV104: 9 | CW104: 0 | CX104: 0 | CY104: 415 | CZ104: 587 | DA104: 1393 | DB104: 763 | DC104: 6109 | DD104: 3207 | DE104: 0 | DF104: 578 | DG104: 1213 | DH104: 0 | DI104: 0 | DJ104: 0 | DK104: 31 | DL104: 0 | DM104: 0 | DN104: 0 | DO104: 0 | DP104: 0 | DQ104: 0 | DR104: 4379 | DS104: 0 | DT104: 0 | DU104: 0 | DV104: 0 | DW104: 0 | DX104: 931 | DY104: 0 | DZ104: 0 | EA104: 0 | EB104: 0 | EC104: 0 | ED104: 0 | EE104: 0 | EF104: 0
A105: 15 | B105: Var. Masch'kosten eig. Maschinen | E105: € | G105: 0 | H105: 0 | I105: 0 | J105: 0 | L105: =44.8+37.11 -> 81.91 | M105: =27.72+25.98 -> 53.7 | N105: 27.72 | O105: 18.18 | P105: 22 | Q105: 0 | R105: 88 | S105: 53 | T105: 0 | U105: 7 | V105: 0 | W105: 0 | X105: 19 | Y105: 13 | Z105: 0 | AA105: 0 | AB105: 0 | AC105: 0 | AD105: 0 | AE105: 0 | AF105: 138 | AG105: 43 | AH105: 181 | AI105: 0 | AJ105: 0 | AK105: 210 | AL105: 0 | AM105: 86 | AN105: 129 | AO105: 0 | AP105: 148 | AQ105: 0 | AR105: 0 | AS105: 198 | AT105: 121 | AU105: 0 | AW105: 86 | AY105: 0 | BA105: 33.61 | BC105: 2.59 | BD105: 5.17 | BE105: 0 | BF105: 0 | BH105: 4 | BI105: 0 | BJ105: 9 | BK105: 110 | BL105: 0 | BM105: 0 | BN105: 0 | BO105: 0 | BP105: 0 | BQ105: 0 | BR105: 0 | BS105: 0 | BT105: 0 | BU105: 139 | BV105: 108 | BW105: 118 | BX105: 131 | BY105: 132 | BZ105: 128 | CA105: 115 | CB105: 127 | CC105: 0 | CD105: 118 | CE105: 140 | CF105: 112 | CG105: 111 | CH105: 146 | CI105: 140 | CJ105: 109 | CK105: 0 | CL105: 207 | CM105: 212 | CN105: 132 | CO105: 0 | CP105: 89 | CQ105: 97 | CR105: 91 | CS105: 116 | CT105: 111 | CU105: 94 | CV105: 97 | CW105: 0 | CX105: 68 | CY105: 540 | CZ105: 557 | DA105: 460 | DB105: 862 | DC105: 221 | DD105: 336 | DE105: 0 | DF105: 560 | DG105: 371 | DH105: 0 | DI105: 0 | DJ105: 0 | DK105: 224 | DL105: 0 | DM105: 0 | DN105: 0 | DO105: 0 | DP105: 0 | DQ105: 0 | DR105: 487 | DS105: 0 | DT105: 0 | DU105: 0 | DV105: 0 | DW105: 0 | DX105: 0 | DY105: 0 | DZ105: 0 | EA105: 0 | EB105: 0 | EC105: 0 | ED105: 0 | EE105: 0 | EF105: 0
A106: 16 | B106: LU, MR, Transporte, | E106: € | G106: 0 | H106: 0 | I106: 0 | J106: 0 | L106: 70 | M106: 60 | N106: 17 | O106: 30 | P106: 0 | Q106: 0 | R106: 0 | S106: 0 | T106: 0 | U106: 0 | V106: 0 | W106: 0 | X106: 0 | Y106: 0 | Z106: 0 | AA106: 0 | AB106: 0 | AC106: 0 | AD106: 0 | AE106: 0 | AF106: 0 | AG106: 9 | AH106: 0 | AI106: 0 | AJ106: 0 | AK106: 0 | AL106: 0 | AM106: 690 | AN106: 0 | AO106: 0 | AP106: 250 | AQ106: 0 | AR106: 0 | AS106: 0 | AT106: 125 | AU106: 0 | AW106: 0 | AX106: 0 | AY106: 0 | BA106: 0 | BB106: 0 | BC106: 0 | BD106: 5.17 | BE106: 0 | BF106: 0 | BG106: 0 | BH106: 0 | BI106: 0 | BJ106: 111 | BK106: 221 | BL106: 60 | BM106: 0 | BN106: 0 | BO106: 0 | BP106: 0 | BQ106: 0 | BR106: 0 | BS106: 0 | BT106: 0 | BU106: 158 | BV106: 117 | BW106: 112 | BX106: 158 | BY106: 158 | BZ106: 158 | CA106: 158 | CB106: 158 | CC106: 0 | CD106: 256 | CE106: 302 | CF106: 172 | CG106: 173 | CH106: 181 | CI106: 172 | CJ106: 125 | CK106: 0 | CL106: 438 | CM106: 438 | CN106: 357 | CO106: 0 | CP106: 132 | CQ106: 132 | CR106: 112 | CS106: 181 | CT106: 125 | CU106: 125 | CV106: 322 | CW106: 0 | CX106: 0 | CY106: 0 | CZ106: 0 | DA106: 596 | DB106: 35 | DC106: 595 | DD106: 43 | DE106: 0 | DF106: 0 | DG106: 0 | DH106: 0 | DI106: 0 | DJ106: 0 | DK106: 532 | DL106: 0 | DM106: 0 | DN106: 0 | DO106: 0 | DP106: 0 | DQ106: 0 | DR106: 67 | DS106: 0 | DT106: 0 | DU106: 0 | DV106: 0 | DW106: 0 | DX106: 0 | DY106: 0 | DZ106: 0 | EA106: 0 | EB106: 0 | EC106: 0 | ED106: 0 | EE106: 0 | EF106: 0
A107: 17 | B107: Variable Löhne | E107: € | G107: 0 | H107: 0 | I107: 0 | J107: 0 | L107: 0 | M107: 0 | N107: 0 | O107: 0 | P107: 0 | Q107: 0 | R107: 0 | S107: 0 | T107: 0 | U107: 0 | V107: 0 | W107: 0 | X107: 0 | Y107: 0 | Z107: 0 | AA107: 0 | AB107: 0 | AC107: 0 | AD107: 0 | AE107: 0 | AF107: 0 | AG107: 0 | AH107: 0 | AI107: 0 | AJ107: 0 | AK107: 0 | AL107: 0 | AM107: 0 | AN107: 0 | AO107: 0 | AP107: 0 | AQ107: 0 | AR107: 0 | AS107: 0 | AT107: 0 | AU107: 0 | AV107: 0 | AW107: 0 | AX107: 0 | AY107: 0 | BA107: 0 | BB107: 0 | BC107: 0 | BD107: 0 | BE107: 0 | BF107: 0 | BG107: 0 | BH107: 0 | BI107: 0 | BJ107: 0 | BK107: 0 | BL107: 0 | BM107: 0 | BN107: 0 | BO107: 0 | BP107: 0 | BQ107: 0 | BR107: 0 | BS107: 0 | BT107: 0 | BU107: 0 | BV107: 0 | BW107: 0 | BX107: 0 | BY107: 0 | BZ107: 0 | CA107: 0 | CB107: 0 | CC107: 0 | CD107: 0 | CE107: 0 | CF107: 0 | CG107: 0 | CH107: 0 | CI107: 0 | CJ107: 0 | CK107: 0 | CL107: 0 | CM107: 0 | CN107: 0 | CO107: 0 | CP107: 0 | CQ107: 0 | CR107: 0 | CS107: 0 | CT107: 0 | CU107: 0 | CV107: 0 | CW107: 0 | CX107: 0 | CY107: 0 | CZ107: 0 | DA107: 0 | DB107: 0 | DC107: 0 | DD107: 0 | DE107: 0 | DF107: 0 | DG107: 0 | DH107: 0 | DI107: 0 | DJ107: 0 | DK107: 0 | DL107: 0 | DM107: 0 | DN107: 0 | DO107: 0 | DP107: 0 | DQ107: 0 | DR107: 0 | DS107: 0 | DT107: 0 | DU107: 0 | DV107: 0 | DW107: 0 | DX107: 0 | DY107: 0 | DZ107: 0 | EA107: 0 | EB107: 0 | EC107: 0 | ED107: 0 | EE107: 0 | EF107: 0
A108: 18 | B108: Summe variable Kosten | E108: € | G108: 0 | H108: 0 | I108: 0 | J108: 0 | L108: =IF(AND(L9=0,'7 Prod'!$L$4=2),"",SUM(L98:L104,L105:L107)) -> 1954 | M108: =IF(AND(M9=0,'7 Prod'!$L$4=2),"",SUM(M98:M104,M105:M107)) -> 981 | N108: =IF(AND(N9=0,'7 Prod'!$L$4=2),"",SUM(N98:N104,N105:N107)) -> 809 | O108: =IF(AND(O9=0,'7 Prod'!$L$4=2),"",SUM(O98:O104,O105:O107)) -> 733 | P108: =IF(AND(P9=0,'7 Prod'!$L$4=2),"",SUM(P98:P104,P105:P107)) -> 569 | Q108: =IF(AND(Q9=0,'7 Prod'!$L$4=2),"",SUM(Q98:Q104,Q105:Q107)) -> 0 | R108: =IF(AND(R9=0,'7 Prod'!$L$4=2),"",SUM(R98:R104,R105:R107)) -> 717 | S108: =IF(AND(S9=0,'7 Prod'!$L$4=2),"",SUM(S98:S104,S105:S107)) -> 1956 | T108: =IF(AND(T9=0,'7 Prod'!$L$4=2),"",SUM(T98:T104,T105:T107)) -> 0 | U108: =IF(AND(U9=0,'7 Prod'!$L$4=2),"",SUM(U98:U104,U105:U107)) -> 88 | V108: =IF(AND(V9=0,'7 Prod'!$L$4=2),"",SUM(V98:V104,V105:V107)) -> 0 | W108: =IF(AND(W9=0,'7 Prod'!$L$4=2),"",SUM(W98:W104,W105:W107)) -> 0 | X108: =IF(AND(X9=0,'7 Prod'!$L$4=2),"",SUM(X98:X104,X105:X107)) -> 55 | Y108: =IF(AND(Y9=0,'7 Prod'!$L$4=2),"",SUM(Y98:Y104,Y105:Y107)) -> 160 | Z108: =IF(AND(Z9=0,'7 Prod'!$L$4=2),"",SUM(Z98:Z104,Z105:Z107)) -> 0 | AA108: =IF(AND(AA9=0,'7 Prod'!$L$4=2),"",SUM(AA98:AA104,AA105:AA107)) -> 0 | AB108: =IF(AND(AB9=0,'7 Prod'!$L$4=2),"",SUM(AB98:AB104,AB105:AB107)) -> 0 | AC108: =IF(AND(AC9=0,'7 Prod'!$L$4=2),"",SUM(AC98:AC104,AC105:AC107)) -> 0 | AD108: =IF(AND(AD9=0,'7 Prod'!$L$4=2),"",SUM(AD98:AD104,AD105:AD107)) -> 0 | AE108: =IF(AND(AE9=0,'7 Prod'!$L$4=2),"",SUM(AE98:AE104,AE105:AE107)) -> 0 | AF108: =IF(AND(AF9=0,'7 Prod'!$L$4=2),"",SUM(AF98:AF104,AF105:AF107)) -> 237 | AG108: =IF(AND(AG9=0,'7 Prod'!$L$4=2),"",SUM(AG98:AG104,AG105:AG107)) -> 213 | AH108: =IF(AND(AH9=0,'7 Prod'!$L$4=2),"",SUM(AH98:AH104,AH105:AH107)) -> 382 | AI108: =IF(AND(AI9=0,'7 Prod'!$L$4=2),"",SUM(AI98:AI104,AI105:AI107)) -> 0 | AJ108: =IF(AND(AJ9=0,'7 Prod'!$L$4=2),"",SUM(AJ98:AJ104,AJ105:AJ107)) -> 0 | AK108: =IF(AND(AK9=0,'7 Prod'!$L$4=2),"",SUM(AK98:AK104,AK105:AK107)) -> 328 | AL108: =IF(AND(AL9=0,'7 Prod'!$L$4=2),"",SUM(AL98:AL104,AL105:AL107)) -> 0 | AM108: =IF(AND(AM9=0,'7 Prod'!$L$4=2),"",SUM(AM98:AM104,AM105:AM107)) -> 953 | AN108: =IF(AND(AN9=0,'7 Prod'!$L$4=2),"",SUM(AN98:AN104,AN105:AN107)) -> 182 | AO108: =IF(AND(AO9=0,'7 Prod'!$L$4=2),"",SUM(AO98:AO104,AO105:AO107)) -> 0 | AP108: =IF(AND(AP9=0,'7 Prod'!$L$4=2),"",SUM(AP98:AP104,AP105:AP107)) -> 878 | AQ108: =IF(AND(AQ9=0,'7 Prod'!$L$4=2),"",SUM(AQ98:AQ104,AQ105:AQ107)) -> 0 | AR108: =IF(AND(AR9=0,'7 Prod'!$L$4=2),"",SUM(AR98:AR104,AR105:AR107)) -> 0 | AS108: =IF(AND(AS9=0,'7 Prod'!$L$4=2),"",SUM(AS98:AS104,AS105:AS107)) -> 449 | AT108: =IF(AND(AT9=0,'7 Prod'!$L$4=2),"",SUM(AT98:AT104,AT105:AT107)) -> 572 | AU108: =IF(AND(AU9=0,'7 Prod'!$L$4=2),"",SUM(AU98:AU104,AU105:AU107)) -> 0 | AV108: =IF(AND(AV9=0,'7 Prod'!$L$4=2),"",SUM(AV98:AV104,AV105:AV107)) -> 0 | AW108: =IF(AND(AW9=0,'7 Prod'!$L$4=2),"",SUM(AW98:AW104,AW105:AW107)) -> 158 | AX108: =IF(AND(AX9=0,'7 Prod'!$L$4=2),"",SUM(AX98:AX104,AX105:AX107)) -> 0 | AY108: =IF(AND(AY9=0,'7 Prod'!$L$4=2),"",SUM(AY98:AY104,AY105:AY107)) -> 0 | AZ108: =IF(AND(AZ9=0,'7 Prod'!$L$4=2),"",SUM(AZ98:AZ104,AZ105:AZ107)) -> 0 | BA108: =IF(AND(BA9=0,'7 Prod'!$L$4=2),"",SUM(BA98:BA104,BA105:BA107)) -> 1310 | BB108: =IF(AND(BB9=0,'7 Prod'!$L$4=2),"",SUM(BB98:BB104,BB105:BB107)) -> 61.04 | BC108: =IF(AND(BC9=0,'7 Prod'!$L$4=2),"",SUM(BC98:BC104,BC105:BC107)) -> 141.36 | BD108: =IF(AND(BD9=0,'7 Prod'!$L$4=2),"",SUM(BD98:BD104,BD105:BD107)) -> 198.87 | BE108: =IF(AND(BE9=0,'7 Prod'!$L$4=2),"",SUM(BE98:BE104,BE105:BE107)) -> 0 | BF108: =IF(AND(BF9=0,'7 Prod'!$L$4=2),"",SUM(BF98:BF104,BF105:BF107)) -> 0 | BG108: =IF(AND(BG9=0,'7 Prod'!$L$4=2),"",SUM(BG98:BG104,BG105:BG107)) -> 2347 | BH108: =IF(AND(BH9=0,'7 Prod'!$L$4=2),"",SUM(BH98:BH104,BH105:BH107)) -> 177 | BI108: =IF(AND(BI9=0,'7 Prod'!$L$4=2),"",SUM(BI98:BI104,BI105:BI107)) -> 0 | BJ108: =IF(AND(BJ9=0,'7 Prod'!$L$4=2),"",SUM(BJ98:BJ104,BJ105:BJ107)) -> 1072 | BK108: =IF(AND(BK9=0,'7 Prod'!$L$4=2),"",SUM(BK98:BK104,BK105:BK107)) -> 1345 | BL108: =IF(AND(BL9=0,'7 Prod'!$L$4=2),"",SUM(BL98:BL104,BL105:BL107)) -> 2006 | BM108: =IF(AND(BM9=0,'7 Prod'!$L$4=2),"",SUM(BM98:BM104,BM105:BM107)) -> 0 | BN108: =IF(AND(BN9=0,'7 Prod'!$L$4=2),"",SUM(BN98:BN104,BN105:BN107)) -> 0 | BO108: =IF(AND(BO9=0,'7 Prod'!$L$4=2),"",SUM(BO98:BO104,BO105:BO107)) -> 0 | BP108: =IF(AND(BP9=0,'7 Prod'!$L$4=2),"",SUM(BP98:BP104,BP105:BP107)) -> 0 | BQ108: =IF(AND(BQ9=0,'7 Prod'!$L$4=2),"",SUM(BQ98:BQ104,BQ105:BQ107)) -> 0 | BR108: =IF(AND(BR9=0,'7 Prod'!$L$4=2),"",SUM(BR98:BR104,BR105:BR107)) -> 0 | BS108: =IF(AND(BS9=0,'7 Prod'!$L$4=2),"",SUM(BS98:BS104,BS105:BS107)) -> 0 | BT108: =IF(AND(BT9=0,'7 Prod'!$L$4=2),"",SUM(BT98:BT104,BT105:BT107)) -> 0 | BU108: =IF(AND(BU9=0,'7 Prod'!$L$4=2),"",SUM(BU98:BU104,BU105:BU107)) -> 830 | BV108: =IF(AND(BV9=0,'7 Prod'!$L$4=2),"",SUM(BV98:BV104,BV105:BV107)) -> 611 | BW108: =IF(AND(BW9=0,'7 Prod'!$L$4=2),"",SUM(BW98:BW104,BW105:BW107)) -> 691 | BX108: =IF(AND(BX9=0,'7 Prod'!$L$4=2),"",SUM(BX98:BX104,BX105:BX107)) -> 668 | BY108: =IF(AND(BY9=0,'7 Prod'!$L$4=2),"",SUM(BY98:BY104,BY105:BY107)) -> 723 | BZ108: =IF(AND(BZ9=0,'7 Prod'!$L$4=2),"",SUM(BZ98:BZ104,BZ105:BZ107)) -> 665 | CA108: =IF(AND(CA9=0,'7 Prod'!$L$4=2),"",SUM(CA98:CA104,CA105:CA107)) -> 586 | CB108: =IF(AND(CB9=0,'7 Prod'!$L$4=2),"",SUM(CB98:CB104,CB105:CB107)) -> 731 | CC108: =IF(AND(CC9=0,'7 Prod'!$L$4=2),"",SUM(CC98:CC104,CC105:CC107)) -> 141 | CD108: =IF(AND(CD9=0,'7 Prod'!$L$4=2),"",SUM(CD98:CD104,CD105:CD107)) -> 1205 | CE108: =IF(AND(CE9=0,'7 Prod'!$L$4=2),"",SUM(CE98:CE104,CE105:CE107)) -> 958 | CF108: =IF(AND(CF9=0,'7 Prod'!$L$4=2),"",SUM(CF98:CF104,CF105:CF107)) -> 833 | CG108: =IF(AND(CG9=0,'7 Prod'!$L$4=2),"",SUM(CG98:CG104,CG105:CG107)) -> 727 | CH108: =IF(AND(CH9=0,'7 Prod'!$L$4=2),"",SUM(CH98:CH104,CH105:CH107)) -> 819 | CI108: =IF(AND(CI9=0,'7 Prod'!$L$4=2),"",SUM(CI98:CI104,CI105:CI107)) -> 657 | CJ108: =IF(AND(CJ9=0,'7 Prod'!$L$4=2),"",SUM(CJ98:CJ104,CJ105:CJ107)) -> 657 | CK108: =IF(AND(CK9=0,'7 Prod'!$L$4=2),"",SUM(CK98:CK104,CK105:CK107)) -> 17 | CL108: =IF(AND(CL9=0,'7 Prod'!$L$4=2),"",SUM(CL98:CL104,CL105:CL107)) -> 2426 | CM108: =IF(AND(CM9=0,'7 Prod'!$L$4=2),"",SUM(CM98:CM104,CM105:CM107)) -> 2501 | CN108: =IF(AND(CN9=0,'7 Prod'!$L$4=2),"",SUM(CN98:CN104,CN105:CN107)) -> 1340 | CO108: =IF(AND(CO9=0,'7 Prod'!$L$4=2),"",SUM(CO98:CO104,CO105:CO107)) -> 17 | CP108: =IF(AND(CP9=0,'7 Prod'!$L$4=2),"",SUM(CP98:CP104,CP105:CP107)) -> 834 | CQ108: =IF(AND(CQ9=0,'7 Prod'!$L$4=2),"",SUM(CQ98:CQ104,CQ105:CQ107)) -> 481 | CR108: =IF(AND(CR9=0,'7 Prod'!$L$4=2),"",SUM(CR98:CR104,CR105:CR107)) -> 568 | CS108: =IF(AND(CS9=0,'7 Prod'!$L$4=2),"",SUM(CS98:CS104,CS105:CS107)) -> 780 | CT108: =IF(AND(CT9=0,'7 Prod'!$L$4=2),"",SUM(CT98:CT104,CT105:CT107)) -> 501 | CU108: =IF(AND(CU9=0,'7 Prod'!$L$4=2),"",SUM(CU98:CU104,CU105:CU107)) -> 630 | CV108: =IF(AND(CV9=0,'7 Prod'!$L$4=2),"",SUM(CV98:CV104,CV105:CV107)) -> 800 | CW108: =IF(AND(CW9=0,'7 Prod'!$L$4=2),"",SUM(CW98:CW104,CW105:CW107)) -> 0 | CX108: =IF(AND(CX9=0,'7 Prod'!$L$4=2),"",SUM(CX98:CX104,CX105:CX107)) -> 148 | CY108: =IF(AND(CY9=0,'7 Prod'!$L$4=2),"",SUM(CY98:CY104,CY105:CY107)) -> 2455 | CZ108: =IF(AND(CZ9=0,'7 Prod'!$L$4=2),"",SUM(CZ98:CZ104,CZ105:CZ107)) -> 2640 | DA108: =IF(AND(DA9=0,'7 Prod'!$L$4=2),"",SUM(DA98:DA104,DA105:DA107)) -> 3711 | DB108: =IF(AND(DB9=0,'7 Prod'!$L$4=2),"",SUM(DB98:DB104,DB105:DB107)) -> 2839 | DC108: =IF(AND(DC9=0,'7 Prod'!$L$4=2),"",SUM(DC98:DC104,DC105:DC107)) -> 14217 | DD108: =IF(AND(DD9=0,'7 Prod'!$L$4=2),"",SUM(DD98:DD104,DD105:DD107)) -> 5021 | DE108: =IF(AND(DE9=0,'7 Prod'!$L$4=2),"",SUM(DE98:DE104,DE105:DE107)) -> 0 | DF108: =IF(AND(DF9=0,'7 Prod'!$L$4=2),"",SUM(DF98:DF104,DF105:DF107)) -> 1331 | DG108: =IF(AND(DG9=0,'7 Prod'!$L$4=2),"",SUM(DG98:DG104,DG105:DG107)) -> 1781 | DH108: =IF(AND(DH9=0,'7 Prod'!$L$4=2),"",SUM(DH98:DH104,DH105:DH107)) -> 0 | DI108: =IF(AND(DI9=0,'7 Prod'!$L$4=2),"",SUM(DI98:DI104,DI105:DI107)) -> 0 | DJ108: =IF(AND(DJ9=0,'7 Prod'!$L$4=2),"",SUM(DJ98:DJ104,DJ105:DJ107)) -> 0 | DK108: =IF(AND(DK9=0,'7 Prod'!$L$4=2),"",SUM(DK98:DK104,DK105:DK107)) -> 1194 | DL108: =IF(AND(DL9=0,'7 Prod'!$L$4=2),"",SUM(DL98:DL104,DL105:DL107)) -> 0 | DM108: =IF(AND(DM9=0,'7 Prod'!$L$4=2),"",SUM(DM98:DM104,DM105:DM107)) -> 0 | DN108: =IF(AND(DN9=0,'7 Prod'!$L$4=2),"",SUM(DN98:DN104,DN105:DN107)) -> 0 | DO108: =IF(AND(DO9=0,'7 Prod'!$L$4=2),"",SUM(DO98:DO104,DO105:DO107)) -> 0 | DP108: =IF(AND(DP9=0,'7 Prod'!$L$4=2),"",SUM(DP98:DP104,DP105:DP107)) -> 0 | DQ108: =IF(AND(DQ9=0,'7 Prod'!$L$4=2),"",SUM(DQ98:DQ104,DQ105:DQ107)) -> 0 | DR108: =IF(AND(DR9=0,'7 Prod'!$L$4=2),"",SUM(DR98:DR104,DR105:DR107)) -> 5903 | DS108: =IF(AND(DS9=0,'7 Prod'!$L$4=2),"",SUM(DS98:DS104,DS105:DS107)) -> 0 | DT108: =IF(AND(DT9=0,'7 Prod'!$L$4=2),"",SUM(DT98:DT104,DT105:DT107)) -> 0 | DU108: =IF(AND(DU9=0,'7 Prod'!$L$4=2),"",SUM(DU98:DU104,DU105:DU107)) -> 0 | DV108: =IF(AND(DV9=0,'7 Prod'!$L$4=2),"",SUM(DV98:DV104,DV105:DV107)) -> 0 | DW108: =IF(AND(DW9=0,'7 Prod'!$L$4=2),"",SUM(DW98:DW104,DW105:DW107)) -> 0 | DX108: =IF(AND(DX9=0,'7 Prod'!$L$4=2),"",SUM(DX98:DX104,DX105:DX107)) -> 1017 | DY108: =IF(AND(DY9=0,'7 Prod'!$L$4=2),"",SUM(DY98:DY104,DY105:DY107)) -> 0 | DZ108: =IF(AND(DZ9=0,'7 Prod'!$L$4=2),"",SUM(DZ98:DZ104,DZ105:DZ107)) -> 0 | EA108: =IF(AND(EA9=0,'7 Prod'!$L$4=2),"",SUM(EA98:EA104,EA105:EA107)) -> 0 | EB108: =IF(AND(EB9=0,'7 Prod'!$L$4=2),"",SUM(EB98:EB104,EB105:EB107)) -> 0 | EC108: =IF(AND(EC9=0,'7 Prod'!$L$4=2),"",SUM(EC98:EC104,EC105:EC107)) -> 0 | ED108: =IF(AND(ED9=0,'7 Prod'!$L$4=2),"",SUM(ED98:ED104,ED105:ED107)) -> 0 | EE108: =IF(AND(EE9=0,'7 Prod'!$L$4=2),"",SUM(EE98:EE104,EE105:EE107)) -> 0 | EF108: =IF(AND(EF9=0,'7 Prod'!$L$4=2),"",SUM(EF98:EF104,EF105:EF107)) -> 0 | EG108: =IF(AND(EG9=0,'7 Prod'!$L$4=2),"",SUM(EG98:EG104,EG105:EG107)) -> 0 | EI108: =SUMPRODUCT(L9:EF9,L108:EF108) -> 0
A109: 19 | B109: Deckungsbeitrag | E109: € | G109: 0 | H109: 0 | I109: 0 | J109: 0 | L109: =SUM(L97)-SUM(L108) -> 1773 | M109: 756 | N109: 586 | O109: 788 | P109: 464 | Q109: 0 | R109: 1215 | S109: -80 | T109: 0 | U109: 22 | V109: 0 | W109: 0 | X109: 248 | Y109: 240 | Z109: 0 | AA109: 0 | AB109: 0 | AC109: 0 | AD109: 0 | AE109: 0 | AF109: -237 | AG109: -213 | AH109: -382 | AI109: 0 | AJ109: 0 | AK109: 589 | AL109: 0 | AM109: -953 | AN109: -182 | AO109: 0 | AP109: -878 | AQ109: 0 | AR109: =SUM(AR97)-SUM(AR108) -> 0 | AS109: -449 | AT109: -572 | AU109: 0 | AV109: 0 | AW109: -158 | AX109: 0 | AY109: 0 | AZ109: 0 | BA109: 726 | BB109: 3.96 | BC109: 13.64 | BD109: 248.13 | BE109: 0 | BF109: 0 | BG109: 3028 | BH109: 12 | BI109: 0 | BJ109: 555.2 | BK109: 2077 | BL109: 62 | BM109: 0 | BN109: 0 | BO109: 0 | BP109: 0 | BQ109: 0 | BR109: 0 | BS109: 0 | BT109: 0 | BU109: 690 | BV109: 319 | BW109: 109 | BX109: =SUM(BX97)-SUM(BX108) -> 452 | BY109: 717 | BZ109: 535 | CA109: 704 | CB109: 544 | CC109: 699 | CD109: 595 | CE109: 722 | CF109: 267 | CG109: 423 | CH109: 741 | CI109: 123 | CJ109: -117 | CK109: -17 | CL109: 1824 | CM109: 4069 | CN109: 1060 | CO109: -17 | CP109: -234 | CQ109: -67 | CR109: -568 | CS109: -780 | CT109: -173 | CU109: 170 | CV109: 62 | CW109: 0 | CX109: -148 | CY109: 3575 | CZ109: 8370 | DA109: 14179 | DB109: 6519 | DC109: 7223 | DD109: =SUM(DD97)-SUM(DD108) -> 3439 | DE109: 0 | DF109: 12757 | DG109: 3378 | DH109: 0 | DI109: 0 | DJ109: 0 | DK109: 3756 | DL109: 0 | DM109: 0 | DN109: 0 | DO109: 0 | DP109: 0 | DQ109: 0 | DR109: 16113 | DS109: 0 | DT109: 0 | DU109: 0 | DV109: 0 | DW109: 0 | DX109: 2598 | DY109: 0 | DZ109: 0 | EA109: 0 | EB109: 0 | EC109: 0 | ED109: 0 | EE109: 0 | EF109: 0
EI110: =IF('7 Prod'!L4=2,EI26-EI108,0) -> 0 | EJ110: Vorst. Ausg.
K111: Nebenleistungen:
K112: wb. Kälber je Kuh | L112: 0.5 | O112: kg je wb. Absetzerkalb, € | P112: 270 | AF112: Wi-Dü in % | AG112: Wi-Dü in % | AH112: Wi-Dü in % | AI112: Wi-Dü in % | AJ112: Wi-Dü in % | AK112: Wi-Dü in % | AL112: Wi-Dü in % | AM112: Wi-Dü in % | AN112: Wi-Dü in % | AP112: Wi-Dü in % | AQ112: Wi-Dü in % | AR112: Wi-Dü in % | AS112: Wi-Dü in % | AT112: Wi-Dü in % | AU112: Wi-Dü in % | AV112: Wi-Dü in % | AW112: Wi-Dü in % | AX112: Wi-Dü in % | BU112: Wi-Dü in % | BV112: Wi-Dü in % | BW112: Wi-Dü in % | BX112: Wi-Dü in % | BY112: Wi-Dü in % | BZ112: Wi-Dü in % | CA112: Wi-Dü in % | CB112: Wi-Dü in % | CC112: Wi-Dü in % | CD112: Wi-Dü in % | CE112: Wi-Dü in % | CF112: Wi-Dü in % | CG112: Wi-Dü in % | CH112: Wi-Dü in % | CI112: Wi-Dü in % | CJ112: Wi-Dü in % | CK112: Wi-Dü in % | CL112: Wi-Dü in % | CM112: Wi-Dü in % | CN112: Wi-Dü in % | CO112: Wi-Dü in % | CP112: Wi-Dü in % | CQ112: Wi-Dü in % | CR112: Wi-Dü in % | CS112: Wi-Dü in % | CT112: Wi-Dü in % | CU112: Wi-Dü in % | CV112: Wi-Dü in % | CW112: Wi-Dü in % | CX112: Wi-Dü in % | CY112: Wi-Dü in % | CZ112: Wi-Dü in % | DA112: Wi-Dü in % | DB112: Wi-Dü in % | DC112: Wi-Dü in % | DD112: Wi-Dü in % | DE112: Wi-Dü in % | DF112: Wi-Dü in % | DG112: Wi-Dü in % | DH112: Wi-Dü in % | DI112: Wi-Dü in % | DJ112: Wi-Dü in % | DK112: Wi-Dü in % | DL112: Wi-Dü in % | DM112: Wi-Dü in % | DN112: Wi-Dü in % | DO112: Wi-Dü in % | DP112: Wi-Dü in % | DQ112: Wi-Dü in % | DR112: Wi-Dü in % | DS112: Wi-Dü in %
K113: Preis / Wert je wb. Kalb, € | L113: 258 | O113: Preis je kg für wb. Kalb, € | P113: 2.5 | AF113: 80 | AG113: 64 | AH113: 65 | AK113: 70 | AM113: 70 | AN113: 70 | AP113: 50 | AR113: 50 | AS113: 70 | AT113: 70 | AU113: 70 | AV113: 70 | AW113: 70 | BU113: 30 | BV113: 30 | BW113: 30 | BX113: 30 | BY113: 30 | BZ113: 30 | CA113: 30 | CB113: 30 | CC113: 30 | CD113: 30 | CE113: 30 | CF113: 30 | CG113: 30 | CH113: 30 | CI113: 30 | CJ113: 30 | CK113: 30 | CL113: 30 | CM113: 30 | CN113: 30 | CO113: 30 | CP113: 30 | CQ113: 30 | CR113: 30 | CS113: 30 | CT113: 30 | CU113: 30 | CV113: 30 | CW113: 90 | CX113: 90 | CY113: 30 | DB113: 30
K114: ml. Kälber je Kuh | L114: 0.5 | O114: kg je ml. Absetzerkalb, € | P114: 310
K115: Preis / Wert je ml. Kalb, € | L115: 95 | O115: Preis je kg für ml. Kalb, € | P115: 3.3 | AZ115: Nebenleistungen:
K116: verk. Kuh je Kuh (Best.) | L116: =IF('1 KaP'!I$60=0,0.3,1/'1 KaP'!I$60) -> 0.33 | AZ116: St. Altsau je ZS | BA116: =IF('1 KaP'!I$80=0,0.38,1/'1 KaP'!I$80) -> 0.43
K117: Preis je verk. Kuh , € | L117: 820 | O117: verk. Kuh je Kuh (Best.) | P117: =IF('1 KaP'!I$64=0,0.15,1/'1 KaP'!I$64) -> 0.2 | AZ117: Preis Altsau € | BA117: 200
K118: So. Nebenleist. (o.Präm.) € | O118: Preis je verk. Kuh , € | P118: 961 | AZ118: So. Nebenleist. bar (ohne Präm.) € | BA118: 0
K119: Summe € | L119: =SUM(L112*L113,L114*L115,L116*L117,L118) -> 447 | O119: So. Nebenleist. (o.Präm.) € | AZ119: Summe € | BA119: =SUM(BA116*BA117,BA118) -> 86
K120: Kraftfutter: | O120: Summe € | P120: =SUM(P117*P118,P119) -> 192 | AZ120: Kraftfutter:
K121: Verkaufte Milch kg/Kuh | L121: =L92 -> 8000 | AZ121: Aufgez. Ferkel je Zuchtsau | BA121: =BA10 -> 30
K122: + Milch an Kälber kg/Kuh | L122: 200 | AZ122: kg Ferkelfutter je Ferkel | BA122: =IF('1 KaP'!E80=0,40,1.5) -> 40
K123: dav. Milch aus Grundfutter kg/Kuh | L123: 3100 | AZ123: Ferkelfutter in kg je Zuchtsau | BA123: =BA121*BA122 -> 1200
K124: verbleibt Milch aus Kraftfutter kg/Kuh | L124: =IF(L123=0,0,L121+L122-L123) -> 5100 | AZ124: Ferkelfutterpreis € je t | BA124: 390
K125: kg Milch je kg Kraftfutter | L125: 2.3
K126: Kraftfutter kg je Kuh | L126: =IF(L125=0,0,L124/L125) -> 2217 | AZ126: Sauenfutter kg je ZS | BA126: 1225
K127: Kraftfutterpreis € je t | L127: 350 | AZ127: Sauenfutterpreis € je t | BA127: 305
K128: = Kraftfutterkosten € | L128: =L126*L127/1000 -> 776 | AZ128: = Kraftfutterkosten € | BA128: =IF(BA126*BA127=0,0,SUM(BA123*BA124,BA126*BA127)/1000) -> 842
K129: + Mineralfutter € | L129: 45 | AZ129: + Mineralfutter €
K130: + anderer Futterzukauf (z.B. Grundfutter) € | L130: 0 | AZ130: + anderer Futterzukauf (z.B. Grundfutter) € | BA130: 9
K131: + Kälberkraftfutter + MAT € | L131: 84
K132: = Futterzukauf ges. je Kuh € | L132: =SUM(L128:L131) -> 905 | AZ132: = Futterzukauf ges. je ZS € | BA132: =SUM(BA128:BA130) -> 851
B134: Stammdaten zuletzt aktualisiert am: | L134: 2025-07-16 | M134: 2023-06-13 | N134: 2023-06-13 | O134: 2023-06-13 | P134: 2023-06-13 | AP134: 2023-06-13 | BA134: 2023-06-13 | BB134: 2023-06-13 | BC134: 2023-06-13 | BG134: 2023-06-13 | BH134: 2023-06-13 | BL134: 2023-06-13 | BU134: 2023-06-13 | BX134: 2023-06-13 | BY134: 2023-06-13 | BZ134: 2023-06-13 | CA134: 2023-06-13 | CB134: 2023-06-13 | CD134: 2023-06-13 | CE134: 2023-06-13 | CF134: 2023-06-13 | CG134: 2023-06-13 | CH134: 2023-06-13 | CI134: 2023-06-13 | CL134: 2023-06-13 | CM134: 2023-06-13 | CN134: 2023-06-13
C135: von: | L135: Bigelmann | M135: Bigelmann | N135: Bigelmann | O135: Bigelmann | P135: Bigelmann | AP135: Bigelmann | BA135: Bigelmann | BB135: Bigelmann | BC135: Bigelmann | BG135: Bigelmann | BH135: Bigelmann | BL135: Bigelmann | BU135: Bigelmann | BX135: Bigelmann | BY135: Bigelmann | BZ135: Bigelmann | CA135: Bigelmann | CB135: Bigelmann | CD135: Bigelmann | CE135: Bigelmann | CF135: Bigelmann | CG135: Bigelmann | CH135: Bigelmann | CI135: Bigelmann | CL135: Bigelmann | CM135: Bigelmann | CN135: Bigelmann
C136: Datenquelle: | L136: Agriplan-PD22 | M136: Agriplan-PD22 | N136: Agriplan-PD22 | O136: Agriplan-PD22 | P136: Agriplan-PD22 | AP136: Agriplan-PD22 | BA136: Agriplan-PD22 | BB136: Agriplan-PD22 | BC136: Agriplan-PD22 | BG136: Agriplan-PD22 | BH136: Agriplan-PD22 | BL136: Agriplan-PD22 | BU136: Agriplan-PD22 | BX136: Agriplan-PD22 | BY136: Agriplan-PD22 | BZ136: Agriplan-PD22 | CA136: Agriplan-PD22 | CB136: Agriplan-PD22 | CD136: Agriplan-PD22 | CE136: Agriplan-PD22 | CF136: Agriplan-PD22 | CG136: Agriplan-PD22 | CH136: Agriplan-PD22 | CI136: Agriplan-PD22 | CL136: Agriplan-PD22 | CM136: Agriplan-PD22 | CN136: Agriplan-PD22
C137: Autor: | L137: Agriplan-PD22 | M137: Agriplan-PD22 | N137: Agriplan-PD22 | O137: Agriplan-PD22 | P137: Agriplan-PD22 | AP137: Agriplan-PD22 | BA137: Agriplan-PD22 | BB137: Agriplan-PD22 | BC137: Agriplan-PD22 | BG137: Agriplan-PD22 | BH137: Agriplan-PD22 | BL137: Agriplan-PD22 | BU137: Agriplan-PD22 | BX137: Agriplan-PD22 | BY137: Agriplan-PD22 | BZ137: Agriplan-PD22 | CA137: Agriplan-PD22 | CB137: Agriplan-PD22 | CD137: Agriplan-PD22 | CE137: Agriplan-PD22 | CF137: Agriplan-PD22 | CG137: Agriplan-PD22 | CH137: Agriplan-PD22 | CI137: Agriplan-PD22 | CL137: Agriplan-PD22 | CM137: Agriplan-PD22 | CN137: Agriplan-PD22
C139: Anmerkungen: | L139: Anpassung 16.07.2025 | M139: PD23ff noch nicht verfügbar, Stand 15.07.25 | N139: PD23ff noch nicht verfügbar, Stand 15.07.25 | O139: PD23ff noch nicht verfügbar, Stand 15.07.25 | P139: PD23ff noch nicht verfügbar, Stand 15.07.25 | AP139: PD23 noch nicht verfügbar, Stand 15.03.24 | BA139: PD23 noch nicht verfügbar, Stand 15.03.24 | BB139: PD23 noch nicht verfügbar, Stand 15.03.24 | BC139: PD23 noch nicht verfügbar, Stand 15.03.24 | BG139: PD23 noch nicht verfügbar, Stand 15.03.24 | BH139: PD23 noch nicht verfügbar, Stand 15.03.24 | BL139: PD23 noch nicht verfügbar, Stand 15.03.24 | BU139: PD23 noch nicht verfügbar, Stand 15.03.24 | BX139: PD23 noch nicht verfügbar, Stand 15.03.24 | BY139: PD23 noch nicht verfügbar, Stand 15.03.24 | BZ139: PD23 noch nicht verfügbar, Stand 15.03.24 | CA139: PD23 noch nicht verfügbar, Stand 15.03.24 | CB139: PD23 noch nicht verfügbar, Stand 15.03.24 | CD139: PD23 noch nicht verfügbar, Stand 15.03.24 | CE139: PD23 noch nicht verfügbar, Stand 15.03.24 | CF139: PD23 noch nicht verfügbar, Stand 15.03.24 | CG139: PD23 noch nicht verfügbar, Stand 15.03.24 | CH139: PD23 noch nicht verfügbar, Stand 15.03.24 | CI139: PD23 noch nicht verfügbar, Stand 15.03.24 | CL139: PD23 noch nicht verfügbar, Stand 15.03.24 | CM139: PD23 noch nicht verfügbar, Stand 15.03.24 | CN139: PD23 noch nicht verfügbar, Stand 15.03.24
EG148: 0
EG152: 0
EG153: 0
EG154: 0
EG155: 0
EG156: 0
EG157: 0

Sheet 6 Db_Z
B1: ='1 KaP'!B1 -> Investitionskonzept NRW 2025_01 | E1: Unternehmernummer
D2: =Inhalt!G5 -> 0
A4: Deckungsbeiträge | E4: ='1 KaP'!J5 -> Ziel | G4: Hochrechnung | L4: ='1 KaP'!C60 -> Milchkühe | M4: ='1 KaP'!C61 -> Zuchtfärsen | N4: ='1 KaP'!C62 -> Mastfärsen | O4: ='1 KaP'!C63 -> Mastbullen | P4: ='1 KaP'!C64 -> Mutterkühe | Q4: ='1 KaP'!C65 -> Kälber | R4: ='1 KaP'!C66 -> Pen'pferde | S4: ='1 KaP'!C67 -> Zuchtpferde | T4: ='1 KaP'!C68 -> Pferde | U4: ='1 KaP'!C69 -> Mutterschafe | V4: ='1 KaP'!C70 -> Schafe o. Lamm | W4: ='1 KaP'!C71 -> So. Schafe | X4: ='1 KaP'!C72 -> Damtiere | Y4: ='1 KaP'!C73 -> Milchziegen / Muttertiere | Z4: ='1 KaP'!C74 -> So. Ziegen | AA4: ='1 KaP'!C75 -> 0 | AB4: ='1 KaP'!C76 -> 0 | AC4: ='1 KaP'!C77 -> Zuchteber | AD4: ='1 KaP'!C78 -> Pensionstiere | AE4: ='1 KaP'!C79 -> So. RauFuFresser | AF4: ='1 KaP'!C134 -> Grünfütterung | AG4: ='1 KaP'!C135 -> Int.-Weide | AH4: ='1 KaP'!C136 -> Grünland | AI4: ='1 KaP'!C137 -> GrSil Biomasse | AJ4: ='1 KaP'!C138 -> 0 | AK4: ='1 KaP'!C139 -> Heu | AL4: ='1 KaP'!C140 -> Verkaufsheu | AM4: ='1 KaP'!C141 -> Tro'grün | AN4: ='1 KaP'!C142 -> Grünland | AO4: ='1 KaP'!C143 -> Langj.Still-leg. | AP4: ='1 KaP'!C146 -> Silomais | AQ4: ='1 KaP'!C147 -> SM Biomasse | AR4: ='1 KaP'!C148 -> Futterhackf. | AS4: ='1 KaP'!C149 -> Kleegras | AT4: ='1 KaP'!C150 -> GPS | AU4: ='1 KaP'!C151 -> So. Ack'futt. | AV4: ='1 KaP'!C152 -> 0 | AW4: ='1 KaP'!C154 -> ZwiFru Futt. | AX4: ='1 KaP'!C155 -> GruFu-Verk. | AY4: ='1 KaP'!C156 -> GruFu-Zuk. | BA4: ='1 KaP'!C80 -> ZSauen | BB4: ='1 KaP'!C81 -> Aufzuchtferkel | BC4: ='1 KaP'!C82 -> MSchweine | BD4: ='1 KaP'!C83 -> Jungsauen | BE4: ='1 KaP'!C84 -> Jungeber | BF4: ='1 KaP'!C85 -> So. Schweine | BG4: ='1 KaP'!C86 -> 100 Legeh. | BH4: ='1 KaP'!C87 -> 100 Ma'hähn. | BI4: ='1 KaP'!C88 -> 100 Jungh. | BJ4: ='1 KaP'!C89 -> 100 Ma'enten | BK4: ='1 KaP'!C90 -> 100 Ma'gänse | BL4: ='1 KaP'!C91 -> 100 Ma'puten | BM4: ='1 KaP'!C92 -> 100 so.Geflügel | BN4: ='1 KaP'!C93 -> Ma'kaninchen | BO4: ='1 KaP'!C94 -> Zu'kaninchen | BP4: ='1 KaP'!C95 -> Pelztiere | BQ4: ='1 KaP'!C96 -> Bienen | BR4: ='1 KaP'!C97 -> Fische | BS4: ='1 KaP'!C98 -> Sonst. Tiere | BT4: Kl.Hochseef. | BU4: ='1 KaP'!C158 -> WWeizen | BV4: ='1 KaP'!C159 -> SWeizen | BW4: ='1 KaP'!C160 -> Durum | BX4: ='1 KaP'!C161 -> Roggen | BY4: ='1 KaP'!C162 -> WGerste | BZ4: ='1 KaP'!C163 -> SGerste | CA4: ='1 KaP'!C164 -> Hafer | CB4: ='1 KaP'!C165 -> Triticale | CC4: ='1 KaP'!C166 -> Menggetr. | CD4: ='1 KaP'!C167 -> Körnermais | CE4: ='1 KaP'!C168 -> CCM | CF4: ='1 KaP'!C169 -> Ackerbohnen | CG4: ='1 KaP'!C170 -> Erbsen | CH4: ='1 KaP'!C171 -> WRaps | CI4: ='1 KaP'!C172 -> SoRaps | CJ4: ='1 KaP'!C173 -> Sonnenblumen | CK4: ='1 KaP'!C174 -> Flachs | CL4: ='1 KaP'!C175 -> Stärkekartoff. | CM4: ='1 KaP'!C176 -> Sp'kartoffeln | CN4: ='1 KaP'!C177 -> Zuckerrüben | CO4: ='1 KaP'!C178 -> Grassamen | CP4: ='1 KaP'!C179 -> Soja,and.Ölsaat | CQ4: ='1 KaP'!C180 -> Eiweißpfla. | CR4: ='1 KaP'!C181 -> Ener'getreide | CS4: ='1 KaP'!C182 -> Energiemais | CT4: ='1 KaP'!C183 -> Ener'ölsaat | CU4: ='1 KaP'!C184 -> So.Ener'pfl. | CV4: ='1 KaP'!C185 -> So.Marktfrucht | CW4: ='1 KaP'!C186 -> Zwi'fru Markt | CX4: ='1 KaP'!C187 -> Stilllegung / Acker aus erz. gen. | CY4: ='1 KaP'!C188 -> Buschbohnen | CZ4: ='1 KaP'!C189 -> Tabak | DA4: ='1 KaP'!C190 -> Spargel | DB4: ='1 KaP'!C193 -> Hopfen | DC4: ='1 KaP'!C194 -> Erdbeeren | DD4: ='1 KaP'!C195 -> Äpfel | DE4: ='1 KaP'!C196 -> Birnen,Quitt. | DF4: ='1 KaP'!C197 -> Süßkirschen | DG4: ='1 KaP'!C198 -> Sauerkirsch. | DH4: ='1 KaP'!C199 -> Pflau.,Zwet. | DI4: ='1 KaP'!C200 -> Mirabellen | DJ4: ='1 KaP'!C201 -> Nüsse | DK4: ='1 KaP'!C202 -> So. Beeren | DL4: ='1 KaP'!C205 -> Gemü Freila. | DM4: ='1 KaP'!C206 -> Gemü Gewä. | DN4: ='1 KaP'!C207 -> Pilze | DO4: ='1 KaP'!C208 -> Zierpflanzen | DP4: ='1 KaP'!C209 -> Zierpfl.Gewä. | DQ4: ='1 KaP'!C210 -> So.Gartenb. | DR4: ='1 KaP'!C213 -> Weinbau | DS4: ='1 KaP'!C214 -> And.Rebflä. | DT4: ='1 KaP'!C216 -> Forst | DU4: ='1 KaP'!C217 -> LoArb,MaMiet | DV4: ='1 KaP'!C219 -> Hofladen | DW4: ='1 KaP'!C220 -> Straußwirts. | DX4: ='1 KaP'!C221 -> Brennerei | DY4: ='1 KaP'!C222 -> Biogasanl. | DZ4: ='1 KaP'!C223 -> Warenverkauf | EA4: ='1 KaP'!C224 -> Friedhofsgä. | EB4: ='1 KaP'!C225 -> Ga'/Lands'b. | EC4: ='1 KaP'!C226 -> Fremdenverk. | ED4: ='1 KaP'!C227 -> Charter | EE4: ='1 KaP'!C228 -> La'scha'pfl. | EF4: ='1 KaP'!C229 -> So.Dienstleist.
A5: Unternehmen: | C5: ='6 Db_I'!C5 -> 0 | G5: der Leistungen / der variablen Kosten : | L5: ='6 Db_I'!L5 -> 0 | M5: ='6 Db_I'!M5 -> 0 | N5: ='6 Db_I'!N5 -> 0 | O5: ='6 Db_I'!O5 -> 1200 kg | P5: ='6 Db_I'!P5 -> mit Kalb | Q5: ='6 Db_I'!Q5 -> u. Mastkälber | R5: ='6 Db_I'!R5 -> oh.Halle | S5: ='6 Db_I'!S5 -> eigen | T5: ='6 Db_I'!T5 -> < 6 Monaten | U5: ='6 Db_I'!U5 -> m.Nachzucht | V5: ='6 Db_I'!V5 -> 10-18 Monate | W5: ='6 Db_I'!W5 -> 0 | X5: ='6 Db_I'!X5 -> 0 | Y5: ='6 Db_I'!Y5 -> Molkerei | Z5: ='6 Db_I'!Z5 -> 0 | AA5: ='6 Db_I'!AA5 -> 0 | AB5: ='6 Db_I'!AB5 -> 0 | AC5: ='6 Db_I'!AC5 -> 0 | AD5: ='6 Db_I'!AD5 -> Rinder | AE5: ='6 Db_I'!AE5 -> 0 | AF5: ='6 Db_I'!AF5 -> 0 | AG5: ='6 Db_I'!AG5 -> 0 | AH5: ='6 Db_I'!AH5 -> Grassilage | AI5: ='6 Db_I'!AI5 -> 0 | AJ5: ='6 Db_I'!AJ5 -> 0 | AK5: ='6 Db_I'!AK5 -> 0 | AL5: ='6 Db_I'!AL5 -> 0 | AM5: ='6 Db_I'!AM5 -> 0 | AN5: ='6 Db_I'!AN5 -> extensiv | AO5: ='6 Db_I'!AO5 -> 0 | AP5: ='6 Db_I'!AP5 -> 0 | AQ5: ='6 Db_I'!AQ5 -> 0 | AR5: ='6 Db_I'!AR5 -> Rüben | AS5: ='6 Db_I'!AS5 -> 0 | AT5: ='6 Db_I'!AT5 -> W.Weizen | AU5: ='6 Db_I'!AU5 -> 0 | AV5: ='6 Db_I'!AV5 -> 0 | AW5: ='6 Db_I'!AW5 -> Feldgras | AX5: ='6 Db_I'!AX5 -> 0 | AY5: ='6 Db_I'!AY5 -> Silomais | BA5: ='6 Db_I'!BA5 -> mit Ferkel | BB5: ='6 Db_I'!BB5 -> 0 | BC5: ='6 Db_I'!BC5 -> 0 | BD5: ='6 Db_I'!BD5 -> 0 | BE5: ='6 Db_I'!BE5 -> 0 | BF5: ='6 Db_I'!BF5 -> 0 | BG5: ='6 Db_I'!BG5 -> 0 | BH5: ='6 Db_I'!BH5 -> a 2,1 kg | BI5: ='6 Db_I'!BI5 -> 0 | BJ5: ='6 Db_I'!BJ5 -> 11Wo.5%Verl. | BK5: ='6 Db_I'!BK5 -> Weid.eig.Schl. | BL5: ='6 Db_I'!BL5 -> 0 | BM5: ='6 Db_I'!BM5 -> 0 | BN5: ='6 Db_I'!BN5 -> 0 | BO5: ='6 Db_I'!BO5 -> 0 | BP5: ='6 Db_I'!BP5 -> 0 | BQ5: ='6 Db_I'!BQ5 -> 0 | BR5: ='6 Db_I'!BR5 -> 0 | BS5: ='6 Db_I'!BS5 -> 0 | BT5: ='6 Db_I'!BT5 -> 0 | BU5: ='6 Db_I'!BU5 -> 0 | BV5: ='6 Db_I'!BV5 -> 0 | BW5: ='6 Db_I'!BW5 -> 0 | BX5: ='6 Db_I'!BX5 -> 0 | BY5: ='6 Db_I'!BY5 -> 0 | BZ5: ='6 Db_I'!BZ5 -> 0 | CA5: ='6 Db_I'!CA5 -> 0 | CB5: ='6 Db_I'!CB5 -> 0 | CC5: ='6 Db_I'!CC5 -> 0 | CD5: ='6 Db_I'!CD5 -> 0 | CE5: ='6 Db_I'!CE5 -> 0 | CF5: ='6 Db_I'!CF5 -> 0 | CG5: ='6 Db_I'!CG5 -> 0 | CH5: ='6 Db_I'!CH5 -> 0 | CI5: ='6 Db_I'!CI5 -> 0 | CJ5: ='6 Db_I'!CJ5 -> 0 | CK5: ='6 Db_I'!CK5 -> 0 | CL5: ='6 Db_I'!CL5 -> 0 | CM5: ='6 Db_I'!CM5 -> 0 | CN5: ='6 Db_I'!CN5 -> 0 | CO5: ='6 Db_I'!CO5 -> 0 | CP5: ='6 Db_I'!CP5 -> 0 | CQ5: ='6 Db_I'!CQ5 -> Lupinen | CR5: ='6 Db_I'!CR5 -> 0 | CS5: ='6 Db_I'!CS5 -> 0 | CT5: ='6 Db_I'!CT5 -> 0 | CU5: ='6 Db_I'!CU5 -> 0 | CV5: ='6 Db_I'!CV5 -> 0 | CW5: ='6 Db_I'!CW5 -> 0 | CX5: ='6 Db_I'!CX5 -> 0 | CY5: ='6 Db_I'!CY5 -> 0 | CZ5: ='6 Db_I'!CZ5 -> 0 | DA5: ='6 Db_I'!DA5 -> 0 | DB5: ='6 Db_I'!DB5 -> 0 | DC5: ='6 Db_I'!DC5 -> 0 | DD5: ='6 Db_I'!DD5 -> 0 | DE5: ='6 Db_I'!DE5 -> 0 | DF5: ='6 Db_I'!DF5 -> 0 | DG5: ='6 Db_I'!DG5 -> 0 | DH5: ='6 Db_I'!DH5 -> 0 | DI5: ='6 Db_I'!DI5 -> 0 | DJ5: ='6 Db_I'!DJ5 -> 0 | DK5: ='6 Db_I'!DK5 -> Schw.Joha | DL5: ='6 Db_I'!DL5 -> 0 | DM5: ='6 Db_I'!DM5 -> 0 | DN5: ='6 Db_I'!DN5 -> 0 | DO5: ='6 Db_I'!DO5 -> 0 | DP5: ='6 Db_I'!DP5 -> 0 | DQ5: ='6 Db_I'!DQ5 -> 0 | DR5: ='6 Db_I'!DR5 -> 0 | DS5: ='6 Db_I'!DS5 -> 0 | DT5: ='6 Db_I'!DT5 -> 0 | DU5: ='6 Db_I'!DU5 -> 0 | DV5: ='6 Db_I'!DV5 -> 0 | DW5: ='6 Db_I'!DW5 -> Reiterstube | DX5: ='6 Db_I'!DX5 ->  | DY5: ='6 Db_I'!DY5 -> So.Erz.Neb'b. | DZ5: ='6 Db_I'!DZ5 -> 0 | EA5: ='6 Db_I'!EA5 -> 0 | EB5: ='6 Db_I'!EB5 -> 0 | EC5: ='6 Db_I'!EC5 -> 0 | ED5: ='6 Db_I'!ED5 -> 0 | EE5: ='6 Db_I'!EE5 -> 0 | EF5: ='6 Db_I'!EF5 -> Provisionen
A7: Datum: | C7: ='6 Db_I'!C7 -> 00:00:00 | E7: Nr. PV => | G7: Pflanzen- | H7: Tier- | I7: Sonderkult., | J7: davon | L7: 1 | M7: 2 | N7: 3 | O7: 4 | P7: 5 | Q7: 6 | R7: 7 | S7: 8 | T7: 9 | U7: 10 | V7: 11 | W7: 12 | X7: 13 | Y7: 14 | Z7: 15 | AA7: 16 | AB7: 17 | AC7: 18 | AD7: 19 | AE7: 20 | AF7: ='6 Db_I'!AF7 -> 41 | AG7: ='6 Db_I'!AG7 -> 42 | AH7: ='6 Db_I'!AH7 -> 43 | AI7: ='6 Db_I'!AI7 -> 44 | AJ7: ='6 Db_I'!AJ7 -> 45 | AK7: ='6 Db_I'!AK7 -> 46 | AL7: ='6 Db_I'!AL7 -> 47 | AM7: ='6 Db_I'!AM7 -> 48 | AN7: ='6 Db_I'!AN7 -> 49 | AO7: ='6 Db_I'!AO7 -> 50 | AP7: ='6 Db_I'!AP7 -> 51 | AQ7: ='6 Db_I'!AQ7 -> 52 | AR7: ='6 Db_I'!AR7 -> 53 | AS7: ='6 Db_I'!AS7 -> 54 | AT7: ='6 Db_I'!AT7 -> 55 | AU7: ='6 Db_I'!AU7 -> 56 | AV7: ='6 Db_I'!AV7 -> 57 | AW7: ='6 Db_I'!AW7 -> 58 | AX7: ='6 Db_I'!AX7 -> 59 | AY7: ='6 Db_I'!AY7 -> 60 | BA7: 21 | BB7: 22 | BC7: 23 | BD7: 24 | BE7: 25 | BF7: 26 | BG7: 27 | BH7: 28 | BI7: 29 | BJ7: 30 | BK7: 31 | BL7: 32 | BM7: 33 | BN7: 34 | BO7: 35 | BP7: 36 | BQ7: 37 | BR7: 38 | BS7: 38 | BT7: 40 | BU7: 61 | BV7: 62 | BW7: 63 | BX7: 64 | BY7: 65 | BZ7: 66 | CA7: 67 | CB7: 68 | CC7: 69 | CD7: 70 | CE7: 71 | CF7: 72 | CG7: 73 | CH7: 74 | CI7: 75 | CJ7: 76 | CK7: 77 | CL7: 78 | CM7: 79 | CN7: 80 | CO7: 81 | CP7: 82 | CQ7: 83 | CR7: 84 | CS7: 85 | CT7: 86 | CU7: 87 | CV7: 88 | CW7: 89 | CX7: 90 | CY7: ='6 Db_I'!CY7 -> 91 | CZ7: ='6 Db_I'!CZ7 -> 96 | DA7: ='6 Db_I'!DA7 -> 98 | DB7: ='6 Db_I'!DB7 -> 99 | DC7: ='6 Db_I'!DC7 -> 100 | DD7: ='6 Db_I'!DD7 -> 101 | DE7: ='6 Db_I'!DE7 -> 102 | DF7: ='6 Db_I'!DF7 -> 103 | DG7: ='6 Db_I'!DG7 -> 104 | DH7: ='6 Db_I'!DH7 -> 106 | DI7: ='6 Db_I'!DI7 -> 107 | DJ7: ='6 Db_I'!DJ7 -> 108 | DK7: ='6 Db_I'!DK7 -> 110 | DL7: ='6 Db_I'!DL7 -> 111 | DM7: ='6 Db_I'!DM7 -> 113 | DN7: ='6 Db_I'!DN7 -> 115 | DO7: ='6 Db_I'!DO7 -> 116 | DP7: ='6 Db_I'!DP7 -> 118 | DQ7: ='6 Db_I'!DQ7 -> 120 | DR7: ='6 Db_I'!DR7 -> 121 | DS7: ='6 Db_I'!DS7 -> 130 | DT7: ='6 Db_I'!DT7 -> 131 | DU7: ='6 Db_I'!DU7 -> 135 | DV7: ='6 Db_I'!DV7 -> 140 | DW7: ='6 Db_I'!DW7 -> 141 | DX7: ='6 Db_I'!DX7 -> 142 | DY7: ='6 Db_I'!DY7 -> 143 | DZ7: ='6 Db_I'!DZ7 -> 144 | EA7: ='6 Db_I'!EA7 -> 145 | EB7: ='6 Db_I'!EB7 -> 146 | EC7: ='6 Db_I'!EC7 -> 147 | ED7: ='6 Db_I'!ED7 -> 148 | EE7: ='6 Db_I'!EE7 -> 149 | EF7: ='6 Db_I'!EF7 -> 150
G8: Produktion | H8: Produktion | I8: Nebenbetr. | J8: Diversifikat. | L8: St. | M8: erz. St. | N8: erz. St. | O8: erz. St. | P8: St. | Q8: erz. St. | R8: St. | S8: St. | T8: erz. St. | U8: St. | V8: erz. St. | W8: erz. St. | X8: erz. St. | Y8: St. | Z8: erz. St. | AA8: erz. St. | AB8: erz. St. | AC8: erz. St. | AD8: St. | AF8: ha | AG8: ha | AH8: ha | AI8: ha | AJ8: ha | AK8: ha | AL8: ha | AM8: ha | AN8: ha | AO8: ha | AP8: ha | AQ8: ha | AR8: ha | AS8: ha | AT8: ha | AU8: ha | AV8: ha | AW8: ha | AX8: ='6 Db_I'!AX8 -> ha | AY8: ='6 Db_I'!AY8 -> ha | BA8: St. | BB8: erz. St. | BC8: erz. St. | BD8: erz. 1St. | BE8: erz. St. | BG8: 100 St. | BH8: erz. 100 St. | BI8: erz. 100 St. | BJ8: erz. 100 St. | BK8: erz. 100 St. | BL8: erz. 100 St. | BM8: erz. St. | BN8: erz. St. | BO8: St. | BP8: erz. St. | BQ8: St. | BR8: erz. St. | BS8: erz. St. | BU8: ha | BV8: ha | BW8: ha | BX8: ha | BY8: ha | BZ8: ha | CA8: ha | CB8: ha | CC8: ha | CD8: ha | CE8: ha | CF8: ha | CG8: ha | CH8: ha | CI8: ha | CJ8: ha | CK8: ha | CL8: ha | CM8: ha | CN8: ha | CO8: ha | CP8: ha | CQ8: ha | CR8: ha | CS8: ha | CT8: ha | CU8: ha | CV8: ha | CW8: ha | CX8: ha | CY8: ha | CZ8: ha | DA8: ha | DB8: ha | DC8: ha | DD8: ha | DE8: ha | DF8: ha | DG8: ha | DH8: ha | DI8: ha | DJ8: ha | DK8: ha | DL8: ha | DM8: ha | DN8: ha | DO8: ha | DP8: ha | DQ8: ha | DR8: ha | DS8: ha | DT8: ha | EJ8: Prüfsumme für Makro "PV des Betriebes > 0"
A9: 1 | B9: ='1 KaP'!K5 -> 2026 | E9: Umfang | L9: ='1 KaP'!J60 -> 0 | M9: ='1 KaP'!L61 -> 0 | N9: ='1 KaP'!L62 -> 0 | O9: ='1 KaP'!L63 -> 0 | P9: ='1 KaP'!J64 -> 0 | Q9: ='1 KaP'!L65 -> 0 | R9: ='1 KaP'!J66 -> 0 | S9: ='1 KaP'!J67 -> 0 | T9: ='1 KaP'!L68 -> 0 | U9: ='1 KaP'!J69 -> 0 | V9: ='1 KaP'!L70 -> 0 | W9: ='1 KaP'!L71 -> 0 | X9: ='1 KaP'!L72 -> 0 | Y9: ='1 KaP'!J73 -> 0 | Z9: ='1 KaP'!L74 -> 0 | AA9: ='1 KaP'!L75 -> 0 | AB9: ='1 KaP'!L76 -> 0 | AC9: ='1 KaP'!L77 -> 0 | AD9: ='1 KaP'!J78 -> 0 | AE9: ='1 KaP'!L79 -> 0 | AF9: ='1 KaP'!J134 -> 0 | AG9: ='1 KaP'!J135 -> 0 | AH9: ='1 KaP'!J136 -> 0 | AI9: ='1 KaP'!J137 -> 0 | AJ9: ='1 KaP'!J138 -> 0 | AK9: ='1 KaP'!J139 -> 0 | AL9: ='1 KaP'!J140 -> 0 | AM9: ='1 KaP'!J141 -> 0 | AN9: ='1 KaP'!J142 -> 0 | AO9: ='1 KaP'!J143 -> 0 | AP9: ='1 KaP'!J146 -> 0 | AQ9: ='1 KaP'!J147 -> 0 | AR9: ='1 KaP'!J148 -> 0 | AS9: ='1 KaP'!J149 -> 0 | AT9: ='1 KaP'!J150 -> 0 | AU9: ='1 KaP'!J151 -> 0 | AV9: ='1 KaP'!J152 -> 0 | AW9: ='1 KaP'!J154 -> 0 | AX9: ='1 KaP'!J155 -> 0 | AY9: ='1 KaP'!J156 -> 0 | BA9: ='1 KaP'!J80 -> 0 | BB9: ='1 KaP'!L81 -> 0 | BC9: ='1 KaP'!L82 -> 0 | BD9: ='1 KaP'!L83 -> 0 | BE9: ='1 KaP'!L84 -> 0 | BF9: ='1 KaP'!L85 -> 0 | BG9: ='1 KaP'!J86 -> 0 | BH9: ='1 KaP'!L87 -> 0 | BI9: ='1 KaP'!L88 -> 0 | BJ9: ='1 KaP'!L89 -> 0 | BK9: ='1 KaP'!L90 -> 0 | BL9: ='1 KaP'!L91 -> 0 | BM9: ='1 KaP'!L92 -> 0 | BN9: ='1 KaP'!L93 -> 0 | BO9: ='1 KaP'!J94 -> 0 | BP9: ='1 KaP'!L95 -> 0 | BQ9: ='1 KaP'!J96 -> 0 | BR9: ='1 KaP'!L97 -> 0 | BS9: ='1 KaP'!L98 -> 0 | BU9: ='1 KaP'!J158 -> 0 | BV9: ='1 KaP'!J159 -> 0 | BW9: ='1 KaP'!J160 -> 0 | BX9: ='1 KaP'!J161 -> 0 | BY9: ='1 KaP'!J162 -> 0 | BZ9: ='1 KaP'!J163 -> 0 | CA9: ='1 KaP'!J164 -> 0 | CB9: ='1 KaP'!J165 -> 0 | CC9: ='1 KaP'!J166 -> 0 | CD9: ='1 KaP'!J167 -> 0 | CE9: ='1 KaP'!J168 -> 0 | CF9: ='1 KaP'!J169 -> 0 | CG9: ='1 KaP'!J170 -> 0 | CH9: ='1 KaP'!J171 -> 0 | CI9: ='1 KaP'!J172 -> 0 | CJ9: ='1 KaP'!J173 -> 0 | CK9: ='1 KaP'!J174 -> 0 | CL9: ='1 KaP'!J175 -> 0 | CM9: ='1 KaP'!J176 -> 0 | CN9: ='1 KaP'!J177 -> 0 | CO9: ='1 KaP'!J178 -> 0 | CP9: ='1 KaP'!J179 -> 0 | CQ9: ='1 KaP'!J180 -> 0 | CR9: ='1 KaP'!J181 -> 0 | CS9: ='1 KaP'!J182 -> 0 | CT9: ='1 KaP'!J183 -> 0 | CU9: ='1 KaP'!J184 -> 0 | CV9: ='1 KaP'!J185 -> 0 | CW9: ='1 KaP'!J186 -> 0 | CX9: ='1 KaP'!J187 -> 0 | CY9: ='1 KaP'!J188 -> 0 | CZ9: ='1 KaP'!J189 -> 0 | DA9: ='1 KaP'!J190 -> 0 | DB9: ='1 KaP'!J193 -> 0 | DC9: ='1 KaP'!J194 -> 0 | DD9: ='1 KaP'!J195 -> 0 | DE9: ='1 KaP'!J196 -> 0 | DF9: ='1 KaP'!J197 -> 0 | DG9: ='1 KaP'!J198 -> 0 | DH9: ='1 KaP'!J199 -> 0 | DI9: ='1 KaP'!J200 -> 0 | DJ9: ='1 KaP'!J201 -> 0 | DK9: ='1 KaP'!J202 -> 0 | DL9: ='1 KaP'!J205 -> 0 | DM9: ='1 KaP'!J206 -> 0 | DN9: ='1 KaP'!J207 -> 0 | DO9: ='1 KaP'!J208 -> 0 | DP9: ='1 KaP'!J209 -> 0 | DQ9: ='1 KaP'!J210 -> 0 | DR9: ='1 KaP'!J213 -> 0 | DS9: ='1 KaP'!J214 -> 0 | DT9: ='1 KaP'!J216 -> 0 | DU9: ='1 KaP'!J217 -> 0 | DV9: ='1 KaP'!J219 -> 0 | DW9: ='1 KaP'!J220 -> 0 | DX9: ='1 KaP'!J221 -> 0 | DY9: ='1 KaP'!J222 -> 0 | DZ9: ='1 KaP'!J223 -> 0 | EA9: ='1 KaP'!J224 -> 0 | EB9: ='1 KaP'!J225 -> 0 | EC9: ='1 KaP'!J226 -> 0 | ED9: ='1 KaP'!J227 -> 0 | EE9: ='1 KaP'!J228 -> 0 | EF9: ='1 KaP'!J229 -> 0 | EJ9: =SUM(K9:EG9) -> 0
A10: 2 | B10: Hauptprodukt | E10: St, kg, t (netto) | L10: =L83 -> 8000 | M10: 1 | N10: 310 | O10: 390 | P10: 290 | Q10: 1 | R10: 12 | S10: 1 | T10: 0 | U10: 64 | V10: 0 | W10: 0 | X10: 25 | Y10: 700 | Z10: 0 | AA10: 0 | AB10: 0 | AC10: 0 | AD10: 0 | AE10: 0 | AF10: 8 | AG10: 8 | AH10: 9 | AI10: 0 | AJ10: 0 | AK10: 7 | AL10: 0 | AM10: 9 | AN10: 4 | AO10: 0 | AP10: 50 | AQ10: 0 | AR10: =AR83 -> 0 | AS10: 10 | AT10: 9 | AU10: 0 | AV10: 0 | AW10: 3 | AX10: 0 | AY10: 1 | AZ10: 0 | BA10: 30 | BB10: 1 | BC10: 96 | BD10: 1 | BE10: 0 | BF10: 0 | BG10: 31500 | BH10: 210 | BI10: 0 | BJ10: 240 | BK10: 100 | BL10: 100 | BM10: 0 | BN10: 0 | BO10: 0 | BP10: 0 | BQ10: 0 | BR10: 0 | BS10: 0 | BT10: 0 | BU10: 8 | BV10: 6 | BW10: 5 | BX10: =BX83 -> 7 | BY10: 8 | BZ10: 6 | CA10: 6 | CB10: 7.5 | CC10: 6 | CD10: 9 | CE10: 14 | CF10: 5 | CG10: 5 | CH10: 4 | CI10: 2 | CJ10: 3 | CK10: 0 | CL10: 42.5 | CM10: 45 | CN10: 60 | CO10: 0 | CP10: 3 | CQ10: 3 | CR10: 7 | CS10: 50 | CT10: 2 | CU10: 4 | CV10: 8 | CW10: 0 | CX10: 0 | CY10: 9 | CZ10: 3 | DA10: 5 | DB10: 2 | DC10: 16 | DD10: =DD83 -> 25 | DE10: 0 | DF10: 12 | DG10: 11 | DH10: 0 | DI10: 0 | DJ10: 0 | DK10: 10 | DL10: 0 | DM10: 0 | DN10: 0 | DO10: 0 | DP10: 0 | DQ10: 0 | DR10: 8 | DS10: 0 | DT10: 0 | DU10: 0 | DV10: 0 | DW10: 0 | DX10: 1 | DY10: 0 | DZ10: 0 | EA10: 0 | EB10: 0 | EC10: 0 | ED10: 0 | EE10: 0 | EF10: 0
A11: 3 | B11: Preis | E11: € je St, je kg oder je t | L11: =L84*D65 -> 0.45 | M11: =M84*D65 -> 1752 | N11: =N84*D65 -> 4.91 | O11: =O84*D65 -> 4.25 | P11: =P84*D65 -> 3.16 | Q11: =Q84*D65 -> 0 | R11: =R84*$B$65 -> 192 | S11: =S84*D65 -> 2000 | T11: =T84*D65 -> 0 | U11: =U84*D65 -> 1.65 | V11: =V84*D65 -> 0 | W11: =W84*D65 -> 0 | X11: =X84*D65 -> 12.54 | Y11: =Y84*D65 -> 0.55 | Z11: =Z84*D65 -> 0 | AA11: =AA84*D65 -> 0 | AB11: =AB84*D65 -> 0 | AC11: =AC84*D65 -> 0 | AD11: =AD84*D65 -> 0 | AE11: =AE84*D65 -> 0 | AF11: =AF84*D65 -> 0 | AG11: =AG84*D65 -> 0 | AH11: =AH84*D65 -> 0 | AI11: =AI84*D65 -> 0 | AJ11: =AJ84*D65 -> 0 | AK11: =AK84*D65 -> 142.79 | AL11: =AL84*D65 -> 0 | AM11: =AM84*D65 -> 0 | AN11: =AN84*D65 -> 0 | AO11: =AO84*D65 -> 0 | AP11: =AP84*D65 -> 0 | AQ11: =AQ84*D65 -> 0 | AR11: =AR84*D65 -> 0 | AS11: =AS84*D65 -> 0 | AT11: =AT84*D65 -> 0 | AU11: =AU84*D65 -> 0 | AV11: =AV84*D65 -> 0 | AW11: =AW84*D65 -> 0 | AX11: =AX84*D65 -> 0 | AY11: =AY84*D65 -> 0 | BA11: =BA84*D65 -> 70.85 | BB11: =BB84*D65 -> 70.85 | BC11: =BC84*D65 -> 1.75 | BD11: =BD84*D65 -> 440 | BE11: =BE84*D65 -> 0 | BF11: =BF84*D65 -> 0 | BG11: =BG84*D65 -> 0.185 | BH11: =BH84*D65 -> 0.98 | BI11: =BI84*D65 -> 0 | BJ11: =BJ84*D65 -> 7.39 | BK11: =BK84*D65 -> 37.3 | BL11: =BL84*D65 -> 22.54 | BM11: =BM84*D65 -> 0 | BN11: =BN84*D65 -> 0 | BO11: =BO84*D65 -> 0 | BP11: =BP84*D65 -> 0 | BQ11: =BQ84*D65 -> 0 | BR11: =BR84*D65 -> 0 | BS11: =BS84*D65 -> 0 | BT11: =BT84*D65 -> 0 | BU11: =BU84*D65 -> 207 | BV11: =BV84*D65 -> 169 | BW11: =BW84*D65 -> 174 | BX11: =BX84*D65 -> 174 | BY11: =BY84*D65 -> 196 | BZ11: =BZ84*D65 -> 218 | CA11: =CA84*D65 -> 234 | CB11: =CB84*D65 -> 185 | CC11: =CC84*D65 -> 153 | CD11: =CD84*D65 -> 218 | CE11: =CE84*D65 -> 131 | CF11: =CF84*D65 -> 240 | CG11: =CG84*D65 -> 251 | CH11: =CH84*D65 -> 425 | CI11: =CI84*D65 -> 425 | CJ11: =CJ84*D65 -> 196 | CK11: =CK84*D65 -> 0 | CL11: =CL84*D65 -> 109 | CM11: =CM84*D65 -> 159 | CN11: =CN84*D65 -> 44 | CO11: =CO84*D65 -> 0 | CP11: =CP84*D65 -> 218 | CQ11: =CQ84*D65 -> 150 | CR11: =CR84*D65 -> 0 | CS11: =CS84*D65 -> 0 | CT11: =CT84*D65 -> 179 | CU11: =CU84*D65 -> 218 | CV11: =CV84*D65 -> 97 | CW11: =CW84*D65 -> 0 | CX11: =CX84*D65 -> 0 | CY11: =CY84*D65 -> 730 | CZ11: =CZ84*D65 -> 4000 | DA11: =DA84*D65 -> 3900 | DB11: =DB84*D65 -> 5100 | DC11: =DC84*D65 -> 1461 | DD11: =DD84*D65 -> 358 | DE11: =DE84*D65 -> 0 | DF11: =DF84*D65 -> 1280 | DG11: =DG84*D65 -> 511 | DH11: =DH84*D65 -> 0 | DI11: =DI84*D65 -> 0 | DJ11: =DJ84*D65 -> 0 | DK11: =DK84*D65 -> 540 | DL11: =DL84*D65 -> 0 | DM11: =DM84*D65 -> 0 | DN11: =DN84*D65 -> 0 | DO11: =DO84*D65 -> 0 | DP11: =DP84*D65 -> 0 | DQ11: =DQ84*D65 -> 0 | DR11: =DR84*B65 -> 3275 | DS11: =DS84*D65 -> 0 | DT11: =DT84*E65 -> 0 | DU11: =DU84*D65 -> 0 | DV11: =DV84*D65 -> 0 | DW11: =DW84*D65 -> 0 | DX11: =DX84 -> 3615 | DY11: =DY84 -> 0 | DZ11: =DZ84 -> 0 | EA11: =EA84*D65 -> 0 | EB11: =EB84*D65 -> 0 | EC11: =EC84 -> 0 | ED11: =ED84*D65 -> 0 | EE11: =EE84*D65 -> 0 | EF11: =EF84*D65 -> 0
A12: 4 | B12: Hauptleistung | E12: € | G12: =SUMPRODUCT(AF$9:AY$9,AF12:AY12)+SUMPRODUCT(BU$9:DB$9,BU12:DB12) -> 0 | H12: =SUMPRODUCT(L$9:AE$9,L12:AE12)+SUMPRODUCT(BA$9:BT$9,BA12:BT12) -> 0 | I12: =SUMPRODUCT(DC$9:EF$9,DC12:EF12) -> 0 | J12: =SUMPRODUCT(DV$9:EF$9,DV12:EF12) -> 0 | L12: =L10*L11 -> 3600 | M12: 1752 | N12: 1522 | O12: 1658 | P12: 916 | Q12: 0 | R12: 2304 | S12: 2000 | T12: 0 | U12: 106 | V12: 0 | W12: 0 | X12: 314 | Y12: 385 | Z12: 0 | AA12: 0 | AB12: 0 | AC12: 0 | AD12: 0 | AE12: 0 | AF12: 0 | AG12: 0 | AH12: 0 | AI12: 0 | AJ12: 0 | AK12: 1000 | AL12: 0 | AM12: 0 | AN12: 0 | AO12: 0 | AP12: 0 | AQ12: 0 | AR12: 0 | AS12: 0 | AT12: 0 | AU12: 0 | AV12: 0 | AW12: 0 | AX12: 0 | AY12: 0 | BA12: =BA10*BA11 -> 2126 | BB12: 70.85 | BC12: 168 | BD12: 440 | BE12: 0 | BF12: 0 | BG12: 5827.5 | BH12: 205.8 | BI12: 0 | BJ12: 1773.6 | BK12: 3730 | BL12: 2254 | BM12: 0 | BN12: 0 | BO12: 0 | BP12: 0 | BQ12: 0 | BR12: 0 | BS12: 0 | BT12: 0 | BU12: 1656 | BV12: 1014 | BW12: 870 | BX12: 1218 | BY12: 1568 | BZ12: 1308 | CA12: 1404 | CB12: 1388 | CC12: 918 | CD12: 1962 | CE12: 1834 | CF12: 1200 | CG12: 1255 | CH12: 1700 | CI12: 850 | CJ12: 588 | CK12: 0 | CL12: 4633 | CM12: 7155 | CN12: 2640 | CO12: 0 | CP12: 654 | CQ12: 450 | CR12: 0 | CS12: 0 | CT12: 358 | CU12: 872 | CV12: 776 | CW12: 0 | CX12: 0 | CY12: 6570 | CZ12: 12000 | DA12: 19500 | DB12: 10200 | DC12: =DC10*DC11 -> 23376 | DD12: 8950 | DE12: 0 | DF12: 15360 | DG12: 5621 | DH12: 0 | DI12: 0 | DJ12: 0 | DK12: 5400 | DL12: 0 | DM12: =DM10*DM11 -> 0 | DN12: 0 | DO12: 0 | DP12: 0 | DQ12: 0 | DR12: 26200 | DS12: 0 | DT12: 0 | DU12: 0 | DV12: 0 | DW12: 0 | DX12: 3615 | DY12: 0 | DZ12: 0 | EA12: 0 | EB12: 0 | EC12: 0 | ED12: 0 | EE12: 0 | EF12: 0
A13: 5 | B13: Nebenleistung - ohne Prämien | E13: € | G13: 0 | H13: 0 | I13: =SUMPRODUCT(DC$9:EF$9,DC13:EF13) -> 0 | J13: =SUMPRODUCT(DV$9:EF$9,DV13:EF13) -> 0 | L13: =L37 -> 488 | M13: =M86*D65 -> 142 | N13: =N86*D65 -> 0 | O13: =O86*D65 -> 0 | P13: =P86*D65 -> 209 | Q13: =Q86*D65 -> 0 | R13: =R86 -> 0 | S13: =S86*D65 -> 45 | T13: =T86*D65 -> 0 | U13: =U86*D65 -> 14 | V13: =V86*D65 -> 0 | W13: =W86*D65 -> 0 | X13: =X86*D65 -> 16 | Y13: =Y86*D65 -> 55 | Z13: =Z86*D65 -> 0 | AA13: =AA86*D65 -> 0 | AB13: =AB86*D65 -> 0 | AC13: =AC86*D65 -> 0 | AD13: =AD86*D65 -> 0 | AE13: =AE86*D65 -> 0 | AF13: =AF86*D65 -> 0 | AG13: =AG86*D65 -> 0 | AH13: =AH86*D65 -> 0 | AI13: =AI86*D65 -> 0 | AJ13: =AJ86*D65 -> 0 | AK13: =AK86*D65 -> 0 | AL13: =AL86*D65 -> 0 | AM13: =AM86*D65 -> 0 | AN13: =AN86*D65 -> 0 | AO13: =AO86*D65 -> 0 | AP13: =AP86*D65 -> 0 | AQ13: =AQ86*D65 -> 0 | AR13: =AR86*D65 -> 0 | AS13: =AS86*D65 -> 0 | AT13: =AT86*D65 -> 0 | AU13: =AU86*D65 -> 0 | AV13: =AV86*D65 -> 0 | AW13: =AW86*D65 -> 0 | AX13: =AX86*D65 -> 0 | AY13: =AY86*D65 -> 0 | BA13: =BA37 -> 94 | BB13: =BB86*D65 -> 2.18 | BC13: =BC86*D65 -> 0 | BD13: =BD86*D65 -> 46.87 | BE13: =BE86*D65 -> 0 | BF13: =BF86*D65 -> 0 | BG13: =BG86*D65 -> 21.8 | BH13: =BH86*E65 -> 0 | BI13: =BI86*D65 -> 0 | BJ13: =BJ86*D65 -> 0 | BK13: =BK86*D65 -> 0 | BL13: =BL86*D65 -> 0 | BM13: =BM86*D65 -> 0 | BN13: =BN86*D65 -> 0 | BO13: =BO86*D65 -> 0 | BP13: =BP86*D65 -> 0 | BQ13: =BQ86*D65 -> 0 | BR13: =BR86*D65 -> 0 | BS13: =BS86*D65 -> 0 | BT13: =BT86*D65 -> 0 | BU13: =BU86*D65 -> 0 | BV13: =BV86*D65 -> 0 | BW13: =BW86*D65 -> 0 | BX13: =BX86*D65 -> 0 | BY13: =BY86*D65 -> 0 | BZ13: =BZ86*D65 -> 0 | CA13: =CA86*D65 -> 0 | CB13: =CB86*D65 -> 0 | CC13: =CC86*D65 -> 0 | CD13: =CD86*D65 -> 0 | CE13: =CE86*D65 -> 0 | CF13: =CF86*D65 -> 0 | CG13: =CG86*D65 -> 0 | CH13: =CH86*D65 -> 0 | CI13: =CI86*D65 -> 0 | CJ13: =CJ86*D65 -> 0 | CK13: =CK86*D65 -> 0 | CL13: =CL86*D65 -> 0 | CM13: =CM86*D65 -> 0 | CN13: =CN86*D65 -> 0 | CO13: =CO86*D65 -> 0 | CP13: =CP86*D65 -> 0 | CQ13: =CQ86*D65 -> 0 | CR13: =CR86*D65 -> 0 | CS13: =CS86*D65 -> 0 | CT13: =CT86*D65 -> 0 | CU13: =CU86*D65 -> 0 | CV13: =CV86*D65 -> 164 | CW13: =CW86*D65 -> 0 | CX13: =CX86*D65 -> 0 | CY13: =CY86*D65 -> 0 | CZ13: =CZ86*D65 -> 0 | DA13: =DA86*D65 -> 0 | DB13: =DB86*D65 -> 0 | DC13: =DC86*D65 -> 0 | DD13: =DD86*D65 -> 283 | DE13: =DE86*D65 -> 0 | DF13: =DF86*D65 -> 0 | DG13: =DG86*D65 -> 0 | DH13: =DH86*D65 -> 0 | DI13: =DI86*D65 -> 0 | DJ13: =DJ86*D65 -> 0 | DK13: =DK86*D65 -> 0 | DL13: =DL86*D65 -> 0 | DM13: =DM86*D65 -> 0 | DN13: =DN86*D65 -> 0 | DO13: =DO86*D65 -> 0 | DP13: =DP86*D65 -> 0 | DQ13: =DQ86*D65 -> 0 | DR13: =DR86*D65 -> 0 | DS13: =DS86*D65 -> 0 | DT13: =DT86*D65 -> 0 | DU13: =DU86*D65 -> 0 | DV13: =DV86*D65 -> 0 | DW13: =DW86*D65 -> 0 | DX13: =DX86 -> 0 | DY13: =DY86 -> 0 | DZ13: =DZ86 -> 0 | EA13: =EA86*D65 -> 0 | EB13: =EB86*D65 -> 0 | EC13: =EC86 -> 0 | ED13: =ED86*D65 -> 0 | EE13: =EE86*D65 -> 0 | EF13: =EF86*D65 -> 0
A14: 6 | B14: Prämien, Ausgleichszahlungen | E14: € | G14: =SUMPRODUCT(AN9:AO9,AN14:AO14) -> 0 | H14: =SUMPRODUCT(L9:AE9,L14:AE14)+SUMPRODUCT(BA9:BT9,BA14:BT14) -> 0 | I14: =SUMPRODUCT(DX9:DY9,DX14:DY14)+EE9*EE14 -> 0 | J14: =EE9*EE14 -> 0 | L14: ='6 Db_I'!L14 -> 0 | M14: ='6 Db_I'!M14 -> 0 | N14: ='6 Db_I'!N14 -> 0 | O14: ='6 Db_I'!O14 -> 0 | P14: ='6 Db_I'!P14 -> 0 | Q14: ='6 Db_I'!Q14 -> 0 | R14: ='6 Db_I'!R14 -> 0 | S14: ='6 Db_I'!S14 -> 0 | T14: ='6 Db_I'!T14 -> 0 | U14: ='6 Db_I'!U14 -> 0 | V14: ='6 Db_I'!V14 -> 0 | W14: ='6 Db_I'!W14 -> 0 | X14: ='6 Db_I'!X14 -> 0 | Y14: ='6 Db_I'!Y14 -> 0 | Z14: ='6 Db_I'!Z14 -> 0 | AA14: ='6 Db_I'!AA14 -> 0 | AB14: ='6 Db_I'!AB14 -> 0 | AC14: ='6 Db_I'!AC14 -> 0 | AD14: ='6 Db_I'!AD14 -> 0 | AE14: ='6 Db_I'!AE14 -> 0 | AF14: ='6 Db_I'!AF14 -> 0 | AG14: ='6 Db_I'!AG14 -> 0 | AH14: ='6 Db_I'!AH14 -> 0 | AI14: ='6 Db_I'!AI14 -> 0 | AJ14: ='6 Db_I'!AJ14 -> 0 | AK14: ='6 Db_I'!AK14 -> 0 | AL14: ='6 Db_I'!AL14 -> 0 | AM14: ='6 Db_I'!AM14 -> 0 | AN14: ='6 Db_I'!AN14 -> 0 | AO14: ='6 Db_I'!AO14 -> 0 | AP14: ='6 Db_I'!AP14 -> 0 | AQ14: ='6 Db_I'!AQ14 -> 0 | AR14: ='6 Db_I'!AR14 -> 0 | AS14: ='6 Db_I'!AS14 -> 0 | AT14: ='6 Db_I'!AT14 -> 0 | AU14: ='6 Db_I'!AU14 -> 0 | AV14: ='6 Db_I'!AV14 -> 0 | AW14: ='6 Db_I'!AW14 -> 0 | AX14: ='6 Db_I'!AX14 -> 0 | AY14: ='6 Db_I'!AY14 -> 0 | AZ14: ='6 Db_I'!AZ14 -> 0 | BA14: ='6 Db_I'!BA14 -> 0 | BB14: ='6 Db_I'!BB14 -> 0 | BC14: ='6 Db_I'!BC14 -> 0 | BD14: ='6 Db_I'!BD14 -> 0 | BE14: ='6 Db_I'!BE14 -> 0 | BF14: ='6 Db_I'!BF14 -> 0 | BG14: ='6 Db_I'!BG14 -> 0 | BH14: ='6 Db_I'!BH14 -> 0 | BI14: ='6 Db_I'!BI14 -> 0 | BJ14: ='6 Db_I'!BJ14 -> 0 | BK14: ='6 Db_I'!BK14 -> 0 | BL14: ='6 Db_I'!BL14 -> 0 | BM14: ='6 Db_I'!BM14 -> 0 | BN14: ='6 Db_I'!BN14 -> 0 | BO14: ='6 Db_I'!BO14 -> 0 | BP14: ='6 Db_I'!BP14 -> 0 | BQ14: ='6 Db_I'!BQ14 -> 0 | BR14: ='6 Db_I'!BR14 -> 0 | BS14: ='6 Db_I'!BS14 -> 0 | BT14: ='6 Db_I'!BT14 -> 0 | BU14: ='6 Db_I'!BU14 -> 0 | BV14: ='6 Db_I'!BV14 -> 0 | BW14: ='6 Db_I'!BW14 -> 0 | BX14: ='6 Db_I'!BX14 -> 0 | BY14: ='6 Db_I'!BY14 -> 0 | BZ14: ='6 Db_I'!BZ14 -> 0 | CA14: ='6 Db_I'!CA14 -> 0 | CB14: ='6 Db_I'!CB14 -> 0 | CC14: ='6 Db_I'!CC14 -> 0 | CD14: ='6 Db_I'!CD14 -> 0 | CE14: ='6 Db_I'!CE14 -> 0 | CF14: ='6 Db_I'!CF14 -> 0 | CG14: ='6 Db_I'!CG14 -> 0 | CH14: ='6 Db_I'!CH14 -> 0 | CI14: ='6 Db_I'!CI14 -> 0 | CJ14: ='6 Db_I'!CJ14 -> 0 | CK14: ='6 Db_I'!CK14 -> 0 | CL14: ='6 Db_I'!CL14 -> 0 | CM14: ='6 Db_I'!CM14 -> 0 | CN14: ='6 Db_I'!CN14 -> 0 | CO14: ='6 Db_I'!CO14 -> 0 | CP14: ='6 Db_I'!CP14 -> 0 | CQ14: ='6 Db_I'!CQ14 -> 0 | CR14: ='6 Db_I'!CR14 -> 0 | CS14: ='6 Db_I'!CS14 -> 0 | CT14: ='6 Db_I'!CT14 -> 0 | CU14: ='6 Db_I'!CU14 -> 0 | CV14: ='6 Db_I'!CV14 -> 0 | CW14: ='6 Db_I'!CW14 -> 0 | CX14: ='6 Db_I'!CX14 -> 0 | CY14: ='6 Db_I'!CY14 -> 0 | CZ14: ='6 Db_I'!CZ14 -> 0 | DA14: ='6 Db_I'!DA14 -> 0 | DB14: ='6 Db_I'!DB14 -> 0 | DC14: ='6 Db_I'!DC14 -> 0 | DD14: ='6 Db_I'!DD14 -> 0 | DE14: ='6 Db_I'!DE14 -> 0 | DF14: ='6 Db_I'!DF14 -> 0 | DG14: ='6 Db_I'!DG14 -> 0 | DH14: ='6 Db_I'!DH14 -> 0 | DI14: ='6 Db_I'!DI14 -> 0 | DJ14: ='6 Db_I'!DJ14 -> 0 | DK14: ='6 Db_I'!DK14 -> 0 | DL14: ='6 Db_I'!DL14 -> 0 | DM14: ='6 Db_I'!DM14 -> 0 | DN14: ='6 Db_I'!DN14 -> 0 | DO14: ='6 Db_I'!DO14 -> 0 | DP14: ='6 Db_I'!DP14 -> 0 | DQ14: ='6 Db_I'!DQ14 -> 0 | DR14: ='6 Db_I'!DR14 -> 0 | DS14: ='6 Db_I'!DS14 -> 0 | DT14: ='6 Db_I'!DT14 -> 0 | DU14: ='6 Db_I'!DU14 -> 0 | DV14: ='6 Db_I'!DV14 -> 0 | DW14: ='6 Db_I'!DW14 -> 0 | DX14: ='6 Db_I'!DX14 -> 0 | DY14: ='6 Db_I'!DY14 -> 0 | DZ14: ='6 Db_I'!DZ14 -> 0 | EA14: ='6 Db_I'!EA14 -> 0 | EB14: ='6 Db_I'!EB14 -> 0 | EC14: ='6 Db_I'!EC14 -> 0 | ED14: ='6 Db_I'!ED14 -> 0 | EE14: ='6 Db_I'!EE14 -> 0 | EF14: ='6 Db_I'!EF14 -> 0
A15: 7 | B15: Leistung ges. | E15: € | G15: 0 | H15: 0 | I15: =SUMPRODUCT(DC$9:EF$9,DC15:EF15) -> 0 | J15: =SUMPRODUCT(DV$9:EF$9,DV15:EF15) -> 0 | L15: =IF(AND(L9=0,'7 Prod'!$L$4=2),"",SUM(L12:L14)) -> 4088 | M15: =IF(AND(M9=0,'7 Prod'!$L$4=2),"",SUM(M12:M14)) -> 1894 | N15: =IF(AND(N9=0,'7 Prod'!$L$4=2),"",SUM(N12:N14)) -> 1522 | O15: =IF(AND(O9=0,'7 Prod'!$L$4=2),"",SUM(O12:O14)) -> 1658 | P15: =IF(AND(P9=0,'7 Prod'!$L$4=2),"",SUM(P12:P14)) -> 1125 | Q15: =IF(AND(Q9=0,'7 Prod'!$L$4=2),"",SUM(Q12:Q14)) -> 0 | R15: =IF(AND(R9=0,'7 Prod'!$L$4=2),"",SUM(R12:R14)) -> 2304 | S15: =IF(AND(S9=0,'7 Prod'!$L$4=2),"",SUM(S12:S14)) -> 2045 | T15: =IF(AND(T9=0,'7 Prod'!$L$4=2),"",SUM(T12:T14)) -> 0 | U15: =IF(AND(U9=0,'7 Prod'!$L$4=2),"",SUM(U12:U14)) -> 120 | V15: =IF(AND(V9=0,'7 Prod'!$L$4=2),"",SUM(V12:V14)) -> 0 | W15: =IF(AND(W9=0,'7 Prod'!$L$4=2),"",SUM(W12:W14)) -> 0 | X15: =IF(AND(X9=0,'7 Prod'!$L$4=2),"",SUM(X12:X14)) -> 330 | Y15: =IF(AND(Y9=0,'7 Prod'!$L$4=2),"",SUM(Y12:Y14)) -> 440 | Z15: =IF(AND(Z9=0,'7 Prod'!$L$4=2),"",SUM(Z12:Z14)) -> 0 | AA15: =IF(AND(AA9=0,'7 Prod'!$L$4=2),"",SUM(AA12:AA14)) -> 0 | AB15: =IF(AND(AB9=0,'7 Prod'!$L$4=2),"",SUM(AB12:AB14)) -> 0 | AC15: =IF(AND(AC9=0,'7 Prod'!$L$4=2),"",SUM(AC12:AC14)) -> 0 | AD15: =IF(AND(AD9=0,'7 Prod'!$L$4=2),"",SUM(AD12:AD14)) -> 0 | AE15: =IF(AND(AE9=0,'7 Prod'!$L$4=2),"",SUM(AE12:AE14)) -> 0 | AF15: =IF(AND(AF9=0,'7 Prod'!$L$4=2),"",SUM(AF12:AF14)) -> 0 | AG15: =IF(AND(AG9=0,'7 Prod'!$L$4=2),"",SUM(AG12:AG14)) -> 0 | AH15: =IF(AND(AH9=0,'7 Prod'!$L$4=2),"",SUM(AH12:AH14)) -> 0 | AI15: =IF(AND(AI9=0,'7 Prod'!$L$4=2),"",SUM(AI12:AI14)) -> 0 | AJ15: =IF(AND(AJ9=0,'7 Prod'!$L$4=2),"",SUM(AJ12:AJ14)) -> 0 | AK15: =IF(AND(AK9=0,'7 Prod'!$L$4=2),"",SUM(AK12:AK14)) -> 1000 | AL15: =IF(AND(AL9=0,'7 Prod'!$L$4=2),"",SUM(AL12:AL14)) -> 0 | AM15: =IF(AND(AM9=0,'7 Prod'!$L$4=2),"",SUM(AM12:AM14)) -> 0 | AN15: =IF(AND(AN9=0,'7 Prod'!$L$4=2),"",SUM(AN12:AN14)) -> 0 | AO15: =IF(AND(AO9=0,'7 Prod'!$L$4=2),"",SUM(AO12:AO14)) -> 0 | AP15: =IF(AND(AP9=0,'7 Prod'!$L$4=2),"",SUM(AP12:AP14)) -> 0 | AQ15: =IF(AND(AQ9=0,'7 Prod'!$L$4=2),"",SUM(AQ12:AQ14)) -> 0 | AR15: =IF(AND(AR9=0,'7 Prod'!$L$4=2),"",SUM(AR12:AR14)) -> 0 | AS15: =IF(AND(AS9=0,'7 Prod'!$L$4=2),"",SUM(AS12:AS14)) -> 0 | AT15: =IF(AND(AT9=0,'7 Prod'!$L$4=2),"",SUM(AT12:AT14)) -> 0 | AU15: =IF(AND(AU9=0,'7 Prod'!$L$4=2),"",SUM(AU12:AU14)) -> 0 | AV15: =IF(AND(AV9=0,'7 Prod'!$L$4=2),"",SUM(AV12:AV14)) -> 0 | AW15: =IF(AND(AW9=0,'7 Prod'!$L$4=2),"",SUM(AW12:AW14)) -> 0 | AX15: =IF(AND(AX9=0,'7 Prod'!$L$4=2),"",SUM(AX12:AX14)) -> 0 | AY15: =IF(AND(AY9=0,'7 Prod'!$L$4=2),"",SUM(AY12:AY14)) -> 0 | AZ15: =IF(AND(AZ9=0,'7 Prod'!$L$4=2),"",SUM(AZ12:AZ14)) -> 0 | BA15: =IF(AND(BA9=0,'7 Prod'!$L$4=2),"",SUM(BA12:BA14)) -> 2220 | BB15: =IF(AND(BB9=0,'7 Prod'!$L$4=2),"",SUM(BB12:BB14)) -> 73.03 | BC15: =IF(AND(BC9=0,'7 Prod'!$L$4=2),"",SUM(BC12:BC14)) -> 168 | BD15: =IF(AND(BD9=0,'7 Prod'!$L$4=2),"",SUM(BD12:BD14)) -> 486.87 | BE15: =IF(AND(BE9=0,'7 Prod'!$L$4=2),"",SUM(BE12:BE14)) -> 0 | BF15: =IF(AND(BF9=0,'7 Prod'!$L$4=2),"",SUM(BF12:BF14)) -> 0 | BG15: =IF(AND(BG9=0,'7 Prod'!$L$4=2),"",SUM(BG12:BG14)) -> 5849.3 | BH15: =IF(AND(BH9=0,'7 Prod'!$L$4=2),"",SUM(BH12:BH14)) -> 205.8 | BI15: =IF(AND(BI9=0,'7 Prod'!$L$4=2),"",SUM(BI12:BI14)) -> 0 | BJ15: =IF(AND(BJ9=0,'7 Prod'!$L$4=2),"",SUM(BJ12:BJ14)) -> 1773.6 | BK15: =IF(AND(BK9=0,'7 Prod'!$L$4=2),"",SUM(BK12:BK14)) -> 3730 | BL15: =IF(AND(BL9=0,'7 Prod'!$L$4=2),"",SUM(BL12:BL14)) -> 2254 | BM15: =IF(AND(BM9=0,'7 Prod'!$L$4=2),"",SUM(BM12:BM14)) -> 0 | BN15: =IF(AND(BN9=0,'7 Prod'!$L$4=2),"",SUM(BN12:BN14)) -> 0 | BO15: =IF(AND(BO9=0,'7 Prod'!$L$4=2),"",SUM(BO12:BO14)) -> 0 | BP15: =IF(AND(BP9=0,'7 Prod'!$L$4=2),"",SUM(BP12:BP14)) -> 0 | BQ15: =IF(AND(BQ9=0,'7 Prod'!$L$4=2),"",SUM(BQ12:BQ14)) -> 0 | BR15: =IF(AND(BR9=0,'7 Prod'!$L$4=2),"",SUM(BR12:BR14)) -> 0 | BS15: =IF(AND(BS9=0,'7 Prod'!$L$4=2),"",SUM(BS12:BS14)) -> 0 | BT15: =IF(AND(BT9=0,'7 Prod'!$L$4=2),"",SUM(BT12:BT14)) -> 0 | BU15: =IF(AND(BU9=0,'7 Prod'!$L$4=2),"",SUM(BU12:BU14)) -> 1656 | BV15: =IF(AND(BV9=0,'7 Prod'!$L$4=2),"",SUM(BV12:BV14)) -> 1014 | BW15: =IF(AND(BW9=0,'7 Prod'!$L$4=2),"",SUM(BW12:BW14)) -> 870 | BX15: =IF(AND(BX9=0,'7 Prod'!$L$4=2),"",SUM(BX12:BX14)) -> 1218 | BY15: =IF(AND(BY9=0,'7 Prod'!$L$4=2),"",SUM(BY12:BY14)) -> 1568 | BZ15: =IF(AND(BZ9=0,'7 Prod'!$L$4=2),"",SUM(BZ12:BZ14)) -> 1308 | CA15: =IF(AND(CA9=0,'7 Prod'!$L$4=2),"",SUM(CA12:CA14)) -> 1404 | CB15: =IF(AND(CB9=0,'7 Prod'!$L$4=2),"",SUM(CB12:CB14)) -> 1388 | CC15: =IF(AND(CC9=0,'7 Prod'!$L$4=2),"",SUM(CC12:CC14)) -> 918 | CD15: =IF(AND(CD9=0,'7 Prod'!$L$4=2),"",SUM(CD12:CD14)) -> 1962 | CE15: =IF(AND(CE9=0,'7 Prod'!$L$4=2),"",SUM(CE12:CE14)) -> 1834 | CF15: =IF(AND(CF9=0,'7 Prod'!$L$4=2),"",SUM(CF12:CF14)) -> 1200 | CG15: =IF(AND(CG9=0,'7 Prod'!$L$4=2),"",SUM(CG12:CG14)) -> 1255 | CH15: =IF(AND(CH9=0,'7 Prod'!$L$4=2),"",SUM(CH12:CH14)) -> 1700 | CI15: =IF(AND(CI9=0,'7 Prod'!$L$4=2),"",SUM(CI12:CI14)) -> 850 | CJ15: =IF(AND(CJ9=0,'7 Prod'!$L$4=2),"",SUM(CJ12:CJ14)) -> 588 | CK15: =IF(AND(CK9=0,'7 Prod'!$L$4=2),"",SUM(CK12:CK14)) -> 0 | CL15: =IF(AND(CL9=0,'7 Prod'!$L$4=2),"",SUM(CL12:CL14)) -> 4633 | CM15: =IF(AND(CM9=0,'7 Prod'!$L$4=2),"",SUM(CM12:CM14)) -> 7155 | CN15: =IF(AND(CN9=0,'7 Prod'!$L$4=2),"",SUM(CN12:CN14)) -> 2640 | CO15: =IF(AND(CO9=0,'7 Prod'!$L$4=2),"",SUM(CO12:CO14)) -> 0 | CP15: =IF(AND(CP9=0,'7 Prod'!$L$4=2),"",SUM(CP12:CP14)) -> 654 | CQ15: =IF(AND(CQ9=0,'7 Prod'!$L$4=2),"",SUM(CQ12:CQ14)) -> 450 | CR15: =IF(AND(CR9=0,'7 Prod'!$L$4=2),"",SUM(CR12:CR14)) -> 0 | CS15: =IF(AND(CS9=0,'7 Prod'!$L$4=2),"",SUM(CS12:CS14)) -> 0 | CT15: =IF(AND(CT9=0,'7 Prod'!$L$4=2),"",SUM(CT12:CT14)) -> 358 | CU15: =IF(AND(CU9=0,'7 Prod'!$L$4=2),"",SUM(CU12:CU14)) -> 872 | CV15: =IF(AND(CV9=0,'7 Prod'!$L$4=2),"",SUM(CV12:CV14)) -> 940 | CW15: =IF(AND(CW9=0,'7 Prod'!$L$4=2),"",SUM(CW12:CW14)) -> 0 | CX15: =IF(AND(CX9=0,'7 Prod'!$L$4=2),"",SUM(CX12:CX14)) -> 0 | CY15: =IF(AND(CY9=0,'7 Prod'!$L$4=2),"",SUM(CY12:CY14)) -> 6570 | CZ15: =IF(AND(CZ9=0,'7 Prod'!$L$4=2),"",SUM(CZ12:CZ14)) -> 12000 | DA15: =IF(AND(DA9=0,'7 Prod'!$L$4=2),"",SUM(DA12:DA14)) -> 19500 | DB15: =IF(AND(DB9=0,'7 Prod'!$L$4=2),"",SUM(DB12:DB14)) -> 10200 | DC15: =IF(AND(DC9=0,'7 Prod'!$L$4=2),"",SUM(DC12:DC14)) -> 23376 | DD15: =IF(AND(DD9=0,'7 Prod'!$L$4=2),"",SUM(DD12:DD14)) -> 9233 | DE15: =IF(AND(DE9=0,'7 Prod'!$L$4=2),"",SUM(DE12:DE14)) -> 0 | DF15: =IF(AND(DF9=0,'7 Prod'!$L$4=2),"",SUM(DF12:DF14)) -> 15360 | DG15: =IF(AND(DG9=0,'7 Prod'!$L$4=2),"",SUM(DG12:DG14)) -> 5621 | DH15: =IF(AND(DH9=0,'7 Prod'!$L$4=2),"",SUM(DH12:DH14)) -> 0 | DI15: =IF(AND(DI9=0,'7 Prod'!$L$4=2),"",SUM(DI12:DI14)) -> 0 | DJ15: =IF(AND(DJ9=0,'7 Prod'!$L$4=2),"",SUM(DJ12:DJ14)) -> 0 | DK15: =IF(AND(DK9=0,'7 Prod'!$L$4=2),"",SUM(DK12:DK14)) -> 5400 | DL15: =IF(AND(DL9=0,'7 Prod'!$L$4=2),"",SUM(DL12:DL14)) -> 0 | DM15: =IF(AND(DM9=0,'7 Prod'!$L$4=2),"",SUM(DM12:DM14)) -> 0 | DN15: =IF(AND(DN9=0,'7 Prod'!$L$4=2),"",SUM(DN12:DN14)) -> 0 | DO15: =IF(AND(DO9=0,'7 Prod'!$L$4=2),"",SUM(DO12:DO14)) -> 0 | DP15: =IF(AND(DP9=0,'7 Prod'!$L$4=2),"",SUM(DP12:DP14)) -> 0 | DQ15: =IF(AND(DQ9=0,'7 Prod'!$L$4=2),"",SUM(DQ12:DQ14)) -> 0 | DR15: =IF(AND(DR9=0,'7 Prod'!$L$4=2),"",SUM(DR12:DR14)) -> 26200 | DS15: =IF(AND(DS9=0,'7 Prod'!$L$4=2),"",SUM(DS12:DS14)) -> 0 | DT15: =IF(AND(DT9=0,'7 Prod'!$L$4=2),"",SUM(DT12:DT14)) -> 0 | DU15: =IF(AND(DU9=0,'7 Prod'!$L$4=2),"",SUM(DU12:DU14)) -> 0 | DV15: =IF(AND(DV9=0,'7 Prod'!$L$4=2),"",SUM(DV12:DV14)) -> 0 | DW15: =IF(AND(DW9=0,'7 Prod'!$L$4=2),"",SUM(DW12:DW14)) -> 0 | DX15: =IF(AND(DX9=0,'7 Prod'!$L$4=2),"",SUM(DX12:DX14)) -> 3615 | DY15: =IF(AND(DY9=0,'7 Prod'!$L$4=2),"",SUM(DY12:DY14)) -> 0 | DZ15: =IF(AND(DZ9=0,'7 Prod'!$L$4=2),"",SUM(DZ12:DZ14)) -> 0 | EA15: =IF(AND(EA9=0,'7 Prod'!$L$4=2),"",SUM(EA12:EA14)) -> 0 | EB15: =IF(AND(EB9=0,'7 Prod'!$L$4=2),"",SUM(EB12:EB14)) -> 0 | EC15: =IF(AND(EC9=0,'7 Prod'!$L$4=2),"",SUM(EC12:EC14)) -> 0 | ED15: =IF(AND(ED9=0,'7 Prod'!$L$4=2),"",SUM(ED12:ED14)) -> 0 | EE15: =IF(AND(EE9=0,'7 Prod'!$L$4=2),"",SUM(EE12:EE14)) -> 0 | EF15: =IF(AND(EF9=0,'7 Prod'!$L$4=2),"",SUM(EF12:EF14)) -> 0 | EI15: =SUMPRODUCT(L9:EF9,L15:EF15) -> 0
A16: 8 | B16: Saatgut | C16: / Bestandsergänzung | E16: € | G16: 0 | H16: 0 | I16: 0 | J16: 0 | L16: =L89*$C$65 -> 613 | M16: =M89*$C$65 -> 332 | N16: =N89*$C$65 -> 221 | O16: =O89*C65 -> 102 | P16: =P89*C65 -> 358 | Q16: =Q89*C65 -> 0 | S16: =S89*C65 -> 511 | T16: =T89*C65 -> 0 | U16: =U89*C65 -> 20 | V16: =V89*C65 -> 0 | W16: =W89*C65 -> 0 | X16: =X89*C65 -> 5 | Y16: =Y89*C65 -> 30 | Z16: =Z89*C65 -> 0 | AA16: =AA89*C65 -> 0 | AB16: =AB89*C65 -> 0 | AC16: =AC89*C65 -> 0 | AD16: =AD89*C65 -> 0 | AE16: =AE89*C65 -> 0 | AF16: =AF89*C65 -> 10 | AG16: =AG89*C65 -> 10 | AH16: =AH89*C65 -> 10 | AI16: =AI89*C65 -> 0 | AJ16: =AJ89*C65 -> 0 | AK16: =AK89*C65 -> 5 | AL16: =AL89*C65 -> 0 | AM16: =AM89*C65 -> 10 | AN16: =AN89*C65 -> 0 | AO16: =AO89*C65 -> 0 | AP16: =AP89*C65 -> 212 | AQ16: =AQ89*C65 -> 0 | AR16: =AR89*C65 -> 0 | AS16: =AS89*C65 -> 80 | AT16: =AT89*C65 -> 125 | AU16: =AU89*C65 -> 0 | AV16: =AV89*C65 -> 0 | AW16: =AW89*C65 -> 16 | AX16: =AX89*C65 -> 0 | AY16: =AY89*C65 -> 0 | BA16: =BA89*C65 -> 152 | BB16: =BB89*C65 -> 47.08 | BC16: =BC89*C65 -> 69.55 | BD16: =BD89*C65 -> 92 | BE16: =BE89*C65 -> 0 | BF16: =BF89*C65 -> 0 | BG16: =BG89*C65 -> 695.5 | BH16: =BH89*C65 -> 39.59 | BI16: =BI89*C65 -> 0 | BJ16: =BJ89*C65 -> 185.11 | BK16: =BK89*C65 -> 383.06 | BL16: =BL89*C65 -> 262.15 | BM16: =BM89*C65 -> 0 | BN16: =BN89*C65 -> 0 | BO16: =BO89*C65 -> 0 | BP16: =BP89*C65 -> 0 | BQ16: =BQ89*C65 -> 0 | BR16: =BR89*C65 -> 0 | BS16: =BS89*C65 -> 0 | BT16: =BT89*C65 -> 0 | BU16: =BU89*C65 -> 98 | BV16: =BV89*C65 -> 107 | BW16: =BW89*C65 -> 151 | BX16: =BX89*C65 -> 43 | BY16: =BY89*C65 -> 80 | BZ16: =BZ89*C65 -> 100 | CA16: =CA89*C65 -> 72 | CB16: =CB89*C65 -> 91 | CC16: =CC89*C65 -> 0 | CD16: =CD89*C65 -> 225 | CE16: =CE89*C65 -> 225 | CF16: =CF89*C65 -> 266 | CG16: =CG89*C65 -> 218 | CH16: =CH89*C65 -> 106 | CI16: =CI89*C65 -> 94 | CJ16: =CJ89*C65 -> 138 | CK16: =CK89*C65 -> 0 | CL16: =CL89*C65 -> 1070 | CM16: =CM89*C65 -> 1192 | CN16: =CN89*C65 -> 318 | CO16: =CO89*C65 -> 0 | CP16: =CP89*C65 -> 234 | CQ16: =CQ89*C65 -> 203 | CR16: =CR89*C65 -> 56 | CS16: =CS89*C65 -> 150 | CT16: =CT89*C65 -> 64 | CU16: =CU89*C65 -> 41 | CV16: =CV89*C65 -> 181 | CW16: =CW89*C65 -> 0 | CX16: =CX89*C65 -> 86 | CY16: =CY89*C65 -> 900 | CZ16: =CZ89*C65 -> 358 | DA16: =DA89*C65 -> 440 | DB16: =DB89*C65 -> 0 | DC16: =DC89*C65 -> 4140 | DD16: =DD89*C65 -> 2 | DE16: =DE89*C65 -> 0 | DF16: =DF89*C65 -> 5 | DG16: =DG89*C65 -> 14 | DH16: =DH89*C65 -> 0 | DI16: =DI89*C65 -> 0 | DJ16: =DJ89*C65 -> 0 | DK16: =DK89*C65 -> 3 | DL16: =DL89*C65 -> 0 | DM16: =DM89*C65 -> 0 | DN16: =DN89*C65 -> 0 | DO16: =DO89*C65 -> 0 | DP16: =DP89*C65 -> 0 | DQ16: =DQ89*C65 -> 0 | DR16: =DR89*C65 -> 14 | DS16: =DS89*C65 -> 0 | DT16: =DT89*D65 -> 0 | DU16: =DU89*C65 -> 0 | DV16: =DV89*C65 -> 0 | DW16: =DW89*C65 -> 0 | DX16: =DX89 -> 0 | DY16: 0 | DZ16: 0 | EA16: =EA89*C65 -> 0 | EB16: =EB89*C65 -> 0 | EC16: =EC89 -> 0 | ED16: =ED89*C65 -> 0 | EE16: =EE89*C65 -> 0 | EF16: =EF89*C65 -> 0
A17: 9 | B17: Dünger- | C17: / Futterzukauf | E17: € | G17: =SUMPRODUCT(AF$9:AX$9,AF17:AX17)+SUMPRODUCT(BU$9:DB$9,BU17:DB17) -> 0 | H17: =SUMPRODUCT(L$9:AE$9,L17:AE17)+SUMPRODUCT(AY$9:BT$9,AY17:BT17) -> 0 | I17: =SUMPRODUCT(DC$9:EF$9,DC17:EF17) -> 0 | J17: =SUMPRODUCT(DV$9:EF$9,DV17:EF17) -> 0 | L17: =L50 -> 975 | M17: =M90*$C$65 -> 377 | N17: 377 | O17: 500 | P17: 120 | Q17: 0 | R17: =R90*C65 -> 360 | S17: 314 | T17: 0 | U17: 15 | V17: 0 | W17: 0 | X17: 17 | Y17: 40 | Z17: 0 | AA17: 0 | AB17: 0 | AC17: 0 | AD17: 0 | AE17: 0 | AF17: =IF(AF90=0,0,AF90*$B$65/((100-AF104)/100)*(100-AF31)/100) -> 96 | AG17: =IF(AG90=0,0,AG90*$B$65/((100-AG104)/100)*(100-AG31)/100) -> 170 | AH17: 192 | AI17: 0 | AJ17: 0 | AK17: 124 | AL17: 0 | AM17: 189 | AN17: 63 | AO17: 0 | AP17: 202 | AQ17: 0 | AR17: 0 | AS17: 183 | AT17: 107 | AU17: 0 | AV17: 0 | AW17: 68 | AX17: 0 | AY17: 0 | BA17: =BA50 -> 910 | BB17: =BB90*$C$65 -> 13.75 | BC17: =BC90*$C$65 -> 75.03 | BD17: 77 | BE17: 0 | BF17: 0 | BG17: 1605 | BH17: 125.19 | BI17: 0 | BJ17: 347.75 | BK17: 419.44 | BL17: 1614.63 | BM17: 0 | BN17: 0 | BO17: 0 | BP17: 0 | BQ17: 0 | BR17: 0 | BS17: 0 | BT17: 0 | BU17: =IF(BU90=0,0,BU90*$B$65/((100-BU104)/100)*(100-BU31)/100) -> 264 | BV17: =IF(BV90=0,0,BV90*$B$65/((100-BV104)/100)*(100-BV31)/100) -> 203 | BW17: 183 | BX17: 193 | BY17: 233 | BZ17: 162 | CA17: 168 | CB17: 227 | CC17: 168 | CD17: 242 | CE17: 231 | CF17: 86 | CG17: 82 | CH17: 232 | CI17: 126 | CJ17: 167 | CK17: 20 | CL17: 514 | CM17: 394 | CN17: 261 | CO17: 20 | CP17: 111 | CQ17: 32 | CR17: 194 | CS17: 282 | CT17: 102 | CU17: 232 | CV17: 231 | CW17: 0 | CX17: 0 | CY17: 46 | CZ17: 275 | DA17: 46 | DB17: 121 | DC17: 149 | DD17: 86 | DE17: 0 | DF17: 67 | DG17: 62 | DH17: 0 | DI17: 0 | DJ17: 0 | DK17: 76 | DL17: 0 | DM17: 0 | DN17: 0 | DO17: 0 | DP17: 0 | DQ17: 0 | DR17: 62 | DS17: 0 | DT17: =DT90*$B$65 -> 0 | DU17: =DU90*C65 -> 0 | DV17: =DV90*B65 -> 0 | DW17: =DW90*B65 -> 0 | DX17: 0 | DY17: 0 | DZ17: 0 | EA17: =EA90*B65 -> 0 | EB17: =EB90*B65 -> 0 | EC17: =EC90*B65 -> 0 | ED17: =ED90*B65 -> 0 | EE17: =EE90*B65 -> 0 | EF17: =EF90*B65 -> 0
A18: 10 | B18: Pflanz'schutz | C18: / Tierarzt, Besamung | E18: € | G18: 0 | H18: 0 | I18: 0 | J18: 0 | L18: =L91*B65 -> 161 | M18: =M91*B65 -> 107 | N18: =N91*B65 -> 107 | O18: =O91*B65 -> 48 | P18: =P91*B65 -> 48 | Q18: =Q91*B65 -> 0 | R18: =R91*B65 -> 0 | S18: =S91*B65 -> 754 | T18: =T91*B65 -> 0 | U18: =U91*B65 -> 12 | V18: =V91*B65 -> 0 | W18: =W91*B65 -> 0 | X18: =X91*B65 -> 5 | Y18: =Y91*B65 -> 15 | Z18: =Z91*B65 -> 0 | AA18: =AA91*B65 -> 0 | AB18: =AB91*B65 -> 0 | AC18: =AC91*B65 -> 0 | AD18: =AD91*B65 -> 0 | AE18: =AE91*B65 -> 0 | AF18: =AF91*B65 -> 11 | AG18: =AG91*B65 -> 11 | AH18: =AH91*B65 -> 11 | AI18: =AI91*B65 -> 0 | AJ18: =AJ91*B65 -> 0 | AK18: =AK91*B65 -> 11 | AL18: =AL91*B65 -> 0 | AM18: =AM91*B65 -> 11 | AN18: =AN91*B65 -> 0 | AO18: =AO91*B65 -> 0 | AP18: =AP91*B65 -> 93 | AQ18: =AQ91*B65 -> 0 | AR18: =AR91*B65 -> 0 | AS18: =AS91*B65 -> 0 | AT18: =AT91*B65 -> 93 | AU18: =AU91*B65 -> 0 | AV18: =AV91*B65 -> 0 | AW18: =AW91*B65 -> 0 | AX18: =AX91*B65 -> 0 | AY18: =AY91*B65 -> 0 | BA18: =BA91*B65 -> 219 | BB18: =BB91*B65 -> 2.12 | BC18: =BC91*B65 -> 1.7 | BD18: =BD91*B65 -> 27.7 | BE18: =BE91*B65 -> 0 | BF18: =BF91*B65 -> 0 | BG18: =BG91*B65 -> 59.5 | BH18: =BH91*B65 -> 8.33 | BI18: =BI91*B65 -> 0 | BJ18: =BJ91*B65 -> 29.75 | BK18: =BK91*B65 -> 52.36 | BL18: =BL91*B65 -> 119 | BM18: =BM91*B65 -> 0 | BN18: =BN91*B65 -> 0 | BO18: =BO91*B65 -> 0 | BP18: =BP91*B65 -> 0 | BQ18: =BQ91*B65 -> 0 | BR18: =BR91*B65 -> 0 | BS18: =BS91*B65 -> 0 | BT18: =BT91*B65 -> 0 | BU18: =BU91*B65 -> 189 | BV18: =BV91*B65 -> 86 | BW18: =BW91*B65 -> 152 | BX18: =BX91*B65 -> 142 | BY18: =BY91*B65 -> 123 | BZ18: =BZ91*B65 -> 126 | CA18: =CA91*B65 -> 70 | CB18: =CB91*B65 -> 137 | CC18: =CC91*B65 -> 0 | CD18: =CD91*B65 -> 93 | CE18: =CE91*B65 -> 93 | CF18: =CF91*B65 -> 112 | CG18: =CG91*B65 -> 108 | CH18: =CH91*B65 -> 162 | CI18: =CI91*B65 -> 81 | CJ18: =CJ91*B65 -> 101 | CK18: =CK91*B65 -> 0 | CL18: =CL91*B65 -> 365 | CM18: =CM91*B65 -> 433 | CN18: =CN91*B65 -> 370 | CO18: =CO91*B65 -> 0 | CP18: =CP91*B65 -> 132 | CQ18: =CQ91*B65 -> 0 | CR18: =CR91*B65 -> 125 | CS18: =CS91*B65 -> 86 | CT18: =CT91*B65 -> 65 | CU18: =CU91*B65 -> 129 | CV18: =CV91*B65 -> 0 | CW18: =CW91*B65 -> 0 | CX18: =CX91*B65 -> 0 | CY18: =CY91*B65 -> 181 | CZ18: =CZ91*B65 -> 315 | DA18: =DA91*B65 -> 152 | DB18: =DB91*B65 -> 893 | DC18: =DC91*B65 -> 1836 | DD18: =DD91*B65 -> 866 | DE18: =DE91*B65 -> 0 | DF18: =DF91*B65 -> 157 | DG18: =DG91*B65 -> 157 | DH18: =DH91*B65 -> 0 | DI18: =DI91*B65 -> 0 | DJ18: =DJ91*B65 -> 0 | DK18: =DK91*B65 -> 405 | DL18: =DL91*B65 -> 0 | DM18: =DM91*B65 -> 0 | DN18: =DN91*B65 -> 0 | DO18: =DO91*B65 -> 0 | DP18: =DP91*B65 -> 0 | DQ18: =DQ91*B65 -> 0 | DR18: =DR91*B65 -> 434 | DS18: =DS91*B65 -> 0 | DT18: =DT91*B65 -> 0 | DU18: =DU91*B65 -> 0 | DV18: =DV91*B65 -> 0 | DW18: =DW91*B65 -> 0 | DX18: =DX91 -> 0 | DY18: 0 | DZ18: 0 | EA18: =EA91*B65 -> 0 | EB18: =EB91*B65 -> 0 | EC18: =EC91 -> 0 | ED18: =ED91*B65 -> 0 | EE18: =EE91*B65 -> 0 | EF18: =EF91*B65 -> 0
A19: 11 | B19: Hagel- | C19: / Tierversicherung | E19: € | G19: 0 | H19: 0 | I19: 0 | J19: 0 | L19: =L92 -> 19 | M19: 22 | N19: 22 | O19: 15 | P19: 11 | Q19: 0 | R19: =R92 -> 51 | S19: 51 | T19: 0 | U19: 8 | V19: 0 | W19: 0 | X19: 0 | Y19: 5 | Z19: 0 | AA19: 0 | AB19: 0 | AC19: 0 | AD19: 0 | AE19: 0 | AF19: 0 | AG19: 0 | AH19: 0 | AI19: 0 | AJ19: 0 | AK19: 0 | AL19: 0 | AM19: 0 | AN19: 0 | AO19: 0 | AP19: 12 | AQ19: 0 | AR19: 0 | AS19: 0 | AT19: 15 | AU19: 0 | AV19: 0 | AW19: 0 | AX19: 0 | AY19: 0 | BA19: =BA92 -> 7 | BB19: 0.07 | BC19: 0.27 | BD19: 3 | BE19: 0 | BF19: 0 | BG19: 30 | BH19: 2 | BI19: 0 | BJ19: 0 | BK19: 0 | BL19: 30 | BM19: 0 | BN19: 0 | BO19: 0 | BP19: 0 | BQ19: 0 | BR19: 0 | BS19: 0 | BT19: 0 | BU19: 18 | BV19: 17 | BW19: 16 | BX19: 15 | BY19: 16 | BZ19: 12 | CA19: 14 | CB19: 14 | CC19: 0 | CD19: 21 | CE19: 14 | CF19: 9 | CG19: =CG92 -> 9 | CH19: 35 | CI19: 26 | CJ19: 23 | CK19: 0 | CL19: 42 | CM19: 42 | CN19: 24 | CO19: 0 | CP19: 36 | CQ19: 8 | CR19: 15 | CS19: 12 | CT19: 12 | CU19: 42 | CV19: 9 | CW19: 0 | CX19: 0 | CY19: 358 | CZ19: 665 | DA19: 0 | DB19: 327 | DC19: 1534 | DD19: 633 | DE19: 0 | DF19: 0 | DG19: 0 | DH19: 0 | DI19: 0 | DJ19: 0 | DK19: 0 | DL19: 0 | DM19: =DM92 -> 0 | DN19: 0 | DO19: 0 | DP19: 0 | DQ19: 0 | DR19: 540 | DS19: 0 | DT19: 0 | DU19: 0 | DV19: 0 | DW19: 0 | DX19: 0 | DY19: 0 | DZ19: 0 | EA19: 0 | EB19: 0 | EC19: 0 | ED19: 0 | EE19: 0 | EF19: 0
A20: 12 | B20: Beratung / Leistungskontrolle | E20: € | G20: 0 | H20: 0 | I20: 0 | J20: 0 | L20: =L93*B65 -> 24 | M20: =M93*B65 -> 21 | N20: =N93*B65 -> 0 | O20: =O93*B65 -> 0 | P20: =P93*B65 -> 0 | Q20: =Q93*B65 -> 0 | R20: =R93*$B$65 -> 0 | S20: =S93*B65 -> 105 | T20: =T93*B65 -> 0 | U20: =U93*B65 -> 8 | V20: =V93*B65 -> 0 | W20: =W93*B65 -> 0 | X20: =X93*B65 -> 4 | Y20: =Y93*B65 -> 11 | Z20: =Z93*B65 -> 0 | AA20: =AA93*B65 -> 0 | AB20: =AB93*B65 -> 0 | AC20: =AC93*B65 -> 0 | AD20: =AD93*B65 -> 0 | AE20: =AE93*B65 -> 0 | AF20: =AF93*B65 -> 0 | AG20: =AG93*B65 -> 0 | AH20: =AH93*B65 -> 0 | AI20: =AI93*B65 -> 0 | AJ20: =AJ93*B65 -> 0 | AK20: =AK93*B65 -> 0 | AL20: =AL93*B65 -> 0 | AM20: =AM93*B65 -> 0 | AN20: =AN93*B65 -> 0 | AO20: =AO93*B65 -> 0 | AP20: =AP93*B65 -> 0 | AQ20: =AQ93*B65 -> 0 | AR20: =AR93*B65 -> 0 | AS20: =AS93*B65 -> 0 | AT20: =AT93*B65 -> 0 | AU20: =AU93*B65 -> 0 | AV20: =AV93*B65 -> 0 | AW20: =AW93*B65 -> 0 | AX20: =AX93*B65 -> 0 | AY20: =AY93*B65 -> 0 | BA20: =BA93*B65 -> 1 | BB20: =BB93*B65 -> 0.06 | BC20: =BC93*B65 -> 1.19 | BD20: =BD93*B65 -> 0 | BE20: =BE93*B65 -> 0 | BF20: =BF93*B65 -> 0 | BG20: =BG93*B65 -> 0 | BH20: =BH93*B65 -> 0 | BI20: =BI93*B65 -> 0 | BJ20: =BJ93*B65 -> 0 | BK20: =BK93*B65 -> 0 | BL20: =BL93*B65 -> 0 | BM20: =BM93*B65 -> 0 | BN20: =BN93*B65 -> 0 | BO20: =BO93*B65 -> 0 | BP20: =BP93*B65 -> 0 | BQ20: =BQ93*B65 -> 0 | BR20: =BR93*B65 -> 0 | BS20: =BS93*B65 -> 0 | BT20: =BT93*B65 -> 0 | BU20: =BU93*B65 -> 0 | BV20: =BV93*B65 -> 0 | BW20: =BW93*B65 -> 0 | BX20: =BX93*B65 -> 0 | BY20: =BY93*B65 -> 0 | BZ20: =BZ93*B65 -> 0 | CA20: =CA93*B65 -> 0 | CB20: =CB93*B65 -> 0 | CC20: =CC93*B65 -> 0 | CD20: =CD93*B65 -> 0 | CE20: =CE93*B65 -> 0 | CF20: =CF93*B65 -> 0 | CG20: =CG93*B65 -> 0 | CH20: =CH93*B65 -> 0 | CI20: =CI93*B65 -> 0 | CJ20: =CJ93*B65 -> 0 | CK20: =CK93*B65 -> 0 | CL20: =CL93*B65 -> 0 | CM20: =CM93*B65 -> 0 | CN20: =CN93*B65 -> 0 | CO20: =CO93*B65 -> 0 | CP20: =CP93*B65 -> 0 | CQ20: =CQ93*B65 -> 0 | CR20: =CR93*B65 -> 0 | CS20: =CS93*B65 -> 0 | CT20: =CT93*B65 -> 0 | CU20: =CU93*B65 -> 0 | CV20: =CV93*B65 -> 0 | CW20: =CW93*B65 -> 0 | CX20: =CX93*B65 -> 0 | CY20: =CY93*B65 -> 0 | CZ20: =CZ93*B65 -> 0 | DA20: =DA93*B65 -> 0 | DB20: =DB93*B65 -> 0 | DC20: =DC93*B65 -> 0 | DD20: =DD93*B65 -> 0 | DE20: =DE93*B65 -> 0 | DF20: =DF93*B65 -> 0 | DG20: =DG93*B65 -> 0 | DH20: =DH93*B65 -> 0 | DI20: =DI93*B65 -> 0 | DJ20: =DJ93*B65 -> 0 | DK20: =DK93*B65 -> 0 | DL20: =DL93*B65 -> 0 | DM20: =DM93*B65 -> 0 | DN20: =DN93*B65 -> 0 | DO20: =DO93*B65 -> 0 | DP20: =DP93*B65 -> 0 | DQ20: =DQ93*B65 -> 0 | DR20: =DR93*B65 -> 0 | DS20: =DS93*B65 -> 0 | DT20: =DT93*B65 -> 0 | DU20: =DU93*B65 -> 0 | DV20: =DV93*B65 -> 0 | DW20: =DW93*B65 -> 0 | DX20: 0 | DY20: 0 | DZ20: 0 | EA20: =EA93*B65 -> 0 | EB20: =EB93*B65 -> 0 | EC20: 0 | ED20: =ED93*B65 -> 0 | EE20: =EE93*B65 -> 0 | EF20: =EF93*B65 -> 0
A21: 13 | B21: Heizst.,Strom,Wasser,Abwasser | E21: € | G21: 0 | H21: 0 | I21: 0 | J21: 0 | L21: =L94*B65 -> 121 | M21: =M94*B65 -> 58 | N21: =N94*B65 -> 58 | O21: =O94*B65 -> 35 | P21: =P94*B65 -> 26 | Q21: =Q94*B65 -> 0 | R21: =R94*$B$65 -> 52 | S21: =S94*B65 -> 29 | T21: =T94*B65 -> 0 | U21: =U94*B65 -> 7 | V21: =V94*B65 -> 0 | W21: =W94*B65 -> 0 | X21: =X94*B65 -> 2 | Y21: =Y94*B65 -> 26 | Z21: =Z94*B65 -> 0 | AA21: =AA94*B65 -> 0 | AB21: =AB94*B65 -> 0 | AC21: =AC94*B65 -> 0 | AD21: =AD94*B65 -> 0 | AE21: =AE94*B65 -> 0 | AF21: =AF94*B65 -> 0 | AG21: =AG94*B65 -> 0 | AH21: =AH94*B65 -> 0 | AI21: =AI94*B65 -> 0 | AJ21: =AJ94*B65 -> 0 | AK21: =AK94*B65 -> 0 | AL21: =AL94*B65 -> 0 | AM21: =AM94*B65 -> 0 | AN21: =AN94*B65 -> 0 | AO21: =AO94*B65 -> 0 | AP21: =AP94*B65 -> 0 | AQ21: =AQ94*B65 -> 0 | AR21: =AR94*B65 -> 0 | AS21: =AS94*B65 -> 0 | AT21: =AT94*B65 -> 0 | AU21: =AU94*B65 -> 0 | AV21: =AV94*B65 -> 0 | AW21: =AW94*B65 -> 0 | AX21: =AX94*B65 -> 0 | AY21: =AY94*B65 -> 0 | BA21: =BA94*B65 -> 101 | BB21: =BB94*B65 -> 2.73 | BC21: =BC94*B65 -> 1.13 | BD21: =BD94*B65 -> 0 | BE21: =BE94*B65 -> 0 | BF21: =BF94*B65 -> 0 | BG21: =BG94*B65 -> 79.73 | BH21: =BH94*B65 -> 8.33 | BI21: =BI94*B65 -> 0 | BJ21: =BJ94*B65 -> 85.68 | BK21: =BK94*B65 -> 78.54 | BL21: =BL94*B65 -> 73.78 | BM21: =BM94*B65 -> 0 | BN21: =BN94*B65 -> 0 | BO21: =BO94*B65 -> 0 | BP21: =BP94*B65 -> 0 | BQ21: =BQ94*B65 -> 0 | BR21: =BR94*B65 -> 0 | BS21: =BS94*B65 -> 0 | BT21: =BT94*B65 -> 0 | BU21: =BU94*B65 -> 0 | BV21: =BV94*B65 -> 0 | BW21: =BW94*B65 -> 0 | BX21: =BX94*B65 -> 0 | BY21: =BY94*B65 -> 0 | BZ21: =BZ94*B65 -> 0 | CA21: =CA94*B65 -> 0 | CB21: =CB94*B65 -> 0 | CC21: =CC94*B65 -> 0 | CD21: =CD94*B65 -> 0 | CE21: =CE94*B65 -> 0 | CF21: =CF94*B65 -> 0 | CG21: =CG94*B65 -> 0 | CH21: =CH94*B65 -> 0 | CI21: =CI94*B65 -> 0 | CJ21: =CJ94*B65 -> 0 | CK21: =CK94*B65 -> 0 | CL21: =CL94*B65 -> 0 | CM21: =CM94*B65 -> 0 | CN21: =CN94*B65 -> 0 | CO21: =CO94*B65 -> 0 | CP21: =CP94*B65 -> 0 | CQ21: =CQ94*B65 -> 0 | CR21: =CR94*B65 -> 0 | CS21: =CS94*B65 -> 0 | CT21: =CT94*B65 -> 0 | CU21: =CU94*B65 -> 0 | CV21: =CV94*B65 -> 0 | CW21: =CW94*B65 -> 0 | CX21: =CX94*B65 -> 0 | CY21: =CY94*B65 -> 131 | CZ21: =CZ94*B65 -> 0 | DA21: =DA94*B65 -> 814 | DB21: =DB94*B65 -> 0 | DC21: =DC94*B65 -> 263 | DD21: =DD94*B65 -> 0 | DE21: =DE94*B65 -> 0 | DF21: =DF94*B65 -> 0 | DG21: =DG94*B65 -> 0 | DH21: =DH94*B65 -> 0 | DI21: =DI94*B65 -> 0 | DJ21: =DJ94*B65 -> 0 | DK21: =DK94*B65 -> 0 | DL21: =DL94*B65 -> 0 | DM21: =DM94*B65 -> 0 | DN21: =DN94*B65 -> 0 | DO21: =DO94*B65 -> 0 | DP21: =DP94*B65 -> 0 | DQ21: =DQ94*B65 -> 0 | DR21: =DR94*B65 -> 0 | DS21: =DS94*B65 -> 0 | DT21: =DT94*B65 -> 0 | DU21: =DU94*B65 -> 0 | DV21: =DV94*B65 -> 0 | DW21: =DW94*B65 -> 0 | DX21: 86 | DY21: 0 | DZ21: 0 | EA21: =EA94*B65 -> 0 | EB21: =EB94*B65 -> 0 | EC21: 0 | ED21: =ED94*B65 -> 0 | EE21: =EE94*B65 -> 0 | EF21: =EF94*B65 -> 0
A22: 14 | B22: Trockn.,Lager.,Vermarkt.,Sonstiges | E22: € | G22: 0 | H22: 0 | I22: 0 | J22: 0 | L22: =L95*B65 -> 57 | M22: =M95*B65 -> 33 | N22: =N95*B65 -> 54 | O22: =O95*B65 -> 45 | P22: =P95*B65 -> 33 | Q22: =Q95*B65 -> 0 | R22: =R95*$B$65 -> 236 | S22: =S95*B65 -> 399 | T22: =T95*B65 -> 0 | U22: =U95*B65 -> 20 | V22: =V95*B65 -> 0 | W22: =W95*B65 -> 0 | X22: =X95*B65 -> 7 | Y22: =Y95*B65 -> 39 | Z22: =Z95*B65 -> 0 | AA22: =AA95*B65 -> 0 | AB22: =AB95*B65 -> 0 | AC22: =AC95*B65 -> 0 | AD22: =AD95*B65 -> 0 | AE22: =AE95*B65 -> 0 | AF22: =AF95*B65 -> 0 | AG22: =AG95*B65 -> 0 | AH22: =AH95*B65 -> 26 | AI22: =AI95*B65 -> 0 | AJ22: =AJ95*B65 -> 0 | AK22: =AK95*B65 -> 0 | AL22: =AL95*B65 -> 0 | AM22: =AM95*B65 -> 0 | AN22: =AN95*B65 -> 0 | AO22: =AO95*B65 -> 0 | AP22: =AP95*B65 -> 26 | AQ22: =AQ95*B65 -> 0 | AR22: =AR95*B65 -> 0 | AS22: =AS95*B65 -> 26 | AT22: =AT95*B65 -> 31 | AU22: =AU95*B65 -> 0 | AV22: =AV95*B65 -> 0 | AW22: =AW95*B65 -> 0 | AX22: =AX95*B65 -> 0 | AY22: =AY95*B65 -> 0 | BA22: =BA95*B65 -> 8 | BB22: =BB95*B65 -> 0 | BC22: =BC95*B65 -> 0 | BD22: =BD95*B65 -> 5.13 | BE22: =BE95*B65 -> 0 | BF22: =BF95*B65 -> 0 | BG22: =BG95*B65 -> 59.5 | BH22: =BH95*B65 -> 3.57 | BI22: =BI95*B65 -> 0 | BJ22: =BJ95*B65 -> 424.83 | BK22: =BK95*B65 -> 183.26 | BL22: =BL95*B65 -> 0 | BM22: =BM95*B65 -> 0 | BN22: =BN95*B65 -> 0 | BO22: =BO95*B65 -> 0 | BP22: =BP95*B65 -> 0 | BQ22: =BQ95*B65 -> 0 | BR22: =BR95*B65 -> 0 | BS22: =BS95*B65 -> 0 | BT22: =BT95*B65 -> 0 | BU22: =BU95*B65 -> 50 | BV22: =BV95*B65 -> 31 | BW22: =BW95*B65 -> 26 | BX22: =BX95*B65 -> 51 | BY22: =BY95*B65 -> 51 | BZ22: =BZ95*B65 -> 38 | CA22: =CA95*B65 -> 38 | CB22: =CB95*B65 -> 49 | CC22: =CC95*B65 -> 0 | CD22: =CD95*B65 -> 380 | CE22: =CE95*B65 -> 24 | CF22: =CF95*B65 -> 149 | CG22: =CG95*B65 -> 83 | CH22: =CH95*B65 -> 32 | CI22: =CI95*B65 -> 68 | CJ22: =CJ95*B65 -> 55 | CK22: =CK95*B65 -> 0 | CL22: =CL95*B65 -> 0 | CM22: =CM95*B65 -> 0 | CN22: =CN95*B65 -> 0 | CO22: =CO95*B65 -> 0 | CP22: =CP95*B65 -> 183 | CQ22: =CQ95*B65 -> 32 | CR22: =CR95*B65 -> 36 | CS22: =CS95*B65 -> 26 | CT22: =CT95*B65 -> 62 | CU22: =CU95*B65 -> 33 | CV22: =CV95*B65 -> 11 | CW22: =CW95*B65 -> 0 | CX22: =CX95*B65 -> 0 | CY22: =CY95*B65 -> 494 | CZ22: =CZ95*B65 -> 699 | DA22: =DA95*B65 -> 1658 | DB22: =DB95*B65 -> 908 | DC22: =DC95*B65 -> 7270 | DD22: =DD95*B65 -> 3816 | DE22: =DE95*B65 -> 0 | DF22: =DF95*B65 -> 688 | DG22: =DG95*B65 -> 1443 | DH22: =DH95*B65 -> 0 | DI22: =DI95*B65 -> 0 | DJ22: =DJ95*B65 -> 0 | DK22: =DK95*B65 -> 37 | DL22: =DL95*B65 -> 0 | DM22: =DM95*B65 -> 0 | DN22: =DN95*B65 -> 0 | DO22: =DO95*B65 -> 0 | DP22: =DP95*B65 -> 0 | DQ22: =DQ95*B65 -> 0 | DR22: =DR95*B65 -> 5211 | DS22: =DS95*B65 -> 0 | DT22: =DT95*B65 -> 0 | DU22: =DU95*B65 -> 0 | DV22: =DV95*B65 -> 0 | DW22: =DW95*B65 -> 0 | DX22: 931 | DY22: 0 | DZ22: 0 | EA22: =EA95*B65 -> 0 | EB22: =EB95*B65 -> 0 | EC22: 0 | ED22: =ED95*B65 -> 0 | EE22: =EE95*B65 -> 0 | EF22: =EF95*B65 -> 0
A23: 15 | B23: Var. Masch'kosten eig. Maschinen | E23: € | G23: 0 | H23: 0 | I23: 0 | J23: 0 | L23: =L96*B65 -> 98 | M23: =M96*B65 -> 64 | N23: =N96*B65 -> 33 | O23: =O96*B65 -> 21 | P23: =P96*B65 -> 26 | Q23: =Q96*B65 -> 0 | R23: =R96*$B$65 -> 105 | S23: =S96*B65 -> 63 | T23: =T96*B65 -> 0 | U23: =U96*B65 -> 8 | V23: =V96*B65 -> 0 | W23: =W96*B65 -> 0 | X23: =X96*B65 -> 23 | Y23: =Y96*B65 -> 15 | Z23: =Z96*B65 -> 0 | AA23: =AA96*B65 -> 0 | AB23: =AB96*B65 -> 0 | AC23: =AC96*B65 -> 0 | AD23: =AD96*B65 -> 0 | AE23: =AE96*B65 -> 0 | AF23: =AF96*B65 -> 164 | AG23: =AG96*B65 -> 51 | AH23: =AH96*B65 -> 215 | AI23: =AI96*B65 -> 0 | AJ23: =AJ96*B65 -> 0 | AK23: =AK96*B65 -> 250 | AL23: =AL96*B65 -> 0 | AM23: =AM96*B65 -> 102 | AN23: =AN96*B65 -> 154 | AO23: =AO96*B65 -> 0 | AP23: =AP96*B65 -> 176 | AQ23: =AQ96*B65 -> 0 | AR23: =AR96*B65 -> 0 | AS23: =AS96*B65 -> 236 | AT23: =AT96*B65 -> 144 | AU23: =AU96*B65 -> 0 | AV23: =AV96*B65 -> 0 | AW23: =AW96*B65 -> 102 | AX23: =AX96*B65 -> 0 | AY23: =AY96*B65 -> 0 | BA23: =BA96*B65 -> 40 | BB23: =BB96*B65 -> 0 | BC23: =BC96*B65 -> 3.08 | BD23: =BD96*B65 -> 6.15 | BE23: =BE96*B65 -> 0 | BF23: =BF96*B65 -> 0 | BG23: =BG96*B65 -> 0 | BH23: =BH96*B65 -> 4.76 | BI23: =BI96*B65 -> 0 | BJ23: =BJ96*B65 -> 10.71 | BK23: =BK96*B65 -> 130.9 | BL23: =BL96*B65 -> 0 | BM23: =BM96*B65 -> 0 | BN23: =BN96*B65 -> 0 | BO23: =BO96*B65 -> 0 | BP23: =BP96*B65 -> 0 | BQ23: =BQ96*B65 -> 0 | BR23: =BR96*B65 -> 0 | BS23: =BS96*B65 -> 0 | BT23: =BT96*B65 -> 0 | BU23: =BU96*B65 -> 165 | BV23: =BV96*B65 -> 129 | BW23: =BW96*B65 -> 140 | BX23: =BX96*B65 -> 156 | BY23: =BY96*B65 -> 157 | BZ23: =BZ96*B65 -> 152 | CA23: =CA96*B65 -> 137 | CB23: =CB96*B65 -> 151 | CC23: =CC96*B65 -> 0 | CD23: =CD96*B65 -> 140 | CE23: =CE96*B65 -> 167 | CF23: =CF96*B65 -> 133 | CG23: =CG96*B65 -> 132 | CH23: =CH96*B65 -> 174 | CI23: =CI96*B65 -> 167 | CJ23: =CJ96*B65 -> 130 | CK23: =CK96*B65 -> 0 | CL23: =CL96*B65 -> 246 | CM23: =CM96*B65 -> 252 | CN23: =CN96*B65 -> 157 | CO23: =CO96*B65 -> 0 | CP23: =CP96*B65 -> 106 | CQ23: =CQ96*B65 -> 115 | CR23: =CR96*B65 -> 108 | CS23: =CS96*B65 -> 138 | CT23: =CT96*B65 -> 132 | CU23: =CU96*B65 -> 112 | CV23: =CV96*B65 -> 115 | CW23: =CW96*B65 -> 0 | CX23: =CX96*B65 -> 81 | CY23: =CY96*B65 -> 643 | CZ23: =CZ96*B65 -> 663 | DA23: =DA96*B65 -> 547 | DB23: =DB96*B65 -> 1026 | DC23: =DC96*B65 -> 263 | DD23: =DD96*B65 -> 400 | DE23: =DE96*B65 -> 0 | DF23: =DF96*B65 -> 666 | DG23: =DG96*B65 -> 441 | DH23: =DH96*B65 -> 0 | DI23: =DI96*B65 -> 0 | DJ23: =DJ96*B65 -> 0 | DK23: =DK96*B65 -> 267 | DL23: =DL96*B65 -> 0 | DM23: =DM96*B65 -> 0 | DN23: =DN96*B65 -> 0 | DO23: =DO96*B65 -> 0 | DP23: =DP96*B65 -> 0 | DQ23: =DQ96*B65 -> 0 | DR23: =DR96*B65 -> 580 | DS23: =DS96*B65 -> 0 | DT23: =DT96*B65 -> 0 | DU23: =DU96*B65 -> 0 | DV23: =DV96*B65 -> 0 | DW23: =DW96*B65 -> 0 | DX23: =DX96 -> 0 | DY23: 0 | DZ23: 0 | EA23: =EA96*B65 -> 0 | EB23: =EB96*B65 -> 0 | EC23: 0 | ED23: =ED96*B65 -> 0 | EE23: =EE96*B65 -> 0 | EF23: =EF96*B65 -> 0
A24: 16 | B24: Lohnunternehmer, MR, Transporte | E24: € | G24: 0 | H24: 0 | I24: 0 | J24: 0 | L24: =L97*B65 -> 83 | M24: =M97*B65 -> 71 | N24: =N97*B65 -> 20 | O24: =O97*B65 -> 36 | P24: =P97*B65 -> 0 | Q24: =Q97*B65 -> 0 | R24: =R97*$B$65 -> 0 | S24: =S97*B65 -> 0 | T24: =T97*B65 -> 0 | U24: =U97*B65 -> 0 | V24: =V97*B65 -> 0 | W24: =W97*B65 -> 0 | X24: =X97*B65 -> 0 | Y24: =Y97*B65 -> 0 | Z24: =Z97*B65 -> 0 | AA24: =AA97*B65 -> 0 | AB24: =AB97*B65 -> 0 | AC24: =AC97*B65 -> 0 | AD24: =AD97*B65 -> 0 | AE24: =AE97*B65 -> 0 | AF24: =AF97*B65 -> 0 | AG24: =AG97*B65 -> 11 | AH24: =AH97*B65 -> 0 | AI24: =AI97*B65 -> 0 | AJ24: =AJ97*B65 -> 0 | AK24: =AK97*B65 -> 0 | AL24: =AL97*B65 -> 0 | AM24: =AM97*B65 -> 821 | AN24: =AN97*B65 -> 0 | AO24: =AO97*B65 -> 0 | AP24: =AP97*B65 -> 298 | AQ24: =AQ97*B65 -> 0 | AR24: =AR97*B65 -> 0 | AS24: =AS97*B65 -> 0 | AT24: =AT97*B65 -> 149 | AU24: =AU97*B65 -> 0 | AV24: =AV97*B65 -> 0 | AW24: =AW97*B65 -> 0 | AX24: =AX97*B65 -> 0 | AY24: =AY97*B65 -> 0 | BA24: =BA97*B65 -> 0 | BB24: =BB97*B65 -> 0 | BC24: =BC97*B65 -> 0 | BD24: =BD97*B65 -> 6.15 | BE24: =BE97*B65 -> 0 | BF24: =BF97*B65 -> 0 | BG24: =BG97*B65 -> 0 | BH24: =BH97*B65 -> 0 | BI24: =BI97*B65 -> 0 | BJ24: =BJ97*B65 -> 132.09 | BK24: =BK97*B65 -> 262.99 | BL24: =BL97*B65 -> 71.4 | BM24: =BM97*B65 -> 0 | BN24: =BN97*B65 -> 0 | BO24: =BO97*B65 -> 0 | BP24: =BP97*B65 -> 0 | BQ24: =BQ97*B65 -> 0 | BR24: =BR97*B65 -> 0 | BS24: =BS97*B65 -> 0 | BT24: =BT97*B65 -> 0 | BU24: =BU97*B65 -> 188 | BV24: =BV97*B65 -> 139 | BW24: =BW97*B65 -> 133 | BX24: =BX97*B65 -> 188 | BY24: =BY97*B65 -> 188 | BZ24: =BZ97*B65 -> 188 | CA24: =CA97*B65 -> 188 | CB24: =CB97*B65 -> 188 | CC24: =CC97*B65 -> 0 | CD24: =CD97*B65 -> 305 | CE24: =CE97*B65 -> 359 | CF24: =CF97*B65 -> 205 | CG24: =CG97*B65 -> 206 | CH24: =CH97*B65 -> 215 | CI24: =CI97*B65 -> 205 | CJ24: =CJ97*B65 -> 149 | CK24: =CK97*B65 -> 0 | CL24: =CL97*B65 -> 521 | CM24: =CM97*B65 -> 521 | CN24: =CN97*B65 -> 425 | CO24: =CO97*B65 -> 0 | CP24: =CP97*B65 -> 157 | CQ24: =CQ97*B65 -> 157 | CR24: =CR97*B65 -> 133 | CS24: =CS97*B65 -> 215 | CT24: =CT97*B65 -> 149 | CU24: =CU97*B65 -> 149 | CV24: =CV97*B65 -> 383 | CW24: =CW97*B65 -> 0 | CX24: =CX97*B65 -> 0 | CY24: =CY97*B65 -> 0 | CZ24: =CZ97*B65 -> 0 | DA24: =DA97*B65 -> 709 | DB24: =DB97*B65 -> 42 | DC24: =DC97*B65 -> 708 | DD24: =DD97*B65 -> 51 | DE24: =DE97*B65 -> 0 | DF24: =DF97*B65 -> 0 | DG24: =DG97*B65 -> 0 | DH24: =DH97*B65 -> 0 | DI24: =DI97*B65 -> 0 | DJ24: =DJ97*B65 -> 0 | DK24: =DK97*B65 -> 633 | DL24: =DL97*B65 -> 0 | DM24: =DM97*B65 -> 0 | DN24: =DN97*B65 -> 0 | DO24: =DO97*B65 -> 0 | DP24: =DP97*B65 -> 0 | DQ24: =DQ97*B65 -> 0 | DR24: =DR97*B65 -> 80 | DS24: =DS97*B65 -> 0 | DT24: =DT97*B65 -> 0 | DU24: =DU97*B65 -> 0 | DV24: =DV97*B65 -> 0 | DW24: =DW97*B65 -> 0 | DX24: 0 | DY24: 0 | DZ24: 0 | EA24: =EA97*B65 -> 0 | EB24: =EB97*B65 -> 0 | EC24: 0 | ED24: =ED97*B65 -> 0 | EE24: =EE97*B65 -> 0 | EF24: =EF97*B65 -> 0
A25: 17 | B25: Variable Löhne | E25: € | G25: 0 | H25: 0 | I25: 0 | J25: 0 | L25: =L98 -> 0 | M25: =M98 -> 0 | N25: 0 | O25: 0 | P25: 0 | Q25: 0 | R25: =R98 -> 0 | S25: 0 | T25: 0 | U25: 0 | V25: 0 | W25: 0 | X25: 0 | Y25: 0 | Z25: 0 | AA25: 0 | AB25: 0 | AC25: 0 | AD25: 0 | AE25: 0 | AF25: 0 | AG25: 0 | AH25: 0 | AI25: 0 | AJ25: 0 | AK25: 0 | AL25: 0 | AM25: 0 | AN25: 0 | AO25: 0 | AP25: 0 | AQ25: 0 | AR25: 0 | AS25: 0 | AT25: 0 | AU25: 0 | AV25: 0 | AW25: 0 | AX25: 0 | AY25: 0 | AZ25: 0 | BA25: 0 | BB25: 0 | BC25: 0 | BD25: 0 | BE25: 0 | BF25: 0 | BG25: 0 | BH25: 0 | BI25: 0 | BJ25: 0 | BK25: 0 | BL25: 0 | BM25: 0 | BN25: 0 | BO25: 0 | BP25: 0 | BQ25: 0 | BR25: 0 | BS25: 0 | BT25: 0 | BU25: 0 | BV25: 0 | BW25: 0 | BX25: 0 | BY25: =BY98 -> 0 | BZ25: 0 | CA25: 0 | CB25: 0 | CC25: 0 | CD25: 0 | CE25: 0 | CF25: 0 | CG25: 0 | CH25: 0 | CI25: 0 | CJ25: 0 | CK25: 0 | CL25: 0 | CM25: 0 | CN25: 0 | CO25: 0 | CP25: 0 | CQ25: 0 | CR25: 0 | CS25: 0 | CT25: 0 | CU25: 0 | CV25: 0 | CW25: 0 | CX25: 0 | CY25: 0 | CZ25: 0 | DA25: 0 | DB25: 0 | DC25: 0 | DD25: 0 | DE25: 0 | DF25: 0 | DG25: 0 | DH25: 0 | DI25: 0 | DJ25: 0 | DK25: 0 | DL25: 0 | DM25: 0 | DN25: 0 | DO25: 0 | DP25: 0 | DQ25: 0 | DR25: 0 | DS25: 0 | DT25: 0 | DU25: 0 | DV25: 0 | DW25: 0 | DX25: 0 | DY25: =DY98 -> 0 | DZ25: =DZ98 -> 0 | EA25: 0 | EB25: 0 | EC25: 0 | ED25: 0 | EE25: 0 | EF25: 0 | EG25: 0
A26: 18 | B26: Summe variable Kosten | E26: € | G26: 0 | H26: 0 | I26: 0 | J26: 0 | L26: =IF(AND(L9=0,'7 Prod'!$L$4=2),"",SUM(L16:L22,L23:L25)) -> 2151 | M26: =IF(AND(M9=0,'7 Prod'!$L$4=2),"",SUM(M16:M22,M23:M25)) -> 1085 | N26: =IF(AND(N9=0,'7 Prod'!$L$4=2),"",SUM(N16:N22,N23:N25)) -> 892 | O26: =IF(AND(O9=0,'7 Prod'!$L$4=2),"",SUM(O16:O22,O23:O25)) -> 802 | P26: =IF(AND(P9=0,'7 Prod'!$L$4=2),"",SUM(P16:P22,P23:P25)) -> 622 | Q26: =IF(AND(Q9=0,'7 Prod'!$L$4=2),"",SUM(Q16:Q22,Q23:Q25)) -> 0 | R26: =IF(AND(R9=0,'7 Prod'!$L$4=2),"",SUM(R16:R22,R23:R25)) -> 804 | S26: =IF(AND(S9=0,'7 Prod'!$L$4=2),"",SUM(S16:S22,S23:S25)) -> 2226 | T26: =IF(AND(T9=0,'7 Prod'!$L$4=2),"",SUM(T16:T22,T23:T25)) -> 0 | U26: =IF(AND(U9=0,'7 Prod'!$L$4=2),"",SUM(U16:U22,U23:U25)) -> 98 | V26: =IF(AND(V9=0,'7 Prod'!$L$4=2),"",SUM(V16:V22,V23:V25)) -> 0 | W26: =IF(AND(W9=0,'7 Prod'!$L$4=2),"",SUM(W16:W22,W23:W25)) -> 0 | X26: =IF(AND(X9=0,'7 Prod'!$L$4=2),"",SUM(X16:X22,X23:X25)) -> 63 | Y26: =IF(AND(Y9=0,'7 Prod'!$L$4=2),"",SUM(Y16:Y22,Y23:Y25)) -> 181 | Z26: =IF(AND(Z9=0,'7 Prod'!$L$4=2),"",SUM(Z16:Z22,Z23:Z25)) -> 0 | AA26: =IF(AND(AA9=0,'7 Prod'!$L$4=2),"",SUM(AA16:AA22,AA23:AA25)) -> 0 | AB26: =IF(AND(AB9=0,'7 Prod'!$L$4=2),"",SUM(AB16:AB22,AB23:AB25)) -> 0 | AC26: =IF(AND(AC9=0,'7 Prod'!$L$4=2),"",SUM(AC16:AC22,AC23:AC25)) -> 0 | AD26: =IF(AND(AD9=0,'7 Prod'!$L$4=2),"",SUM(AD16:AD22,AD23:AD25)) -> 0 | AE26: =IF(AND(AE9=0,'7 Prod'!$L$4=2),"",SUM(AE16:AE22,AE23:AE25)) -> 0 | AF26: =IF(AND(AF9=0,'7 Prod'!$L$4=2),"",SUM(AF16:AF22,AF23:AF25)) -> 281 | AG26: =IF(AND(AG9=0,'7 Prod'!$L$4=2),"",SUM(AG16:AG22,AG23:AG25)) -> 253 | AH26: =IF(AND(AH9=0,'7 Prod'!$L$4=2),"",SUM(AH16:AH22,AH23:AH25)) -> 454 | AI26: =IF(AND(AI9=0,'7 Prod'!$L$4=2),"",SUM(AI16:AI22,AI23:AI25)) -> 0 | AJ26: =IF(AND(AJ9=0,'7 Prod'!$L$4=2),"",SUM(AJ16:AJ22,AJ23:AJ25)) -> 0 | AK26: =IF(AND(AK9=0,'7 Prod'!$L$4=2),"",SUM(AK16:AK22,AK23:AK25)) -> 390 | AL26: =IF(AND(AL9=0,'7 Prod'!$L$4=2),"",SUM(AL16:AL22,AL23:AL25)) -> 0 | AM26: =IF(AND(AM9=0,'7 Prod'!$L$4=2),"",SUM(AM16:AM22,AM23:AM25)) -> 1133 | AN26: =IF(AND(AN9=0,'7 Prod'!$L$4=2),"",SUM(AN16:AN22,AN23:AN25)) -> 217 | AO26: =IF(AND(AO9=0,'7 Prod'!$L$4=2),"",SUM(AO16:AO22,AO23:AO25)) -> 0 | AP26: =IF(AND(AP9=0,'7 Prod'!$L$4=2),"",SUM(AP16:AP22,AP23:AP25)) -> 1019 | AQ26: =IF(AND(AQ9=0,'7 Prod'!$L$4=2),"",SUM(AQ16:AQ22,AQ23:AQ25)) -> 0 | AR26: =IF(AND(AR9=0,'7 Prod'!$L$4=2),"",SUM(AR16:AR22,AR23:AR25)) -> 0 | AS26: =IF(AND(AS9=0,'7 Prod'!$L$4=2),"",SUM(AS16:AS22,AS23:AS25)) -> 525 | AT26: =IF(AND(AT9=0,'7 Prod'!$L$4=2),"",SUM(AT16:AT22,AT23:AT25)) -> 664 | AU26: =IF(AND(AU9=0,'7 Prod'!$L$4=2),"",SUM(AU16:AU22,AU23:AU25)) -> 0 | AV26: =IF(AND(AV9=0,'7 Prod'!$L$4=2),"",SUM(AV16:AV22,AV23:AV25)) -> 0 | AW26: =IF(AND(AW9=0,'7 Prod'!$L$4=2),"",SUM(AW16:AW22,AW23:AW25)) -> 186 | AX26: =IF(AND(AX9=0,'7 Prod'!$L$4=2),"",SUM(AX16:AX22,AX23:AX25)) -> 0 | AY26: =IF(AND(AY9=0,'7 Prod'!$L$4=2),"",SUM(AY16:AY22,AY23:AY25)) -> 0 | AZ26: =IF(AND(AZ9=0,'7 Prod'!$L$4=2),"",SUM(AZ16:AZ22,AZ23:AZ25)) -> 0 | BA26: =IF(AND(BA9=0,'7 Prod'!$L$4=2),"",SUM(BA16:BA22,BA23:BA25)) -> 1438 | BB26: =IF(AND(BB9=0,'7 Prod'!$L$4=2),"",SUM(BB16:BB22,BB23:BB25)) -> 65.81 | BC26: =IF(AND(BC9=0,'7 Prod'!$L$4=2),"",SUM(BC16:BC22,BC23:BC25)) -> 151.95 | BD26: =IF(AND(BD9=0,'7 Prod'!$L$4=2),"",SUM(BD16:BD22,BD23:BD25)) -> 217.13 | BE26: =IF(AND(BE9=0,'7 Prod'!$L$4=2),"",SUM(BE16:BE22,BE23:BE25)) -> 0 | BF26: =IF(AND(BF9=0,'7 Prod'!$L$4=2),"",SUM(BF16:BF22,BF23:BF25)) -> 0 | BG26: =IF(AND(BG9=0,'7 Prod'!$L$4=2),"",SUM(BG16:BG22,BG23:BG25)) -> 2529.23 | BH26: =IF(AND(BH9=0,'7 Prod'!$L$4=2),"",SUM(BH16:BH22,BH23:BH25)) -> 191.77 | BI26: =IF(AND(BI9=0,'7 Prod'!$L$4=2),"",SUM(BI16:BI22,BI23:BI25)) -> 0 | BJ26: =IF(AND(BJ9=0,'7 Prod'!$L$4=2),"",SUM(BJ16:BJ22,BJ23:BJ25)) -> 1215.92 | BK26: =IF(AND(BK9=0,'7 Prod'!$L$4=2),"",SUM(BK16:BK22,BK23:BK25)) -> 1510.55 | BL26: =IF(AND(BL9=0,'7 Prod'!$L$4=2),"",SUM(BL16:BL22,BL23:BL25)) -> 2170.96 | BM26: =IF(AND(BM9=0,'7 Prod'!$L$4=2),"",SUM(BM16:BM22,BM23:BM25)) -> 0 | BN26: =IF(AND(BN9=0,'7 Prod'!$L$4=2),"",SUM(BN16:BN22,BN23:BN25)) -> 0 | BO26: =IF(AND(BO9=0,'7 Prod'!$L$4=2),"",SUM(BO16:BO22,BO23:BO25)) -> 0 | BP26: =IF(AND(BP9=0,'7 Prod'!$L$4=2),"",SUM(BP16:BP22,BP23:BP25)) -> 0 | BQ26: =IF(AND(BQ9=0,'7 Prod'!$L$4=2),"",SUM(BQ16:BQ22,BQ23:BQ25)) -> 0 | BR26: =IF(AND(BR9=0,'7 Prod'!$L$4=2),"",SUM(BR16:BR22,BR23:BR25)) -> 0 | BS26: =IF(AND(BS9=0,'7 Prod'!$L$4=2),"",SUM(BS16:BS22,BS23:BS25)) -> 0 | BT26: =IF(AND(BT9=0,'7 Prod'!$L$4=2),"",SUM(BT16:BT22,BT23:BT25)) -> 0 | BU26: =IF(AND(BU9=0,'7 Prod'!$L$4=2),"",SUM(BU16:BU22,BU23:BU25)) -> 972 | BV26: =IF(AND(BV9=0,'7 Prod'!$L$4=2),"",SUM(BV16:BV22,BV23:BV25)) -> 712 | BW26: =IF(AND(BW9=0,'7 Prod'!$L$4=2),"",SUM(BW16:BW22,BW23:BW25)) -> 801 | BX26: =IF(AND(BX9=0,'7 Prod'!$L$4=2),"",SUM(BX16:BX22,BX23:BX25)) -> 788 | BY26: =IF(AND(BY9=0,'7 Prod'!$L$4=2),"",SUM(BY16:BY22,BY23:BY25)) -> 848 | BZ26: =IF(AND(BZ9=0,'7 Prod'!$L$4=2),"",SUM(BZ16:BZ22,BZ23:BZ25)) -> 778 | CA26: =IF(AND(CA9=0,'7 Prod'!$L$4=2),"",SUM(CA16:CA22,CA23:CA25)) -> 687 | CB26: =IF(AND(CB9=0,'7 Prod'!$L$4=2),"",SUM(CB16:CB22,CB23:CB25)) -> 857 | CC26: =IF(AND(CC9=0,'7 Prod'!$L$4=2),"",SUM(CC16:CC22,CC23:CC25)) -> 168 | CD26: =IF(AND(CD9=0,'7 Prod'!$L$4=2),"",SUM(CD16:CD22,CD23:CD25)) -> 1406 | CE26: =IF(AND(CE9=0,'7 Prod'!$L$4=2),"",SUM(CE16:CE22,CE23:CE25)) -> 1113 | CF26: =IF(AND(CF9=0,'7 Prod'!$L$4=2),"",SUM(CF16:CF22,CF23:CF25)) -> 960 | CG26: =IF(AND(CG9=0,'7 Prod'!$L$4=2),"",SUM(CG16:CG22,CG23:CG25)) -> 838 | CH26: =IF(AND(CH9=0,'7 Prod'!$L$4=2),"",SUM(CH16:CH22,CH23:CH25)) -> 956 | CI26: =IF(AND(CI9=0,'7 Prod'!$L$4=2),"",SUM(CI16:CI22,CI23:CI25)) -> 767 | CJ26: =IF(AND(CJ9=0,'7 Prod'!$L$4=2),"",SUM(CJ16:CJ22,CJ23:CJ25)) -> 763 | CK26: =IF(AND(CK9=0,'7 Prod'!$L$4=2),"",SUM(CK16:CK22,CK23:CK25)) -> 20 | CL26: =IF(AND(CL9=0,'7 Prod'!$L$4=2),"",SUM(CL16:CL22,CL23:CL25)) -> 2758 | CM26: =IF(AND(CM9=0,'7 Prod'!$L$4=2),"",SUM(CM16:CM22,CM23:CM25)) -> 2834 | CN26: =IF(AND(CN9=0,'7 Prod'!$L$4=2),"",SUM(CN16:CN22,CN23:CN25)) -> 1555 | CO26: =IF(AND(CO9=0,'7 Prod'!$L$4=2),"",SUM(CO16:CO22,CO23:CO25)) -> 20 | CP26: =IF(AND(CP9=0,'7 Prod'!$L$4=2),"",SUM(CP16:CP22,CP23:CP25)) -> 959 | CQ26: =IF(AND(CQ9=0,'7 Prod'!$L$4=2),"",SUM(CQ16:CQ22,CQ23:CQ25)) -> 547 | CR26: =IF(AND(CR9=0,'7 Prod'!$L$4=2),"",SUM(CR16:CR22,CR23:CR25)) -> 667 | CS26: =IF(AND(CS9=0,'7 Prod'!$L$4=2),"",SUM(CS16:CS22,CS23:CS25)) -> 909 | CT26: =IF(AND(CT9=0,'7 Prod'!$L$4=2),"",SUM(CT16:CT22,CT23:CT25)) -> 586 | CU26: =IF(AND(CU9=0,'7 Prod'!$L$4=2),"",SUM(CU16:CU22,CU23:CU25)) -> 738 | CV26: =IF(AND(CV9=0,'7 Prod'!$L$4=2),"",SUM(CV16:CV22,CV23:CV25)) -> 930 | CW26: =IF(AND(CW9=0,'7 Prod'!$L$4=2),"",SUM(CW16:CW22,CW23:CW25)) -> 0 | CX26: =IF(AND(CX9=0,'7 Prod'!$L$4=2),"",SUM(CX16:CX22,CX23:CX25)) -> 167 | CY26: =IF(AND(CY9=0,'7 Prod'!$L$4=2),"",SUM(CY16:CY22,CY23:CY25)) -> 2753 | CZ26: =IF(AND(CZ9=0,'7 Prod'!$L$4=2),"",SUM(CZ16:CZ22,CZ23:CZ25)) -> 2975 | DA26: =IF(AND(DA9=0,'7 Prod'!$L$4=2),"",SUM(DA16:DA22,DA23:DA25)) -> 4366 | DB26: =IF(AND(DB9=0,'7 Prod'!$L$4=2),"",SUM(DB16:DB22,DB23:DB25)) -> 3317 | DC26: =IF(AND(DC9=0,'7 Prod'!$L$4=2),"",SUM(DC16:DC22,DC23:DC25)) -> 16163 | DD26: =IF(AND(DD9=0,'7 Prod'!$L$4=2),"",SUM(DD16:DD22,DD23:DD25)) -> 5854 | DE26: =IF(AND(DE9=0,'7 Prod'!$L$4=2),"",SUM(DE16:DE22,DE23:DE25)) -> 0 | DF26: =IF(AND(DF9=0,'7 Prod'!$L$4=2),"",SUM(DF16:DF22,DF23:DF25)) -> 1583 | DG26: =IF(AND(DG9=0,'7 Prod'!$L$4=2),"",SUM(DG16:DG22,DG23:DG25)) -> 2117 | DH26: =IF(AND(DH9=0,'7 Prod'!$L$4=2),"",SUM(DH16:DH22,DH23:DH25)) -> 0 | DI26: =IF(AND(DI9=0,'7 Prod'!$L$4=2),"",SUM(DI16:DI22,DI23:DI25)) -> 0 | DJ26: =IF(AND(DJ9=0,'7 Prod'!$L$4=2),"",SUM(DJ16:DJ22,DJ23:DJ25)) -> 0 | DK26: =IF(AND(DK9=0,'7 Prod'!$L$4=2),"",SUM(DK16:DK22,DK23:DK25)) -> 1421 | DL26: =IF(AND(DL9=0,'7 Prod'!$L$4=2),"",SUM(DL16:DL22,DL23:DL25)) -> 0 | DM26: =IF(AND(DM9=0,'7 Prod'!$L$4=2),"",SUM(DM16:DM22,DM23:DM25)) -> 0 | DN26: =IF(AND(DN9=0,'7 Prod'!$L$4=2),"",SUM(DN16:DN22,DN23:DN25)) -> 0 | DO26: =IF(AND(DO9=0,'7 Prod'!$L$4=2),"",SUM(DO16:DO22,DO23:DO25)) -> 0 | DP26: =IF(AND(DP9=0,'7 Prod'!$L$4=2),"",SUM(DP16:DP22,DP23:DP25)) -> 0 | DQ26: =IF(AND(DQ9=0,'7 Prod'!$L$4=2),"",SUM(DQ16:DQ22,DQ23:DQ25)) -> 0 | DR26: =IF(AND(DR9=0,'7 Prod'!$L$4=2),"",SUM(DR16:DR22,DR23:DR25)) -> 6921 | DS26: =IF(AND(DS9=0,'7 Prod'!$L$4=2),"",SUM(DS16:DS22,DS23:DS25)) -> 0 | DT26: =IF(AND(DT9=0,'7 Prod'!$L$4=2),"",SUM(DT16:DT22,DT23:DT25)) -> 0 | DU26: =IF(AND(DU9=0,'7 Prod'!$L$4=2),"",SUM(DU16:DU22,DU23:DU25)) -> 0 | DV26: =IF(AND(DV9=0,'7 Prod'!$L$4=2),"",SUM(DV16:DV22,DV23:DV25)) -> 0 | DW26: =IF(AND(DW9=0,'7 Prod'!$L$4=2),"",SUM(DW16:DW22,DW23:DW25)) -> 0 | DX26: =IF(AND(DX9=0,'7 Prod'!$L$4=2),"",SUM(DX16:DX22,DX23:DX25)) -> 1017 | DY26: =IF(AND(DY9=0,'7 Prod'!$L$4=2),"",SUM(DY16:DY22,DY23:DY25)) -> 0 | DZ26: =IF(AND(DZ9=0,'7 Prod'!$L$4=2),"",SUM(DZ16:DZ22,DZ23:DZ25)) -> 0 | EA26: =IF(AND(EA9=0,'7 Prod'!$L$4=2),"",SUM(EA16:EA22,EA23:EA25)) -> 0 | EB26: =IF(AND(EB9=0,'7 Prod'!$L$4=2),"",SUM(EB16:EB22,EB23:EB25)) -> 0 | EC26: =IF(AND(EC9=0,'7 Prod'!$L$4=2),"",SUM(EC16:EC22,EC23:EC25)) -> 0 | ED26: =IF(AND(ED9=0,'7 Prod'!$L$4=2),"",SUM(ED16:ED22,ED23:ED25)) -> 0 | EE26: =IF(AND(EE9=0,'7 Prod'!$L$4=2),"",SUM(EE16:EE22,EE23:EE25)) -> 0 | EF26: =IF(AND(EF9=0,'7 Prod'!$L$4=2),"",SUM(EF16:EF22,EF23:EF25)) -> 0 | EI26: =SUMPRODUCT(L9:EF9,L26:EF26) -> 0
A27: 19 | B27: Deckungsbeitrag | E27: € | G27: 0 | H27: 0 | I27: 0 | J27: 0 | L27: =SUM(L15)-SUM(L26) -> 1937 | M27: =SUM(M15)-SUM(M26) -> 809 | N27: 630 | O27: 856 | P27: 503 | Q27: 0 | R27: 1500 | S27: -181 | T27: 0 | U27: 22 | V27: 0 | W27: 0 | X27: 267 | Y27: 259 | Z27: 0 | AA27: 0 | AB27: 0 | AC27: 0 | AD27: 0 | AE27: 0 | AF27: -281 | AG27: -253 | AH27: -454 | AI27: 0 | AJ27: 0 | AK27: 610 | AL27: 0 | AM27: -1133 | AN27: -217 | AO27: 0 | AP27: -1019 | AQ27: 0 | AR27: 0 | AS27: -525 | AT27: -664 | AU27: 0 | AV27: 0 | AW27: -186 | AX27: 0 | AY27: 0 | AZ27: 0 | BA27: 782 | BB27: 7.22 | BC27: 16.05 | BD27: 269.74 | BE27: 0 | BF27: 0 | BG27: 3320.07 | BH27: 14.03 | BI27: 0 | BJ27: 557.68 | BK27: 2219.45 | BL27: 83.04 | BM27: 0 | BN27: 0 | BO27: 0 | BP27: 0 | BQ27: 0 | BR27: 0 | BS27: 0 | BT27: 0 | BU27: 684 | BV27: 302 | BW27: 69 | BX27: 430 | BY27: =SUM(BY15)-SUM(BY26) -> 720 | BZ27: 530 | CA27: 717 | CB27: 531 | CC27: 750 | CD27: 556 | CE27: 721 | CF27: 240 | CG27: 417 | CH27: 744 | CI27: 83 | CJ27: -175 | CK27: -20 | CL27: 1875 | CM27: 4321 | CN27: 1085 | CO27: -20 | CP27: -305 | CQ27: -97 | CR27: -667 | CS27: -909 | CT27: -228 | CU27: 134 | CV27: 10 | CW27: 0 | CX27: -167 | CY27: 3817 | CZ27: 9025 | DA27: 15134 | DB27: 6883 | DC27: 7213 | DD27: 3379 | DE27: 0 | DF27: 13777 | DG27: 3504 | DH27: 0 | DI27: 0 | DJ27: 0 | DK27: 3979 | DL27: 0 | DM27: 0 | DN27: 0 | DO27: 0 | DP27: 0 | DQ27: 0 | DR27: 19279 | DS27: 0 | DT27: 0 | DU27: 0 | DV27: 0 | DW27: 0 | DX27: 2598 | DY27: 0 | DZ27: 0 | EA27: 0 | EB27: 0 | EC27: 0 | ED27: 0 | EE27: 0 | EF27: 0
K29: Nebenleistungen:
K30: wb. Kälber je Kuh | L30: =L103 -> 0.5 | O30: kg je wb. Absetzerkalb, € | P30: =P103 -> 270 | AF30: Wi-Dü in % | AG30: Wi-Dü in % | AH30: Wi-Dü in % | AI30: Wi-Dü in % | AJ30: Wi-Dü in % | AK30: Wi-Dü in % | AL30: Wi-Dü in % | AM30: Wi-Dü in % | AN30: Wi-Dü in % | AP30: Wi-Dü in % | AQ30: Wi-Dü in % | AR30: Wi-Dü in % | AS30: Wi-Dü in % | AT30: Wi-Dü in % | AU30: Wi-Dü in % | AV30: Wi-Dü in % | AW30: Wi-Dü in % | AX30: Wi-Dü in % | BU30: Wi-Dü in % | BV30: Wi-Dü in % | BW30: Wi-Dü in % | BX30: Wi-Dü in % | BY30: Wi-Dü in % | BZ30: Wi-Dü in % | CA30: Wi-Dü in % | CB30: Wi-Dü in % | CC30: Wi-Dü in % | CD30: Wi-Dü in % | CE30: Wi-Dü in % | CF30: Wi-Dü in % | CG30: Wi-Dü in % | CH30: Wi-Dü in % | CI30: Wi-Dü in % | CJ30: Wi-Dü in % | CK30: Wi-Dü in % | CL30: Wi-Dü in % | CM30: Wi-Dü in % | CN30: Wi-Dü in % | CO30: Wi-Dü in % | CP30: Wi-Dü in % | CQ30: Wi-Dü in % | CR30: Wi-Dü in % | CS30: Wi-Dü in % | CT30: Wi-Dü in % | CU30: Wi-Dü in % | CV30: Wi-Dü in % | CW30: Wi-Dü in % | CX30: Wi-Dü in % | CY30: Wi-Dü in % | CZ30: Wi-Dü in % | DA30: Wi-Dü in % | DB30: Wi-Dü in % | DC30: Wi-Dü in % | DD30: Wi-Dü in % | DE30: Wi-Dü in % | DF30: Wi-Dü in % | DG30: Wi-Dü in % | DH30: Wi-Dü in % | DI30: Wi-Dü in % | DJ30: Wi-Dü in % | DK30: Wi-Dü in % | DL30: Wi-Dü in % | DM30: Wi-Dü in % | DN30: Wi-Dü in % | DO30: Wi-Dü in % | DP30: Wi-Dü in % | DQ30: Wi-Dü in % | DR30: Wi-Dü in % | DS30: Wi-Dü in %
K31: Preis / Wert je wb. Kalb, € | L31: =L104*$D$65 -> 281 | O31: Preis je kg für wb. Kalb, € | P31: =P104*$D$65 -> 2.73 | AF31: =AF104 -> 80 | AG31: =AG104 -> 64 | AH31: 65 | AI31: 0 | AJ31: 0 | AK31: 70 | AL31: 0 | AM31: 70 | AN31: 70 | AP31: =AP104 -> 50 | AQ31: =AQ104 -> 0 | AR31: 50 | AS31: 70 | AT31: 70 | AU31: 70 | AV31: 70 | AW31: 70 | AX31: 0 | BU31: =BU104 -> 30 | BV31: =BV104 -> 30 | BW31: 30 | BX31: 30 | BY31: 30 | BZ31: 30 | CA31: 30 | CB31: 30 | CC31: 30 | CD31: 30 | CE31: 30 | CF31: 30 | CG31: 30 | CH31: 30 | CI31: 30 | CJ31: 30 | CK31: 30 | CL31: 30 | CM31: 30 | CN31: 30 | CO31: 30 | CP31: 30 | CQ31: 30 | CR31: 30 | CS31: 30 | CT31: 30 | CU31: 30 | CV31: 30 | CW31: 90 | CX31: 90 | CY31: 30 | CZ31: 0 | DA31: 0 | DB31: 30 | DC31: 0 | DD31: 0 | DE31: 0 | DF31: 0 | DG31: 0 | DH31: 0 | DI31: 0 | DJ31: 0 | DK31: 0 | DL31: 0 | DM31: 0 | DN31: 0 | DO31: 0 | DP31: 0 | DQ31: 0 | DR31: 0 | DS31: 0
K32: ml. Kälber je Kuh | L32: 0.5 | O32: kg je ml. Absetzerkalb, € | P32: =P105 -> 310
K33: Preis / Wert je ml. Kalb, € | L33: =L106*$D$65 -> 104 | O33: Preis je kg für ml. Kalb, € | P33: =P106*$D$65 -> 3.6 | AZ33: Nebenleistungen:
K34: verk. Kuh je Kuh (Best.) | L34: 0.33 | AZ34: St. Altsau je ZS | BA34: =BA107 -> 0.43
K35: Preis je verk. Kuh , € | L35: =L108*$D$65 -> 894 | O35: verk. Kuh je Kuh (Best.) | P35: =IF('1 KaP'!M$64=0,0.15,1/'1 KaP'!M$64) -> 0.2 | AZ35: Preis Altsau € | BA35: =BA108*D65 -> 218
K36: So. Nebenleist. (o.Präm.) € | L36: 0 | O36: Preis je verk. Kuh , € | P36: =P109*$D$65 -> 1047 | AZ36: So. Nebenleist. bar (ohne Präm.) € | BA36: =BA109*D65 -> 0
K37: Summe € | L37: =SUM(L30*L31,L32*L33,L34*L35,L36) -> 488 | O37: So. Nebenleist. (o.Präm.) € | P37: =P110 -> 0 | AZ37: Summe € | BA37: =SUM(BA34*BA35,BA36) -> 94
K38: Kraftfutter: | O38: Summe € | P38: =SUM(P35*P36,P37) -> 209 | AZ38: Kraftfutter:
K39: Verkaufte Milch kg/Kuh | L39: =L112 -> 8000 | AZ39: Aufgez. Ferkel je Zuchtsau | BA39: =BA112 -> 30
K40: + Milch an Kälber kg/Kuh | L40: =L113 -> 200 | AZ40: kg Ferkelfutter je Ferkel | BA40: =BA113 -> 40
K41: dav. Milch aus Grundfutter kg/Kuh | L41: =L114 -> 3100 | AZ41: Ferkelfutter in kg je Zuchtsau | BA41: =BA114 -> 1200
K42: verbleibt Milch aus Kraftfutter kg/Kuh | L42: =L39+L40-L41 -> 5100 | AZ42: Ferkelfutterpreis € je t | BA42: =BA115*C65 -> 417
K43: kg Milch je kg Kraftfutter | L43: =L116 -> 2.3
K44: Kraftfutter kg je Kuh | L44: =L42/L43 -> 2217 | AZ44: Sauenfutter kg je ZS | BA44: =BA117 -> 1225
K45: Kraftfutterpreis € je t | L45: =L118*$C$65 -> 375 | AZ45: Sauenfutterpreis € je t | BA45: =BA118*C65 -> 326
K46: = Kraftfutterkosten € | L46: =L44*L45/1000 -> 831 | AZ46: = Kraftfutterkosten € | BA46: =IF(BA44*BA45=0,0,SUM(BA41*BA42,BA44*BA45)/1000) -> 900
K47: + Mineralfutter € | L47: =L120*$B$65 -> 54 | AZ47: + Mineralfutter € | BA47: =BA120*B65 -> 0
K48: + anderer Futterzukauf (z.B. Grundfutter) € | L48: =L121*$C$65 -> 0 | AZ48: + anderer Futterzukauf (z.B. Grundfutter) € | BA48: =BA121*C65 -> 10
K49: + Kälberkraftfutter + MAT € | L49: =L122*$C$65 -> 90
K50: = Futterzukauf ges. je Kuh € | L50: =SUM(L46:L49) -> 975 | AZ50: = Futterzukauf ges. je ZS € | BA50: =SUM(BA46:BA48) -> 910
B57: Ist | C57: Ziel
B58: (Regelbest. = 1, Pauschalier. = 2)
B59: ='1 KaP'!F9 -> 2 | C59: ='1 KaP'!J9 -> 2
B61: MwSt-Umrechnung Ist auf Ziel :
